Workbook

Sheet Přehled listů
A1: Přehled listů
A2: List
A3: Metodika, seznam pojmů
A4: Výsl. OS - 2023 průřezová data
A5: Výsl. OS - grafy, časové řady
A6: Přehled_trest_2023
A7: Přehled_trest_po_kr_2023
A8: Databáze_trest
A9: Přehled_civil_2023
A10: Přehled_civil_po_kr_2023
A11: Databáze_civil
A12: Přehled_opatro_2023
A13: Přehled_opatro_po_kr_2023
A14: Databáze_opatro
A15: Výsl. KS trest - 2023
A16: Výsl. KS trest - grafy, řady
A17: Přehled_trest_2023_KS
A18: Databáze_trest_KS
A19: Přehled_To_2023_KS
A20: Databáze_To_KS
A21: Výsl. KS civil - 2023
A22: Výsl. KS civil - grafy, řady
A23: Přehled_Cm_2023_KS
A24: Databáze_Cm_KS
A25: Přehled_C_2023_KS
A26: Databáze_C_KS
A27: Přehled_Co_2023_KS
A28: Databáze_Co_KS
A29: Výsl. KS spravni - 2023
A30: Výsl. KS spravni - grafy, řady
A31: Přehled_A_2023_KS
A32: Databáze_A_KS
A33: Výsl. KS INS - 2023
A34: Výsl. KS insolv - grafy, řady
A35: Přehled_INS_2023_KS
A36: Databáze_INS_KS
A37: Přehled_ICm_2023_KS
A38: Databáze_ICm_KS

Sheet Metodika, seznam pojmů
A1: Metodika - poznámky
A2: Okresní soudy
A3: Na listu "Výsl. OS - 2023 průřezová data" v poli "Okresní soud" (vyznačeno modře) je třeba vybrat soud, který uživatele zajímá. Ostatní údaje a grafy se automaticky přepočtou. S výjimkou tohoto pole, není doporučeno jakkoliv do souboru zasahovat, protože by mohlo dojít k porušení vzorců.
A4: Uvedená data jsou očištěna stejným způsobem jako data ve statistické výroční zprávě. To znamená, že data ze statistických listů (délky řízení, data o odvolání a míra odsouzení) jsou především očištěna o věci vyřízené trestním příkazem (trest) nebo rozkazní řízení (civil).
A5: Materiál se zabývá pouze hlavními agendami. Jedná se o rejstříky C, T+Tm a PaNc u okresních soudů.
A7: Krajské soudy
A8: Uvedené údaje se týkají krajských soudů, ne podřízených okresních soudů
A9: V zásadě platí stejné či podobné poznámky jako u OS, je zde ale několik rozdílů.
A10: Sledovaných agend je u krajských soudů výrazně více než u soudů okresních. Proto jsou agendy rozděleny do více listů (trestní agenda, civilní agenda, správní soudnictví a insolvence). Ke každé agendě jsou vždy dva listy - jeden s průřezovými daty za rok 2023, jeden s časovými řadami.
A11: Podobně jako u okresních soudů, v poli "Krajský soud" (vyznačeno modře) je třeba vybrat soud, který uživatele zajímá. Ostatní údaje a grafy se automaticky přepočtou.
A12: Sledovány jsou následující rejstříky: • Trest – T+Tm, To+Tmo • Civil – C, Cm, Co • Správní – A+Af+Ad+Az, dříve také Ca+Cad • Insolvence – ICm, INS
A14: U každého sledovaného ukazatele je uvedeno následující: • Hodnota – hodnota daného ukazatele u předmětného soudu • Hodnota v ČR – hodnota ukazatele v celé ČR • Pořadí v ČR – pořadí soudu v rámci ČR, na kterém se soud „umístil“ díky hodnotě sledovaného ukazatele. Další detaily o pořadí lze najít v popisu jednotlivých ukazatelů. Umístí-li se dva soudy na stejném místě, je vykázáno vyšší pořadí. Například jsou-li dva soudy na třetím až čtvrtém místě, je u obou uvedeno třetí místo. • Hodnota v kraji – hodnota ukazatele v kraji, do kterého daný okresní soud spadá. • Pořadí v kraji – pořadí soudu v rámci kraje, do kterého daný okresní soud spadá. Platí stejné poznámky jako u „Pořadí v ČR“ U některých ukazatelů (jako je například počet vyřízených věcí) není pořadí v ČR a v kraji uvedeno, protože plyne z velikosti daného soudu. Ta již je vyjádřena počtem soudců, kde je pořadí uvedeno.
A16: Seznam pojmů (ukazatele)
A17: Ukazatel | B17: Vysvětlení
A18: Délka řízení | B18: U prvostupňové agendy je délka řízení vždy udávána v kalendářních dnech ode dne nápadu do dne vyřízení soudem I. stupně. U odvolací agendy jde o délku řízení ode dne nápadu u odvolacího soudu do dne vyřízení odvolacím soudem. U rejstříku INS se jedná o délku řízení ode dne nápadu do dne rozhodnutí o úpadku. Délky řízení jsou vypočteny ze statistických listů. U pořadí délek řízení vždy platí, že vyšší umístění znamená nižší délku řízení. Data byla očištěna o věci vyřízené trestním příkazem nebo o rozkazní řízení.
A19: Průměr | B19: Jedná se o aritmetický průměr.
A20: Medián | B20: Hodnota, která se nachází přesně uprostřed vzestupně setříděného souboru hodnot a dělí ho na dvě stejně velké části o stejném počtu hodnot. Platí, že nejméně 50 % hodnot je menších nebo rovno a nejméně 50 % hodnot je větších nebo rovno mediánu.
A21: Percentil 90 | B21: Percentily dělí vzestupně setříděný soubor hodnot na setiny (na sto stejných částí). Devadesátý percentil znamená, že 90 % hodnot je menších nebo rovno a 10 % hodnot větších nebo rovno hodnotě percentilu.
A22: Odvolání | B22: Tato data se týkají odvolání a jsou vždy v procentech. Údaje jsou ze statistických listů. Vyšší umístění vždy znamená nižší míru (odvolání, změny rozsudku, celkové změny rozsudku).
A23: Míra odvolání | B23: Jedná se o poměr pravomocně vyřízených věcí, v nichž bylo podáno odvolání, k celkovému počtu pravomocně skončených (vyřízených) věcí × 100 %.
A24: Míra změny rozsudku | B24: Jedná se o poměr pravomocně skončených věcí, v nichž bylo vyhověno odvolání (tedy rozsudek soudu I. stupně byl změněn odvolacím soudem na podkladě odvolání) k celkovému počtu pravomocně skončených věcí, v nichž bylo podáno odvolání × 100 %
A25: Celková míra zm. rozsudku | B25: Byla vypočtena jako míra odvolání krát míra změny rozsudku. Jde o podíl věcí, v nichž nakonec bylo odvolacím soudem změněno rozhodnutí soudu I. stupně ke všem prvostupňových rozhodnutím
A26: Vyřizování věcí | B26: Data jsou získána z výkazů, a nejsou tedy dále nijak očištěna. U položek "obživa + nápad", "vyřízeno" a "nevyřízeno" není uvedeno pořadí, protože údaje velmi silně závisejí na velikosti soudu. A velikost soudu je již aproximována pomocí počtu soudců, kde je pořadí v ČR uvedeno.
A27: Obživa+nápad | B27: Počet obživlých a napadlých věcí v daném období. U hodnot za ČR a u hodnot za kraje se jedná o aritmetický průměr jednotlivých soudů.
A28: Vyřízeno | B28: Počet vyřízených věcí v daném období. U hodnot za ČR a u hodnot za kraje se jedná o aritmetický průměr jednotlivých soudů.
A29: Nevyřízeno | B29: Počet nevyřízených věcí k 31. 12. daného období. U hodnot za ČR a u hodnot za kraje se jedná o aritmetický průměr jednotlivých soudů.
A30: Míra vyřizování | B30: Je vypočtena jako (počet vyřízených věcí v daném období) / (počet příchozích věcí v daném období) × 100 %. Udává tedy, zda soud vyřídil více věcí, než mu nově přišlo (nápad a obživa). Lepší umístění znamená vyšší míru vyřizování.
A31: Disposition time (dispoziční čas) | B31: Je vypočítán podle metodiky CEPEJ jako (počet nevyřízených věcí na konci daného období) / (počet vyřízených věcí v daném období) × 365. Tento údaj v podstatě ukazuje, za kolik dní by při stejném tempu soud dovyřídil všechny věci, které u něj dnes leží, kdyby k němu již žádné další nepřicházely. Nejedná se o délku řízení, přestože by se to mohlo podle názvu nabízet. Lepší umístění znamená nižší DT, a tedy lepší výsledek (menší problémy s vyřizováním agendy).
A32: Nevyříz. před rozh. o úpadku | B32: U rejstříku INS. Počet nevyřízených věcí před rozhodnutím o úpadku k 31.12. daného období. U hodnot za ČR se jedná o aritmetický průměr jednotlivých soudů.
A33: Nevyříz. po rozh. o úpadku | B33: U rejstříku INS. Počet nevyřízených věcí po rozhodnutí o úpadku k 31.12. daného období. U hodnot za ČR se jedná o aritmetický průměr jednotlivých soudů.
A34: Počet soudců k 1.1 | B34: Udává počet soudců, kteří se skutečně věnují dané agendě s přesností na desetinu soudce (úvazku), a to k 1.1.2023 dle údajů poskytnutých samotnými soudy. U krajů a v ČR jsou uvedeny průměrné hodnoty, aby tak bylo možné srovnat velikost soudu vzhledem k ostatním soudů v kraji či ČR. Vyšší umístění značí vyšší počet soudců a tedy větší soud. Využito pro srovnání, neznamená to, že větší soud je lepší soud.
A35: Vyřizování věcí na soudce | B35: Položky byly vypočteny tak, že absolutní hodnoty (nápad+obživa, vyřízeno, nevyřízeno) byly vyděleny počtem soudců (úvazků).
A36: Obživa+nápad | B36: Počet obživlých a napadlých věcí v daném období, přepočteno na jednoho evidenčního soudce. Lepší umístění znamená vyšší počet napadlých + obživlých věcí na soudce.
A37: Vyřízeno | B37: Počet vyřízených věcí v daném období, přepočteno na jednoho evidenčního soudce. Vyšší umístění znamená vyšší počet vyřízených věcí na soudce.
A38: Nevyřízeno | B38: Počet nevyřízených věcí v daném období, přepočteno na jednoho evidenčního soudce. Lepší umístění znamená nižší počet nevyřízených věcí na soudce.
A39: Nevyříz. před rozh. o úpadku | B39: Počet nevyřízených věcí před rozhodnutím o úpadku v daném období, přepočteno na jednoho evidenčního soudce. Vyšší umístění znamená nižší počet nevyřízených věcí na soudce.
A40: Nevyříz. po rozh. o úpadku | B40: Počet nevyřízených věcí po rozhodnutí o úpadku v daném období, přepočteno na jednoho evidenčního soudce. Lepší umístění znamená nižší počet nevyřízených věcí na soudce.
A41: Míra odsouzení | B41: Po očištění dat ze statistických listů je vypočteno jako počet (pravomocně odsouzených osob)/(počet pravomocně vyřízených osob). Jako odsouzené osoby jsou samozřejmě započítány odsouzené osoby, a dále také osoby, jímž byl uložen souhrnný trest. Jako neodsouzené osoby se počítají zproštění a zastavení řízení. Lepší pořadí (nižší číslo) značí vyšší míru odsouzení. Opět použito pro srovnání. Není tím míněno, že vyšší míra odsouzení je lepší.
A42: Omezená svéprávnost | B42: Celkový počet živých spisů o osobách s omezenou svéprávností. Jedná se tedy o počet osob.
A43: Nezletilí | B43: Počet nezletilých osob.
A44: Nesvéprávní | B44: Počet nesvéprávných osob.
A45: Způsob řešení úpadku | B45: Udává v procentech podíl věcí v řízení k 31.12. daného období dle způsobu řešení úpadku na celkovém počtu věcí v řízení.
A46: Konkurzem | B46: Podíl věcí v řízení, kde je úpadek řešen konkurzem.
A47: Reorganizací | B47: Podíl věcí v řízení, kde je úpadek řešen reorganizací.
A48: Oddlužením | B48: Podíl věcí v řízení, kde je úpadek řešen oddlužením.
A51: Evidenční počet soudců k 1.1 | B51: Udává evidenční počet soudců k 1.1. U krajů a v ČR jsou uvedeny průměrné hodnoty, aby tak bylo možné srovnat velikost soudu vzhledem k ostatním soudů v kraji či ČR. Vyšší umístění značí vyšší počet soudců a tedy větší soud. Využito pro srovnání, neznamená to, že větší soud je lepší soud.

Sheet Výsl. OS - 2023 průřezová data
B1: Okresní soudy - vybraná statistická data
B2: Okresní soud: | C2: Brno-město
B3: Nadřízený soud: | C3: =VLOOKUP($C$2,Pom_tabulky_grafy!B64:C149,2,0) -> KS Brno
B4: Trestní agenda 2023 | L4: Civilní agenda 2023 | V4: Opatrovnická agenda 2023
B5: Ukazatel | D5: Hodnota | E5: Hodnota v kraji | F5: Pořadí v kraji | G5: Hodnota v ČR | H5: Pořadí v ČR | L5: Ukazatel | N5: Hodnota | O5: Hodnota v kraji | P5: Pořadí v kraji | Q5: Hodnota v ČR | R5: Pořadí v ČR | V5: Ukazatel | X5: Hodnota | Y5: Hodnota v kraji | Z5: Pořadí v kraji | AA5: Hodnota v ČR | AB5: Pořadí v ČR
B6: Délka řízení (ve dnech) | C6: Průměr | D6: =VLOOKUP($C$2,Přehled_trest_2023!$B$4:$S$91,3,0) -> 84.56547 | E6: =VLOOKUP($C$3,Přehled_trest_po_kr_2023!$A$8:$Q$15,2,0) -> 137 | F6: =SUMPRODUCT((--($C$3 =Přehled_trest_2023!$C$6:$C$91)),(--($D6>Přehled_trest_2023!$D$6:$D$91)))+1 -> 2 | G6: =HLOOKUP(C6,Přehled_trest_2023!$D$5:$S$92,88,0) -> 165 | H6: =_xlfn.RANK.EQ(D6,Přehled_trest_2023!$D$6:$D$91,1) -> 7 | L6: Délka řízení (ve dnech) | M6: Průměr | N6: =VLOOKUP($C$2,Přehled_civil_2023!$B$4:$S$91,3,0) -> 358.5775 | O6: =VLOOKUP($C$3,Přehled_civil_po_kr_2023!$A$8:$Q$15,2,0) -> 302 | P6: =SUMPRODUCT((--($C$3 =Přehled_civil_2023!$C$6:$C$91)),(--($N6>Přehled_civil_2023!$D$6:$D$91)))+1 -> 13 | Q6: =HLOOKUP(M6,Přehled_civil_2023!$D$5:$S$92,88,0) -> 251 | R6: =_xlfn.RANK.EQ(N6,Přehled_civil_2023!$D$6:$D$91,1) -> 83 | V6: Délka řízení (ve dnech) | W6: Průměr | X6: =VLOOKUP($C$2,Přehled_opatro_2023!$B$4:$X$91,3,0) -> 164.6566 | Y6: =VLOOKUP($C$3,Přehled_opatro_po_kr_2023!$A$8:$T$15,2,0) -> 136 | Z6: =SUMPRODUCT((--($C$3 =Přehled_opatro_2023!$C$6:$C$91)),(--($X6>Přehled_opatro_2023!$D$6:$D$91)))+1 -> 13 | AA6: =HLOOKUP(W6,Přehled_opatro_2023!$D$5:$X$92,88,0) -> 112 | AB6: =_xlfn.RANK.EQ(X6,Přehled_opatro_2023!$D$6:$D$91,1) -> 83
C7: Medián | D7: =VLOOKUP($C$2,Přehled_trest_2023!$B$4:$S$91,4,0) -> 43 | E7: =VLOOKUP($C$3,Přehled_trest_po_kr_2023!$A$8:$Q$15,3,0) -> 66 | F7: =SUMPRODUCT((--($C$3 =Přehled_trest_2023!$C$6:$C$91)),(--($D7>Přehled_trest_2023!$E$6:$E$91)))+1 -> 1 | G7: =HLOOKUP(C7,Přehled_trest_2023!$D$5:$S$92,88,0) -> 75 | H7: =_xlfn.RANK.EQ(D7,Přehled_trest_2023!$E$6:$E$91,1) -> 4 | M7: Medián | N7: =VLOOKUP($C$2,Přehled_civil_2023!$B$4:$S$91,4,0) -> 245 | O7: =VLOOKUP($C$3,Přehled_civil_po_kr_2023!$A$8:$Q$15,3,0) -> 199 | P7: =SUMPRODUCT((--($C$3 =Přehled_civil_2023!$C$6:$C$91)),(--($N7>Přehled_civil_2023!$E$6:$E$91)))+1 -> 13 | Q7: =HLOOKUP(M7,Přehled_civil_2023!$D$5:$S$92,88,0) -> 162 | R7: =_xlfn.RANK.EQ(N7,Přehled_civil_2023!$E$6:$E$91,1) -> 83 | W7: Medián | X7: =VLOOKUP($C$2,Přehled_opatro_2023!$B$4:$X$91,4,0) -> 122 | Y7: =VLOOKUP($C$3,Přehled_opatro_po_kr_2023!$A$8:$T$15,3,0) -> 92 | Z7: =SUMPRODUCT((--($C$3 =Přehled_opatro_2023!$C$6:$C$91)),(--($X7>Přehled_opatro_2023!$E$6:$E$91)))+1 -> 13 | AA7: =HLOOKUP(W7,Přehled_opatro_2023!$D$5:$X$92,88,0) -> 72 | AB7: =_xlfn.RANK.EQ(X7,Přehled_opatro_2023!$E$6:$E$91,1) -> 84
C8: Percentil 90 | D8: =VLOOKUP($C$2,Přehled_trest_2023!$B$4:$S$91,5,0) -> 153 | E8: =VLOOKUP($C$3,Přehled_trest_po_kr_2023!$A$8:$Q$15,4,0) -> 279 | F8: =SUMPRODUCT((--($C$3 =Přehled_trest_2023!$C$6:$C$91)),(--($D8>Přehled_trest_2023!$F$6:$F$91)))+1 -> 2 | G8: =HLOOKUP(C8,Přehled_trest_2023!$D$5:$S$92,88,0) -> 351 | H8: =_xlfn.RANK.EQ(D8,Přehled_trest_2023!$F$6:$F$91,1) -> 6 | M8: Percentil 90 | N8: =VLOOKUP($C$2,Přehled_civil_2023!$B$4:$S$91,5,0) -> 599 | O8: =VLOOKUP($C$3,Přehled_civil_po_kr_2023!$A$8:$Q$15,4,0) -> 490 | P8: =SUMPRODUCT((--($C$3 =Přehled_civil_2023!$C$6:$C$91)),(--($N8>Přehled_civil_2023!$F$6:$F$91)))+1 -> 13 | Q8: =HLOOKUP(M8,Přehled_civil_2023!$D$5:$S$92,88,0) -> 386 | R8: =_xlfn.RANK.EQ(N8,Přehled_civil_2023!$F$6:$F$91,1) -> 81 | W8: Percentil 90 | X8: =VLOOKUP($C$2,Přehled_opatro_2023!$B$4:$X$91,5,0) -> 307 | Y8: =VLOOKUP($C$3,Přehled_opatro_po_kr_2023!$A$8:$T$15,4,0) -> 282 | Z8: =SUMPRODUCT((--($C$3 =Přehled_opatro_2023!$C$6:$C$91)),(--($X8>Přehled_opatro_2023!$F$6:$F$91)))+1 -> 11 | AA8: =HLOOKUP(W8,Přehled_opatro_2023!$D$5:$X$92,88,0) -> 239 | AB8: =_xlfn.RANK.EQ(X8,Přehled_opatro_2023!$F$6:$F$91,1) -> 78
B9: Odvolání (v %) | C9: Míra odvolání | D9: =VLOOKUP($C$2,Přehled_trest_2023!$B$4:$S$91,6,0) -> 17.70026 | E9: =VLOOKUP($C$3,Přehled_trest_po_kr_2023!$A$8:$Q$15,5,0) -> 20 | F9: =SUMPRODUCT((--($C$3 =Přehled_trest_2023!$C$6:$C$91)),(--($D9>Přehled_trest_2023!$G$6:$G$91)))+1 -> 4 | G9: =HLOOKUP(C9,Přehled_trest_2023!$D$5:$S$92,88,0) -> 21.48 | H9: =_xlfn.RANK.EQ(D9,Přehled_trest_2023!$G$6:$G$91,1) -> 25 | L9: Odvolání (v %) | M9: Míra odvolání | N9: =VLOOKUP($C$2,Přehled_civil_2023!$B$4:$S$91,6,0) -> 7.362171 | O9: =VLOOKUP($C$3,Přehled_civil_po_kr_2023!$A$8:$Q$15,5,0) -> 7.23 | P9: =SUMPRODUCT((--($C$3 =Přehled_civil_2023!$C$6:$C$91)),(--($N9>Přehled_civil_2023!$G$6:$G$91)))+1 -> 7 | Q9: =HLOOKUP(M9,Přehled_civil_2023!$D$5:$S$92,88,0) -> 6.71 | R9: =_xlfn.RANK.EQ(N9,Přehled_civil_2023!$G$6:$G$91,1) -> 62 | V9: Vyřizování věcí | W9: Obživa+nápad* | X9: =VLOOKUP($C$2,Přehled_opatro_2023!$B$4:$X$91,6,0) -> 3770 | Y9: =AVERAGEIF(Přehled_opatro_2023!$C$6:$C$91,$C$3,Přehled_opatro_2023!$G$6:$G$91) -> 1667.5 | Z9: - | AA9: =HLOOKUP(W9,Přehled_opatro_2023!$D$5:$X$92,88,0) -> 1649.337209 | AB9: -
C10: Míra změny rozsudku | D10: =VLOOKUP($C$2,Přehled_trest_2023!$B$4:$S$91,7,0) -> 26.89076 | E10: =VLOOKUP($C$3,Přehled_trest_po_kr_2023!$A$8:$Q$15,6,0) -> 29.28 | F10: =SUMPRODUCT((--($C$3 =Přehled_trest_2023!$C$6:$C$91)),(--($D10>Přehled_trest_2023!$H$6:$H$91)))+1 -> 7 | G10: =HLOOKUP(C10,Přehled_trest_2023!$D$5:$S$92,88,0) -> 40.45 | H10: =_xlfn.RANK.EQ(D10,Přehled_trest_2023!$H$6:$H$91,1) -> 15 | M10: Míra změny rozsudku | N10: =VLOOKUP($C$2,Přehled_civil_2023!$B$4:$S$91,7,0) -> 54.00517 | O10: =VLOOKUP($C$3,Přehled_civil_po_kr_2023!$A$8:$Q$15,6,0) -> 50.25 | P10: =SUMPRODUCT((--($C$3 =Přehled_civil_2023!$C$6:$C$91)),(--($N10>Přehled_civil_2023!$H$6:$H$91)))+1 -> 11 | Q10: =HLOOKUP(M10,Přehled_civil_2023!$D$5:$S$92,88,0) -> 43.52 | R10: =_xlfn.RANK.EQ(N10,Přehled_civil_2023!$H$6:$H$91,1) -> 73 | W10: Vyřízeno* | X10: =VLOOKUP($C$2,Přehled_opatro_2023!$B$4:$X$91,7,0) -> 3569 | Y10: =AVERAGEIF(Přehled_opatro_2023!$C$6:$C$91,$C$3,Přehled_opatro_2023!$H$6:$H$91) -> 1595 | Z10: - | AA10: =HLOOKUP(W10,Přehled_opatro_2023!$D$5:$X$92,88,0) -> 1618.627907 | AB10: -
C11: Celk. míra zm. rozs. | D11: =VLOOKUP($C$2,Přehled_trest_2023!$B$4:$S$91,8,0) -> 4.759734436 | E11: =VLOOKUP($C$3,Přehled_trest_po_kr_2023!$A$8:$Q$15,7,0) -> 5.856 | F11: =SUMPRODUCT((--($C$3 =Přehled_trest_2023!$C$6:$C$91)),(--($D11>Přehled_trest_2023!$I$6:$I$91)))+1 -> 6 | G11: =HLOOKUP(C11,Přehled_trest_2023!$D$5:$S$92,88,0) -> 8.68866 | H11: =_xlfn.RANK.EQ(D11,Přehled_trest_2023!$I$6:$I$91,1) -> 14 | M11: Celk. míra zm. rozs. | N11: =VLOOKUP($C$2,Přehled_civil_2023!$B$4:$S$91,8,0) -> 3.975952964 | O11: =VLOOKUP($C$3,Přehled_civil_po_kr_2023!$A$8:$Q$15,7,0) -> 3.633075 | P11: =SUMPRODUCT((--($C$3 =Přehled_civil_2023!$C$6:$C$91)),(--($N11>Přehled_civil_2023!$I$6:$I$91)))+1 -> 8 | Q11: =HLOOKUP(M11,Přehled_civil_2023!$D$5:$S$92,88,0) -> 2.920192 | R11: =_xlfn.RANK.EQ(N11,Přehled_civil_2023!$I$6:$I$91,1) -> 72 | W11: Nevyřízeno* | X11: =VLOOKUP($C$2,Přehled_opatro_2023!$B$4:$X$91,8,0) -> 1546 | Y11: =AVERAGEIF(Přehled_opatro_2023!$C$6:$C$91,$C$3,Přehled_opatro_2023!$I$6:$I$91) -> 578.4285714 | Z11: - | AA11: =HLOOKUP(W11,Přehled_opatro_2023!$D$5:$X$92,88,0) -> 465.6395349 | AB11: -
B12: Vyřizování věcí | C12: Obživa+nápad* | D12: =VLOOKUP($C$2,Přehled_trest_2023!$B$4:$S$91,9,0) -> 2594 | E12: =AVERAGEIF(Přehled_trest_2023!$C$6:$C$91,$C$3,Přehled_trest_2023!$J$6:$J$91) -> 715 | F12: - | G12: =HLOOKUP(C12,Přehled_trest_2023!$D$5:$S$92,88,0) -> 764.4418605 | H12: - | L12: Vyřizování věcí | M12: Obživa+nápad* | N12: =VLOOKUP($C$2,Přehled_civil_2023!$B$4:$S$91,9,0) -> 12516 | O12: =AVERAGEIF(Přehled_civil_2023!$C$6:$C$91,$C$3,Přehled_civil_2023!$J$6:$J$91) -> 3123 | P12: - | Q12: =HLOOKUP(M12,Přehled_civil_2023!$D$5:$S$92,88,0) -> 3520.883721 | R12: - | W12: Míra vyřizování | X12: =VLOOKUP($C$2,Přehled_opatro_2023!$B$4:$X$91,9,0) -> 94.66843501 | Y12: =VLOOKUP($C$3,Přehled_opatro_po_kr_2023!$A$8:$T$15,8,0) -> 95.65217391 | Z12: =SUMPRODUCT((--($C$3 =Přehled_opatro_2023!$C$6:$C$91)),(--($X12<Přehled_opatro_2023!$J$6:$J$91)))+1 -> 6 | AA12: =HLOOKUP(W12,Přehled_opatro_2023!$D$5:$X$92,88,0) -> 98.13808225 | AB12: =_xlfn.RANK.EQ(X12,Přehled_opatro_2023!$J$6:$J$91,0) -> 66
C13: Vyřízeno* | D13: =VLOOKUP($C$2,Přehled_trest_2023!$B$4:$S$91,10,0) -> 2614 | E13: =AVERAGEIF(Přehled_trest_2023!$C$6:$C$91,$C$3,Přehled_trest_2023!$K$6:$K$91) -> 714 | F13: - | G13: =HLOOKUP(C13,Přehled_trest_2023!$D$5:$S$92,88,0) -> 767.7093023 | H13: - | M13: Vyřízeno* | N13: =VLOOKUP($C$2,Přehled_civil_2023!$B$4:$S$91,10,0) -> 13056 | O13: =AVERAGEIF(Přehled_civil_2023!$C$6:$C$91,$C$3,Přehled_civil_2023!$K$6:$K$91) -> 3187.857143 | P13: - | Q13: =HLOOKUP(M13,Přehled_civil_2023!$D$5:$S$92,88,0) -> 3615.651163 | R13: - | W13: Disposition time | X13: =VLOOKUP($C$2,Přehled_opatro_2023!$B$4:$X$91,10,0) -> 158.1087139 | Y13: =VLOOKUP($C$3,Přehled_opatro_po_kr_2023!$A$8:$T$15,9,0) -> 132.3676668 | Z13: =SUMPRODUCT((--($C$3 =Přehled_opatro_2023!$C$6:$C$91)),(--($X13>Přehled_opatro_2023!$K$6:$K$91)))+1 -> 11 | AA13: =HLOOKUP(W13,Přehled_opatro_2023!$D$5:$X$92,88,0) -> 105.0015445 | AB13: =_xlfn.RANK.EQ(X13,Přehled_opatro_2023!$K$6:$K$91,1) -> 79
C14: Nevyřízeno* | D14: =VLOOKUP($C$2,Přehled_trest_2023!$B$4:$S$91,11,0) -> 246 | E14: =AVERAGEIF(Přehled_trest_2023!$C$6:$C$91,$C$3,Přehled_trest_2023!$L$6:$L$91) -> 98.14285714 | F14: - | G14: =HLOOKUP(C14,Přehled_trest_2023!$D$5:$S$92,88,0) -> 107.5348837 | H14: - | M14: Nevyřízeno* | N14: =VLOOKUP($C$2,Přehled_civil_2023!$B$4:$S$91,11,0) -> 6723 | O14: =AVERAGEIF(Přehled_civil_2023!$C$6:$C$91,$C$3,Přehled_civil_2023!$L$6:$L$91) -> 1330.642857 | P14: - | Q14: =HLOOKUP(M14,Přehled_civil_2023!$D$5:$S$92,88,0) -> 1203.55814 | R14: - | V14: Omezená svéprávnost | W14: Nezletilí* | X14: =VLOOKUP($C$2,Přehled_opatro_2023!$B$4:$X$91,15,0) -> 10979 | Y14: =AVERAGEIF(Přehled_opatro_2023!$C$6:$C$91,$C$3,Přehled_opatro_2023!$P$6:$P$91) -> 3860.142857 | Z14: - | AA14: =HLOOKUP(W14,Přehled_opatro_2023!$D$5:$X$92,88,0) -> 3616.255814 | AB14: -
C15: Míra vyřizování | D15: =VLOOKUP($C$2,Přehled_trest_2023!$B$4:$S$91,12,0) -> 100.77101 | E15: =VLOOKUP($C$3,Přehled_trest_po_kr_2023!$A$8:$Q$15,11,0) -> 99.86013986 | F15: =SUMPRODUCT((--($C$3 =Přehled_trest_2023!$C$6:$C$91)),(--($D15<Přehled_trest_2023!$M$6:$M$91)))+1 -> 6 | G15: =HLOOKUP(C15,Přehled_trest_2023!$D$5:$S$92,88,0) -> 100.4274284 | H15: =_xlfn.RANK.EQ(D15,Přehled_trest_2023!$M$6:$M$91,0) -> 38 | M15: Míra vyřizování | N15: =VLOOKUP($C$2,Přehled_civil_2023!$B$4:$S$91,12,0) -> 104.3144775 | O15: =VLOOKUP($C$3,Přehled_civil_po_kr_2023!$A$8:$Q$15,11,0) -> 102.0767577 | P15: =SUMPRODUCT((--($C$3 =Přehled_civil_2023!$C$6:$C$91)),(--($N15<Přehled_civil_2023!$M$6:$M$91)))+1 -> 2 | Q15: =HLOOKUP(M15,Přehled_civil_2023!$D$5:$S$92,88,0) -> 102.6915811 | R15: =_xlfn.RANK.EQ(N15,Přehled_civil_2023!$M$6:$M$91,0) -> 28 | W15: Nesvéprávní* | X15: =VLOOKUP($C$2,Přehled_opatro_2023!$B$4:$X$91,16,0) -> 1094 | Y15: =AVERAGEIF(Přehled_opatro_2023!$C$6:$C$91,$C$3,Přehled_opatro_2023!$Q$6:$Q$91) -> 586.8571429 | Z15: - | AA15: =HLOOKUP(W15,Přehled_opatro_2023!$D$5:$X$92,88,0) -> 551.1395349 | AB15: -
C16: Disposition time | D16: =VLOOKUP($C$2,Přehled_trest_2023!$B$4:$S$91,13,0) -> 34.3496557 | E16: =VLOOKUP($C$3,Přehled_trest_po_kr_2023!$A$8:$Q$15,12,0) -> 50.17106843 | F16: =SUMPRODUCT((--($C$3 =Přehled_trest_2023!$C$6:$C$91)),(--($D16>Přehled_trest_2023!$N$6:$N$91)))+1 -> 1 | G16: =HLOOKUP(C16,Přehled_trest_2023!$D$5:$S$92,88,0) -> 51.12642564 | H16: =_xlfn.RANK.EQ(D16,Přehled_trest_2023!$N$6:$N$91,1) -> 19 | M16: Disposition time | N16: =VLOOKUP($C$2,Přehled_civil_2023!$B$4:$S$91,13,0) -> 187.9515165 | O16: =VLOOKUP($C$3,Přehled_civil_po_kr_2023!$A$8:$Q$15,12,0) -> 152.3545821 | P16: =SUMPRODUCT((--($C$3 =Přehled_civil_2023!$C$6:$C$91)),(--($N16>Přehled_civil_2023!$N$6:$N$91)))+1 -> 13 | Q16: =HLOOKUP(M16,Přehled_civil_2023!$D$5:$S$92,88,0) -> 121.4991992 | R16: =_xlfn.RANK.EQ(N16,Přehled_civil_2023!$N$6:$N$91,1) -> 84 | V16: Počet soudců k 1.1.* | X16: =VLOOKUP($C$2,Přehled_opatro_2023!$B$4:$S$91,11,0) -> 6.75 | Y16: =VLOOKUP($C$3,Přehled_opatro_po_kr_2023!$A$8:$P$15,10,0) -> 55.2 | Z16: =SUMPRODUCT((--($C$3 =Přehled_opatro_2023!$C$6:$C$91)),(--($X16<Přehled_opatro_2023!$L$6:$L$91)))+1 -> 1 | AA16: =HLOOKUP(V16,Přehled_opatro_2023!$D$5:$X$92,88,0) -> 4.26744186 | AB16: =_xlfn.RANK.EQ(X16,Přehled_opatro_2023!$L$6:$L$91,0) -> 11
B17: Počet soudců k 1.1.* | D17: =VLOOKUP($C$2,Přehled_trest_2023!$B$4:$S$91,14,0) -> 12.5 | E17: =VLOOKUP($C$3,Přehled_trest_po_kr_2023!$A$8:$Q$15,13,0) -> 53.1 | F17: =SUMPRODUCT((--($C$3 =Přehled_trest_2023!$C$6:$C$91)),(--($D17<Přehled_trest_2023!$O$6:$O$91)))+1 -> 1 | G17: =HLOOKUP(B17,Přehled_trest_2023!$D$5:$S$92,88,0) -> 4.399883721 | H17: =_xlfn.RANK.EQ(D17,Přehled_trest_2023!$O$6:$O$91,0) -> 2 | L17: Počet soudců k 1.1.* | N17: =VLOOKUP($C$2,Přehled_civil_2023!$B$4:$S$91,14,0) -> 42.55 | O17: =VLOOKUP($C$3,Přehled_civil_po_kr_2023!$A$8:$Q$15,13,0) -> 142.7 | P17: =SUMPRODUCT((--($C$3 =Přehled_civil_2023!$C$6:$C$91)),(--($N17<Přehled_civil_2023!$O$6:$O$91)))+1 -> 1 | Q17: =HLOOKUP(L17,Přehled_civil_2023!$D$5:$S$92,88,0) -> 10.30732558 | R17: =_xlfn.RANK.EQ(N17,Přehled_civil_2023!$O$6:$O$91,0) -> 1 | V17: Vyřizování věcí na soudce | W17: Obživa+nápad | X17: =VLOOKUP($C$2,Přehled_opatro_2023!$B$4:$S$91,12,0) -> 558.5185185 | Y17: =VLOOKUP($C$3,Přehled_opatro_po_kr_2023!$A$8:$P$15,11,0) -> 422.9166667 | Z17: =SUMPRODUCT((--($C$3 =Přehled_opatro_2023!$C$6:$C$91)),(--($X17<Přehled_opatro_2023!$M$6:$M$91)))+1 -> 3 | AA17: =HLOOKUP(W17,Přehled_opatro_2023!$D$5:$X$92,88,0) -> 386.493188 | AB17: =_xlfn.RANK.EQ(X17,Přehled_opatro_2023!$M$6:$M$91,0) -> 5
B18: Vyřizování věcí na soudce | C18: Obživa+nápad | D18: =VLOOKUP($C$2,Přehled_trest_2023!$B$4:$S$91,15,0) -> 207.52 | E18: =VLOOKUP($C$3,Přehled_trest_po_kr_2023!$A$8:$Q$15,14,0) -> 188.5122411 | F18: =SUMPRODUCT((--($C$3 =Přehled_trest_2023!$C$6:$C$91)),(--($D18<Přehled_trest_2023!$P$6:$P$91)))+1 -> 5 | G18: =HLOOKUP(C18,Přehled_trest_2023!$D$5:$S$92,88,0) -> 164.5557987 | H18: =_xlfn.RANK.EQ(D18,Přehled_trest_2023!$P$6:$P$91,0) -> 24 | L18: Vyřizování věcí na soudce | M18: Obživa+nápad | N18: =VLOOKUP($C$2,Přehled_civil_2023!$B$4:$S$91,15,0) -> 294.1480611 | O18: =VLOOKUP($C$3,Přehled_civil_po_kr_2023!$A$8:$Q$15,14,0) -> 306.3910301 | P18: =SUMPRODUCT((--($C$3 =Přehled_civil_2023!$C$6:$C$91)),(--($N18<Přehled_civil_2023!$P$6:$P$91)))+1 -> 7 | Q18: =HLOOKUP(M18,Přehled_civil_2023!$D$5:$S$92,88,0) -> 341.5904245 | R18: =_xlfn.RANK.EQ(N18,Přehled_civil_2023!$P$6:$P$91,0) -> 68 | W18: Vyřízeno | X18: =VLOOKUP($C$2,Přehled_opatro_2023!$B$4:$S$91,13,0) -> 528.7407407 | Y18: =VLOOKUP($C$3,Přehled_opatro_po_kr_2023!$A$8:$P$15,12,0) -> 404.5289855 | Z18: =SUMPRODUCT((--($C$3 =Přehled_opatro_2023!$C$6:$C$91)),(--($X18<Přehled_opatro_2023!$N$6:$N$91)))+1 -> 3 | AA18: =HLOOKUP(W18,Přehled_opatro_2023!$D$5:$S$92,88,0) -> 379.2970027 | AB18: =_xlfn.RANK.EQ(X18,Přehled_opatro_2023!$N$6:$N$91,0) -> 8
C19: Vyřízeno | D19: =VLOOKUP($C$2,Přehled_trest_2023!$B$4:$S$91,16,0) -> 209.12 | E19: =VLOOKUP($C$3,Přehled_trest_po_kr_2023!$A$8:$Q$15,15,0) -> 188.2485876 | F19: =SUMPRODUCT((--($C$3 =Přehled_trest_2023!$C$6:$C$91)),(--($D19<Přehled_trest_2023!$Q$6:$Q$91)))+1 -> 5 | G19: =HLOOKUP(C19,Přehled_trest_2023!$D$5:$S$92,88,0) -> 167.7592998 | H19: =_xlfn.RANK.EQ(D19,Přehled_trest_2023!$Q$6:$Q$91,0) -> 23 | M19: Vyřízeno | N19: =VLOOKUP($C$2,Přehled_civil_2023!$B$4:$S$91,16,0) -> 306.8390129 | O19: =VLOOKUP($C$3,Přehled_civil_po_kr_2023!$A$8:$Q$15,15,0) -> 312.7540294 | P19: =SUMPRODUCT((--($C$3 =Přehled_civil_2023!$C$6:$C$91)),(--($N19<Přehled_civil_2023!$Q$6:$Q$91)))+1 -> 6 | Q19: =HLOOKUP(M19,Přehled_civil_2023!$D$5:$S$92,88,0) -> 350.7846079 | R19: =_xlfn.RANK.EQ(N19,Přehled_civil_2023!$Q$6:$Q$91,0) -> 66 | W19: Nevyřízeno | X19: =VLOOKUP($C$2,Přehled_opatro_2023!$B$4:$S$91,14,0) -> 229.037037 | Y19: =VLOOKUP($C$3,Přehled_opatro_po_kr_2023!$A$8:$P$15,13,0) -> 146.7028986 | Z19: =SUMPRODUCT((--($C$3 =Přehled_opatro_2023!$C$6:$C$91)),(--($X19>Přehled_opatro_2023!$O$6:$O$91)))+1 -> 14 | AA19: =HLOOKUP(W19,Přehled_opatro_2023!$D$5:$S$92,88,0) -> 109.1144414 | AB19: =_xlfn.RANK.EQ(X19,Přehled_opatro_2023!$O$6:$O$91,1) -> 86
C20: Nevyřízeno | D20: =VLOOKUP($C$2,Přehled_trest_2023!$B$4:$S$91,17,0) -> 19.68 | E20: =VLOOKUP($C$3,Přehled_trest_po_kr_2023!$A$8:$Q$15,16,0) -> 25.87570621 | F20: =SUMPRODUCT((--($C$3 =Přehled_trest_2023!$C$6:$C$91)),(--($D20>Přehled_trest_2023!$R$6:$R$91)))+1 -> 4 | G20: =HLOOKUP(C20,Přehled_trest_2023!$D$5:$S$92,88,0) -> 28.91466083 | H20: =_xlfn.RANK.EQ(D20,Přehled_trest_2023!$R$6:$R$91,1) -> 36 | M20: Nevyřízeno | N20: =VLOOKUP($C$2,Přehled_civil_2023!$B$4:$S$91,17,0) -> 158.0023502 | O20: =VLOOKUP($C$3,Přehled_civil_po_kr_2023!$A$8:$Q$15,16,0) -> 130.5466013 | P20: =SUMPRODUCT((--($C$3 =Přehled_civil_2023!$C$6:$C$91)),(--($N20>Přehled_civil_2023!$R$6:$R$91)))+1 -> 12 | Q20: =HLOOKUP(M20,Přehled_civil_2023!$D$5:$S$92,88,0) -> 116.7672574 | R20: =_xlfn.RANK.EQ(N20,Přehled_civil_2023!$R$6:$R$91,1) -> 76 | V20: *Hodnota v kraji a hodnota v ČR představuje aritmetický průměr za jednotlivé okresní soudy daného kraje nebo celé ČR.
B21: Míra odsouzení v % | D21: =VLOOKUP($C$2,Přehled_trest_2023!$B$4:$S$91,18,0) -> 94.45069 | E21: =VLOOKUP($C$3,Přehled_trest_po_kr_2023!$A$8:$Q$15,17,0) -> 94.19 | F21: =SUMPRODUCT((--($C$3 =Přehled_trest_2023!$C$6:$C$91)),(--($D21<Přehled_trest_2023!$S$6:$S$91)))+1 -> 9 | G21: =HLOOKUP(B21,Přehled_trest_2023!$D$5:$S$92,88,0) -> 94.42 | H21: =_xlfn.RANK.EQ(D21,Přehled_trest_2023!$S$6:$S$91,0) -> 52 | L21: *Hodnota v kraji a hodnota v ČR představuje aritmetický průměr za jednotlivé okresní soudy daného kraje nebo celé ČR. | V21: Poznámka: Jedná se o počet úvazků soudců, kteří vyřizují opatrovnickou agendu.
B22: *Hodnota v kraji a hodnota v ČR představuje aritmetický průměr za jednotlivé okresní soudy daného kraje nebo celé ČR. | L22: Poznámka: Jedná se o počet úvazků soudců, kteří vyřizují civilní agendu. | V22: 1. až 3 místo v kraji nebo 1 až 10. místo v ČR.
B23: Poznámka: Jedná se o počet úvazků soudců, kteří vyřizují trestní agendu. | L23: 1. až 3 místo v kraji nebo 1 až 10. místo v ČR. | V23: Poslední 3 místa v kraji, posledních 10 míst v ČR.
B24: 1. až 3 místo v kraji nebo 1 až 10. místo v ČR. | L24: Poslední 3 místa v kraji, posledních 10 míst v ČR.
B25: Poslední 3 místa v kraji, posledních 10 míst v ČR.

Sheet Výsl. OS - grafy, časové řady
A1: Okresní soudy - vybraná statistická data
A2: Okresní soud: | C2: ='Výsl. OS - 2023 průřezová data'!C2 -> Brno-město
A3: Nadřízený soud: | C3: ='Výsl. OS - 2023 průřezová data'!C3 -> KS Brno
A5: Trestní agenda
A25: Civilní agenda
A45: Opatrovnická agenda

Sheet Přehled_trest_2023
A1: Trestní agenda
A2: Vybraná data za rok 2023
A3: Přehled všech okresních soudů
D4: Délka řízení ve dnech | G4: Odvolání v % | J4: Vyřizování věcí | P4: Vyřizování věcí na soudce
B5: Název soudu | C5: Nadřízený soud | D5: Průměr | E5: Medián | F5: Percentil 90 | G5: Míra odvolání | H5: Míra změny rozsudku | I5: Celk. míra zm. rozs. | J5: Obživa+nápad* | K5: Vyřízeno* | L5: Nevyřízeno* | M5: Míra vyřizování | N5: Disposition time | O5: Počet soudců k 1.1.* | P5: Obživa+nápad | Q5: Vyřízeno | R5: Nevyřízeno | S5: Míra odsouzení v % | T5: Evidenční počet soudců k 1.1.
A6: 1 | B6: Praha 1 | C6: MS Praha | D6: 152.6289 | E6: 60 | F6: 390 | G6: 31.98263 | H6: 34.83146 | I6: =G6*H6/100 -> 11.14001698 | J6: 1269 | K6: 1331 | L6: 141 | M6: =K6/J6*100 -> 104.8857368 | N6: =L6/K6*365 -> 38.66641623 | O6: 9.5 | P6: =J6/$O6 -> 133.5789474 | Q6: =K6/$O6 -> 140.1052632 | R6: =L6/$O6 -> 14.84210526 | S6: 94.30756 | T6: 12
A7: 2 | B7: Praha 2 | C7: MS Praha | D7: 264.9776 | E7: 105 | F7: 773 | G7: 21.21212 | H7: 33.96227 | I7: 7.204117467 | J7: 651 | K7: 657 | L7: 78 | M7: 100.921659 | N7: 43.33333333 | O7: 3.25 | P7: 200.3076923 | Q7: 202.1538462 | R7: 24 | S7: 91.28289 | T7: 5
A8: 3 | B8: Praha 3 | C8: MS Praha | D8: 163.9356 | E8: 97 | F8: 350 | G8: 18.75 | H8: 33.33334 | I8: 6.25000125 | J8: 514 | K8: 524 | L8: 55 | M8: 101.9455253 | N8: 38.3110687 | O8: 3.25 | P8: 158.1538462 | Q8: 161.2307692 | R8: 16.92307692 | S8: 91.23223 | T8: 4
A9: 4 | B9: Praha 4 | C9: MS Praha | D9: 144.6076 | E9: 73 | F9: 332 | G9: 36.51926 | H9: 35.48387 | I9: 12.95844674 | J9: 1693 | K9: 1707 | L9: 156 | M9: 100.8269344 | N9: 33.35676626 | O9: 9 | P9: 188.1111111 | Q9: 189.6666667 | R9: 17.33333333 | S9: 95.62842 | T9: 10
A10: 5 | B10: Praha 5 | C10: MS Praha | D10: 133.1833 | E10: 78 | F10: 284 | G10: 29.48929 | H10: 42.03822 | I10: 12.39677261 | J10: 1202 | K10: 1196 | L10: 174 | M10: 99.50083195 | N10: 53.10200669 | O10: 9 | P10: 133.5555556 | Q10: 132.8888889 | R10: 19.33333333 | S10: 94.90741 | T10: 10
A11: 6 | B11: Praha 6 | C11: MS Praha | D11: 283.2622 | E11: 80 | F11: 512 | G11: 13.28125 | H11: 25 | I11: 3.3203125 | J11: 627 | K11: 629 | L11: 85 | M11: 100.3189793 | N11: 49.32432432 | O11: 4.9 | P11: 127.9591837 | Q11: 128.3673469 | R11: 17.34693878 | S11: 91.37577 | T11: 6
A12: 7 | B12: Praha 7 | C12: MS Praha | D12: 89.20856 | E12: 54 | F12: 210 | G12: 19.78609 | H12: 38.88889 | I12: 7.694590775 | J12: 392 | K12: 397 | L12: 30 | M12: 101.2755102 | N12: 27.58186398 | O12: 3 | P12: 130.6666667 | Q12: 132.3333333 | R12: 10 | S12: 91.83099 | T12: 5
A13: 8 | B13: Praha 8 | C13: MS Praha | D13: 126.4503 | E13: 74.5 | F13: 303 | G13: 14.41441 | H13: 47.61905 | I13: 6.864005105 | J13: 619 | K13: 586 | L13: 112 | M13: 94.66882068 | N13: 69.76109215 | O13: 2.5 | P13: 247.6 | Q13: 234.4 | R13: 44.8 | S13: 94.03255 | T13: 6
A14: 9 | B14: Praha 9 | C14: MS Praha | D14: 87.4058 | E14: 50 | F14: 167 | G14: 16.90909 | H14: 34.88372 | I14: 5.89851961 | J14: 1004 | K14: 1019 | L14: 98 | M14: 101.4940239 | N14: 35.1030422 | O14: 8 | P14: 125.5 | Q14: 127.375 | R14: 12.25 | S14: 94.68938 | T14: 5
A15: 10 | B15: Praha 10 | C15: MS Praha | D15: 130.7168 | E15: 74 | F15: 278 | G15: 25.39063 | H15: 45.96774 | I15: 11.67149878 | J15: 989 | K15: 984 | L15: 122 | M15: 99.49443883 | N15: 45.25406504 | O15: 5.5 | P15: 179.8181818 | Q15: 178.9090909 | R15: 22.18181818 | S15: 94.85126 | T15: 6
A16: 11 | B16: Benešov | C16: KS Praha | D16: 97.5266 | E16: 62 | F16: 203 | G16: 25 | H16: 20.93023 | I16: 5.2325575 | J16: 504 | K16: 511 | L16: 31 | M16: 101.3888889 | N16: 22.14285714 | O16: 1.75 | P16: 288 | Q16: 292 | R16: 17.71428571 | S16: 97.03196 | T16: 3
A17: 12 | B17: Beroun | C17: KS Praha | D17: 70.6647 | E17: 45.5 | F17: 133 | G17: 23.35329 | H17: 29.72973 | I17: 6.942870063 | J17: 502 | K17: 512 | L17: 16 | M17: 101.9920319 | N17: 11.40625 | O17: 2.3 | P17: 218.2608696 | Q17: 222.6086957 | R17: 6.956521739 | S17: 96.94989 | T17: 3
A18: 13 | B18: Kladno | C18: KS Praha | D18: 112.2955 | E18: 51 | F18: 215 | G18: 27.87457 | H18: 30.32258 | I18: 8.452288788 | J18: 1004 | K18: 1014 | L18: 54 | M18: 100.9960159 | N18: 19.43786982 | O18: 7 | P18: 143.4285714 | Q18: 144.8571429 | R18: 7.714285714 | S18: 94.5845 | T18: 7
A19: 14 | B19: Kolín | C19: KS Praha | D19: 195.2788 | E19: 62 | F19: 360 | G19: 24.53532 | H19: 41.26984 | I19: 10.12568731 | J19: 596 | K19: 602 | L19: 42 | M19: 101.0067114 | N19: 25.46511628 | O19: 2.7 | P19: 220.7407407 | Q19: 222.962963 | R19: 15.55555556 | S19: 94.77478 | T19: 4
A20: 15 | B20: Kutná Hora | C20: KS Praha | D20: 99.55038 | E20: 49 | F20: 274 | G20: 29.45736 | H20: 54.54546 | I20: 16.06765252 | J20: 311 | K20: 316 | L20: 14 | M20: 101.607717 | N20: 16.17088608 | O20: 2 | P20: 155.5 | Q20: 158 | R20: 7 | S20: 94.49838 | T20: 2
A21: 16 | B21: Mělník | C21: KS Praha | D21: 149.1702 | E21: 55 | F21: 349 | G21: 36.93694 | H21: 44.95413 | I21: 16.60468003 | J21: 595 | K21: 613 | L21: 30 | M21: 103.0252101 | N21: 17.862969 | O21: 4 | P21: 148.75 | Q21: 153.25 | R21: 7.5 | S21: 95.75972 | T21: 5
A22: 17 | B22: Mladá Boleslav | C22: KS Praha | D22: 92.46207 | E22: 46 | F22: 142.5 | G22: 22.72727 | H22: 27.11864 | I22: 6.163326533 | J22: 995 | K22: 984 | L22: 52 | M22: 98.89447236 | N22: 19.28861789 | O22: 3.9 | P22: 255.1282051 | Q22: 252.3076923 | R22: 13.33333333 | S22: 97.55556 | T22: 3
A23: 18 | B23: Nymburk | C23: KS Praha | D23: 102.6323 | E23: 56 | F23: 245 | G23: 26.57658 | H23: 40.74074 | I23: 10.82749536 | J23: 688 | K23: 694 | L23: 38 | M23: 100.872093 | N23: 19.98559078 | O23: 2.9 | P23: 237.2413793 | Q23: 239.3103448 | R23: 13.10344828 | S23: 97.39838 | T23: 3
A24: 19 | B24: Praha-východ | C24: KS Praha | D24: 98.38305 | E24: 57 | F24: 174 | G24: 26.44068 | H24: 46.47887 | I24: 12.28932928 | J24: 801 | K24: 795 | L24: 45 | M24: 99.25093633 | N24: 20.66037736 | O24: 5 | P24: 160.2 | Q24: 159 | R24: 9 | S24: 95.72901 | T24: 7
A25: 20 | B25: Praha-západ | C25: KS Praha | D25: 141.7992 | E25: 83 | F25: 333 | G25: 32.93173 | H25: 39.74359 | I25: 13.08825175 | J25: 665 | K25: 685 | L25: 25 | M25: 103.0075188 | N25: 13.32116788 | O25: 3.9 | P25: 170.5128205 | Q25: 175.6410256 | R25: 6.41025641 | S25: 94.2 | T25: 5
A26: 21 | B26: Příbram | C26: KS Praha | D26: 228.2227 | E26: 102.5 | F26: 530 | G26: 37.89063 | H26: 34.88372 | I26: 13.21766128 | J26: 672 | K26: 658 | L26: 65 | M26: 97.91666667 | N26: 36.056231 | O26: 4.3 | P26: 156.2790698 | Q26: 153.0232558 | R26: 15.11627907 | S26: 93.28744 | T26: 4
A27: 22 | B27: Rakovník | C27: KS Praha | D27: 98.21053 | E27: 56 | F27: 224 | G27: 28.07018 | H27: 30 | I27: 8.421054 | J27: 288 | K27: 295 | L27: 12 | M27: 102.4305556 | N27: 14.84745763 | O27: 1.5 | P27: 192 | Q27: 196.6666667 | R27: 8 | S27: 96.27119 | T27: 2
A28: 23 | B28: České Budějovice | C28: KS Č. Budějovice | D28: 139.1439 | E28: 67 | F28: 264 | G28: 21.36628 | H28: 24.61539 | I28: 5.25939315 | J28: 1373 | K28: 1368 | L28: 152 | M28: 99.63583394 | N28: 40.55555556 | O28: 6.5 | P28: 211.2307692 | Q28: 210.4615385 | R28: 23.38461538 | S28: 89.35108 | T28: 12
A29: 24 | B29: Český Krumlov | C29: KS Č. Budějovice | D29: 103.2898 | E29: 75 | F29: 202 | G29: 19.48052 | H29: 26.92308 | I29: 5.244755984 | J29: 442 | K29: 437 | L29: 51 | M29: 98.86877828 | N29: 42.597254 | O29: 2.1 | P29: 210.4761905 | Q29: 208.0952381 | R29: 24.28571429 | S29: 93.09463 | T29: 2
A30: 25 | B30: Jindřichův Hradec | C30: KS Č. Budějovice | D30: 111.8841 | E30: 77 | F30: 247 | G30: 12.0773 | H30: 47.82609 | I30: 5.776100368 | J30: 558 | K30: 540 | L30: 71 | M30: 96.77419355 | N30: 47.99074074 | O30: 3.5 | P30: 159.4285714 | Q30: 154.2857143 | R30: 20.28571429 | S30: 96.53846 | T30: 4
A31: 26 | B31: Pelhřimov | C31: KS Č. Budějovice | D31: 96.0875 | E31: 74.5 | F31: 179 | G31: 10.69182 | H31: 54.54546 | I31: 5.831902401 | J31: 328 | K31: 332 | L31: 31 | M31: 101.2195122 | N31: 34.0813253 | O31: 1.6 | P31: 205 | Q31: 207.5 | R31: 19.375 | S31: 89.35484 | T31: 2
A32: 27 | B32: Písek | C32: KS Č. Budějovice | D32: 240.1899 | E32: 100 | F32: 603 | G32: 19.55307 | H32: 48.14815 | I32: 9.414441473 | J32: 398 | K32: 411 | L32: 42 | M32: 103.2663317 | N32: 37.29927007 | O32: 1.7 | P32: 234.1176471 | Q32: 241.7647059 | R32: 24.70588235 | S32: 89.63731 | T32: 3
A33: 28 | B33: Prachatice | C33: KS Č. Budějovice | D33: 234.3643 | E33: 59 | F33: 763 | G33: 17.82946 | H33: 38.09524 | I33: 6.792175578 | J33: 348 | K33: 356 | L33: 34 | M33: 102.2988506 | N33: 34.85955056 | O33: 1.1 | P33: 316.3636364 | Q33: 323.6363636 | R33: 30.90909091 | S33: 97.40634 | T33: 1
A34: 29 | B34: Strakonice | C34: KS Č. Budějovice | D34: 203.6632 | E34: 69 | F34: 765 | G34: 30.56995 | H34: 29.09091 | I34: 8.893076642 | J34: 411 | K34: 403 | L34: 46 | M34: 98.05352798 | N34: 41.66253102 | O34: 2.4 | P34: 171.25 | Q34: 167.9166667 | R34: 19.16666667 | S34: 92.3445 | T34: 3
A35: 30 | B35: Tábor | C35: KS Č. Budějovice | D35: 106.4598 | E35: 85 | F35: 226 | G35: 32.56705 | H35: 42.25352 | I35: 13.76072499 | J35: 546 | K35: 531 | L35: 91 | M35: 97.25274725 | N35: 62.55178908 | O35: 3 | P35: 182 | Q35: 177 | R35: 30.33333333 | S35: 98.8189 | T35: 4
A36: 31 | B36: Domažlice | C36: KS Plzeň | D36: 110.8468 | E36: 41 | F36: 282 | G36: 8.870968 | H36: 27.27273 | I36: 2.419355151 | J36: 347 | K36: 349 | L36: 27 | M36: 100.5763689 | N36: 28.23782235 | O36: 2 | P36: 173.5 | Q36: 174.5 | R36: 13.5 | S36: 96.85535 | T36: 2
A37: 32 | B37: Cheb | C37: KS Plzeň | D37: 223.0549 | E37: 65.5 | F37: 351 | G37: 19.36416 | H37: 46.77419 | I37: 9.05742899 | J37: 694 | K37: 699 | L37: 88 | M37: 100.7204611 | N37: 45.95135908 | O37: 3.4 | P37: 204.1176471 | Q37: 205.5882353 | R37: 25.88235294 | S37: 93.9441 | T37: 5
A38: 33 | B38: Karlovy Vary | C38: KS Plzeň | D38: 207.4736 | E38: 83 | F38: 609 | G38: 15.86207 | H38: 48.14815 | I38: =G38*H38/100 -> 7.637293257 | J38: 782 | K38: 802 | L38: 125 | M38: =K38/J38*100 -> 102.5575448 | N38: =L38/K38*365 -> 56.88902743 | O38: 6 | P38: =J38/$O38 -> 130.3333333 | Q38: =K38/$O38 -> 133.6666667 | R38: =L38/$O38 -> 20.83333333 | S38: 92.58278 | T38: 7
A39: 34 | B39: Klatovy | C39: KS Plzeň | D39: 142.8199 | E39: 75 | F39: 380 | G39: 11.84834 | H39: 35 | I39: 4.146919 | J39: 554 | K39: 551 | L39: 64 | M39: 99.45848375 | N39: 42.39564428 | O39: 2.2 | P39: 251.8181818 | Q39: 250.4545455 | R39: 29.09090909 | S39: 95.53398 | T39: 2
A40: 35 | B40: Plzeň-jih | C40: KS Plzeň | D40: 148.3772 | E40: 83 | F40: 381 | G40: 29.34132 | H40: 64.44444 | I40: 18.90884936 | J40: 357 | K40: 350 | L40: 56 | M40: 98.03921569 | N40: 58.4 | O40: 2.5 | P40: 142.8 | Q40: 140 | R40: 22.4 | S40: 93.33334 | T40: 3
A41: 36 | B41: Plzeň-město | C41: KS Plzeň | D41: 191.9319 | E41: 84 | F41: 360 | G41: 38.90533 | H41: 50.20747 | I41: 19.53338189 | J41: 1145 | K41: 1146 | L41: 213 | M41: 100.0873362 | N41: 67.84031414 | O41: 9.67 | P41: 118.4074457 | Q41: 118.5108583 | R41: 22.02688728 | S41: 95.13274 | T41: 12
A42: 37 | B42: Plzeň-sever | C42: KS Plzeň | D42: 315.0439 | E42: 119 | F42: 952 | G42: 16.48352 | H42: 46.15385 | I42: 7.607779096 | J42: 398 | K42: 379 | L42: 72 | M42: 95.22613065 | N42: 69.34036939 | O42: 2 | P42: 199 | Q42: 189.5 | R42: 36 | S42: 97.06745 | T42: 2
A43: 38 | B43: Rokycany | C43: KS Plzeň | D43: 189.0256 | E43: 123 | F43: 457 | G43: 22.22222 | H43: 57.14286 | I43: 12.69841206 | J43: 293 | K43: 302 | L43: 43 | M43: 103.0716724 | N43: 51.97019868 | O43: 2.5 | P43: 117.2 | Q43: 120.8 | R43: 17.2 | S43: 98.37399 | T43: 3
A44: 39 | B44: Sokolov | C44: KS Plzeň | D44: 134.1838 | E44: 46 | F44: 321 | G44: 23.2493 | H44: 59.21053 | I44: 13.76603375 | J44: 601 | K44: 608 | L44: 79 | M44: 101.1647255 | N44: 47.42598684 | O44: 4.05 | P44: 148.3950617 | Q44: 150.1234568 | R44: 19.50617284 | S44: 94.68085 | T44: 6
A45: 40 | B45: Tachov | C45: KS Plzeň | D45: 156.9648 | E45: 77 | F45: 297 | G45: 19.89796 | H45: 63.88889 | I45: 12.71258578 | J45: 466 | K45: 450 | L45: 90 | M45: 96.56652361 | N45: 73 | O45: 2 | P45: 233 | Q45: 225 | R45: 45 | S45: 96.60633 | T45: 2
A46: 41 | B46: Česká Lípa | C46: KS Ústí n. Labem | D46: 156.2059 | E46: 88 | F46: 315 | G46: 15.10129 | H46: 45.45455 | I46: 6.864223414 | J46: 912 | K46: 948 | L46: 160 | M46: 103.9473684 | N46: 61.60337553 | O46: 5.7 | P46: 160 | Q46: 166.3157895 | R46: 28.07017544 | S46: 92.4972 | T46: 9
A47: 42 | B47: Děčín | C47: KS Ústí n. Labem | D47: 340.017 | E47: 120.5 | F47: 1097 | G47: 11.25265 | H47: 50.52631 | I47: 5.685548822 | J47: 1309 | K47: 1441 | L47: 304 | M47: 110.0840336 | N47: 77.00208189 | O47: 7.5 | P47: 174.5333333 | Q47: 192.1333333 | R47: 40.53333333 | S47: 93.54628 | T47: 8
A48: 43 | B48: Chomutov | C48: KS Ústí n. Labem | D48: 314.5327 | E48: 160 | F48: 757 | G48: 18.66029 | H48: 46 | I48: 8.5837334 | J48: 1126 | K48: 1151 | L48: 364 | M48: 102.2202487 | N48: 115.4300608 | O48: 8.1 | P48: 139.0123457 | Q48: 142.0987654 | R48: 44.9382716 | S48: 94.44444 | T48: 11
A49: 44 | B49: Jablonec nad Nisou | C49: KS Ústí n. Labem | D49: 244.6426 | E49: 106 | F49: 571 | G49: 19.8556 | H49: 45.94595 | I49: 9.122844048 | J49: 597 | K49: 578 | L49: 144 | M49: 96.81742044 | N49: 90.93425606 | O49: 4 | P49: 149.25 | Q49: 144.5 | R49: 36 | S49: 93.60902 | T49: 6
A50: 45 | B50: Liberec | C50: KS Ústí n. Labem | D50: 240.9864 | E50: 124 | F50: 575 | G50: 31.36986 | H50: 58.60215 | I50: 18.38341241 | J50: 1381 | K50: 1383 | L50: 323 | M50: 100.1448226 | N50: 85.24584237 | O50: 6.67 | P50: 207.0464768 | Q50: 207.3463268 | R50: 48.42578711 | S50: 92.0354 | T50: 12
A51: 46 | B51: Litoměřice | C51: KS Ústí n. Labem | D51: 261.9447 | E51: 86 | F51: 426 | G51: 19.21053 | H51: 51.51515 | I51: 9.896333345 | J51: 679 | K51: 699 | L51: 111 | M51: 102.9455081 | N51: 57.96137339 | O51: 5.5 | P51: 123.4545455 | Q51: 127.0909091 | R51: 20.18181818 | S51: 91.95231 | T51: 7
A52: 47 | B52: Louny | C52: KS Ústí n. Labem | D52: 96.59385 | E52: 49 | F52: 173 | G52: 12.8125 | H52: 47.36842 | I52: 6.069078813 | J52: 712 | K52: 676 | L52: 125 | M52: 94.94382022 | N52: 67.49260355 | O52: 3.7 | P52: 192.4324324 | Q52: 182.7027027 | R52: 33.78378378 | S52: 95.7958 | T52: 4
A53: 48 | B53: Most | C53: KS Ústí n. Labem | D53: 128.8125 | E53: 77 | F53: 257 | G53: 8.367627 | H53: 48.14815 | I53: 4.028857599 | J53: 1162 | K53: 1161 | L53: 236 | M53: 99.91394148 | N53: 74.19465978 | O53: 6.7 | P53: 173.4328358 | Q53: 173.2835821 | R53: 35.2238806 | S53: 93.0975 | T53: 8
A54: 49 | B54: Teplice | C54: KS Ústí n. Labem | D54: 121.0869 | E54: 68 | F54: 219 | G54: 10.98431 | H54: 47.14286 | I54: 5.178317885 | J54: 1206 | K54: 1224 | L54: 224 | M54: 101.4925373 | N54: 66.79738562 | O54: 5.5 | P54: 219.2727273 | Q54: 222.5454545 | R54: 40.72727273 | S54: 94.51219 | T54: 8
A55: 50 | B55: Ústí nad Labem | C55: KS Ústí n. Labem | D55: 170.2835 | E55: 97 | F55: 373 | G55: 13.1952 | H55: 42.15686 | I55: 5.562681991 | J55: 1406 | K55: 1483 | L55: 295 | M55: 105.4765292 | N55: 72.60620364 | O55: 8.7 | P55: 161.6091954 | Q55: 170.4597701 | R55: 33.90804598 | S55: 92.28612 | T55: 12
A56: 51 | B56: Havlíčkův Brod | C56: KS Hr. Králové | D56: 215 | E56: 85 | F56: 485.5 | G56: 22.58064 | H56: 68.96552 | I56: 15.5728558 | J56: 434 | K56: 426 | L56: 45 | M56: 98.15668203 | N56: 38.55633803 | O56: 4.1 | P56: 105.8536585 | Q56: 103.902439 | R56: 10.97560976 | S56: 93.38844 | T56: 3
A57: 52 | B57: Hradec Králové | C57: KS Hr. Králové | D57: 156.6431 | E57: 75 | F57: 343 | G57: 28.04533 | H57: 19.35484 | I57: 5.428128749 | J57: 723 | K57: 750 | L57: 87 | M57: 103.7344398 | N57: 42.34 | O57: 6 | P57: 120.5 | Q57: 125 | R57: 14.5 | S57: 95.7204 | T57: 6
A58: 53 | B58: Chrudim | C58: KS Hr. Králové | D58: 102.3421 | E58: 57 | F58: 199 | G58: 18.6747 | H58: 44.44445 | I58: 8.299867704 | J58: 409 | K58: 411 | L58: 41 | M58: 100.4889976 | N58: 36.41119221 | O58: 2.35 | P58: 174.0425532 | Q58: 174.893617 | R58: 17.44680851 | S58: 94.92386 | T58: 3
A59: 54 | B59: Jičín | C59: KS Hr. Králové | D59: 108.71 | E59: 51 | F59: 175 | G59: 17 | H59: 0 | I59: 0 | J59: 361 | K59: 348 | L59: 37 | M59: 96.39889197 | N59: 38.80747126 | O59: 3 | P59: 120.3333333 | Q59: 116 | R59: 12.33333333 | S59: 94.70405 | T59: 3
A60: 55 | B60: Náchod | C60: KS Hr. Králové | D60: 78.73684 | E60: 49 | F60: 166 | G60: 20.67669 | H60: 22.64151 | I60: 4.681514834 | J60: 659 | K60: 663 | L60: 23 | M60: 100.6069803 | N60: 12.66214178 | O60: 2.8 | P60: 235.3571429 | Q60: 236.7857143 | R60: 8.214285714 | S60: 94.53642 | T60: 4
A61: 56 | B61: Pardubice | C61: KS Hr. Králové | D61: 103.9257 | E61: 67 | F61: 202 | G61: 28.79257 | H61: 29.48718 | I61: 8.490116943 | J61: 820 | K61: 809 | L61: 79 | M61: 98.65853659 | N61: 35.64276885 | O61: 5 | P61: 164 | Q61: 161.8 | R61: 15.8 | S61: 95.25101 | T61: 6
A62: 57 | B62: Rychnov nad Kněžnou | C62: KS Hr. Králové | D62: 152.1722 | E62: 90 | F62: 279 | G62: 28.47682 | H62: 28.57143 | I62: 8.136234693 | J62: 357 | K62: 340 | L62: 55 | M62: 95.23809524 | N62: 59.04411765 | O62: 2 | P62: 178.5 | Q62: 170 | R62: 27.5 | S62: 93.78882 | T62: 3
A63: 58 | B63: Semily | C63: KS Hr. Králové | D63: 84.25352 | E63: 45.5 | F63: 173 | G63: 24.64789 | H63: 25 | I63: 6.1619725 | J63: 313 | K63: 315 | L63: 30 | M63: 100.6389776 | N63: 34.76190476 | O63: 1 | P63: 313 | Q63: 315 | R63: 30 | S63: 91.41914 | T63: 2
A64: 59 | B64: Svitavy | C64: KS Hr. Králové | D64: 82.75 | E64: 35 | F64: 101 | G64: 24.09091 | H64: 50.9804 | I64: 12.28164228 | J64: 510 | K64: 515 | L64: 20 | M64: 100.9803922 | N64: 14.17475728 | O64: 2.5 | P64: 204 | Q64: 206 | R64: 8 | S64: 97.21627 | T64: 2
A65: 60 | B65: Trutnov | C65: KS Hr. Králové | D65: 93.15636 | E65: 58 | F65: 167 | G65: 16.72727 | H65: 26.82927 | I65: 4.487804432 | J65: 643 | K65: 639 | L65: 78 | M65: 99.37791602 | N65: 44.55399061 | O65: 3.75 | P65: 171.4666667 | Q65: 170.4 | R65: 20.8 | S65: 96.15385 | T65: 4
A66: 61 | B66: Ústí nad Orlicí | C66: KS Hr. Králové | D66: 71.7329 | E66: 37 | F66: 103 | G66: 22.47557 | H66: 54.54546 | I66: 12.25940304 | J66: 531 | K66: 523 | L66: 46 | M66: 98.49340866 | N66: 32.10325048 | O66: 3 | P66: 177 | Q66: 174.3333333 | R66: 15.33333333 | S66: 94.70588 | T66: 4
A67: 62 | B67: Blansko | C67: KS Brno | D67: 151.5723 | E67: 97 | F67: 323 | G67: 23.12139 | H67: 20.58824 | I67: 4.760287265 | J67: 451 | K67: 433 | L67: 66 | M67: 96.00886918 | N67: 55.63510393 | O67: 2 | P67: 225.5 | Q67: 216.5 | R67: 33 | S67: 95.77115 | T67: 2
A68: 63 | B68: Brno-město | C68: KS Brno | D68: 84.56547 | E68: 43 | F68: 153 | G68: 17.70026 | H68: 26.89076 | I68: 4.759734436 | J68: 2594 | K68: 2614 | L68: 246 | M68: 100.77101 | N68: 34.3496557 | O68: 12.5 | P68: 207.52 | Q68: 209.12 | R68: 19.68 | S68: 94.45069 | T68: 16
A69: 64 | B69: Brno-venkov | C69: KS Brno | D69: 172.3786 | E69: 98.5 | F69: 348 | G69: 19.9422 | H69: 20.63492 | I69: 4.115057016 | J69: 767 | K69: 777 | L69: 136 | M69: 101.303781 | N69: 63.88674389 | O69: 4.25 | P69: 180.4705882 | Q69: 182.8235294 | R69: 32 | S69: 88.10573 | T69: 5
A70: 65 | B70: Břeclav | C70: KS Brno | D70: 124.2711 | E70: 63 | F70: 208 | G70: 22.1831 | H70: 16.98113 | I70: =G70*H70/100 -> 3.766941049 | J70: 678 | K70: 686 | L70: 70 | M70: =K70/J70*100 -> 101.179941 | N70: =L70/K70*365 -> 37.24489796 | O70: 4 | P70: =J70/$O70 -> 169.5 | Q70: =K70/$O70 -> 171.5 | R70: =L70/$O70 -> 17.5 | S70: 98.57143 | T70: 4
A71: 66 | B71: Hodonín | C71: KS Brno | D71: 180.7901 | E71: 108 | F71: 395 | G71: 22.35294 | H71: 34.32836 | I71: 7.673397714 | J71: 661 | K71: 677 | L71: 133 | M71: 102.4205749 | N71: 71.70605613 | O71: 2.95 | P71: 224.0677966 | Q71: 229.4915254 | R71: 45.08474576 | S71: 95.45454 | T71: 4
A72: 67 | B72: Jihlava | C72: KS Brno | D72: 179.3833 | E72: 80 | F72: 380 | G72: 17.83217 | H72: 26.53061 | I72: 4.730983477 | J72: 564 | K72: 567 | L72: 93 | M72: 100.5319149 | N72: 59.86772487 | O72: 4 | P72: 141 | Q72: 141.75 | R72: 23.25 | S72: 92.98561 | T72: 5
A73: 68 | B73: Kroměříž | C73: KS Brno | D73: 131.6306 | E73: 55 | F73: 291 | G73: 22.11538 | H73: 48.3871 | I73: 10.70099104 | J73: 555 | K73: 555 | L73: 85 | M73: 100 | N73: 55.9009009 | O73: 4 | P73: 138.75 | Q73: 138.75 | R73: 21.25 | S73: 96.08209 | T73: 3
A74: 69 | B74: Prostějov | C74: KS Brno | D74: 75.5815 | E74: 56 | F74: 148 | G74: 31.52709 | H74: 29.31034 | I74: 9.240697271 | J74: 443 | K74: 459 | L74: 53 | M74: 103.6117381 | N74: 42.1459695 | O74: 3 | P74: 147.6666667 | Q74: 153 | R74: 17.66666667 | S74: 96.98925 | T74: 3
A75: 70 | B75: Třebíč | C75: KS Brno | D75: 107.3676 | E75: 57 | F75: 286 | G75: 10.27027 | H75: 47.05882 | I75: 4.833067873 | J75: 501 | K75: 498 | L75: 52 | M75: 99.4011976 | N75: 38.1124498 | O75: 3 | P75: 167 | Q75: 166 | R75: 17.33333333 | S75: 96.26373 | T75: 3
A76: 71 | B76: Uherské Hradiště | C76: KS Brno | D76: 419.0806 | E76: 130 | F76: 1308 | G76: 29.1866 | H76: 46.66667 | I76: 13.62041431 | J76: 599 | K76: 572 | L76: 94 | M76: 95.49248748 | N76: 59.98251748 | O76: 3 | P76: 199.6666667 | Q76: 190.6666667 | R76: 31.33333333 | S76: 90.70175 | T76: 3
A77: 72 | B77: Vyškov | C77: KS Brno | D77: 128.2435 | E77: 84 | F77: 266 | G77: 13.27434 | H77: 33.33334 | I77: 4.424780885 | J77: 304 | K77: 308 | L77: 39 | M77: 101.3157895 | N77: 46.21753247 | O77: 1.4 | P77: 217.1428571 | Q77: 220 | R77: 27.85714286 | S77: 92.30769 | T77: 2
A78: 73 | B78: Zlín | C78: KS Brno | D78: 126.9291 | E78: 61.5 | F78: 279 | G78: 22.02797 | H78: 26 | I78: 5.7272722 | J78: 786 | K78: 755 | L78: 120 | M78: 96.05597964 | N78: 58.01324503 | O78: 4 | P78: 196.5 | Q78: 188.75 | R78: 30 | S78: 95.3271 | T78: 5
A79: 74 | B79: Znojmo | C79: KS Brno | D79: 144.1667 | E79: 86 | F79: 307 | G79: 20.0565 | H79: 26.98413 | I79: 5.412072033 | J79: 696 | K79: 700 | L79: 123 | M79: 100.5747126 | N79: 64.13571429 | O79: 3 | P79: 232 | Q79: 233.3333333 | R79: 41 | S79: 90.4918 | T79: 5
A80: 75 | B80: Žďár nad Sázavou | C80: KS Brno | D80: 184.0842 | E80: 104 | F80: 497 | G80: 12.35955 | H80: 11.11111 | I80: 1.373283196 | J80: 411 | K80: 395 | L80: 64 | M80: 96.10705596 | N80: 59.13924051 | O80: 2 | P80: 205.5 | Q80: 197.5 | R80: 32 | S80: 95.20203 | T80: 3
A81: 76 | B81: Bruntál | C81: KS Ostrava | D81: 240.5172 | E81: 96 | F81: 657 | G81: 28.71901 | H81: 66.05505 | I81: 18.97035642 | J81: 777 | K81: 756 | L81: 195 | M81: 97.2972973 | N81: 94.1468254 | O81: 5 | P81: 155.4 | Q81: 151.2 | R81: 39 | S81: 92.81985 | T81: 4
A82: 77 | B82: Frýdek-Místek | C82: KS Ostrava | D82: 255.4364 | E82: 103 | F82: 451 | G82: 21.50735 | H82: 51.85185 | I82: 11.15195886 | J82: 1298 | K82: 1299 | L82: 217 | M82: 100.0770416 | N82: 60.97382602 | O82: 5.75 | P82: 225.7391304 | Q82: 225.9130435 | R82: 37.73913043 | S82: 95.30262 | T82: 8
A83: 78 | B83: Jeseník | C83: KS Ostrava | D83: 248.48 | E83: 88 | F83: 802 | G83: 29.33333 | H83: 47.22222 | I83: 13.85184963 | J83: 352 | K83: 359 | L83: 44 | M83: 101.9886364 | N83: 44.73537604 | O83: 1.4 | P83: 251.4285714 | Q83: 256.4285714 | R83: 31.42857143 | S83: 95.50265 | T83: 2
A84: 79 | B84: Karviná | C84: KS Ostrava | D84: 108.6129 | E84: 51 | F84: 195.5 | G84: 19.89071 | H84: 42.26191 | I84: 8.406193959 | J84: 1734 | K84: 1705 | L84: 225 | M84: 98.32756632 | N84: 48.16715543 | O84: 11 | P84: 157.6363636 | Q84: 155 | R84: 20.45454545 | S84: 96.94323 | T84: 11
A85: 80 | B85: Nový Jičín | C85: KS Ostrava | D85: 130.4423 | E85: 71 | F85: 253 | G85: 14.18269 | H85: 52.72727 | I85: 7.47814525 | J85: 879 | K85: 878 | L85: 152 | M85: 99.88623436 | N85: 63.18906606 | O85: 5.5 | P85: 159.8181818 | Q85: 159.6363636 | R85: 27.63636364 | S85: 96.20419 | T85: 7
A86: 81 | B86: Olomouc | C86: KS Ostrava | D86: 133.363 | E86: 69 | F86: 295 | G86: 24.09241 | H86: 41.46341 | I86: 9.989534737 | J86: 1383 | K86: 1417 | L86: 164 | M86: 102.4584237 | N86: 42.24417784 | O86: 5.2 | P86: 265.9615385 | Q86: 272.5 | R86: 31.53846154 | S86: 94.8718 | T86: 8
A87: 82 | B87: Opava | C87: KS Ostrava | D87: 211.7739 | E87: 106 | F87: 460 | G87: 17.33967 | H87: 37.09678 | I87: 6.432459233 | J87: 903 | K87: 886 | L87: 222 | M87: 98.11738649 | N87: 91.45598194 | O87: 6 | P87: 150.5 | Q87: 147.6666667 | R87: 37 | S87: 93.72694 | T87: 7
A88: 83 | B88: Ostrava | C88: KS Ostrava | D88: 222.2652 | E88: 103 | F88: 547 | G88: 19.74843 | H88: 42.95775 | I88: 8.483481188 | J88: 3037 | K88: 3049 | L88: 567 | M88: 100.3951268 | N88: 67.8763529 | O88: 18.1 | P88: 167.7900552 | Q88: 168.4530387 | R88: 31.32596685 | S88: 94.5426 | T88: 23
A89: 84 | B89: Přerov | C89: KS Ostrava | D89: 222.9792 | E89: 108.5 | F89: 593 | G89: 12.23776 | H89: 34.48276 | I89: 4.21991741 | J89: 826 | K89: 805 | L89: 121 | M89: 97.45762712 | N89: 54.86335404 | O89: 4 | P89: 206.5 | Q89: 201.25 | R89: 30.25 | S89: 95.59229 | T89: 4
A90: 85 | B90: Šumperk | C90: KS Ostrava | D90: 191.5657 | E90: 115 | F90: 418 | G90: 20.96386 | H90: 42.85714 | I90: 8.98451083 | J90: 798 | K90: 840 | L90: 179 | M90: 105.2631579 | N90: 77.7797619 | O90: 5.5 | P90: 145.0909091 | Q90: 152.7272727 | R90: 32.54545455 | S90: 95.60155 | T90: 4
A91: 86 | B91: Vsetín | C91: KS Ostrava | D91: 137.5257 | E91: 75 | F91: 285 | G91: 16.99605 | H91: 54.54546 | I91: 9.270573654 | J91: 873 | K91: 827 | L91: 111 | M91: 94.73081329 | N91: 48.99032648 | O91: 2.9 | P91: 301.0344828 | Q91: 285.1724138 | R91: 38.27586207 | S91: 95.91837 | T91: 4
A92: - | B92: ČR | C92: - | D92: 165 | E92: 75 | F92: 351 | G92: 21.48 | H92: 40.45 | I92: 8.68866 | J92: =AVERAGE(J6:J91) -> 764.4418605 | K92: =AVERAGE(K6:K91) -> 767.7093023 | L92: 107.5348837 | M92: 100.4274284 | N92: 51.12642564 | O92: =AVERAGE(O6:O91) -> 4.399883721 | P92: 164.5557987 | Q92: 167.7592998 | R92: 28.91466083 | S92: 94.42 | T92: =AVERAGE(T6:T91) -> 5.372093023
A94: Poznámka: ČR - počet soudců (úvazků), nápad+obživa, vyřízeno a nevyřízeno: jedná se o průměr v ČR.

Sheet Přehled_trest_po_kr_2023
A1: Trestní agenda
A3: Vybraná data za rok 2023
A4: Přehled všech okresních soudů po soudních krajích
B6: Délka řízení ve dnech | E6: Odvolání v % | H6: Vyřizování věcí | N6: Vyřizování věcí na soudce
A7: Nadřízený soud | B7: Průměr | C7: Medián | D7: Percentil 90 | E7: Míra odvolání | F7: Míra změny rozsudku | G7: Celková míra zm. rozsudku | H7: Obživa+nápad | I7: Vyřízeno | J7: Nevyřízeno | K7: Míra vyřizování | L7: Disposition time | M7: Počet soudců k 1.1. | N7: Obživa+nápad | O7: Vyřízeno | P7: Nevyřízeno | Q7: Míra odsouzení v % | R7: Evidenční počet soudců k 1.1.
A8: MS Praha | B8: 149 | C8: 69 | D8: 329 | E8: 25.34 | F8: 37.86 | G8: =E8*F8/100 -> 9.593724 | H8: 8960 | I8: 9030 | J8: 1051 | K8: =I8/H8*100 -> 100.78125 | L8: =J8/I8*365 -> 42.48228128 | M8: 57.9 | N8: =H8/SUMIF(Přehled_trest_2023!$C$6:$C$91,$A8,Přehled_trest_2023!$O$6:$O$91) -> 154.7495682 | O8: =I8/SUMIF(Přehled_trest_2023!$C$6:$C$91,$A8,Přehled_trest_2023!$O$6:$O$91) -> 155.9585492 | P8: =J8/SUMIF(Přehled_trest_2023!$C$6:$C$91,$A8,Přehled_trest_2023!$O$6:$O$91) -> 18.15198618 | Q8: 94.03 | R8: =AVERAGEIF(Přehled_trest_2023!$C$6:$C$91,A8,Přehled_trest_2023!$T$6:$T$91) -> 6.9
A9: KS Praha | B9: 127 | C9: 57 | D9: 252 | E9: 28.74 | F9: 36.8 | G9: =E9*F9/100 -> 10.57632 | H9: 7621 | I9: 7679 | J9: 424 | K9: =I9/H9*100 -> 100.761055 | L9: =J9/I9*365 -> 20.15366584 | M9: 41.25 | N9: =H9/SUMIF(Přehled_trest_2023!$C$6:$C$91,$A9,Přehled_trest_2023!$O$6:$O$91) -> 184.7515152 | O9: =I9/SUMIF(Přehled_trest_2023!$C$6:$C$91,$A9,Přehled_trest_2023!$O$6:$O$91) -> 186.1575758 | P9: =J9/SUMIF(Přehled_trest_2023!$C$6:$C$91,$A9,Přehled_trest_2023!$O$6:$O$91) -> 10.27878788 | Q9: 95.68 | R9: =AVERAGEIF(Přehled_trest_2023!$C$6:$C$91,A9,Přehled_trest_2023!$T$6:$T$91) -> 4
A10: KS Č. Budějovice | B10: 147 | C10: 74 | D10: 292 | E10: 21.37 | F10: 33.79 | G10: 7.220923 | H10: 4404 | I10: 4378 | J10: 518 | K10: 99.40962761 | L10: 43.18638648 | M10: 21.9 | N10: =H10/SUMIF(Přehled_trest_2023!$C$6:$C$91,$A10,Přehled_trest_2023!$O$6:$O$91) -> 201.0958904 | O10: =I10/SUMIF(Přehled_trest_2023!$C$6:$C$91,$A10,Přehled_trest_2023!$O$6:$O$91) -> 199.9086758 | P10: =J10/SUMIF(Přehled_trest_2023!$C$6:$C$91,$A10,Přehled_trest_2023!$O$6:$O$91) -> 23.65296804 | Q10: 92.82 | R10: =AVERAGEIF(Přehled_trest_2023!$C$6:$C$91,A10,Přehled_trest_2023!$T$6:$T$91) -> 3.875
A11: KS Plzeň | B11: 182 | C11: 76 | D11: 386 | E11: 23.79 | F11: 52 | G11: 12.3708 | H11: 5637 | I11: 5636 | J11: 857 | K11: 99.98226007 | L11: 55.50124202 | M11: 36.32 | N11: =H11/SUMIF(Přehled_trest_2023!$C$6:$C$91,$A11,Přehled_trest_2023!$O$6:$O$91) -> 155.2037445 | O11: =I11/SUMIF(Přehled_trest_2023!$C$6:$C$91,$A11,Přehled_trest_2023!$O$6:$O$91) -> 155.1762115 | P11: =J11/SUMIF(Přehled_trest_2023!$C$6:$C$91,$A11,Přehled_trest_2023!$O$6:$O$91) -> 23.59581498 | Q11: 94.99 | R11: =AVERAGEIF(Přehled_trest_2023!$C$6:$C$91,A11,Přehled_trest_2023!$T$6:$T$91) -> 4.4
A12: KS Ústí n. Labem | B12: 213 | C12: 92 | D12: 475 | E12: 15.6 | F12: 49.63 | G12: 7.74228 | H12: 10490 | I12: 10744 | J12: 2286 | K12: 102.4213537 | L12: 77.6610201 | M12: 62.07 | N12: =H12/SUMIF(Přehled_trest_2023!$C$6:$C$91,$A12,Přehled_trest_2023!$O$6:$O$91) -> 169.0027388 | O12: =I12/SUMIF(Přehled_trest_2023!$C$6:$C$91,$A12,Přehled_trest_2023!$O$6:$O$91) -> 173.0948929 | P12: =J12/SUMIF(Přehled_trest_2023!$C$6:$C$91,$A12,Přehled_trest_2023!$O$6:$O$91) -> 36.82938618 | Q12: 93.3 | R12: =AVERAGEIF(Přehled_trest_2023!$C$6:$C$91,A12,Přehled_trest_2023!$T$6:$T$91) -> 8.5
A13: KS Hr. Králové | B13: 111 | C13: 56 | D13: 214 | E13: 23.43 | F13: 33.85 | G13: 7.931055 | H13: 5760 | I13: 5739 | J13: 541 | K13: 99.63541667 | L13: 34.40756229 | M13: 35.5 | N13: =H13/SUMIF(Přehled_trest_2023!$C$6:$C$91,$A13,Přehled_trest_2023!$O$6:$O$91) -> 162.2535211 | O13: =I13/SUMIF(Přehled_trest_2023!$C$6:$C$91,$A13,Přehled_trest_2023!$O$6:$O$91) -> 161.6619718 | P13: =J13/SUMIF(Přehled_trest_2023!$C$6:$C$91,$A13,Přehled_trest_2023!$O$6:$O$91) -> 15.23943662 | Q13: 94.96 | R13: =AVERAGEIF(Přehled_trest_2023!$C$6:$C$91,A13,Přehled_trest_2023!$T$6:$T$91) -> 3.636363636
A14: KS Brno | B14: 137 | C14: 66 | D14: 279 | E14: 20 | F14: 29.28 | G14: 5.856 | H14: 10010 | I14: 9996 | J14: 1374 | K14: 99.86013986 | L14: 50.17106843 | M14: 53.1 | N14: =H14/SUMIF(Přehled_trest_2023!$C$6:$C$91,$A14,Přehled_trest_2023!$O$6:$O$91) -> 188.5122411 | O14: =I14/SUMIF(Přehled_trest_2023!$C$6:$C$91,$A14,Přehled_trest_2023!$O$6:$O$91) -> 188.2485876 | P14: =J14/SUMIF(Přehled_trest_2023!$C$6:$C$91,$A14,Přehled_trest_2023!$O$6:$O$91) -> 25.87570621 | Q14: 94.19 | R14: =AVERAGEIF(Přehled_trest_2023!$C$6:$C$91,A14,Přehled_trest_2023!$T$6:$T$91) -> 4.5
A15: KS Ostrava | B15: 188 | C15: 85 | D15: 434 | E15: 20.38 | F15: 46.31 | G15: 9.437978 | H15: 12860 | I15: 12821 | J15: 2197 | K15: 99.69673406 | L15: 62.54621324 | M15: 70.35 | N15: =H15/SUMIF(Přehled_trest_2023!$C$6:$C$91,$A15,Přehled_trest_2023!$O$6:$O$91) -> 182.8002843 | O15: =I15/SUMIF(Přehled_trest_2023!$C$6:$C$91,$A15,Přehled_trest_2023!$O$6:$O$91) -> 182.2459133 | P15: =J15/SUMIF(Přehled_trest_2023!$C$6:$C$91,$A15,Přehled_trest_2023!$O$6:$O$91) -> 31.22956645 | Q15: 95.18 | R15: =AVERAGEIF(Přehled_trest_2023!$C$6:$C$91,A15,Přehled_trest_2023!$T$6:$T$91) -> 7.454545455

Sheet Databáze_trest
A1: Databáze pro grafy
A2: Trest - okresní soudy
F4: Délka řízení ve dnech | I4: Vyřizování věcí
B5: Pomocná prom. | C5: Rok | D5: Název soudu | E5: Nadřízený soud | F5: Průměr | G5: Medián | H5: Percentil 90 | I5: Obživa+nápad | J5: Vyřízeno | K5: Nevyřízeno | L5: Disposition time
A6: 1 | B6: =CONCATENATE(C6,D6) -> 2008Praha 1 | C6: 2008 | D6: Praha 1 | E6: MS Praha | F6: 168 | G6: 81 | H6: 448 | I6: 1507 | J6: 1487 | K6: 278 | L6: =K6/J6*365 -> 68.23806321
A7: 2 | B7: =CONCATENATE(C7,D7) -> 2008Praha 2 | C7: 2008 | D7: Praha 2 | E7: MS Praha | F7: 170 | G7: 89 | H7: 434 | I7: 3614 | J7: 3557 | K7: 310 | L7: =K7/J7*365 -> 31.81051448
A8: 3 | B8: 2008Praha 3 | C8: 2008 | D8: Praha 3 | E8: MS Praha | F8: 198 | G8: 95 | H8: 566 | I8: 694 | J8: 686 | K8: 82 | L8: 43.62973761
A9: 4 | B9: 2008Praha 4 | C9: 2008 | D9: Praha 4 | E9: MS Praha | F9: 194 | G9: 96 | H9: 524 | I9: 1469 | J9: 1506 | K9: 107 | L9: 25.93293493
A10: 5 | B10: 2008Praha 5 | C10: 2008 | D10: Praha 5 | E10: MS Praha | F10: 121 | G10: 57 | H10: 319 | I10: 1400 | J10: 1371 | K10: 181 | L10: 48.18745441
A11: 6 | B11: 2008Praha 6 | C11: 2008 | D11: Praha 6 | E11: MS Praha | F11: 264 | G11: 137 | H11: 693 | I11: 634 | J11: 748 | K11: 109 | L11: 53.18850267
A12: 7 | B12: 2008Praha 7 | C12: 2008 | D12: Praha 7 | E12: MS Praha | F12: 162 | G12: 91 | H12: 502 | I12: 614 | J12: 578 | K12: 160 | L12: 101.0380623
A13: 8 | B13: 2008Praha 8 | C13: 2008 | D13: Praha 8 | E13: MS Praha | F13: 231 | G13: 96 | H13: 576 | I13: 996 | J13: 1001 | K13: 161 | L13: 58.70629371
A14: 9 | B14: 2008Praha 9 | C14: 2008 | D14: Praha 9 | E14: MS Praha | F14: 191 | G14: 83 | H14: 497 | I14: 1084 | J14: 1102 | K14: 88 | L14: 29.14700544
A15: 10 | B15: 2008Praha 10 | C15: 2008 | D15: Praha 10 | E15: MS Praha | F15: 201 | G15: 114 | H15: 498 | I15: 1224 | J15: 1256 | K15: 139 | L15: 40.39410828
A16: 11 | B16: 2008Beroun | C16: 2008 | D16: Beroun | E16: KS Praha | F16: 149 | G16: 76 | H16: 383 | I16: 779 | J16: 780 | K16: 69 | L16: 32.28846154
A17: 12 | B17: 2008Benešov | C17: 2008 | D17: Benešov | E17: KS Praha | F17: 197 | G17: 72 | H17: 614 | I17: 734 | J17: 756 | K17: 70 | L17: 33.7962963
A18: 13 | B18: 2008Kladno | C18: 2008 | D18: Kladno | E18: KS Praha | F18: 150 | G18: 91 | H18: 349 | I18: 1358 | J18: 1354 | K18: 179 | L18: 48.25332349
A19: 14 | B19: 2008Kolín | C19: 2008 | D19: Kolín | E19: KS Praha | F19: 114 | G19: 83 | H19: 282 | I19: 907 | J19: 895 | K19: 136 | L19: 55.46368715
A20: 15 | B20: 2008Kutná Hora | C20: 2008 | D20: Kutná Hora | E20: KS Praha | F20: 160 | G20: 86 | H20: 441 | I20: 670 | J20: 695 | K20: 76 | L20: 39.91366906
A21: 16 | B21: 2008Mělník | C21: 2008 | D21: Mělník | E21: KS Praha | F21: 89 | G21: 57 | H21: 212 | I21: 1315 | J21: 1293 | K21: 112 | L21: 31.61639598
A22: 17 | B22: 2008Mladá Boleslav | C22: 2008 | D22: Mladá Boleslav | E22: KS Praha | F22: 112 | G22: 68 | H22: 223 | I22: 1158 | J22: 1149 | K22: 89 | L22: 28.27241079
A23: 18 | B23: 2008Nymburk | C23: 2008 | D23: Nymburk | E23: KS Praha | F23: 123 | G23: 60 | H23: 283 | I23: 945 | J23: 932 | K23: 100 | L23: 39.16309013
A24: 19 | B24: 2008Praha-Východ | C24: 2008 | D24: Praha-Východ | E24: KS Praha | F24: 224 | G24: 132 | H24: 533 | I24: 1163 | J24: 1210 | K24: 158 | L24: 47.66115702
A25: 20 | B25: 2008Praha-Západ | C25: 2008 | D25: Praha-Západ | E25: KS Praha | F25: 243 | G25: 101 | H25: 539 | I25: 892 | J25: 897 | K25: 107 | L25: 43.53957637
A26: 21 | B26: 2008Příbram | C26: 2008 | D26: Příbram | E26: KS Praha | F26: 158 | G26: 78 | H26: 370 | I26: 1153 | J26: 1157 | K26: 89 | L26: 28.07692308
A27: 22 | B27: 2008Rakovník | C27: 2008 | D27: Rakovník | E27: KS Praha | F27: 186 | G27: 90 | H27: 413 | I27: 451 | J27: 456 | K27: 62 | L27: 49.62719298
A28: 23 | B28: 2008České Budějovice | C28: 2008 | D28: České Budějovice | E28: KS Č. Budějovice | F28: 200 | G28: 97 | H28: 525 | I28: 1925 | J28: 1871 | K28: 306 | L28: 59.69535008
A29: 24 | B29: 2008Český Krumlov | C29: 2008 | D29: Český Krumlov | E29: KS Č. Budějovice | F29: 184 | G29: 75 | H29: 582 | I29: 596 | J29: 603 | K29: 48 | L29: 29.05472637
A30: 25 | B30: 2008Jindřichův Hradec | C30: 2008 | D30: Jindřichův Hradec | E30: KS Č. Budějovice | F30: 133 | G30: 69 | H30: 384 | I30: 866 | J30: 885 | K30: 70 | L30: 28.8700565
A31: 26 | B31: 2008Pelhřimov | C31: 2008 | D31: Pelhřimov | E31: KS Č. Budějovice | F31: 202 | G31: 76 | H31: 614 | I31: 449 | J31: 453 | K31: 48 | L31: 38.67549669
A32: 27 | B32: 2008Písek | C32: 2008 | D32: Písek | E32: KS Č. Budějovice | F32: 202 | G32: 104 | H32: 462 | I32: 665 | J32: 671 | K32: 107 | L32: 58.20417288
A33: 28 | B33: 2008Prachatice | C33: 2008 | D33: Prachatice | E33: KS Č. Budějovice | F33: 91 | G33: 37 | H33: 378 | I33: 514 | J33: 522 | K33: 20 | L33: 13.98467433
A34: 29 | B34: 2008Strakonice | C34: 2008 | D34: Strakonice | E34: KS Č. Budějovice | F34: 242 | G34: 117 | H34: 705 | I34: 730 | J34: 742 | K34: 45 | L34: 22.1361186
A35: 30 | B35: 2008Tábor | C35: 2008 | D35: Tábor | E35: KS Č. Budějovice | F35: 134 | G35: 85 | H35: 321 | I35: 854 | J35: 856 | K35: 119 | L35: 50.74182243
A36: 31 | B36: 2008Domažlice | C36: 2008 | D36: Domažlice | E36: KS Plzeň | F36: 56 | G36: 24 | H36: 157 | I36: 515 | J36: 513 | K36: 17 | L36: 12.09551657
A37: 32 | B37: 2008Cheb | C37: 2008 | D37: Cheb | E37: KS Plzeň | F37: 314 | G37: 175 | H37: 719 | I37: 1338 | J37: 1407 | K37: 384 | L37: 99.61620469
A38: 33 | B38: 2008Karlovy Vary | C38: 2008 | D38: Karlovy Vary | E38: KS Plzeň | F38: 303 | G38: 170 | H38: 753 | I38: 1488 | J38: 1613 | K38: 263 | L38: 59.5133292
A39: 34 | B39: 2008Klatovy | C39: 2008 | D39: Klatovy | E39: KS Plzeň | F39: 109 | G39: 53 | H39: 239 | I39: 740 | J39: 711 | K39: 96 | L39: 49.28270042
A40: 35 | B40: 2008Plzeň-jih | C40: 2008 | D40: Plzeň-jih | E40: KS Plzeň | F40: 170 | G40: 83 | H40: 385 | I40: 421 | J40: 415 | K40: 63 | L40: 55.40963855
A41: 36 | B41: 2008Plzeň-Město | C41: 2008 | D41: Plzeň-Město | E41: KS Plzeň | F41: 316 | G41: 122 | H41: 950 | I41: 1962 | J41: 1963 | K41: 326 | L41: 60.61640346
A42: 37 | B42: 2008Plzeň-sever | C42: 2008 | D42: Plzeň-sever | E42: KS Plzeň | F42: 308 | G42: 162 | H42: 791 | I42: 529 | J42: 553 | K42: 125 | L42: 82.5045208
A43: 38 | B43: 2008Rokycany | C43: 2008 | D43: Rokycany | E43: KS Plzeň | F43: 220 | G43: 113 | H43: 549 | I43: 386 | J43: 398 | K43: 53 | L43: 48.60552764
A44: 39 | B44: 2008Sokolov | C44: 2008 | D44: Sokolov | E44: KS Plzeň | F44: 179 | G44: 85 | H44: 450 | I44: 1592 | J44: 1612 | K44: 281 | L44: 63.62593052
A45: 40 | B45: 2008Tachov | C45: 2008 | D45: Tachov | E45: KS Plzeň | F45: 202 | G45: 85 | H45: 533 | I45: 782 | J45: 800 | K45: 107 | L45: 48.81875
A46: 41 | B46: 2008Česká Lípa | C46: 2008 | D46: Česká Lípa | E46: KS Ústí n. Labem | F46: 412 | G46: 292 | H46: 930 | I46: 1886 | J46: 2083 | K46: 966 | L46: 169.2702832
A47: 42 | B47: 2008Děčín | C47: 2008 | D47: Děčín | E47: KS Ústí n. Labem | F47: 553 | G47: 405 | H47: 1266 | I47: 2136 | J47: 2409 | K47: 802 | L47: 121.5151515
A48: 43 | B48: 2008Chomutov | C48: 2008 | D48: Chomutov | E48: KS Ústí n. Labem | F48: 852 | G48: 832 | H48: 1694 | I48: 2055 | J48: 2177 | K48: 1920 | L48: 321.9108865
A49: 44 | B49: 2008Jablonec nad Nisou | C49: 2008 | D49: Jablonec nad Nisou | E49: KS Ústí n. Labem | F49: 416 | G49: 148 | H49: 1142 | I49: 1069 | J49: 1024 | K49: 473 | L49: 168.5986328
A50: 45 | B50: 2008Liberec | C50: 2008 | D50: Liberec | E50: KS Ústí n. Labem | F50: 553 | G50: 325 | H50: 1337 | I50: 2383 | J50: 2429 | K50: 1044 | L50: 156.8793742
A51: 46 | B51: 2008Litoměřice | C51: 2008 | D51: Litoměřice | E51: KS Ústí n. Labem | F51: 420 | G51: 273 | H51: 1006 | I51: 1512 | J51: 1542 | K51: 792 | L51: 187.4708171
A52: 47 | B52: 2008Louny | C52: 2008 | D52: Louny | E52: KS Ústí n. Labem | F52: 283 | G52: 141 | H52: 867 | I52: 1097 | J52: 1233 | K52: 334 | L52: 98.87266829
A53: 48 | B53: 2008Most | C53: 2008 | D53: Most | E53: KS Ústí n. Labem | F53: 425 | G53: 224 | H53: 902 | I53: 1752 | J53: 1819 | K53: 763 | L53: 153.1033535
A54: 49 | B54: 2008Teplice | C54: 2008 | D54: Teplice | E54: KS Ústí n. Labem | F54: 448 | G54: 187 | H54: 1033 | I54: 2297 | J54: 2200 | K54: 1265 | L54: 209.875
A55: 50 | B55: 2008Ústí nad Labem | C55: 2008 | D55: Ústí nad Labem | E55: KS Ústí n. Labem | F55: 586 | G55: 295 | H55: 1473 | I55: 2062 | J55: 2249 | K55: 969 | L55: 157.2632281
A56: 51 | B56: 2008Havlíčkův Brod | C56: 2008 | D56: Havlíčkův Brod | E56: KS Hr. Králové | F56: 145 | G56: 90 | H56: 265 | I56: 489 | J56: 503 | K56: 31 | L56: 22.49502982
A57: 52 | B57: 2008Hradec Králové | C57: 2008 | D57: Hradec Králové | E57: KS Hr. Králové | F57: 145 | G57: 87 | H57: 304 | I57: 1143 | J57: 1167 | K57: 175 | L57: 54.73436161
A58: 53 | B58: 2008Chrudim | C58: 2008 | D58: Chrudim | E58: KS Hr. Králové | F58: 107 | G58: 71 | H58: 221 | I58: 587 | J58: 586 | K58: 52 | L58: 32.3890785
A59: 54 | B59: 2008Jičín | C59: 2008 | D59: Jičín | E59: KS Hr. Králové | F59: 151 | G59: 68 | H59: 440 | I59: 578 | J59: 600 | K59: 40 | L59: 24.33333333
A60: 55 | B60: 2008Náchod | C60: 2008 | D60: Náchod | E60: KS Hr. Králové | F60: 124 | G60: 61 | H60: 319 | I60: 864 | J60: 871 | K60: 85 | L60: 35.61997704
A61: 56 | B61: 2008Pardubice | C61: 2008 | D61: Pardubice | E61: KS Hr. Králové | F61: 179 | G61: 92 | H61: 509 | I61: 1445 | J61: 1420 | K61: 176 | L61: 45.23943662
A62: 57 | B62: 2008Rychnov nad Kněžnou | C62: 2008 | D62: Rychnov nad Kněžnou | E62: KS Hr. Králové | F62: 221 | G62: 132 | H62: 556 | I62: 683 | J62: 664 | K62: 63 | L62: 34.6310241
A63: 58 | B63: 2008Semily | C63: 2008 | D63: Semily | E63: KS Hr. Králové | F63: 78 | G63: 43 | H63: 173 | I63: 649 | J63: 638 | K63: 80 | L63: 45.76802508
A64: 59 | B64: 2008Svitavy | C64: 2008 | D64: Svitavy | E64: KS Hr. Králové | F64: 82 | G64: 34 | H64: 196 | I64: 672 | J64: 677 | K64: 16 | L64: 8.626292467
A65: 60 | B65: 2008Trutnov | C65: 2008 | D65: Trutnov | E65: KS Hr. Králové | F65: 165 | G65: 52 | H65: 320 | I65: 1405 | J65: 1389 | K65: 130 | L65: 34.1612671
A66: 61 | B66: 2008Ústí nad Orlicí | C66: 2008 | D66: Ústí nad Orlicí | E66: KS Hr. Králové | F66: 109 | G66: 54 | H66: 272 | I66: 795 | J66: 793 | K66: 81 | L66: 37.28247163
A67: 62 | B67: 2008Blansko | C67: 2008 | D67: Blansko | E67: KS Brno | F67: 118 | G67: 81 | H67: 266 | I67: 671 | J67: 708 | K67: 51 | L67: 26.29237288
A68: 63 | B68: 2008Brno-město | C68: 2008 | D68: Brno-město | E68: KS Brno | F68: 182 | G68: 105 | H68: 398 | I68: 4893 | J68: 5099 | K68: 659 | L68: 47.17297509
A69: 64 | B69: 2008Brno-venkov | C69: 2008 | D69: Brno-venkov | E69: KS Brno | F69: 247 | G69: 111 | H69: 563 | I69: 912 | J69: 902 | K69: 193 | L69: 78.09866962
A70: 65 | B70: 2008Břeclav | C70: 2008 | D70: Břeclav | E70: KS Brno | F70: 286 | G70: 165 | H70: 684 | I70: 985 | J70: 1019 | K70: 147 | L70: 52.6545633
A71: 66 | B71: =CONCATENATE(C71,D71) -> 2008Hodonín | C71: 2008 | D71: Hodonín | E71: KS Brno | F71: 291 | G71: 167 | H71: 697 | I71: 1119 | J71: 1138 | K71: 166 | L71: =K71/J71*365 -> 53.24253076
A72: 67 | B72: 2008Jihlava | C72: 2008 | D72: Jihlava | E72: KS Brno | F72: 191 | G72: 132 | H72: 416 | I72: 825 | J72: 855 | K72: 138 | L72: 58.9122807
A73: 68 | B73: 2008Kroměříž | C73: 2008 | D73: Kroměříž | E73: KS Brno | F73: 244 | G73: 82 | H73: 710 | I73: 752 | J73: 791 | K73: 76 | L73: 35.06953224
A74: 69 | B74: 2008Prostějov | C74: 2008 | D74: Prostějov | E74: KS Brno | F74: 520 | G74: 161 | H74: 1596 | I74: 812 | J74: 937 | K74: 192 | L74: 74.79188901
A75: 70 | B75: 2008Třebíč | C75: 2008 | D75: Třebíč | E75: KS Brno | F75: 140 | G75: 66 | H75: 370 | I75: 687 | J75: 692 | K75: 32 | L75: 16.87861272
A76: 71 | B76: 2008Uherské Hradiště | C76: 2008 | D76: Uherské Hradiště | E76: KS Brno | F76: 383 | G76: 159 | H76: 1118 | I76: 1049 | J76: 1168 | K76: 189 | L76: 59.0625
A77: 72 | B77: 2008Vyškov | C77: 2008 | D77: Vyškov | E77: KS Brno | F77: 244 | G77: 152 | H77: 571 | I77: 536 | J77: 571 | K77: 54 | L77: 34.51838879
A78: 73 | B78: 2008Zlín | C78: 2008 | D78: Zlín | E78: KS Brno | F78: 386 | G78: 175 | H78: 998 | I78: 1310 | J78: 1441 | K78: 217 | L78: 54.96530187
A79: 74 | B79: 2008Znojmo | C79: 2008 | D79: Znojmo | E79: KS Brno | F79: 254 | G79: 79 | H79: 909 | I79: 1022 | J79: 1056 | K79: 128 | L79: 44.24242424
A80: 75 | B80: 2008Žďár nad Sázavou | C80: 2008 | D80: Žďár nad Sázavou | E80: KS Brno | F80: 251 | G80: 151 | H80: 532 | I80: 591 | J80: 605 | K80: 80 | L80: 48.26446281
A81: 76 | B81: 2008Bruntál | C81: 2008 | D81: Bruntál | E81: KS Ostrava | F81: 217 | G81: 106 | H81: 551 | I81: 1163 | J81: 1114 | K81: 304 | L81: 99.60502693
A82: 77 | B82: 2008Frýdek-Místek | C82: 2008 | D82: Frýdek-Místek | E82: KS Ostrava | F82: 163 | G82: 89 | H82: 437 | I82: 1584 | J82: 1657 | K82: 200 | L82: 44.05552203
A83: 78 | B83: 2008Jeseník | C83: 2008 | D83: Jeseník | E83: KS Ostrava | F83: 178 | G83: 63 | H83: 522 | I83: 396 | J83: 380 | K83: 52 | L83: 49.94736842
A84: 79 | B84: 2008Karviná | C84: 2008 | D84: Karviná | E84: KS Ostrava | F84: 151 | G84: 76 | H84: 380 | I84: 2836 | J84: 2855 | K84: 470 | L84: 60.08756567
A85: 80 | B85: 2008Nový Jičín | C85: 2008 | D85: Nový Jičín | E85: KS Ostrava | F85: 187 | G85: 94 | H85: 456 | I85: 1264 | J85: 1296 | K85: 171 | L85: 48.15972222
A86: 81 | B86: 2008Olomouc | C86: 2008 | D86: Olomouc | E86: KS Ostrava | F86: 181 | G86: 87 | H86: 474 | I86: 2167 | J86: 2169 | K86: 309 | L86: 51.99861687
A87: 82 | B87: 2008Opava | C87: 2008 | D87: Opava | E87: KS Ostrava | F87: 260 | G87: 120 | H87: 664 | I87: 1178 | J87: 1222 | K87: 182 | L87: 54.36170213
A88: 83 | B88: 2008Ostrava | C88: 2008 | D88: Ostrava | E88: KS Ostrava | F88: 290 | G88: 131 | H88: 802 | I88: 4296 | J88: 4324 | K88: 882 | L88: 74.45189639
A89: 84 | B89: 2008Přerov | C89: 2008 | D89: Přerov | E89: KS Ostrava | F89: 221 | G89: 123 | H89: 504 | I89: 1223 | J89: 1249 | K89: 162 | L89: 47.3418735
A90: 85 | B90: 2008Šumperk | C90: 2008 | D90: Šumperk | E90: KS Ostrava | F90: 125 | G90: 69 | H90: 257 | I90: 1098 | J90: 1064 | K90: 146 | L90: 50.08458647
A91: 86 | B91: 2008Vsetín | C91: 2008 | D91: Vsetín | E91: KS Ostrava | F91: 197 | G91: 104 | H91: 459 | I91: 1124 | J91: 1128 | K91: 161 | L91: 52.09663121
A92: 1 | B92: 2009Praha 1 | C92: 2009 | D92: Praha 1 | E92: MS Praha | F92: 189 | G92: 90 | H92: 458 | I92: 1380 | J92: 1418 | K92: 241 | L92: 62.03455571
A93: 2 | B93: 2009Praha 2 | C93: 2009 | D93: Praha 2 | E93: MS Praha | F93: 179 | G93: 90 | H93: 508 | I93: 3815 | J93: 3843 | K93: 284 | L93: 26.97371845
A94: 3 | B94: 2009Praha 3 | C94: 2009 | D94: Praha 3 | E94: MS Praha | F94: 195 | G94: 104 | H94: 432 | I94: 686 | J94: 710 | K94: 59 | L94: 30.33098592
A95: 4 | B95: 2009Praha 4 | C95: 2009 | D95: Praha 4 | E95: MS Praha | F95: 182 | G95: 79 | H95: 507 | I95: 1554 | J95: 1527 | K95: 134 | L95: 32.03012443
A96: 5 | B96: 2009Praha 5 | C96: 2009 | D96: Praha 5 | E96: MS Praha | F96: 135 | G96: 55 | H96: 356 | I96: 1278 | J96: 1347 | K96: 112 | L96: 30.34892353
A97: 6 | B97: 2009Praha 6 | C97: 2009 | D97: Praha 6 | E97: MS Praha | F97: 297 | G97: 195 | H97: 766 | I97: 657 | J97: 671 | K97: 95 | L97: 51.67660209
A98: 7 | B98: 2009Praha 7 | C98: 2009 | D98: Praha 7 | E98: MS Praha | F98: 239 | G98: 125 | H98: 788 | I98: 703 | J98: 665 | K98: 199 | L98: 109.2255639
A99: 8 | B99: 2009Praha 8 | C99: 2009 | D99: Praha 8 | E99: MS Praha | F99: 220 | G99: 97 | H99: 550 | I99: 932 | J99: 979 | K99: 114 | L99: 42.50255363
A100: 9 | B100: 2009Praha 9 | C100: 2009 | D100: Praha 9 | E100: MS Praha | F100: 146 | G100: 64 | H100: 343 | I100: 1162 | J100: 1120 | K100: 130 | L100: 42.36607143
A101: 10 | B101: 2009Praha 10 | C101: 2009 | D101: Praha 10 | E101: MS Praha | F101: 186 | G101: 98 | H101: 428 | I101: 1254 | J101: 1203 | K101: 190 | L101: 57.6475478
A102: 11 | B102: 2009Beroun | C102: 2009 | D102: Beroun | E102: KS Praha | F102: 165 | G102: 79 | H102: 449 | I102: 929 | J102: 897 | K102: 101 | L102: 41.09810479
A103: 12 | B103: 2009Benešov | C103: 2009 | D103: Benešov | E103: KS Praha | F103: 119 | G103: 66 | H103: 293 | I103: 837 | J103: 823 | K103: 84 | L103: 37.25394897
A104: 13 | B104: 2009Kladno | C104: 2009 | D104: Kladno | E104: KS Praha | F104: 159 | G104: 83 | H104: 364 | I104: 1717 | J104: 1734 | K104: 162 | L104: 34.10034602
A105: 14 | B105: 2009Kolín | C105: 2009 | D105: Kolín | E105: KS Praha | F105: 139 | G105: 77 | H105: 334 | I105: 1159 | J105: 1210 | K105: 85 | L105: 25.64049587
A106: 15 | B106: 2009Kutná Hora | C106: 2009 | D106: Kutná Hora | E106: KS Praha | F106: 161 | G106: 64 | H106: 441 | I106: 703 | J106: 742 | K106: 37 | L106: 18.20080863
A107: 16 | B107: 2009Mělník | C107: 2009 | D107: Mělník | E107: KS Praha | F107: 118 | G107: 53 | H107: 257 | I107: 1328 | J107: 1301 | K107: 139 | L107: 38.99692544
A108: 17 | B108: 2009Mladá Boleslav | C108: 2009 | D108: Mladá Boleslav | E108: KS Praha | F108: 112 | G108: 56 | H108: 218 | I108: 1368 | J108: 1373 | K108: 84 | L108: 22.33066278
A109: 18 | B109: 2009Nymburk | C109: 2009 | D109: Nymburk | E109: KS Praha | F109: 103 | G109: 59 | H109: 210 | I109: 1075 | J109: 1089 | K109: 86 | L109: 28.82460973
A110: 19 | B110: 2009Praha-Východ | C110: 2009 | D110: Praha-Východ | E110: KS Praha | F110: 232 | G110: 113 | H110: 602 | I110: 1438 | J110: 1500 | K110: 97 | L110: 23.60333333
A111: 20 | B111: 2009Praha-Západ | C111: 2009 | D111: Praha-Západ | E111: KS Praha | F111: 176 | G111: 108 | H111: 370 | I111: 1138 | J111: 1072 | K111: 174 | L111: 59.24440299
A112: 21 | B112: 2009Příbram | C112: 2009 | D112: Příbram | E112: KS Praha | F112: 146 | G112: 87 | H112: 347 | I112: 1256 | J112: 1216 | K112: 129 | L112: 38.72121711
A113: 22 | B113: 2009Rakovník | C113: 2009 | D113: Rakovník | E113: KS Praha | F113: 160 | G113: 67 | H113: 432 | I113: 636 | J113: 667 | K113: 31 | L113: 16.96401799
A114: 23 | B114: 2009České Budějovice | C114: 2009 | D114: České Budějovice | E114: KS Č. Budějovice | F114: 179 | G114: 106 | H114: 450 | I114: 2279 | J114: 2235 | K114: 352 | L114: 57.48545861
A115: 24 | B115: 2009Český Krumlov | C115: 2009 | D115: Český Krumlov | E115: KS Č. Budějovice | F115: 183 | G115: 73 | H115: 603 | I115: 636 | J115: 628 | K115: 56 | L115: 32.5477707
A116: 25 | B116: 2009Jindřichův Hradec | C116: 2009 | D116: Jindřichův Hradec | E116: KS Č. Budějovice | F116: 132 | G116: 64 | H116: 330 | I116: 892 | J116: 885 | K116: 77 | L116: 31.75706215
A117: 26 | B117: 2009Pelhřimov | C117: 2009 | D117: Pelhřimov | E117: KS Č. Budějovice | F117: 195 | G117: 83 | H117: 520 | I117: 397 | J117: 399 | K117: 46 | L117: 42.0802005
A118: 27 | B118: 2009Písek | C118: 2009 | D118: Písek | E118: KS Č. Budějovice | F118: 178 | G118: 108 | H118: 442 | I118: 644 | J118: 684 | K118: 67 | L118: 35.75292398
A119: 28 | B119: 2009Prachatice | C119: 2009 | D119: Prachatice | E119: KS Č. Budějovice | F119: 99 | G119: 41 | H119: 284 | I119: 539 | J119: 526 | K119: 31 | L119: 21.51140684
A120: 29 | B120: 2009Strakonice | C120: 2009 | D120: Strakonice | E120: KS Č. Budějovice | F120: 144 | G120: 89 | H120: 397 | I120: 791 | J120: 747 | K120: 89 | L120: 43.48728246
A121: 30 | B121: 2009Tábor | C121: 2009 | D121: Tábor | E121: KS Č. Budějovice | F121: 160 | G121: 87 | H121: 397 | I121: 938 | J121: 920 | K121: 137 | L121: 54.35326087
A122: 31 | B122: 2009Domažlice | C122: 2009 | D122: Domažlice | E122: KS Plzeň | F122: 45 | G122: 26 | H122: 99 | I122: 545 | J122: 542 | K122: 20 | L122: 13.46863469
A123: 32 | B123: 2009Cheb | C123: 2009 | D123: Cheb | E123: KS Plzeň | F123: 332 | G123: 190 | H123: 804 | I123: 1478 | J123: 1458 | K123: 404 | L123: 101.138546
A124: 33 | B124: 2009Karlovy Vary | C124: 2009 | D124: Karlovy Vary | E124: KS Plzeň | F124: 279 | G124: 121 | H124: 882 | I124: 1843 | J124: 1796 | K124: 310 | L124: 63.00111359
A125: 34 | B125: 2009Klatovy | C125: 2009 | D125: Klatovy | E125: KS Plzeň | F125: 121 | G125: 70 | H125: 311 | I125: 749 | J125: 758 | K125: 87 | L125: 41.89313984
A126: 35 | B126: 2009Plzeň-jih | C126: 2009 | D126: Plzeň-jih | E126: KS Plzeň | F126: 157 | G126: 99 | H126: 387 | I126: 499 | J126: 508 | K126: 54 | L126: 38.7992126
A127: 36 | B127: 2009Plzeň-Město | C127: 2009 | D127: Plzeň-Město | E127: KS Plzeň | F127: 240 | G127: 121 | H127: 541 | I127: 2063 | J127: 2042 | K127: 347 | L127: 62.02497551
A128: 37 | B128: 2009Plzeň-sever | C128: 2009 | D128: Plzeň-sever | E128: KS Plzeň | F128: 271 | G128: 157 | H128: 630 | I128: 717 | J128: 712 | K128: 130 | L128: 66.64325843
A129: 38 | B129: 2009Rokycany | C129: 2009 | D129: Rokycany | E129: KS Plzeň | F129: 214 | G129: 137 | H129: 536 | I129: 432 | J129: 394 | K129: 91 | L129: 84.30203046
A130: 39 | B130: 2009Sokolov | C130: 2009 | D130: Sokolov | E130: KS Plzeň | F130: 152 | G130: 76 | H130: 389 | I130: 1591 | J130: 1649 | K130: 223 | L130: 49.36021831
A131: 40 | B131: 2009Tachov | C131: 2009 | D131: Tachov | E131: KS Plzeň | F131: 176 | G131: 89 | H131: 519 | I131: 807 | J131: 794 | K131: 121 | L131: 55.62342569
A132: 41 | B132: 2009Česká Lípa | C132: 2009 | D132: Česká Lípa | E132: KS Ústí n. Labem | F132: 460 | G132: 350 | H132: 1107 | I132: 1867 | J132: 1957 | K132: 882 | L132: 164.5017885
A133: 42 | B133: 2009Děčín | C133: 2009 | D133: Děčín | E133: KS Ústí n. Labem | F133: 455 | G133: 295 | H133: 1048 | I133: 2006 | J133: 1977 | K133: 833 | L133: 153.7910976
A134: 43 | B134: 2009Chomutov | C134: 2009 | D134: Chomutov | E134: KS Ústí n. Labem | F134: 898 | G134: 884 | H134: 1737 | I134: 2281 | J134: 2585 | K134: 1616 | L134: 228.1779497
A135: 44 | B135: =CONCATENATE(C135,D135) -> 2009Jablonec nad Nisou | C135: 2009 | D135: Jablonec nad Nisou | E135: KS Ústí n. Labem | F135: 323 | G135: 139 | H135: 951 | I135: 1283 | J135: 1267 | K135: 489 | L135: =K135/J135*365 -> 140.8721389
A136: 45 | B136: 2009Liberec | C136: 2009 | D136: Liberec | E136: KS Ústí n. Labem | F136: 572 | G136: 325 | H136: 1420 | I136: 2277 | J136: 2217 | K136: 1103 | L136: 181.5944971
A137: 46 | B137: 2009Litoměřice | C137: 2009 | D137: Litoměřice | E137: KS Ústí n. Labem | F137: 395 | G137: 259 | H137: 997 | I137: 1431 | J137: 1602 | K137: 622 | L137: 141.7166042
A138: 47 | B138: 2009Louny | C138: 2009 | D138: Louny | E138: KS Ústí n. Labem | F138: 336 | G138: 154 | H138: 894 | I138: 998 | J138: 1100 | K138: 232 | L138: 76.98181818
A139: 48 | B139: 2009Most | C139: 2009 | D139: Most | E139: KS Ústí n. Labem | F139: 420 | G139: 214 | H139: 1073 | I139: 1741 | J139: 1859 | K139: 645 | L139: 126.640667
A140: 49 | B140: 2009Teplice | C140: 2009 | D140: Teplice | E140: KS Ústí n. Labem | F140: 542 | G140: 257 | H140: 1308 | I140: 2225 | J140: 2369 | K140: 1122 | L140: 172.8704095
A141: 50 | B141: 2009Ústí nad Labem | C141: 2009 | D141: Ústí nad Labem | E141: KS Ústí n. Labem | F141: 597 | G141: 244 | H141: 1777 | I141: 2016 | J141: 2112 | K141: 873 | L141: 150.8735795
A142: 51 | B142: 2009Havlíčkův Brod | C142: 2009 | D142: Havlíčkův Brod | E142: KS Hr. Králové | F142: 114 | G142: 56 | H142: 327 | I142: 539 | J142: 536 | K142: 34 | L142: 23.15298507
A143: 52 | B143: 2009Hradec Králové | C143: 2009 | D143: Hradec Králové | E143: KS Hr. Králové | F143: 209 | G143: 77 | H143: 380 | I143: 1170 | J143: 1181 | K143: 164 | L143: 50.68585944
A144: 53 | B144: 2009Chrudim | C144: 2009 | D144: Chrudim | E144: KS Hr. Králové | F144: 142 | G144: 86 | H144: 388 | I144: 658 | J144: 668 | K144: 42 | L144: 22.9491018
A145: 54 | B145: 2009Jičín | C145: 2009 | D145: Jičín | E145: KS Hr. Králové | F145: 131 | G145: 50 | H145: 255 | I145: 671 | J145: 644 | K145: 67 | L145: 37.97360248
A146: 55 | B146: 2009Náchod | C146: 2009 | D146: Náchod | E146: KS Hr. Králové | F146: 110 | G146: 60 | H146: 238 | I146: 990 | J146: 980 | K146: 95 | L146: 35.38265306
A147: 56 | B147: 2009Pardubice | C147: 2009 | D147: Pardubice | E147: KS Hr. Králové | F147: 135 | G147: 85 | H147: 299 | I147: 1274 | J147: 1281 | K147: 169 | L147: 48.1537861
A148: 57 | B148: 2009Rychnov nad Kněžnou | C148: 2009 | D148: Rychnov nad Kněžnou | E148: KS Hr. Králové | F148: 188 | G148: 119 | H148: 420 | I148: 637 | J148: 646 | K148: 54 | L148: 30.51083591
A149: 58 | B149: 2009Semily | C149: 2009 | D149: Semily | E149: KS Hr. Králové | F149: 76 | G149: 47 | H149: 154 | I149: 692 | J149: 710 | K149: 62 | L149: 31.87323944
A150: 59 | B150: 2009Svitavy | C150: 2009 | D150: Svitavy | E150: KS Hr. Králové | F150: 95 | G150: 42 | H150: 238 | I150: 703 | J150: 702 | K150: 17 | L150: 8.839031339
A151: 60 | B151: 2009Trutnov | C151: 2009 | D151: Trutnov | E151: KS Hr. Králové | F151: 119 | G151: 56 | H151: 269 | I151: 1300 | J151: 1315 | K151: 115 | L151: 31.92015209
A152: 61 | B152: 2009Ústí nad Orlicí | C152: 2009 | D152: Ústí nad Orlicí | E152: KS Hr. Králové | F152: 113 | G152: 63 | H152: 224 | I152: 802 | J152: 821 | K152: 62 | L152: 27.56394641
A153: 62 | B153: 2009Blansko | C153: 2009 | D153: Blansko | E153: KS Brno | F153: 117 | G153: 76 | H153: 218 | I153: 840 | J153: 799 | K153: 92 | L153: 42.02753442
A154: 63 | B154: 2009Brno-město | C154: 2009 | D154: Brno-město | E154: KS Brno | F154: 139 | G154: 84 | H154: 306 | I154: 5019 | J154: 5092 | K154: 586 | L154: 42.00510605
A155: 64 | B155: 2009Brno-venkov | C155: 2009 | D155: Brno-venkov | E155: KS Brno | F155: 192 | G155: 88 | H155: 470 | I155: 1040 | J155: 1068 | K155: 165 | L155: 56.39044944
A156: 65 | B156: 2009Břeclav | C156: 2009 | D156: Břeclav | E156: KS Brno | F156: 190 | G156: 108 | H156: 539 | I156: 1105 | J156: 1135 | K156: 117 | L156: 37.62555066
A157: 66 | B157: 2009Hodonín | C157: 2009 | D157: Hodonín | E157: KS Brno | F157: 229 | G157: 91 | H157: 519 | I157: 1171 | J157: 1183 | K157: 158 | L157: 48.74894336
A158: 67 | B158: 2009Jihlava | C158: 2009 | D158: Jihlava | E158: KS Brno | F158: 185 | G158: 134 | H158: 362 | I158: 866 | J158: 812 | K158: 192 | L158: 86.30541872
A159: 68 | B159: 2009Kroměříž | C159: 2009 | D159: Kroměříž | E159: KS Brno | F159: 246 | G159: 68 | H159: 534 | I159: 893 | J159: 881 | K159: 88 | L159: 36.45856981
A160: 69 | B160: 2009Prostějov | C160: 2009 | D160: Prostějov | E160: KS Brno | F160: 550 | G160: 192 | H160: 1622 | I160: 843 | J160: 910 | K160: 125 | L160: 50.13736264
A161: 70 | B161: 2009Třebíč | C161: 2009 | D161: Třebíč | E161: KS Brno | F161: 103 | G161: 62 | H161: 265 | I161: 644 | J161: 610 | K161: 66 | L161: 39.49180328
A162: 71 | B162: 2009Uherské Hradiště | C162: 2009 | D162: Uherské Hradiště | E162: KS Brno | F162: 445 | G162: 181 | H162: 1166 | I162: 1062 | J162: 1082 | K162: 169 | L162: 57.01016636
A163: 72 | B163: 2009Vyškov | C163: 2009 | D163: Vyškov | E163: KS Brno | F163: 147 | G163: 98 | H163: 353 | I163: 627 | J163: 616 | K163: 65 | L163: 38.51461039
A164: 73 | B164: 2009Zlín | C164: 2009 | D164: Zlín | E164: KS Brno | F164: 306 | G164: 98 | H164: 919 | I164: 1329 | J164: 1365 | K164: 183 | L164: 48.93406593
A165: 74 | B165: 2009Znojmo | C165: 2009 | D165: Znojmo | E165: KS Brno | F165: 181 | G165: 63 | H165: 462 | I165: 1075 | J165: 1058 | K165: 145 | L165: 50.02362949
A166: 75 | B166: 2009Žďár nad Sázavou | C166: 2009 | D166: Žďár nad Sázavou | E166: KS Brno | F166: 170 | G166: 85 | H166: 378 | I166: 692 | J166: 675 | K166: 97 | L166: 52.45185185
A167: 76 | B167: 2009Bruntál | C167: 2009 | D167: Bruntál | E167: KS Ostrava | F167: 209 | G167: 114 | H167: 499 | I167: 1285 | J167: 1298 | K167: 291 | L167: 81.82973806
A168: 77 | B168: 2009Frýdek-Místek | C168: 2009 | D168: Frýdek-Místek | E168: KS Ostrava | F168: 157 | G168: 83 | H168: 418 | I168: 2009 | J168: 1873 | K168: 336 | L168: 65.47784303
A169: 78 | B169: 2009Jeseník | C169: 2009 | D169: Jeseník | E169: KS Ostrava | F169: 142 | G169: 73 | H169: 356 | I169: 395 | J169: 393 | K169: 54 | L169: 50.15267176
A170: 79 | B170: 2009Karviná | C170: 2009 | D170: Karviná | E170: KS Ostrava | F170: 150 | G170: 71 | H170: 362 | I170: 3142 | J170: 3218 | K170: 394 | L170: 44.68924798
A171: 80 | B171: 2009Nový Jičín | C171: 2009 | D171: Nový Jičín | E171: KS Ostrava | F171: 182 | G171: 88 | H171: 446 | I171: 1417 | J171: 1351 | K171: 237 | L171: 64.03034789
A172: 81 | B172: 2009Olomouc | C172: 2009 | D172: Olomouc | E172: KS Ostrava | F172: 186 | G172: 75 | H172: 538 | I172: 2317 | J172: 2349 | K172: 277 | L172: 43.04171988
A173: 82 | B173: 2009Opava | C173: 2009 | D173: Opava | E173: KS Ostrava | F173: 247 | G173: 106 | H173: 666 | I173: 1118 | J173: 1111 | K173: 189 | L173: 62.09270927
A174: 83 | B174: 2009Ostrava | C174: 2009 | D174: Ostrava | E174: KS Ostrava | F174: 275 | G174: 127 | H174: 738 | I174: 4421 | J174: 4375 | K174: 928 | L174: 77.42171429
A175: 84 | B175: 2009Přerov | C175: 2009 | D175: Přerov | E175: KS Ostrava | F175: 223 | G175: 119 | H175: 528 | I175: 1240 | J175: 1256 | K175: 147 | L175: 42.71894904
A176: 85 | B176: 2009Šumperk | C176: 2009 | D176: Šumperk | E176: KS Ostrava | F176: 114 | G176: 63 | H176: 229 | I176: 1115 | J176: 1118 | K176: 143 | L176: 46.68604651
A177: 86 | B177: 2009Vsetín | C177: 2009 | D177: Vsetín | E177: KS Ostrava | F177: 196 | G177: 124 | H177: 460 | I177: 1118 | J177: 1111 | K177: 168 | L177: 55.19351935
A178: 1 | B178: 2010Praha 1 | C178: 2010 | D178: Praha 1 | E178: MS Praha | F178: 194 | G178: 82 | H178: 494 | I178: 1312 | J178: 1342 | K178: 211 | L178: 57.38822653
A179: 2 | B179: 2010Praha 2 | C179: 2010 | D179: Praha 2 | E179: MS Praha | F179: 162 | G179: 85 | H179: 391 | I179: 2830 | J179: 2854 | K179: 260 | L179: 33.25157673
A180: 3 | B180: 2010Praha 3 | C180: 2010 | D180: Praha 3 | E180: MS Praha | F180: 159 | G180: 78 | H180: 327 | I180: 589 | J180: 583 | K180: 66 | L180: 41.32075472
A181: 4 | B181: 2010Praha 4 | C181: 2010 | D181: Praha 4 | E181: MS Praha | F181: 133 | G181: 69 | H181: 257 | I181: 1635 | J181: 1607 | K181: 162 | L181: 36.79527069
A182: 5 | B182: 2010Praha 5 | C182: 2010 | D182: Praha 5 | E182: MS Praha | F182: 129 | G182: 57 | H182: 330 | I182: 1209 | J182: 1193 | K182: 128 | L182: 39.16177703
A183: 6 | B183: 2010Praha 6 | C183: 2010 | D183: Praha 6 | E183: MS Praha | F183: 219 | G183: 97 | H183: 546 | I183: 701 | J183: 658 | K183: 138 | L183: 76.55015198
A184: 7 | B184: 2010Praha 7 | C184: 2010 | D184: Praha 7 | E184: MS Praha | F184: 207 | G184: 118 | H184: 504 | I184: 635 | J184: 649 | K184: 186 | L184: 104.6070878
A185: 8 | B185: 2010Praha 8 | C185: 2010 | D185: Praha 8 | E185: MS Praha | F185: 195 | G185: 88 | H185: 488 | I185: 889 | J185: 878 | K185: 125 | L185: 51.96469248
A186: 9 | B186: 2010Praha 9 | C186: 2010 | D186: Praha 9 | E186: MS Praha | F186: 148 | G186: 68 | H186: 331 | I186: 1164 | J186: 1152 | K186: 142 | L186: 44.99131944
A187: 10 | B187: 2010Praha 10 | C187: 2010 | D187: Praha 10 | E187: MS Praha | F187: 161 | G187: 98 | H187: 362 | I187: 1167 | J187: 1138 | K187: 219 | L187: 70.24165202
A188: 11 | B188: 2010Beroun | C188: 2010 | D188: Beroun | E188: KS Praha | F188: 124 | G188: 68 | H188: 281 | I188: 796 | J188: 807 | K188: 90 | L188: 40.7063197
A189: 12 | B189: 2010Benešov | C189: 2010 | D189: Benešov | E189: KS Praha | F189: 148 | G189: 91 | H189: 364 | I189: 801 | J189: 782 | K189: 103 | L189: 48.07544757
A190: 13 | B190: 2010Kladno | C190: 2010 | D190: Kladno | E190: KS Praha | F190: 136 | G190: 77 | H190: 307 | I190: 1519 | J190: 1498 | K190: 183 | L190: 44.5894526
A191: 14 | B191: 2010Kolín | C191: 2010 | D191: Kolín | E191: KS Praha | F191: 123 | G191: 76 | H191: 248 | I191: 999 | J191: 976 | K191: 108 | L191: 40.38934426
A192: 15 | B192: 2010Kutná Hora | C192: 2010 | D192: Kutná Hora | E192: KS Praha | F192: 103 | G192: 42 | H192: 211 | I192: 553 | J192: 555 | K192: 35 | L192: 23.01801802
A193: 16 | B193: 2010Mělník | C193: 2010 | D193: Mělník | E193: KS Praha | F193: 131 | G193: 82 | H193: 315 | I193: 1157 | J193: 1144 | K193: 152 | L193: 48.4965035
A194: 17 | B194: 2010Mladá Boleslav | C194: 2010 | D194: Mladá Boleslav | E194: KS Praha | F194: 112 | G194: 60 | H194: 267 | I194: 1180 | J194: 1196 | K194: 68 | L194: 20.75250836
A195: 18 | B195: 2010Nymburk | C195: 2010 | D195: Nymburk | E195: KS Praha | F195: 107 | G195: 63 | H195: 247 | I195: 824 | J195: 814 | K195: 96 | L195: 43.04668305
A196: 19 | B196: 2010Praha-Východ | C196: 2010 | D196: Praha-Východ | E196: KS Praha | F196: 154 | G196: 86 | H196: 303 | I196: 1266 | J196: 1241 | K196: 122 | L196: 35.88235294
A197: 20 | B197: 2010Praha-Západ | C197: 2010 | D197: Praha-Západ | E197: KS Praha | F197: 201 | G197: 148 | H197: 409 | I197: 1226 | J197: 1235 | K197: 165 | L197: 48.76518219
A198: 21 | B198: 2010Příbram | C198: 2010 | D198: Příbram | E198: KS Praha | F198: 163 | G198: 109 | H198: 331 | I198: 1125 | J198: 1107 | K198: 147 | L198: 48.46883469
A199: 22 | B199: =CONCATENATE(C199,D199) -> 2010Rakovník | C199: 2010 | D199: Rakovník | E199: KS Praha | F199: 141 | G199: 57 | H199: 303 | I199: 565 | J199: 550 | K199: 46 | L199: =K199/J199*365 -> 30.52727273
A200: 23 | B200: 2010České Budějovice | C200: 2010 | D200: České Budějovice | E200: KS Č. Budějovice | F200: 164 | G200: 110 | H200: 329 | I200: 1987 | J200: 1974 | K200: 364 | L200: 67.30496454
A201: 24 | B201: 2010Český Krumlov | C201: 2010 | D201: Český Krumlov | E201: KS Č. Budějovice | F201: 87 | G201: 55 | H201: 155 | I201: 578 | J201: 564 | K201: 70 | L201: 45.30141844
... 1180 more rows

Sheet Přehled_civil_2023
A1: Civilní agenda
A2: Vybraná data za rok 2023
A3: Přehled všech okresních soudů
D4: Délka řízení ve dnech | G4: Odvolání v % | J4: Vyřizování věcí | P4: Vyřizování věcí na soudce
B5: Název soudu | C5: Nadřízený soud | D5: Průměr | E5: Medián | F5: Percentil 90 | G5: Míra odvolání | H5: Míra změny rozsudku | I5: Celk. míra zm. rozs. | J5: Obživa+nápad* | K5: Vyřízeno* | L5: Nevyřízeno* | M5: Míra vyřizování | N5: Disposition time | O5: Počet soudců k 1.1.* | P5: Obživa+nápad | Q5: Vyřízeno | R5: Nevyřízeno | S5: Evidenční počet soudců k 1.1.
A6: 1 | B6: Praha 1 | C6: MS Praha | D6: 493.3181 | E6: 239 | F6: 1167 | G6: 13.40045 | H6: 32.23684 | I6: =G6*H6/100 -> 4.319881626 | J6: 6207 | K6: 7301 | L6: 4359 | M6: =K6/J6*100 -> 117.6252618 | N6: =L6/K6*365 -> 217.9201479 | O6: 27.5 | P6: =J6/$O6 -> 225.7090909 | Q6: 265.4909091 | R6: 158.5090909 | S6: 32
A7: 2 | B7: Praha 2 | C7: MS Praha | D7: 350.8301 | E7: 174 | F7: 746 | G7: 36.00409 | H7: 48.82533 | I7: =G7*H7/100 -> 17.57911576 | J7: 4324 | K7: 4968 | L7: 1801 | M7: 114.893617 | N7: =L7/K7*365 -> 132.319847 | O7: 20.5 | P7: 210.9268293 | Q7: 242.3414634 | R7: 87.85365854 | S7: 27
A8: 3 | B8: Praha 3 | C8: MS Praha | D8: 241.217 | E8: 121 | F8: 391.5 | G8: 6.967882 | H8: 26.41509 | I8: 1.840572301 | J8: 3556 | K8: 3799 | L8: 1194 | M8: 106.8335208 | N8: 114.7170308 | O8: 9 | P8: 395.1111111 | Q8: 422.1111111 | R8: 132.6666667 | S8: 13
A9: 4 | B9: Praha 4 | C9: MS Praha | D9: 237.0674 | E9: 148 | F9: 359 | G9: 7.748908 | H9: 34.96503 | I9: 2.709408007 | J9: 8317 | K9: 8915 | L9: 3193 | M9: 107.1900926 | N9: 130.7285474 | O9: 27 | P9: 308.037037 | Q9: 330.1851852 | R9: 118.2592593 | S9: 40
A10: 5 | B10: Praha 5 | C10: MS Praha | D10: 243.6917 | E10: 99 | F10: 467 | G10: 7.108872 | H10: 29.16667 | I10: 2.073421237 | J10: 6292 | K10: 6535 | L10: 2239 | M10: 103.862047 | N10: 125.055088 | O10: 20.5 | P10: 306.9268293 | Q10: 318.7804878 | R10: 109.2195122 | S10: 30
A11: 6 | B11: Praha 6 | C11: MS Praha | D11: 311.5251 | E11: 172 | F11: 546 | G11: 7.95408 | H11: 56.04396 | I11: 4.457781414 | J11: 4232 | K11: 4758 | L11: 1868 | M11: 112.4291115 | N11: 143.2997058 | O11: 16 | P11: 264.5 | Q11: 297.375 | R11: 116.75 | S11: 20
A12: 7 | B12: Praha 7 | C12: MS Praha | D12: 321.6518 | E12: 198 | F12: 522 | G12: 8.705358 | H12: 27.88461 | I12: 2.427455127 | J12: 1854 | K12: 2037 | L12: 809 | M12: 109.8705502 | N12: 144.9607266 | O12: 8 | P12: 231.75 | Q12: 254.625 | R12: 101.125 | S12: 9
A13: 8 | B13: Praha 8 | C13: MS Praha | D13: 328.2187 | E13: 145 | F13: 737 | G13: 13.30917 | H13: 41.63265 | I13: 5.540960164 | J13: 4080 | K13: 4251 | L13: 2069 | M13: 104.1911765 | N13: 177.6487885 | O13: 9.85 | P13: 414.213198 | Q13: 431.5736041 | R13: 210.0507614 | S13: 24
A14: 9 | B14: Praha 9 | C14: MS Praha | D14: 238.6662 | E14: 155 | F14: 369 | G14: 9.041309 | H14: 37.70492 | I14: 3.409018325 | J14: 5442 | K14: 5828 | L14: 1723 | M14: 107.0929805 | N14: 107.9092313 | O14: 17 | P14: 320.1176471 | Q14: 342.8235294 | R14: 101.3529412 | S14: 24
A15: 10 | B15: Praha 10 | C15: MS Praha | D15: 252.8237 | E15: 183 | F15: 348 | G15: 5.955204 | H15: 22.44898 | I15: 1.336882555 | J15: 6790 | K15: 6912 | L15: 2325 | M15: 101.7967599 | N15: 122.7756076 | O15: 19.85 | P15: 342.0654912 | Q15: 348.2115869 | R15: 117.1284635 | S15: 26
A16: 11 | B16: Benešov | C16: KS Praha | D16: 153.2023 | E16: 114 | F16: 204 | G16: 4.953271 | H16: 47.72727 | I16: 2.364061024 | J16: 2036 | K16: 2027 | L16: 526 | M16: 99.55795678 | N16: 94.71632955 | O16: 5 | P16: 407.2 | Q16: 405.4 | R16: 105.2 | S16: 11
A17: 12 | B17: Beroun | C17: KS Praha | D17: 196.2714 | E17: 146 | F17: 273 | G17: 1.373626 | H17: 33.33334 | I17: 0.4578754249 | J17: 2245 | K17: 2272 | L17: 634 | M17: 101.2026726 | N17: 101.852993 | O17: 6.25 | P17: 359.2 | Q17: 363.52 | R17: 101.44 | S17: 10
A18: 13 | B18: Kladno | C18: KS Praha | D18: 185.2746 | E18: 128 | F18: 240 | G18: 4.691447 | H18: 50 | I18: 2.3457235 | J18: 5220 | K18: 5597 | L18: 1246 | M18: 107.2222222 | N18: 81.25603002 | O18: 15.72 | P18: 332.0610687 | Q18: 356.043257 | R18: 79.26208651 | S18: 20
A19: 14 | B19: Kolín | C19: KS Praha | D19: 213.6334 | E19: 154 | F19: 281 | G19: 3.380856 | H19: 55.07246 | I19: 1.861920568 | J19: 3120 | K19: 3064 | L19: 985 | M19: 98.20512821 | N19: 117.3384465 | O19: 9.2 | P19: 339.1304348 | Q19: 333.0434783 | R19: 107.0652174 | S19: 16
A20: 15 | B20: Kutná Hora | C20: KS Praha | D20: 168.4468 | E20: 117 | F20: 225 | G20: 4.923799 | H20: 38.88889 | I20: 1.914810777 | J20: 1889 | K20: 1895 | L20: 317 | M20: 100.3176284 | N20: 61.05804749 | O20: 4 | P20: 472.25 | Q20: 473.75 | R20: 79.25 | S20: 7
A21: 16 | B21: Mělník | C21: KS Praha | D21: 189.7147 | E21: 140 | F21: 272 | G21: 3.12273 | H21: 37.83784 | I21: 1.181573581 | J21: 3166 | K21: 3292 | L21: 636 | M21: 103.9797852 | N21: 70.5164034 | O21: 9 | P21: 351.7777778 | Q21: 365.7777778 | R21: 70.66666667 | S21: 15
A22: 17 | B22: Mladá Boleslav | C22: KS Praha | D22: 158.0251 | E22: 117 | F22: 218 | G22: 3.56261 | H22: 49.36709 | I22: 1.758756885 | J22: 3676 | K22: 3635 | L22: 840 | M22: 98.88465724 | N22: 84.34662999 | O22: 10 | P22: 367.6 | Q22: 363.5 | R22: 84 | S22: 16
A23: 18 | B23: Nymburk | C23: KS Praha | D23: 214.3625 | E23: 155 | F23: 292 | G23: 3.095685 | H23: 76.66666 | I23: 2.373358294 | J23: 2660 | K23: 2710 | L23: 568 | M23: 101.8796992 | N23: 76.50184502 | O23: 7.35 | P23: 361.9047619 | Q23: 368.707483 | R23: 77.27891156 | S23: 13
A24: 19 | B24: Praha-východ | C24: KS Praha | D24: 232.0126 | E24: 128 | F24: 391 | G24: 8.024316 | H24: 33.01887 | I24: 2.649538468 | J24: 4125 | K24: 4106 | L24: 1110 | M24: =K24/J24*100 -> 99.53939394 | N24: 98.67267414 | O24: 12 | P24: 343.75 | Q24: 342.1666667 | R24: 92.5 | S24: 17
A25: 20 | B25: Praha-západ | C25: KS Praha | D25: 239.2043 | E25: 133.5 | F25: 413 | G25: 12.53709 | H25: 43.97163 | I25: 5.512762828 | J25: 3301 | K25: 3352 | L25: 1113 | M25: =K25/J25*100 -> 101.5449864 | N25: =L25/K25*365 -> 121.1948091 | O25: 8.8 | P25: 375.1136364 | Q25: 380.9090909 | R25: 126.4772727 | S25: 18
A26: 21 | B26: Příbram | C26: KS Praha | D26: 162.397 | E26: 116 | F26: 216 | G26: 6.835938 | H26: 52.2388 | I26: 3.57101198 | J26: 2396 | K26: 2319 | L26: 486 | M26: 96.78631052 | N26: 76.49417853 | O26: 7.4 | P26: 323.7837838 | Q26: 313.3783784 | R26: 65.67567568 | S26: 14
A27: 22 | B27: Rakovník | C27: KS Praha | D27: 180.5871 | E27: 106 | F27: 229 | G27: 7.120743 | H27: 39.47369 | I27: 2.810820018 | J27: 1595 | K27: 1658 | L27: 319 | M27: 103.9498433 | N27: 70.22617612 | O27: 3 | P27: 531.6666667 | Q27: 552.6666667 | R27: 106.3333333 | S27: 8
A28: 23 | B28: České Budějovice | C28: KS Č. Budějovice | D28: 151.4776 | E28: 99 | F28: 222 | G28: 4.61997 | H28: 49.29577 | I28: 2.277449785 | J28: 5006 | K28: 5123 | L28: 1062 | M28: 102.3371954 | N28: 75.66464962 | O28: 12.35 | P28: 405.3441296 | Q28: 414.8178138 | R28: 85.99190283 | S28: 24
A29: 24 | B29: Český Krumlov | C29: KS Č. Budějovice | D29: 159.5365 | E29: 118 | F29: 204 | G29: 5.451714 | H29: 50 | I29: 2.725857 | J29: 1835 | K29: 1796 | L29: 317 | M29: 97.8746594 | N29: 64.42371938 | O29: 5 | P29: 367 | Q29: 359.2 | R29: 63.4 | S29: 7
A30: 25 | B30: Jindřichův Hradec | C30: KS Č. Budějovice | D30: 284.7027 | E30: 171 | F30: 470 | G30: 11.22449 | H30: 45.45455 | I30: 5.102041419 | J30: 1495 | K30: 1554 | L30: 305 | M30: 103.9464883 | N30: 71.63770914 | O30: 5.25 | P30: 284.7619048 | Q30: 296 | R30: 58.0952381 | S30: 8
A31: 26 | B31: Pelhřimov | C31: KS Č. Budějovice | D31: 206.3319 | E31: 144.5 | F31: 262 | G31: 9.333333 | H31: 34.28572 | I31: 3.200000419 | J31: 893 | K31: 883 | L31: 239 | M31: 98.88017917 | N31: 98.79388448 | O31: 2.76 | P31: 323.5507246 | Q31: 319.9275362 | R31: 86.5942029 | S31: 5
A32: 27 | B32: Písek | C32: KS Č. Budějovice | D32: 207.2427 | E32: 144 | F32: 301 | G32: 7.038123 | H32: 40 | I32: 2.8152492 | J32: 1786 | K32: 1752 | L32: 326 | M32: 98.09630459 | N32: 67.91666667 | O32: 4.05 | P32: 440.9876543 | Q32: 432.5925926 | R32: 80.49382716 | S32: 6
A33: 28 | B33: Prachatice | C33: KS Č. Budějovice | D33: 195.849 | E33: 133 | F33: 294 | G33: 5.241935 | H33: 38.88889 | I33: 2.038530336 | J33: 1066 | K33: 1177 | L33: 242 | M33: 110.412758 | N33: 75.04672897 | O33: 3.7 | P33: 288.1081081 | Q33: 318.1081081 | R33: 65.40540541 | S33: 6
A34: 29 | B34: Strakonice | C34: KS Č. Budějovice | D34: 199.2488 | E34: 144 | F34: 285 | G34: 5.719921 | H34: 40.90909 | I34: 2.33996763 | J34: 1406 | K34: 1432 | L34: 234 | M34: 101.8492176 | N34: 59.64385475 | O34: 4.1 | P34: 342.9268293 | Q34: 349.2682927 | R34: 57.07317073 | S34: 6
A35: 30 | B35: Tábor | C35: KS Č. Budějovice | D35: 181.7863 | E35: 149 | F35: 226 | G35: 7.898089 | H35: 36.53846 | I35: 2.88584009 | J35: 2074 | K35: 2028 | L35: 485 | M35: 97.78206365 | N35: 87.29043393 | O35: 6.4 | P35: 324.0625 | Q35: 316.875 | R35: 75.78125 | S35: 10
A36: 31 | B36: Domažlice | C36: KS Plzeň | D36: 190.7821 | E36: 165 | F36: 259 | G36: 6.578948 | H36: 30.90909 | I36: 2.033492958 | J36: 2169 | K36: 2189 | L36: 524 | M36: 100.9220839 | N36: 87.37322979 | O36: 6 | P36: 361.5 | Q36: 364.8333333 | R36: 87.33333333 | S36: 7
A37: 32 | B37: Cheb | C37: KS Plzeň | D37: 210.5789 | E37: 133 | F37: 322 | G37: 4.176334 | H37: 67.16418 | I37: 2.805000485 | J37: 3544 | K37: 3703 | L37: 1068 | M37: 104.486456 | N37: 105.2714016 | O37: 9.05 | P37: 391.6022099 | Q37: 409.1712707 | R37: 118.0110497 | S37: 13
A38: 33 | B38: Karlovy Vary | C38: KS Plzeň | D38: 162.337 | E38: 100 | F38: 194.5 | G38: 4.474829 | H38: 30.18868 | I38: 1.350891807 | J38: 4027 | K38: 4062 | L38: 740 | M38: 100.8691333 | N38: 66.49433776 | O38: 9.5 | P38: =J38/$O38 -> 423.8947368 | Q38: 427.5789474 | R38: 77.89473684 | S38: 17
A39: 34 | B39: Klatovy | C39: KS Plzeň | D39: 173.9808 | E39: 120 | F39: 215 | G39: 6.080449 | H39: 41.66666 | I39: 2.533520011 | J39: 2260 | K39: 2248 | L39: 569 | M39: 99.46902655 | N39: 92.38656584 | O39: 6 | P39: 376.6666667 | Q39: 374.6666667 | R39: 94.83333333 | S39: 9
A40: 35 | B40: Plzeň-jih | C40: KS Plzeň | D40: 189.0988 | E40: 152 | F40: 245 | G40: 6.987577 | H40: 32.25806 | I40: 2.254056781 | J40: 1768 | K40: 1762 | L40: 517 | M40: 99.66063348 | N40: 107.0970488 | O40: 5.8 | P40: 304.8275862 | Q40: 303.7931034 | R40: 89.13793103 | S40: 10
A41: 36 | B41: Plzeň-město | C41: KS Plzeň | D41: 198.2859 | E41: 143 | F41: 275 | G41: 4.72381 | H41: 37.03704 | I41: 1.749559399 | J41: 5582 | K41: 5949 | L41: 1825 | M41: 106.5747044 | N41: 111.9726004 | O41: 16.25 | P41: 343.5076923 | Q41: 366.0923077 | R41: 112.3076923 | S41: 26
A42: 37 | B42: Plzeň-sever | C42: KS Plzeň | D42: 167.8223 | E42: 116 | F42: 280 | G42: 4.185218 | H42: 37.5 | I42: 1.56945675 | J42: 2664 | K42: 2856 | L42: 903 | M42: 107.2072072 | N42: 115.4044118 | O42: 7 | P42: 380.5714286 | Q42: 408 | R42: 129 | S42: 9
A43: 38 | B43: Rokycany | C43: KS Plzeň | D43: 184.216 | E43: 129 | F43: 237 | G43: 5.172414 | H43: 52 | I43: 2.68965528 | J43: 1398 | K43: 1416 | L43: 419 | M43: 101.2875536 | N43: 108.0049435 | O43: 3.4 | P43: 411.1764706 | Q43: 416.4705882 | R43: 123.2352941 | S43: 4
A44: 39 | B44: Sokolov | C44: KS Plzeň | D44: 162.0956 | E44: 123 | F44: 205 | G44: 3.064415 | H44: 55.31915 | I44: 1.69520833 | J44: 3519 | K44: 3599 | L44: 860 | M44: 102.2733731 | N44: 87.21867185 | O44: 10.5 | P44: 335.1428571 | Q44: 342.7619048 | R44: 81.9047619 | S44: 15
A45: 40 | B45: Tachov | C45: KS Plzeň | D45: 197.8852 | E45: 145 | F45: 281 | G45: 4.591837 | H45: 40.74074 | I45: 1.870748373 | J45: 1961 | K45: 2018 | L45: 516 | M45: 102.9066803 | N45: 93.33002973 | O45: 5 | P45: 392.2 | Q45: 403.6 | R45: 103.2 | S45: 8
A46: 41 | B46: Česká Lípa | C46: KS Ústí n. Labem | D46: 210.3504 | E46: 162 | F46: 282 | G46: 3.072289 | H46: 52.27272 | I46: 1.605969027 | J46: 3653 | K46: 3902 | L46: 1067 | M46: 106.8163154 | N46: 99.80907227 | O46: 9.5 | P46: 384.5263158 | Q46: 410.7368421 | R46: 112.3157895 | S46: 16
A47: 42 | B47: Děčín | C47: KS Ústí n. Labem | D47: 236.1552 | E47: 161 | F47: 297 | G47: 4.483122 | H47: 44.44445 | I47: 1.992498916 | J47: 4793 | K47: 4938 | L47: 1526 | M47: 103.0252451 | N47: 112.7966788 | O47: 12.1 | P47: 396.1157025 | Q47: 408.0991736 | R47: 126.1157025 | S47: 21
A48: 43 | B48: Chomutov | C48: KS Ústí n. Labem | D48: 350.9103 | E48: 246 | F48: 449 | G48: 3.535198 | H48: 48.97959 | I48: 1.731525486 | J48: 6445 | K48: 6889 | L48: 2487 | M48: 106.8890613 | N48: 131.7687618 | O48: 14.5 | P48: 444.4827586 | Q48: 475.1034483 | R48: 171.5172414 | S48: 24
A49: 44 | B49: Jablonec nad Nisou | C49: KS Ústí n. Labem | D49: 217.3451 | E49: 145 | F49: 281 | G49: 5.069124 | H49: 52.5 | I49: 2.6612901 | J49: 2366 | K49: 2548 | L49: 604 | M49: 107.6923077 | N49: 86.52276295 | O49: 7.6 | P49: 311.3157895 | Q49: 335.2631579 | R49: 79.47368421 | S49: 12
A50: 45 | B50: Liberec | C50: KS Ústí n. Labem | D50: 306.2633 | E50: 212 | F50: 436 | G50: 6.899256 | H50: 63.92405 | I50: 4.410283855 | J50: 5651 | K50: 6144 | L50: 2052 | M50: 108.7241196 | N50: 121.9042969 | O50: 17.25 | P50: 327.5942029 | Q50: 356.173913 | R50: 118.9565217 | S50: 22
A51: 46 | B51: Litoměřice | C51: KS Ústí n. Labem | D51: 343.6864 | E51: 277 | F51: 440 | G51: 3.363007 | H51: 50 | I51: 1.6815035 | J51: 3844 | K51: 3868 | L51: 1655 | M51: 100.6243496 | N51: 156.1724405 | O51: 8.7 | P51: 441.8390805 | Q51: 444.5977011 | R51: 190.2298851 | S51: 15
A52: 47 | B52: Louny | C52: KS Ústí n. Labem | D52: 298.56 | E52: 226 | F52: 364 | G52: 4.122011 | H52: 57.14286 | I52: 2.355434975 | J52: 2971 | K52: 3226 | L52: 1190 | M52: 108.5829687 | N52: 134.6404216 | O52: 7.8 | P52: 380.8974359 | Q52: 413.5897436 | R52: 152.5641026 | S52: 12
A53: 48 | B53: Most | C53: KS Ústí n. Labem | D53: 201.9504 | E53: 138 | F53: 279 | G53: 3.231441 | H53: 55.35714 | I53: 1.788833318 | J53: 5622 | K53: 5736 | L53: 1514 | M53: 102.0277481 | N53: 96.34065551 | O53: 17 | P53: 330.7058824 | Q53: 337.4117647 | R53: 89.05882353 | S53: 25
A54: 49 | B54: Teplice | C54: KS Ústí n. Labem | D54: 226.7878 | E54: 178 | F54: 324 | G54: 2.380952 | H54: 51.11111 | I54: 1.216930996 | J54: 5489 | K54: 5419 | L54: 1740 | M54: 98.72472217 | N54: 117.1987452 | O54: 12 | P54: 457.4166667 | Q54: 451.5833333 | R54: 145 | S54: 22
A55: 50 | B55: Ústí nad Labem | C55: KS Ústí n. Labem | D55: 244.3573 | E55: 143 | F55: 297 | G55: 4.355989 | H55: 55 | I55: 2.39579395 | J55: 6113 | K55: 6333 | L55: 1802 | M55: 103.5988876 | N55: 103.8575715 | O55: 15 | P55: 407.5333333 | Q55: 422.2 | R55: 120.1333333 | S55: 24
A56: 51 | B56: Havlíčkův Brod | C56: KS Hr. Králové | D56: 202.7345 | E56: 144 | F56: 303 | G56: 5.665722 | H56: 41.93548 | I56: 2.375947716 | J56: 1639 | K56: 1744 | L56: 572 | M56: 106.4063453 | N56: 119.7133028 | O56: 6.1 | P56: 268.6885246 | Q56: 285.9016393 | R56: 93.7704918 | S56: 10
A57: 52 | B57: Hradec Králové | C57: KS Hr. Králové | D57: 207.5495 | E57: 157 | F57: 242 | G57: 7.678019 | H57: 41.12149 | I57: 3.157315815 | J57: 4195 | K57: 4509 | L57: 1104 | M57: 107.4851013 | N57: 89.36793081 | O57: 11 | P57: 381.3636364 | Q57: 409.9090909 | R57: 100.3636364 | S57: 18
A58: 53 | B58: Chrudim | C58: KS Hr. Králové | D58: 272.8516 | E58: 213 | F58: 387.5 | G58: 6.109325 | H58: 48.97959 | I58: 2.992322337 | J58: 2075 | K58: 2227 | L58: 954 | M58: 107.3253012 | N58: 156.3583296 | O58: 6.65 | P58: 312.0300752 | Q58: 334.887218 | R58: 143.4586466 | S58: 10
A59: 54 | B59: Jičín | C59: KS Hr. Králové | D59: 264.0233 | E59: 165 | F59: 410 | G59: 8.474577 | H59: 52.27272 | I59: 4.429891906 | J59: 1341 | K59: 1371 | L59: 562 | M59: 102.2371365 | N59: 149.6207148 | O59: 4.25 | P59: 315.5294118 | Q59: 322.5882353 | R59: 132.2352941 | S59: 8
A60: 55 | B60: Náchod | C60: KS Hr. Králové | D60: 153.8146 | E60: 130 | F60: 185 | G60: 3.975535 | H60: 42.10526 | I60: 1.673909348 | J60: 2487 | K60: 2495 | L60: 325 | M60: 100.3216727 | N60: 47.54509018 | O60: 6.6 | P60: 376.8181818 | Q60: 378.030303 | R60: 49.24242424 | S60: 11
A61: 56 | B61: Pardubice | C61: KS Hr. Králové | D61: 253.0015 | E61: 181 | F61: 363 | G61: 5.960265 | H61: 23.80952 | I61: 1.419110487 | J61: 5045 | K61: 4925 | L61: 2044 | M61: 97.62140733 | N61: 151.484264 | O61: 12 | P61: 420.4166667 | Q61: 410.4166667 | R61: 170.3333333 | S61: 20
A62: 57 | B62: Rychnov nad Kněžnou | C62: KS Hr. Králové | D62: 183.3952 | E62: 126 | F62: 237 | G62: 6.379822 | H62: 28.20513 | I62: 1.799437089 | J62: 1546 | K62: 1577 | L62: 391 | M62: 102.0051746 | N62: 90.4977806 | O62: 5 | P62: 309.2 | Q62: 315.4 | R62: 78.2 | S62: 7
A63: 58 | B63: Semily | C63: KS Hr. Králové | D63: 360.4384 | E63: 202.5 | F63: 803 | G63: 10.32609 | H63: 36.66667 | I63: 3.786233344 | J63: 819 | K63: 875 | L63: 362 | M63: 106.8376068 | N63: 151.0057143 | O63: 2 | P63: 409.5 | Q63: 437.5 | R63: 181 | S63: 5
A64: 59 | B64: Svitavy | C64: KS Hr. Králové | D64: 176.4326 | E64: 114 | F64: 223 | G64: 5.105438 | H64: 35.13514 | I64: 1.793802789 | J64: 2150 | K64: 2144 | L64: 649 | M64: 99.72093023 | N64: 110.4874067 | O64: 8.5 | P64: 252.9411765 | Q64: 252.2352941 | R64: 76.35294118 | S64: 10
A65: 60 | B65: Trutnov | C65: KS Hr. Králové | D65: 166.983 | E65: 119 | F65: 207 | G65: 5.427783 | H65: 44 | I65: 2.38822452 | J65: 2789 | K65: 2734 | L65: 697 | M65: 98.02796701 | N65: 93.05230432 | O65: 7.9 | P65: 353.0379747 | Q65: 346.0759494 | R65: 88.2278481 | S65: 15
A66: 61 | B66: Ústí nad Orlicí | C66: KS Hr. Králové | D66: 236.6536 | E66: 135 | F66: 388 | G66: 9.022556 | H66: 30.76923 | I66: 2.776171008 | J66: 3263 | K66: 3288 | L66: 636 | M66: 100.7661661 | N66: 70.60218978 | O66: 7.6 | P66: 429.3421053 | Q66: 432.6315789 | R66: 83.68421053 | S66: 13
A67: 62 | B67: Blansko | C67: KS Brno | D67: 238.1095 | E67: 150 | F67: 290 | G67: 7.569721 | H67: 40.90909 | I67: 3.096703977 | J67: 1910 | K67: 1883 | L67: 608 | M67: 98.58638743 | N67: 117.8544875 | O67: 5.2 | P67: 367.3076923 | Q67: 362.1153846 | R67: 116.9230769 | S67: 10
A68: 63 | B68: Brno-město | C68: KS Brno | D68: 358.5775 | E68: 245 | F68: 599 | G68: 7.362171 | H68: 54.00517 | I68: 3.975952964 | J68: 12516 | K68: 13056 | L68: 6723 | M68: 104.3144775 | N68: 187.9515165 | O68: 42.55 | P68: 294.1480611 | Q68: 306.8390129 | R68: 158.0023502 | S68: 63
A69: 64 | B69: Brno-venkov | C69: KS Brno | D69: 325.2581 | E69: 249 | F69: 479 | G69: 6.920601 | H69: 52.63158 | I69: 3.642421652 | J69: 4161 | K69: 4305 | L69: 1369 | M69: 103.4607066 | N69: 116.0708479 | O69: 9.5 | P69: 438 | Q69: 453.1578947 | R69: 144.1052632 | S69: 16
A70: 65 | B70: Břeclav | C70: KS Brno | D70: 401.1674 | E70: 236 | F70: 836 | G70: 8.152645 | H70: 49.4382 | I70: 4.03052094 | J70: 2382 | K70: 2443 | L70: 1523 | M70: 102.5608732 | N70: 227.5460499 | O70: 9 | P70: =J70/$O70 -> 264.6666667 | Q70: 271.4444444 | R70: 169.2222222 | S70: 13
A71: 66 | B71: Hodonín | C71: KS Brno | D71: 346.1159 | E71: 226 | F71: 485 | G71: 7.348485 | H71: 27.5 | I71: =G71*H71/100 -> 2.020833375 | J71: 2455 | K71: 2691 | L71: 1004 | M71: 109.6130346 | N71: 136.1798588 | O71: 8.45 | P71: 290.5325444 | Q71: 318.4615385 | R71: 118.816568 | S71: 14
A72: 67 | B72: Jihlava | C72: KS Brno | D72: 210.7867 | E72: 162 | F72: 281 | G72: 4.848485 | H72: 42.22222 | I72: 2.047138003 | J72: 3094 | K72: 3192 | L72: 1108 | M72: 103.1674208 | N72: 126.697995 | O72: 7 | P72: 442 | Q72: 456 | R72: 158.2857143 | S72: 12
A73: 68 | B73: Kroměříž | C73: KS Brno | D73: 199.4175 | E73: 136 | F73: 262 | G73: 7.8478 | H73: 56.14035 | I73: 4.405782387 | J73: 1818 | K73: 1826 | L73: 583 | M73: 100.440044 | N73: 116.5361446 | O73: 8 | P73: 227.25 | Q73: 228.25 | R73: 72.875 | S73: 14
A74: 69 | B74: Prostějov | C74: KS Brno | D74: 311.0327 | E74: 222.5 | F74: 516 | G74: 5.962059 | H74: 43.39622 | I74: 2.58730824 | J74: 2641 | K74: 2572 | L74: 1101 | M74: 97.38735328 | N74: 156.246112 | O74: 7 | P74: 377.2857143 | Q74: 367.4285714 | R74: 157.2857143 | S74: 12
A75: 70 | B75: Třebíč | C75: KS Brno | D75: 237.1089 | E75: 197 | F75: 299 | G75: 9.235669 | H75: 50 | I75: 4.6178345 | J75: 1701 | K75: 1737 | L75: 461 | M75: 102.1164021 | N75: 96.87104203 | O75: 6 | P75: 283.5 | Q75: 289.5 | R75: 76.83333333 | S75: 9
A76: 71 | B76: Uherské Hradiště | C76: KS Brno | D76: 258.255 | E76: 133 | F76: 446 | G76: 8.185841 | H76: 47.54099 | I76: 3.891629851 | J76: 1873 | K76: 1874 | L76: 784 | M76: 100.0533903 | N76: 152.7001067 | O76: 7.5 | P76: 249.7333333 | Q76: 249.8666667 | R76: 104.5333333 | S76: 14
A77: 72 | B77: Vyškov | C77: KS Brno | D77: 315.0757 | E77: 195 | F77: 505.5 | G77: 6.85871 | H77: 61.53846 | I77: 4.22074451 | J77: 1496 | K77: 1545 | L77: 770 | M77: 103.2754011 | N77: 181.9093851 | O77: 5.4 | P77: 277.037037 | Q77: 286.1111111 | R77: 142.5925926 | S77: 10
A78: 73 | B78: Zlín | C78: KS Brno | D78: 172.9586 | E78: 118 | F78: 252 | G78: 6.445313 | H78: 46.05263 | I78: 2.968236148 | J78: 3136 | K78: 3077 | L78: 825 | M78: 98.11862245 | N78: 97.86317842 | O78: 12.1 | P78: 259.1735537 | Q78: 254.2975207 | R78: 68.18181818 | S78: 18
A79: 74 | B79: Znojmo | C79: KS Brno | D79: 237.0062 | E79: 164 | F79: 293 | G79: 7.742537 | H79: 64.61539 | I79: 5.002870478 | J79: 2675 | K79: 2594 | L79: 954 | M79: 96.97196262 | N79: 134.2367001 | O79: 9 | P79: 297.2222222 | Q79: 288.2222222 | R79: 106 | S79: 13
A80: 75 | B80: Žďár nad Sázavou | C80: KS Brno | D80: 305.0612 | E80: 204 | F80: 438.5 | G80: 8.507463 | H80: 51.92308 | I80: 4.417336819 | J80: 1864 | K80: 1835 | L80: 816 | M80: 98.44420601 | N80: 162.3106267 | O80: 6 | P80: 310.6666667 | Q80: 305.8333333 | R80: 136 | S80: 9
A81: 76 | B81: Bruntál | C81: KS Ostrava | D81: 275.1484 | E81: 209 | F81: 390 | G81: 6.356589 | H81: 43.07692 | I81: 2.738222758 | J81: 3003 | K81: 2789 | L81: 1367 | M81: 92.87379287 | N81: 178.9010398 | O81: 9.4 | P81: 319.4680851 | Q81: 296.7021277 | R81: 145.4255319 | S81: 15
A82: 77 | B82: Frýdek-Místek | C82: KS Ostrava | D82: 291.6998 | E82: 195 | F82: 428 | G82: 6.50026 | H82: 48.45361 | I82: 3.149610629 | J82: 4304 | K82: 4316 | L82: 1911 | M82: 100.2788104 | N82: 161.6114458 | O82: 11 | P82: 391.2727273 | Q82: 392.3636364 | R82: 173.7272727 | S82: 24
A83: 78 | B83: Jeseník | C83: KS Ostrava | D83: 268.5686 | E83: 185.5 | F83: 470 | G83: 7.129095 | H83: 51.51515 | I83: 3.672563983 | J83: 1045 | K83: 1043 | L83: 365 | M83: 99.80861244 | N83: 127.7325024 | O83: 4 | P83: 261.25 | Q83: 260.75 | R83: 91.25 | S83: 6
A84: 79 | B84: Karviná | C84: KS Ostrava | D84: 223.405 | E84: 152 | F84: 330 | G84: 3.353585 | H84: 38.59649 | I84: 1.294366099 | J84: 8382 | K84: 8763 | L84: 2461 | M84: 104.5454545 | N84: 102.5065617 | O84: 27 | P84: 310.4444444 | Q84: 324.5555556 | R84: 91.14814815 | S84: 37
A85: 80 | B85: Nový Jičín | C85: KS Ostrava | D85: 181.5441 | E85: 121 | F85: 253 | G85: 2.083333 | H85: 28.57143 | I85: 0.5952380298 | J85: 3380 | K85: 3535 | L85: 1073 | M85: 104.5857988 | N85: 110.7906648 | O85: 8.75 | P85: 386.2857143 | Q85: 404 | R85: 122.6285714 | S85: 15
A86: 81 | B86: Olomouc | C86: KS Ostrava | D86: 186.8774 | E86: 125 | F86: 253 | G86: 5.530864 | H86: 53 | I86: 2.93135792 | J86: 4868 | K86: 5042 | L86: 1390 | M86: 103.5743632 | N86: 100.6247521 | O86: 14.9 | P86: 326.7114094 | Q86: 338.3892617 | R86: 93.2885906 | S86: 25
A87: 82 | B87: Opava | C87: KS Ostrava | D87: 283.8768 | E87: 197 | F87: 455 | G87: 5.613772 | H87: 54.6875 | I87: 3.070031563 | J87: 3077 | K87: 3365 | L87: 1171 | M87: 109.359766 | N87: 127.0178306 | O87: 13.5 | P87: 227.9259259 | Q87: 249.2592593 | R87: 86.74074074 | S87: 18
A88: 83 | B88: Ostrava | C88: KS Ostrava | D88: 281.8589 | E88: 238 | F88: 406 | G88: 2.965235 | H88: 36 | I88: 1.0674846 | J88: 19001 | K88: 16653 | L88: 7223 | M88: 87.64275564 | N88: 158.3135171 | O88: 37 | P88: 513.5405405 | Q88: 450.0810811 | R88: 195.2162162 | S88: 57
A89: 84 | B89: Přerov | C89: KS Ostrava | D89: 224.2758 | E89: 180 | F89: 307 | G89: 4.651163 | H89: 40.90909 | I89: 1.902748458 | J89: 2645 | K89: 2665 | L89: 745 | M89: =K89/J89*100 -> 100.7561437 | N89: =L89/K89*365 -> 102.0356473 | O89: 8 | P89: 330.625 | Q89: 333.125 | R89: 93.125 | S89: 14
A90: 85 | B90: Šumperk | C90: KS Ostrava | D90: 311.5892 | E90: 225 | F90: 411 | G90: 6.48855 | H90: 47.54099 | I90: 3.084720907 | J90: 2227 | K90: 2445 | L90: 964 | M90: 109.7889537 | N90: 143.9100204 | O90: 7 | P90: 318.1428571 | Q90: 349.2857143 | R90: 137.7142857 | S90: 13
A91: 86 | B91: Vsetín | C91: KS Ostrava | D91: 274.1987 | E91: 182 | F91: 414 | G91: 7.77027 | H91: 45.23809 | I91: 3.515121736 | J91: 1870 | K91: 2030 | L91: 763 | M91: 108.5561497 | N91: 137.1896552 | O91: 9.1 | P91: 205.4945055 | Q91: 223.0769231 | R91: 83.84615385 | S91: 14
A92: - | B92: ČR | C92: - | D92: 251 | E92: 162 | F92: 386 | G92: 6.71 | H92: 43.52 | I92: 2.920192 | J92: =AVERAGE(J6:J91) -> 3520.883721 | K92: =AVERAGE(K6:K91) -> 3615.651163 | L92: 1203.55814 | M92: 102.6915811 | N92: 121.4991992 | O92: =AVERAGE(O6:O91) -> 10.30732558 | P92: =J92/$O92 -> 341.5904245 | Q92: =K92/$O92 -> 350.7846079 | R92: =L92/$O92 -> 116.7672574 | S92: =AVERAGE(S6:S91) -> 16.10465116
A94: Poznámka: ČR - počet soudců (úvazků), nápad+obživa, vyřízeno a nevyřízeno: jedná se o průměr v ČR.

Sheet Přehled_civil_po_kr_2023
A1: Civilní agenda
A3: Vybraná data za rok 2023
A4: Přehled všech okresních soudů po soudních krajích
B6: Délka řízení ve dnech | E6: Odvolání v % | H6: Vyřizování věcí | N6: Vyřizování věcí na soudce
A7: Nadřízený soud | B7: Průměr | C7: Medián | D7: Percentil 90 | E7: Míra odvolání | F7: Míra změny rozsudku | G7: Celková míra zm. rozsudku | H7: Obživa+nápad | I7: Vyřízeno | J7: Nevyřízeno | K7: Míra vyřizování | L7: Disposition time | M7: Počet soudců k 1.1. | N7: Obživa+nápad | O7: Vyřízeno | P7: Nevyřízeno | Q7: Evidenční počet soudců k 1.1.
A8: MS Praha | B8: 304 | C8: 163 | D8: 615 | E8: 11.7 | F8: 39 | G8: =E8*F8/100 -> 4.563 | H8: 51094 | I8: 55304 | J8: 21580 | K8: =I8/H8*100 -> 108.239715 | L8: =J8/I8*365 -> 142.4255027 | M8: 175.2 | N8: =H8/SUMIF(Přehled_civil_2023!$C$6:$C$91,$A8,Přehled_civil_2023!$O$6:$O$91) -> 291.6324201 | O8: =I8/SUMIF(Přehled_civil_2023!$C$6:$C$91,$A8,Přehled_civil_2023!$O$6:$O$91) -> 315.6621005 | P8: =J8/SUMIF(Přehled_civil_2023!$C$6:$C$91,$A8,Přehled_civil_2023!$O$6:$O$91) -> 123.173516 | Q8: =AVERAGEIF(Přehled_civil_2023!$C$6:$C$91,A8,Přehled_civil_2023!$S$6:$S$91) -> 24.5
A9: KS Praha | B9: 193 | C9: 131 | D9: 273 | E9: 5.04 | F9: 46.34 | G9: =E9*F9/100 -> 2.335536 | H9: 35429 | I9: 35927 | J9: 8780 | K9: =I9/H9*100 -> 101.4056282 | L9: =J9/I9*365 -> 89.20032288 | M9: 97.72 | N9: =H9/SUMIF(Přehled_civil_2023!$C$6:$C$91,$A9,Přehled_civil_2023!$O$6:$O$91) -> 362.5562833 | O9: =I9/SUMIF(Přehled_civil_2023!$C$6:$C$91,$A9,Přehled_civil_2023!$O$6:$O$91) -> 367.6524765 | P9: =J9/SUMIF(Přehled_civil_2023!$C$6:$C$91,$A9,Přehled_civil_2023!$O$6:$O$91) -> 89.84854687 | Q9: =AVERAGEIF(Přehled_civil_2023!$C$6:$C$91,A9,Přehled_civil_2023!$S$6:$S$91) -> 13.75
A10: KS Č. Budějovice | B10: 180 | C10: 124 | D10: 262 | E10: 6.31 | F10: 42.31 | G10: 2.669761 | H10: 15561 | I10: 15745 | J10: 3210 | K10: 101.1824433 | L10: 74.41409971 | M10: 43.61 | N10: =H10/SUMIF(Přehled_civil_2023!$C$6:$C$91,$A10,Přehled_civil_2023!$O$6:$O$91) -> 356.8218299 | O10: =I10/SUMIF(Přehled_civil_2023!$C$6:$C$91,$A10,Přehled_civil_2023!$O$6:$O$91) -> 361.0410456 | P10: =J10/SUMIF(Přehled_civil_2023!$C$6:$C$91,$A10,Přehled_civil_2023!$O$6:$O$91) -> 73.60697088 | Q10: =AVERAGEIF(Přehled_civil_2023!$C$6:$C$91,A10,Přehled_civil_2023!$S$6:$S$91) -> 9
A11: KS Plzeň | B11: 184 | C11: 129 | D11: 263 | E11: 4.73 | F11: 42.5 | G11: 2.01025 | H11: 28892 | I11: 29802 | J11: 7941 | K11: 103.1496608 | L11: 97.25739883 | M11: 78.5 | N11: =H11/SUMIF(Přehled_civil_2023!$C$6:$C$91,$A11,Přehled_civil_2023!$O$6:$O$91) -> 368.0509554 | O11: =I11/SUMIF(Přehled_civil_2023!$C$6:$C$91,$A11,Přehled_civil_2023!$O$6:$O$91) -> 379.6433121 | P11: =J11/SUMIF(Přehled_civil_2023!$C$6:$C$91,$A11,Přehled_civil_2023!$O$6:$O$91) -> 101.1592357 | Q11: =AVERAGEIF(Přehled_civil_2023!$C$6:$C$91,A11,Přehled_civil_2023!$S$6:$S$91) -> 11.8
A12: KS Ústí n. Labem | B12: 265 | C12: 182 | D12: 363 | E12: 4.03 | F12: 54.24 | G12: 2.185872 | H12: 46947 | I12: 49003 | J12: 15637 | K12: 104.3794066 | L12: 116.4725629 | M12: 121.45 | N12: =H12/SUMIF(Přehled_civil_2023!$C$6:$C$91,$A12,Přehled_civil_2023!$O$6:$O$91) -> 386.5541375 | O12: =I12/SUMIF(Přehled_civil_2023!$C$6:$C$91,$A12,Přehled_civil_2023!$O$6:$O$91) -> 403.4829148 | P12: =J12/SUMIF(Přehled_civil_2023!$C$6:$C$91,$A12,Přehled_civil_2023!$O$6:$O$91) -> 128.7525731 | Q12: =AVERAGEIF(Přehled_civil_2023!$C$6:$C$91,A12,Přehled_civil_2023!$S$6:$S$91) -> 19.3
A13: KS Hr. Králové | B13: 216 | C13: 148 | D13: 316 | E13: 6.42 | F13: 37.45 | G13: 2.40429 | H13: 27349 | I13: 27889 | J13: 8296 | K13: 101.974478 | L13: 108.5747069 | M13: 77.6 | N13: =H13/SUMIF(Přehled_civil_2023!$C$6:$C$91,$A13,Přehled_civil_2023!$O$6:$O$91) -> 352.435567 | O13: =I13/SUMIF(Přehled_civil_2023!$C$6:$C$91,$A13,Přehled_civil_2023!$O$6:$O$91) -> 359.3943299 | P13: =J13/SUMIF(Přehled_civil_2023!$C$6:$C$91,$A13,Přehled_civil_2023!$O$6:$O$91) -> 106.9072165 | Q13: =AVERAGEIF(Přehled_civil_2023!$C$6:$C$91,A13,Přehled_civil_2023!$S$6:$S$91) -> 11.54545455
A14: KS Brno | B14: 302 | C14: 199 | D14: 490 | E14: 7.23 | F14: 50.25 | G14: 3.633075 | H14: 43722 | I14: 44630 | J14: 18629 | K14: 102.0767577 | L14: 152.3545821 | M14: 142.7 | N14: =H14/SUMIF(Přehled_civil_2023!$C$6:$C$91,$A14,Přehled_civil_2023!$O$6:$O$91) -> 306.3910301 | O14: =I14/SUMIF(Přehled_civil_2023!$C$6:$C$91,$A14,Přehled_civil_2023!$O$6:$O$91) -> 312.7540294 | P14: =J14/SUMIF(Přehled_civil_2023!$C$6:$C$91,$A14,Přehled_civil_2023!$O$6:$O$91) -> 130.5466013 | Q14: =AVERAGEIF(Přehled_civil_2023!$C$6:$C$91,A14,Přehled_civil_2023!$S$6:$S$91) -> 16.21428571
A15: KS Ostrava | B15: 255 | C15: 189 | D15: 386 | E15: 4.49 | F15: 44.37 | G15: 1.992213 | H15: 53802 | I15: 52646 | J15: 19433 | K15: 97.85138099 | L15: 134.7309387 | M15: 149.65 | N15: =H15/SUMIF(Přehled_civil_2023!$C$6:$C$91,$A15,Přehled_civil_2023!$O$6:$O$91) -> 359.5188774 | O15: =I15/SUMIF(Přehled_civil_2023!$C$6:$C$91,$A15,Přehled_civil_2023!$O$6:$O$91) -> 351.7941864 | P15: =J15/SUMIF(Přehled_civil_2023!$C$6:$C$91,$A15,Přehled_civil_2023!$O$6:$O$91) -> 129.8563314 | Q15: =AVERAGEIF(Přehled_civil_2023!$C$6:$C$91,A15,Přehled_civil_2023!$S$6:$S$91) -> 21.63636364

Sheet Databáze_civil
A1: Databáze pro grafy
A2: Civil - okresní soudy
F4: Délka řízení ve dnech | I4: Vyřizování věcí
B5: Pomocná prom. | C5: Rok | D5: Název soudu | E5: Nadřízený soud | F5: Průměr | G5: Medián | H5: Percentil 90 | I5: Obživa+nápad | J5: Vyřízeno | K5: Nevyřízeno | L5: Disposition time
A6: 1 | B6: =CONCATENATE(C6,D6) -> 2008Praha 1 | C6: 2008 | D6: Praha 1 | E6: MS Praha | F6: 551.602 | G6: 358 | H6: 1100 | I6: 22969 | J6: 20375 | K6: 6050 | L6: =K6/J6*365 -> 108.3803681
A7: 2 | B7: =CONCATENATE(C7,D7) -> 2008Praha 2 | C7: 2008 | D7: Praha 2 | E7: MS Praha | F7: 384.7048 | G7: 188 | H7: 976 | I7: 6030 | J7: 6166 | K7: 2912 | L7: =K7/J7*365 -> 172.3775543
A8: 3 | B8: 2008Praha 3 | C8: 2008 | D8: Praha 3 | E8: MS Praha | F8: 218.3995 | G8: 112 | H8: 343 | I8: 5956 | J8: 6093 | K8: 2092 | L8: 125.32086
A9: 4 | B9: 2008Praha 4 | C9: 2008 | D9: Praha 4 | E9: MS Praha | F9: 229.2477 | G9: 148 | H9: 354 | I9: 14981 | J9: 15630 | K9: 5188 | L9: 121.1529111
A10: 5 | B10: 2008Praha 5 | C10: 2008 | D10: Praha 5 | E10: MS Praha | F10: 189.9642 | G10: 85 | H10: 356 | I10: 11071 | J10: 11738 | K10: 5073 | L10: 157.7479128
A11: 6 | B11: 2008Praha 6 | C11: 2008 | D11: Praha 6 | E11: MS Praha | F11: 338.8777 | G11: 195 | H11: 603 | I11: 8717 | J11: 8829 | K11: 3222 | L11: 133.2008155
A12: 7 | B12: 2008Praha 7 | C12: 2008 | D12: Praha 7 | E12: MS Praha | F12: 518.7117 | G12: 290 | H12: 1421 | I12: 3600 | J12: 3419 | K12: 1598 | L12: 170.5966657
A13: 8 | B13: 2008Praha 8 | C13: 2008 | D13: Praha 8 | E13: MS Praha | F13: 340.8941 | G13: 165 | H13: 794 | I13: 11286 | J13: 11275 | K13: 3010 | L13: 97.44124169
A14: 9 | B14: 2008Praha 9 | C14: 2008 | D14: Praha 9 | E14: MS Praha | F14: 270.9836 | G14: 144 | H14: 495 | I14: 7877 | J14: 7895 | K14: 2308 | L14: 106.7029766
A15: 10 | B15: 2008Praha 10 | C15: 2008 | D15: Praha 10 | E15: MS Praha | F15: 255.4741 | G15: 176 | H15: 428 | I15: 11164 | J15: 11653 | K15: 3407 | L15: 106.7154381
A16: 11 | B16: 2008Beroun | C16: 2008 | D16: Beroun | E16: KS Praha | F16: 170.505 | G16: 113 | H16: 269 | I16: 2060 | J16: 1997 | K16: 644 | L16: 117.7065598
A17: 12 | B17: 2008Benešov | C17: 2008 | D17: Benešov | E17: KS Praha | F17: 216.5189 | G17: 150 | H17: 316 | I17: 2703 | J17: 2602 | K17: 1522 | L17: 213.501153
A18: 13 | B18: 2008Kladno | C18: 2008 | D18: Kladno | E18: KS Praha | F18: 188.1966 | G18: 131 | H18: 293 | I18: 3680 | J18: 3678 | K18: 1302 | L18: 129.2088091
A19: 14 | B19: 2008Kolín | C19: 2008 | D19: Kolín | E19: KS Praha | F19: 210.1236 | G19: 154 | H19: 294 | I19: 2922 | J19: 2937 | K19: 739 | L19: 91.84031324
A20: 15 | B20: 2008Kutná Hora | C20: 2008 | D20: Kutná Hora | E20: KS Praha | F20: 168.1533 | G20: 117 | H20: 241 | I20: 1465 | J20: 1478 | K20: 540 | L20: 133.3558863
A21: 16 | B21: 2008Mělník | C21: 2008 | D21: Mělník | E21: KS Praha | F21: 214.5679 | G21: 159 | H21: 361 | I21: 2875 | J21: 3031 | K21: 1275 | L21: 153.5384362
A22: 17 | B22: 2008Mladá Boleslav | C22: 2008 | D22: Mladá Boleslav | E22: KS Praha | F22: 156.4627 | G22: 113 | H22: 223 | I22: 3266 | J22: 3269 | K22: 564 | L22: 62.97338636
A23: 18 | B23: 2008Nymburk | C23: 2008 | D23: Nymburk | E23: KS Praha | F23: 215.9322 | G23: 165 | H23: 294 | I23: 1929 | J23: 1987 | K23: 614 | L23: 112.7881228
A24: 19 | B24: 2008Praha-Východ | C24: 2008 | D24: Praha-Východ | E24: KS Praha | F24: 225.94 | G24: 126 | H24: 453 | I24: 4573 | J24: 4430 | K24: 1339 | L24: 110.3239278
A25: 20 | B25: 2008Praha-Západ | C25: 2008 | D25: Praha-Západ | E25: KS Praha | F25: 244.8181 | G25: 129 | H25: 435 | I25: 6239 | J25: 6445 | K25: 979 | L25: 55.44375485
A26: 21 | B26: 2008Příbram | C26: 2008 | D26: Příbram | E26: KS Praha | F26: 163.2064 | G26: 112 | H26: 253 | I26: 2899 | J26: 2928 | K26: 644 | L26: 80.28005464
A27: 22 | B27: 2008Rakovník | C27: 2008 | D27: Rakovník | E27: KS Praha | F27: 187.1194 | G27: 109 | H27: 287 | I27: 1522 | J27: 1595 | K27: 395 | L27: 90.39184953
A28: 23 | B28: 2008České Budějovice | C28: 2008 | D28: České Budějovice | E28: KS Č. Budějovice | F28: 163.1707 | G28: 103 | H28: 223 | I28: 6997 | J28: 6284 | K28: 2192 | L28: 127.3201782
A29: 24 | B29: 2008Český Krumlov | C29: 2008 | D29: Český Krumlov | E29: KS Č. Budějovice | F29: 161.0061 | G29: 124 | H29: 209 | I29: 1687 | J29: 1686 | K29: 363 | L29: 78.58540925
A30: 25 | B30: 2008Jindřichův Hradec | C30: 2008 | D30: Jindřichův Hradec | E30: KS Č. Budějovice | F30: 296.7412 | G30: 175 | H30: 526 | I30: 1419 | J30: 1470 | K30: 303 | L30: 75.23469388
A31: 26 | B31: 2008Pelhřimov | C31: 2008 | D31: Pelhřimov | E31: KS Č. Budějovice | F31: 191.5337 | G31: 130 | H31: 290 | I31: 965 | J31: 1031 | K31: 192 | L31: 67.9728419
A32: 27 | B32: 2008Písek | C32: 2008 | D32: Písek | E32: KS Č. Budějovice | F32: 217.1063 | G32: 142 | H32: 319 | I32: 1430 | J32: 1518 | K32: 412 | L32: 99.06455863
A33: 28 | B33: 2008Prachatice | C33: 2008 | D33: Prachatice | E33: KS Č. Budějovice | F33: 183.7427 | G33: 134 | H33: 251 | I33: 1276 | J33: 1329 | K33: 262 | L33: 71.95635816
A34: 29 | B34: 2008Strakonice | C34: 2008 | D34: Strakonice | E34: KS Č. Budějovice | F34: 211.9592 | G34: 134 | H34: 303.5 | I34: 1079 | J34: 1048 | K34: 261 | L34: 90.90171756
A35: 30 | B35: 2008Tábor | C35: 2008 | D35: Tábor | E35: KS Č. Budějovice | F35: 178.3026 | G35: 133 | H35: 232 | I35: 2231 | J35: 2156 | K35: 596 | L35: 100.8998145
A36: 31 | B36: 2008Domažlice | C36: 2008 | D36: Domažlice | E36: KS Plzeň | F36: 181.0304 | G36: 141 | H36: 269 | I36: 1227 | J36: 1229 | K36: 289 | L36: 85.82994304
A37: 32 | B37: 2008Cheb | C37: 2008 | D37: Cheb | E37: KS Plzeň | F37: 216.8883 | G37: 125 | H37: 348 | I37: 3322 | J37: 3275 | K37: 971 | L37: 108.2183206
A38: 33 | B38: 2008Karlovy Vary | C38: 2008 | D38: Karlovy Vary | E38: KS Plzeň | F38: 160.6055 | G38: 104 | H38: 247 | I38: 5417 | J38: 5184 | K38: 1491 | L38: 104.9797454
A39: 34 | B39: 2008Klatovy | C39: 2008 | D39: Klatovy | E39: KS Plzeň | F39: 186.9944 | G39: 112 | H39: 249.5 | I39: 2037 | J39: 2003 | K39: 567 | L39: 103.3225162
A40: 35 | B40: 2008Plzeň-jih | C40: 2008 | D40: Plzeň-jih | E40: KS Plzeň | F40: 220.0175 | G40: 157 | H40: 355 | I40: 1121 | J40: 1030 | K40: 409 | L40: 144.9368932
A41: 36 | B41: 2008Plzeň-Město | C41: 2008 | D41: Plzeň-Město | E41: KS Plzeň | F41: 223.7537 | G41: 147 | H41: 344 | I41: 7421 | J41: 7096 | K41: 2525 | L41: 129.8795096
A42: 37 | B42: 2008Plzeň-sever | C42: 2008 | D42: Plzeň-sever | E42: KS Plzeň | F42: 196.1088 | G42: 131 | H42: 327 | I42: 2166 | J42: 2268 | K42: 591 | L42: 95.11243386
A43: 38 | B43: 2008Rokycany | C43: 2008 | D43: Rokycany | E43: KS Plzeň | F43: 173.925 | G43: 129 | H43: 237 | I43: 980 | J43: 966 | K43: 278 | L43: 105.0414079
A44: 39 | B44: 2008Sokolov | C44: 2008 | D44: Sokolov | E44: KS Plzeň | F44: 175.8941 | G44: 125 | H44: 237 | I44: 3463 | J44: 3547 | K44: 777 | L44: 79.9563011
A45: 40 | B45: 2008Tachov | C45: 2008 | D45: Tachov | E45: KS Plzeň | F45: 182.5931 | G45: 135 | H45: 251 | I45: 1403 | J45: 1352 | K45: 505 | L45: 136.3350592
A46: 41 | B46: 2008Česká Lípa | C46: 2008 | D46: Česká Lípa | E46: KS Ústí n. Labem | F46: 244.8005 | G46: 175 | H46: 337 | I46: 3226 | J46: 3571 | K46: 1211 | L46: 123.7790535
A47: 42 | B47: 2008Děčín | C47: 2008 | D47: Děčín | E47: KS Ústí n. Labem | F47: 273.4179 | G47: 176 | H47: 385 | I47: 5436 | J47: 5037 | K47: 2989 | L47: 216.5942029
A48: 43 | B48: 2008Chomutov | C48: 2008 | D48: Chomutov | E48: KS Ústí n. Labem | F48: 433.1911 | G48: 275 | H48: 685 | I48: 4606 | J48: 5283 | K48: 8884 | L48: 613.7914064
A49: 44 | B49: 2008Jablonec nad Nisou | C49: 2008 | D49: Jablonec nad Nisou | E49: KS Ústí n. Labem | F49: 214.1117 | G49: 143 | H49: 280 | I49: 2168 | J49: 2312 | K49: 2084 | L49: 329.0051903
A50: 45 | B50: 2008Liberec | C50: 2008 | D50: Liberec | E50: KS Ústí n. Labem | F50: 360.8352 | G50: 267 | H50: 557.5 | I50: 7111 | J50: 8629 | K50: 6307 | L50: 266.7812029
A51: 46 | B51: 2008Litoměřice | C51: 2008 | D51: Litoměřice | E51: KS Ústí n. Labem | F51: 345.3093 | G51: 269 | H51: 484 | I51: 3306 | J51: 3448 | K51: 1508 | L51: 159.6345708
A52: 47 | B52: 2008Louny | C52: 2008 | D52: Louny | E52: KS Ústí n. Labem | F52: 312.1626 | G52: 220 | H52: 443 | I52: 2295 | J52: 2513 | K52: 1794 | L52: 260.569041
A53: 48 | B53: 2008Most | C53: 2008 | D53: Most | E53: KS Ústí n. Labem | F53: 216.0978 | G53: 150 | H53: 307 | I53: 7623 | J53: 6879 | K53: 4294 | L53: 227.8398023
A54: 49 | B54: 2008Teplice | C54: 2008 | D54: Teplice | E54: KS Ústí n. Labem | F54: 234.3176 | G54: 171 | H54: 351 | I54: 4008 | J54: 4587 | K54: 1913 | L54: 152.2225856
A55: 50 | B55: 2008Ústí nad Labem | C55: 2008 | D55: Ústí nad Labem | E55: KS Ústí n. Labem | F55: 276.716 | G55: 168 | H55: 416 | I55: 5571 | J55: 6987 | K55: 3810 | L55: 199.0339201
A56: 51 | B56: 2008Havlíčkův Brod | C56: 2008 | D56: Havlíčkův Brod | E56: KS Hr. Králové | F56: 240.0165 | G56: 147 | H56: 357 | I56: 1400 | J56: 1414 | K56: 403 | L56: 104.0275813
A57: 52 | B57: 2008Hradec Králové | C57: 2008 | D57: Hradec Králové | E57: KS Hr. Králové | F57: 218.0672 | G57: 155.5 | H57: 309 | I57: 3699 | J57: 3749 | K57: 1691 | L57: 164.6345692
A58: 53 | B58: 2008Chrudim | C58: 2008 | D58: Chrudim | E58: KS Hr. Králové | F58: 290.0423 | G58: 199 | H58: 512 | I58: 1858 | J58: 1920 | K58: 724 | L58: 137.6354167
A59: 54 | B59: 2008Jičín | C59: 2008 | D59: Jičín | E59: KS Hr. Králové | F59: 302.0504 | G59: 201 | H59: 505 | I59: 1301 | J59: 1275 | K59: 431 | L59: 123.3843137
A60: 55 | B60: 2008Náchod | C60: 2008 | D60: Náchod | E60: KS Hr. Králové | F60: 172.6622 | G60: 133 | H60: 203 | I60: 1900 | J60: 1998 | K60: 324 | L60: 59.18918919
A61: 56 | B61: 2008Pardubice | C61: 2008 | D61: Pardubice | E61: KS Hr. Králové | F61: 252.7771 | G61: 169 | H61: 395 | I61: 4974 | J61: 5394 | K61: 1499 | L61: 101.4340007
A62: 57 | B62: 2008Rychnov nad Kněžnou | C62: 2008 | D62: Rychnov nad Kněžnou | E62: KS Hr. Králové | F62: 194.802 | G62: 123 | H62: 238 | I62: 1432 | J62: 1674 | K62: 681 | L62: 148.4856631
A63: 58 | B63: 2008Semily | C63: 2008 | D63: Semily | E63: KS Hr. Králové | F63: 369.8106 | G63: 224.5 | H63: 755.5 | I63: 1366 | J63: 1375 | K63: 553 | L63: 146.7963636
A64: 59 | B64: 2008Svitavy | C64: 2008 | D64: Svitavy | E64: KS Hr. Králové | F64: 194.2453 | G64: 125 | H64: 308 | I64: 1638 | J64: 1641 | K64: 374 | L64: 83.18708105
A65: 60 | B65: 2008Trutnov | C65: 2008 | D65: Trutnov | E65: KS Hr. Králové | F65: 164.2181 | G65: 118 | H65: 203 | I65: 2708 | J65: 2789 | K65: 890 | L65: 116.4754392
A66: 61 | B66: 2008Ústí nad Orlicí | C66: 2008 | D66: Ústí nad Orlicí | E66: KS Hr. Králové | F66: 260.3043 | G66: 204 | H66: 426 | I66: 2012 | J66: 2070 | K66: 499 | L66: 87.98792271
A67: 62 | B67: 2008Blansko | C67: 2008 | D67: Blansko | E67: KS Brno | F67: 251.575 | G67: 159 | H67: 377.5 | I67: 2143 | J67: 2123 | K67: 1118 | L67: 192.2138483
A68: 63 | B68: 2008Brno-město | C68: 2008 | D68: Brno-město | E68: KS Brno | F68: 406.9978 | G68: 272 | H68: 665 | I68: 15813 | J68: 16861 | K68: 12012 | L68: 260.0308404
A69: 64 | B69: 2008Brno-venkov | C69: 2008 | D69: Brno-venkov | E69: KS Brno | F69: 398.0019 | G69: 263 | H69: 670 | I69: 3895 | J69: 4147 | K69: 2684 | L69: 236.2334218
A70: 65 | B70: 2008Břeclav | C70: 2008 | D70: Břeclav | E70: KS Brno | F70: 464.3049 | G70: 293 | H70: 972 | I70: 2444 | J70: 2448 | K70: 2634 | L70: 392.7328431
A71: 66 | B71: =CONCATENATE(C71,D71) -> 2008Hodonín | C71: 2008 | D71: Hodonín | E71: KS Brno | F71: 363.862 | G71: 231 | H71: 567 | I71: 2877 | J71: 2610 | K71: 2627 | L71: =K71/J71*365 -> 367.3773946
A72: 67 | B72: 2008Jihlava | C72: 2008 | D72: Jihlava | E72: KS Brno | F72: 208.829 | G72: 157 | H72: 279 | I72: 2141 | J72: 2138 | K72: 952 | L72: 162.525725
A73: 68 | B73: 2008Kroměříž | C73: 2008 | D73: Kroměříž | E73: KS Brno | F73: 222.281 | G73: 141 | H73: 460 | I73: 2008 | J73: 2054 | K73: 599 | L73: 106.4435248
A74: 69 | B74: 2008Prostějov | C74: 2008 | D74: Prostějov | E74: KS Brno | F74: 313.7116 | G74: 216 | H74: 484 | I74: 2118 | J74: 2317 | K74: 1166 | L74: 183.6814847
A75: 70 | B75: 2008Třebíč | C75: 2008 | D75: Třebíč | E75: KS Brno | F75: 218.9682 | G75: 188 | H75: 307.5 | I75: 1856 | J75: 1903 | K75: 537 | L75: 102.9978981
A76: 71 | B76: 2008Uherské Hradiště | C76: 2008 | D76: Uherské Hradiště | E76: KS Brno | F76: 266.2216 | G76: 124 | H76: 547 | I76: 2250 | J76: 2299 | K76: 1875 | L76: 297.6837756
A77: 72 | B77: 2008Vyškov | C77: 2008 | D77: Vyškov | E77: KS Brno | F77: 364.1608 | G77: 197.5 | H77: 601 | I77: 1523 | J77: 1685 | K77: 1143 | L77: 247.5934718
A78: 73 | B78: 2008Zlín | C78: 2008 | D78: Zlín | E78: KS Brno | F78: 174.0014 | G78: 114 | H78: 322 | I78: 5214 | J78: 5898 | K78: 2040 | L78: 126.2461851
A79: 74 | B79: 2008Znojmo | C79: 2008 | D79: Znojmo | E79: KS Brno | F79: 249.7407 | G79: 140 | H79: 477 | I79: 2477 | J79: 2572 | K79: 1259 | L79: 178.6683515
A80: 75 | B80: 2008Žďár nad Sázavou | C80: 2008 | D80: Žďár nad Sázavou | E80: KS Brno | F80: 288.8743 | G80: 175 | H80: 505 | I80: 1886 | J80: 1813 | K80: 854 | L80: 171.9305019
A81: 76 | B81: 2008Bruntál | C81: 2008 | D81: Bruntál | E81: KS Ostrava | F81: 282.9279 | G81: 210 | H81: 471 | I81: 3042 | J81: 3730 | K81: 1523 | L81: 149.0335121
A82: 77 | B82: 2008Frýdek-Místek | C82: 2008 | D82: Frýdek-Místek | E82: KS Ostrava | F82: 307.5826 | G82: 207 | H82: 511 | I82: 5681 | J82: 6113 | K82: 2255 | L82: 134.643383
A83: 78 | B83: 2008Jeseník | C83: 2008 | D83: Jeseník | E83: KS Ostrava | F83: 243.9374 | G83: 172 | H83: 385 | I83: 890 | J83: 1050 | K83: 468 | L83: 162.6857143
A84: 79 | B84: 2008Karviná | C84: 2008 | D84: Karviná | E84: KS Ostrava | F84: 231.7343 | G84: 158 | H84: 372 | I84: 8444 | J84: 8815 | K84: 2461 | L84: 101.9018718
A85: 80 | B85: 2008Nový Jičín | C85: 2008 | D85: Nový Jičín | E85: KS Ostrava | F85: 199.1 | G85: 125 | H85: 327 | I85: 3617 | J85: 3768 | K85: 1096 | L85: 106.1677282
A86: 81 | B86: 2008Olomouc | C86: 2008 | D86: Olomouc | E86: KS Ostrava | F86: 281.4633 | G86: 133 | H86: 462 | I86: 6723 | J86: 7047 | K86: 1651 | L86: 85.51369377
A87: 82 | B87: 2008Opava | C87: 2008 | D87: Opava | E87: KS Ostrava | F87: 309.2804 | G87: 206 | H87: 553 | I87: 4415 | J87: 4264 | K87: 2162 | L87: 185.0680113
A88: 83 | B88: 2008Ostrava | C88: 2008 | D88: Ostrava | E88: KS Ostrava | F88: 269.3141 | G88: 197 | H88: 417 | I88: 16408 | J88: 15614 | K88: 8056 | L88: 188.3207378
A89: 84 | B89: 2008Přerov | C89: 2008 | D89: Přerov | E89: KS Ostrava | F89: 246.2423 | G89: 194 | H89: 357 | I89: 2833 | J89: 2928 | K89: 661 | L89: 82.39924863
A90: 85 | B90: 2008Šumperk | C90: 2008 | D90: Šumperk | E90: KS Ostrava | F90: 336.5008 | G90: 223 | H90: 602 | I90: 2533 | J90: 2711 | K90: 1103 | L90: 148.504242
A91: 86 | B91: 2008Vsetín | C91: 2008 | D91: Vsetín | E91: KS Ostrava | F91: 285.1615 | G91: 203 | H91: 440 | I91: 2585 | J91: 2673 | K91: 1272 | L91: 173.6924804
A92: 1 | B92: 2009Praha 1 | C92: 2009 | D92: Praha 1 | E92: MS Praha | F92: 285.1888 | G92: 167 | H92: 714 | I92: 23266 | J92: 23419 | K92: 5898 | L92: 91.92407874
A93: 2 | B93: 2009Praha 2 | C93: 2009 | D93: Praha 2 | E93: MS Praha | F93: 460.9917 | G93: 344 | H93: 1008 | I93: 7556 | J93: 6856 | K93: 3622 | L93: 192.8281797
A94: 3 | B94: 2009Praha 3 | C94: 2009 | D94: Praha 3 | E94: MS Praha | F94: 440.8734 | G94: 366 | H94: 921 | I94: 8704 | J94: 8128 | K94: 2669 | L94: 119.855438
A95: 4 | B95: 2009Praha 4 | C95: 2009 | D95: Praha 4 | E95: MS Praha | F95: 338.622 | G95: 226 | H95: 749 | I95: 17320 | J95: 17415 | K95: 5093 | L95: 106.7438989
A96: 5 | B96: 2009Praha 5 | C96: 2009 | D96: Praha 5 | E96: MS Praha | F96: 353.4887 | G96: 264 | H96: 646.5 | I96: 14222 | J96: 14568 | K96: 4729 | L96: 118.4846925
A97: 6 | B97: 2009Praha 6 | C97: 2009 | D97: Praha 6 | E97: MS Praha | F97: 355.1927 | G97: 238 | H97: 673 | I97: 9467 | J97: 9337 | K97: 3356 | L97: 131.1920317
A98: 7 | B98: 2009Praha 7 | C98: 2009 | D98: Praha 7 | E98: MS Praha | F98: 381.2334 | G98: 299 | H98: 764 | I98: 4162 | J98: 3807 | K98: 1953 | L98: 187.2458629
A99: 8 | B99: 2009Praha 8 | C99: 2009 | D99: Praha 8 | E99: MS Praha | F99: 346.766 | G99: 251 | H99: 703 | I99: 7171 | J99: 7539 | K99: 2644 | L99: 128.0090198
A100: 9 | B100: 2009Praha 9 | C100: 2009 | D100: Praha 9 | E100: MS Praha | F100: 237.5745 | G100: 152 | H100: 545 | I100: 8535 | J100: 7780 | K100: 3064 | L100: 143.748072
A101: 10 | B101: 2009Praha 10 | C101: 2009 | D101: Praha 10 | E101: MS Praha | F101: 266.2216 | G101: 178 | H101: 536 | I101: 9891 | J101: 10036 | K101: 3263 | L101: 118.6722798
A102: 11 | B102: 2009Beroun | C102: 2009 | D102: Beroun | E102: KS Praha | F102: 516.1652 | G102: 407 | H102: 1001 | I102: 3224 | J102: 3019 | K102: 838 | L102: 101.315005
A103: 12 | B103: 2009Benešov | C103: 2009 | D103: Benešov | E103: KS Praha | F103: 319.2513 | G103: 188 | H103: 506 | I103: 3560 | J103: 3960 | K103: 1123 | L103: 103.5088384
A104: 13 | B104: 2009Kladno | C104: 2009 | D104: Kladno | E104: KS Praha | F104: 269.5146 | G104: 198.5 | H104: 563 | I104: 6874 | J104: 6509 | K104: 1667 | L104: 93.47902904
A105: 14 | B105: 2009Kolín | C105: 2009 | D105: Kolín | E105: KS Praha | F105: 179.4805 | G105: 108 | H105: 365 | I105: 4623 | J105: 4301 | K105: 1061 | L105: 90.04068821
A106: 15 | B106: 2009Kutná Hora | C106: 2009 | D106: Kutná Hora | E106: KS Praha | F106: 248.1117 | G106: 153 | H106: 583 | I106: 2639 | J106: 2682 | K106: 498 | L106: 67.77404922
A107: 16 | B107: 2009Mělník | C107: 2009 | D107: Mělník | E107: KS Praha | F107: 329.1243 | G107: 274 | H107: 630 | I107: 4845 | J107: 4914 | K107: 1206 | L107: 89.57875458
A108: 17 | B108: 2009Mladá Boleslav | C108: 2009 | D108: Mladá Boleslav | E108: KS Praha | F108: 167.2909 | G108: 125 | H108: 319 | I108: 4826 | J108: 4736 | K108: 654 | L108: 50.40329392
A109: 18 | B109: 2009Nymburk | C109: 2009 | D109: Nymburk | E109: KS Praha | F109: 315.7142 | G109: 194 | H109: 616 | I109: 3387 | J109: 3451 | K109: 550 | L109: 58.17154448
A110: 19 | B110: 2009Praha-Východ | C110: 2009 | D110: Praha-Východ | E110: KS Praha | F110: 325.024 | G110: 240 | H110: 666 | I110: 6444 | J110: 6238 | K110: 1545 | L110: 90.40157102
A111: 20 | B111: 2009Praha-Západ | C111: 2009 | D111: Praha-Západ | E111: KS Praha | F111: 296.1911 | G111: 114 | H111: 844 | I111: 7937 | J111: 7416 | K111: 1501 | L111: 73.87607875
A112: 21 | B112: 2009Příbram | C112: 2009 | D112: Příbram | E112: KS Praha | F112: 188.4289 | G112: 153 | H112: 348 | I112: 4309 | J112: 4293 | K112: 660 | L112: 56.11460517
A113: 22 | B113: 2009Rakovník | C113: 2009 | D113: Rakovník | E113: KS Praha | F113: 206.3363 | G113: 132 | H113: 392 | I113: 2190 | J113: 2236 | K113: 349 | L113: 56.97003578
A114: 23 | B114: 2009České Budějovice | C114: 2009 | D114: České Budějovice | E114: KS Č. Budějovice | F114: 140.6955 | G114: 119 | H114: 189 | I114: 17974 | J114: 18654 | K114: 1512 | L114: 29.58507559
A115: 24 | B115: 2009Český Krumlov | C115: 2009 | D115: Český Krumlov | E115: KS Č. Budějovice | F115: 133.6988 | G115: 114 | H115: 241 | I115: 3815 | J115: 3778 | K115: 400 | L115: 38.6447856
A116: 25 | B116: 2009Jindřichův Hradec | C116: 2009 | D116: Jindřichův Hradec | E116: KS Č. Budějovice | F116: 183.836 | G116: 119 | H116: 388 | I116: 3407 | J116: 3330 | K116: 380 | L116: 41.65165165
A117: 26 | B117: 2009Pelhřimov | C117: 2009 | D117: Pelhřimov | E117: KS Č. Budějovice | F117: 142.6292 | G117: 90 | H117: 275 | I117: 2171 | J117: 2121 | K117: 242 | L117: 41.64545026
A118: 27 | B118: 2009Písek | C118: 2009 | D118: Písek | E118: KS Č. Budějovice | F118: 236.0239 | G118: 166 | H118: 489 | I118: 3088 | J118: 3140 | K118: 360 | L118: 41.84713376
A119: 28 | B119: 2009Prachatice | C119: 2009 | D119: Prachatice | E119: KS Č. Budějovice | F119: 160.2654 | G119: 116 | H119: 254 | I119: 2631 | J119: 2621 | K119: 271 | L119: 37.73941244
A120: 29 | B120: 2009Strakonice | C120: 2009 | D120: Strakonice | E120: KS Č. Budějovice | F120: 183.2384 | G120: 95 | H120: 406 | I120: 2678 | J120: 2577 | K120: 362 | L120: 51.27279783
A121: 30 | B121: 2009Tábor | C121: 2009 | D121: Tábor | E121: KS Č. Budějovice | F121: 154.0151 | G121: 105 | H121: 315 | I121: 5134 | J121: 4724 | K121: 1006 | L121: 77.72861981
A122: 31 | B122: 2009Domažlice | C122: 2009 | D122: Domažlice | E122: KS Plzeň | F122: 163.2296 | G122: 117.5 | H122: 337 | I122: 2711 | J122: 2572 | K122: 428 | L122: 60.73872473
A123: 32 | B123: 2009Cheb | C123: 2009 | D123: Cheb | E123: KS Plzeň | F123: 201.0295 | G123: 116 | H123: 403 | I123: 6515 | J123: 6120 | K123: 1366 | L123: 81.46895425
A124: 33 | B124: 2009Karlovy Vary | C124: 2009 | D124: Karlovy Vary | E124: KS Plzeň | F124: 220.3941 | G124: 130 | H124: 492 | I124: 7820 | J124: 7953 | K124: 1358 | L124: 62.32490884
A125: 34 | B125: 2009Klatovy | C125: 2009 | D125: Klatovy | E125: KS Plzeň | F125: 197.5641 | G125: 128 | H125: 364 | I125: 3567 | J125: 3461 | K125: 673 | L125: 70.97515169
A126: 35 | B126: 2009Plzeň-jih | C126: 2009 | D126: Plzeň-jih | E126: KS Plzeň | F126: 252.0945 | G126: 177 | H126: 568 | I126: 3197 | J126: 3059 | K126: 547 | L126: 65.26806146
A127: 36 | B127: 2009Plzeň-Město | C127: 2009 | D127: Plzeň-Město | E127: KS Plzeň | F127: 230.6091 | G127: 175 | H127: 430 | I127: 14978 | J127: 12371 | K127: 5132 | L127: 151.4170237
A128: 37 | B128: 2009Plzeň-sever | C128: 2009 | D128: Plzeň-sever | E128: KS Plzeň | F128: 213.2543 | G128: 144 | H128: 443 | I128: 4040 | J128: 3846 | K128: 785 | L128: 74.49947998
A129: 38 | B129: 2009Rokycany | C129: 2009 | D129: Rokycany | E129: KS Plzeň | F129: 138.3924 | G129: 92 | H129: 287 | I129: 2053 | J129: 1987 | K129: 345 | L129: 63.37443382
A130: 39 | B130: 2009Sokolov | C130: 2009 | D130: Sokolov | E130: KS Plzeň | F130: 189.948 | G130: 150 | H130: 335 | I130: 6384 | J130: 6184 | K130: 978 | L130: 57.72477361
A131: 40 | B131: 2009Tachov | C131: 2009 | D131: Tachov | E131: KS Plzeň | F131: 237.4009 | G131: 139.5 | H131: 554 | I131: 3229 | J131: 3046 | K131: 688 | L131: 82.4425476
A132: 41 | B132: 2009Česká Lípa | C132: 2009 | D132: Česká Lípa | E132: KS Ústí n. Labem | F132: 294.4953 | G132: 183 | H132: 564 | I132: 6126 | J132: 5918 | K132: 1420 | L132: 87.5802636
A133: 42 | B133: 2009Děčín | C133: 2009 | D133: Děčín | E133: KS Ústí n. Labem | F133: 521.2677 | G133: 418 | H133: 941 | I133: 8192 | J133: 8127 | K133: 3057 | L133: 137.2960502
A134: 43 | B134: 2009Chomutov | C134: 2009 | D134: Chomutov | E134: KS Ústí n. Labem | F134: 1178.027 | G134: 1074 | H134: 2176 | I134: 7684 | J134: 9009 | K134: 7559 | L134: 306.2531913
A135: 44 | B135: =CONCATENATE(C135,D135) -> 2009Jablonec nad Nisou | C135: 2009 | D135: Jablonec nad Nisou | E135: KS Ústí n. Labem | F135: 342.3181 | G135: 133 | H135: 835 | I135: 4631 | J135: 4586 | K135: 2129 | L135: =K135/J135*365 -> 169.4472307
A136: 45 | B136: 2009Liberec | C136: 2009 | D136: Liberec | E136: KS Ústí n. Labem | F136: 590.9448 | G136: 473 | H136: 1159 | I136: 10830 | J136: 11673 | K136: 5465 | L136: 170.8836632
A137: 46 | B137: 2009Litoměřice | C137: 2009 | D137: Litoměřice | E137: KS Ústí n. Labem | F137: 414.8787 | G137: 323.5 | H137: 728 | I137: 5769 | J137: 5350 | K137: 1928 | L137: 131.5364486
A138: 47 | B138: 2009Louny | C138: 2009 | D138: Louny | E138: KS Ústí n. Labem | F138: 573.905 | G138: 454 | H138: 1035 | I138: 4488 | J138: 3988 | K138: 2295 | L138: 210.0488967
A139: 48 | B139: 2009Most | C139: 2009 | D139: Most | E139: KS Ústí n. Labem | F139: 604.9469 | G139: 620 | H139: 1089 | I139: 19298 | J139: 14843 | K139: 8749 | L139: 215.1441757
A140: 49 | B140: 2009Teplice | C140: 2009 | D140: Teplice | E140: KS Ústí n. Labem | F140: 445.4712 | G140: 284 | H140: 898 | I140: 9066 | J140: 8056 | K140: 2923 | L140: 132.4348312
A141: 50 | B141: 2009Ústí nad Labem | C141: 2009 | D141: Ústí nad Labem | E141: KS Ústí n. Labem | F141: 555.9119 | G141: 455 | H141: 932 | I141: 16262 | J141: 13305 | K141: 6767 | L141: 185.6411124
A142: 51 | B142: 2009Havlíčkův Brod | C142: 2009 | D142: Havlíčkův Brod | E142: KS Hr. Králové | F142: 211.1374 | G142: 165 | H142: 392 | I142: 2615 | J142: 2612 | K142: 406 | L142: 56.73430322
A143: 52 | B143: 2009Hradec Králové | C143: 2009 | D143: Hradec Králové | E143: KS Hr. Králové | F143: 381.5563 | G143: 246 | H143: 732 | I143: 7173 | J143: 7237 | K143: 1627 | L143: 82.05817328
A144: 53 | B144: 2009Chrudim | C144: 2009 | D144: Chrudim | E144: KS Hr. Králové | F144: 352.7014 | G144: 175 | H144: 842 | I144: 3224 | J144: 2884 | K144: 1064 | L144: 134.6601942
A145: 54 | B145: 2009Jičín | C145: 2009 | D145: Jičín | E145: KS Hr. Králové | F145: 133.1633 | G145: 39 | H145: 298 | I145: 2701 | J145: 2598 | K145: 534 | L145: 75.02309469
A146: 55 | B146: 2009Náchod | C146: 2009 | D146: Náchod | E146: KS Hr. Králové | F146: 163.157 | G146: 104 | H146: 316 | I146: 3715 | J146: 3651 | K146: 388 | L146: 38.78937277
A147: 56 | B147: 2009Pardubice | C147: 2009 | D147: Pardubice | E147: KS Hr. Králové | F147: 236.6582 | G147: 151 | H147: 515 | I147: 8116 | J147: 7702 | K147: 1913 | L147: 90.6576214
A148: 57 | B148: 2009Rychnov nad Kněžnou | C148: 2009 | D148: Rychnov nad Kněžnou | E148: KS Hr. Králové | F148: 394.3161 | G148: 239 | H148: 882 | I148: 2415 | J148: 2551 | K148: 545 | L148: 77.97922383
A149: 58 | B149: 2009Semily | C149: 2009 | D149: Semily | E149: KS Hr. Králové | F149: 375.0883 | G149: 221.5 | H149: 760 | I149: 2316 | J149: 2141 | K149: 728 | L149: 124.1102289
A150: 59 | B150: 2009Svitavy | C150: 2009 | D150: Svitavy | E150: KS Hr. Králové | F150: 112.8229 | G150: 51 | H150: 251.5 | I150: 3157 | J150: 3049 | K150: 482 | L150: 57.70088554
A151: 60 | B151: 2009Trutnov | C151: 2009 | D151: Trutnov | E151: KS Hr. Králové | F151: 295.2268 | G151: 165.5 | H151: 602 | I151: 4667 | J151: 4687 | K151: 870 | L151: 67.7512268
A152: 61 | B152: 2009Ústí nad Orlicí | C152: 2009 | D152: Ústí nad Orlicí | E152: KS Hr. Králové | F152: 179.3126 | G152: 120 | H152: 391 | I152: 4288 | J152: 4036 | K152: 751 | L152: 67.91749257
A153: 62 | B153: 2009Blansko | C153: 2009 | D153: Blansko | E153: KS Brno | F153: 449.1277 | G153: 311 | H153: 832 | I153: 3468 | J153: 3604 | K153: 982 | L153: 99.45338513
A154: 63 | B154: 2009Brno-město | C154: 2009 | D154: Brno-město | E154: KS Brno | F154: 637.4904 | G154: 497 | H154: 1140 | I154: 29945 | J154: 25619 | K154: 16338 | L154: 232.7713806
A155: 64 | B155: 2009Brno-venkov | C155: 2009 | D155: Brno-venkov | E155: KS Brno | F155: 305.007 | G155: 196 | H155: 617 | I155: 6141 | J155: 6281 | K155: 2544 | L155: 147.8363318
A156: 65 | B156: 2009Břeclav | C156: 2009 | D156: Břeclav | E156: KS Brno | F156: 736.6242 | G156: 488 | H156: 1688 | I156: 4957 | J156: 4189 | K156: 3402 | L156: 296.4263547
A157: 66 | B157: 2009Hodonín | C157: 2009 | D157: Hodonín | E157: KS Brno | F157: 662.1442 | G157: 598 | H157: 1182 | I157: 6319 | J157: 5440 | K157: 3507 | L157: 235.3042279
A158: 67 | B158: 2009Jihlava | C158: 2009 | D158: Jihlava | E158: KS Brno | F158: 302.1816 | G158: 212.5 | H158: 523.5 | I158: 3701 | J158: 3538 | K158: 1115 | L158: 115.0296778
A159: 68 | B159: 2009Kroměříž | C159: 2009 | D159: Kroměříž | E159: KS Brno | F159: 306.6937 | G159: 171 | H159: 685 | I159: 3884 | J159: 3594 | K159: 889 | L159: 90.28519755
A160: 69 | B160: 2009Prostějov | C160: 2009 | D160: Prostějov | E160: KS Brno | F160: 548.0303 | G160: 402 | H160: 1059 | I160: 3841 | J160: 3658 | K160: 1349 | L160: 134.6049754
A161: 70 | B161: 2009Třebíč | C161: 2009 | D161: Třebíč | E161: KS Brno | F161: 290.6351 | G161: 180 | H161: 524 | I161: 3373 | J161: 3071 | K161: 839 | L161: 99.71833279
A162: 71 | B162: 2009Uherské Hradiště | C162: 2009 | D162: Uherské Hradiště | E162: KS Brno | F162: 506.4439 | G162: 337 | H162: 1183 | I162: 4475 | J162: 4235 | K162: 2115 | L162: 182.2845336
A163: 72 | B163: 2009Vyškov | C163: 2009 | D163: Vyškov | E163: KS Brno | F163: 468.5721 | G163: 244 | H163: 1130 | I163: 3209 | J163: 3029 | K163: 1323 | L163: 159.4239023
A164: 73 | B164: 2009Zlín | C164: 2009 | D164: Zlín | E164: KS Brno | F164: 343.0323 | G164: 203 | H164: 761 | I164: 7968 | J164: 7909 | K164: 2099 | L164: 96.86875711
A165: 74 | B165: 2009Znojmo | C165: 2009 | D165: Znojmo | E165: KS Brno | F165: 229.7793 | G165: 110 | H165: 500 | I165: 4897 | J165: 4581 | K165: 1575 | L165: 125.4911591
A166: 75 | B166: 2009Žďár nad Sázavou | C166: 2009 | D166: Žďár nad Sázavou | E166: KS Brno | F166: 403.9315 | G166: 210.5 | H166: 841 | I166: 3273 | J166: 3195 | K166: 932 | L166: 106.4726135
A167: 76 | B167: 2009Bruntál | C167: 2009 | D167: Bruntál | E167: KS Ostrava | F167: 277.4148 | G167: 176 | H167: 598 | I167: 5685 | J167: 5587 | K167: 1624 | L167: 106.096295
A168: 77 | B168: 2009Frýdek-Místek | C168: 2009 | D168: Frýdek-Místek | E168: KS Ostrava | F168: 376.5363 | G168: 235 | H168: 772.5 | I168: 8804 | J168: 8215 | K168: 2843 | L168: 126.3171029
A169: 78 | B169: 2009Jeseník | C169: 2009 | D169: Jeseník | E169: KS Ostrava | F169: 259.0045 | G169: 121 | H169: 590 | I169: 1718 | J169: 1657 | K169: 529 | L169: 116.5268558
A170: 79 | B170: 2009Karviná | C170: 2009 | D170: Karviná | E170: KS Ostrava | F170: 222.2015 | G170: 155 | H170: 447 | I170: 13054 | J170: 12981 | K170: 2534 | L170: 71.25105924
A171: 80 | B171: 2009Nový Jičín | C171: 2009 | D171: Nový Jičín | E171: KS Ostrava | F171: 260.3841 | G171: 168 | H171: 428 | I171: 6106 | J171: 6012 | K171: 1190 | L171: 72.24717232
A172: 81 | B172: 2009Olomouc | C172: 2009 | D172: Olomouc | E172: KS Ostrava | F172: 275.1808 | G172: 171 | H172: 478 | I172: 10098 | J172: 9878 | K172: 1871 | L172: 69.13494635
A173: 82 | B173: 2009Opava | C173: 2009 | D173: Opava | E173: KS Ostrava | F173: 382.0487 | G173: 250 | H173: 843 | I173: 5808 | J173: 6244 | K173: 1726 | L173: 100.8952594
A174: 83 | B174: 2009Ostrava | C174: 2009 | D174: Ostrava | E174: KS Ostrava | F174: 405.772 | G174: 362 | H174: 749 | I174: 25517 | J174: 23476 | K174: 10097 | L174: 156.9860709
A175: 84 | B175: 2009Přerov | C175: 2009 | D175: Přerov | E175: KS Ostrava | F175: 203.2433 | G175: 120 | H175: 390 | I175: 4635 | J175: 4515 | K175: 780 | L175: 63.05647841
A176: 85 | B176: 2009Šumperk | C176: 2009 | D176: Šumperk | E176: KS Ostrava | F176: 282.8158 | G176: 116 | H176: 692 | I176: 4447 | J176: 4184 | K176: 1366 | L176: 119.16587
A177: 86 | B177: 2009Vsetín | C177: 2009 | D177: Vsetín | E177: KS Ostrava | F177: 300.3215 | G177: 176 | H177: 666 | I177: 4027 | J177: 4170 | K177: 1129 | L177: 98.82134293
A178: 1 | B178: 2010Praha 1 | C178: 2010 | D178: Praha 1 | E178: MS Praha | F178: 284.5737 | G178: 167 | H178: 648 | I178: 31848 | J178: 31433 | K178: 6313 | L178: 73.3065568
A179: 2 | B179: 2010Praha 2 | C179: 2010 | D179: Praha 2 | E179: MS Praha | F179: 514.5104 | G179: 378 | H179: 1099 | I179: 6616 | J179: 7034 | K179: 3210 | L179: 166.5695195
A180: 3 | B180: 2010Praha 3 | C180: 2010 | D180: Praha 3 | E180: MS Praha | F180: 396.168 | G180: 291 | H180: 816 | I180: 6215 | J180: 6985 | K180: 1908 | L180: 99.70221904
A181: 4 | B181: 2010Praha 4 | C181: 2010 | D181: Praha 4 | E181: MS Praha | F181: 345.8405 | G181: 243 | H181: 807 | I181: 13270 | J181: 13511 | K181: 4853 | L181: 131.1039153
A182: 5 | B182: 2010Praha 5 | C182: 2010 | D182: Praha 5 | E182: MS Praha | F182: 335.7705 | G182: 265.5 | H182: 622 | I182: 11366 | J182: 11256 | K182: 4839 | L182: 156.9149787
A183: 6 | B183: 2010Praha 6 | C183: 2010 | D183: Praha 6 | E183: MS Praha | F183: 427.1794 | G183: 288 | H183: 818 | I183: 8312 | J183: 8628 | K183: 3050 | L183: 129.0275846
A184: 7 | B184: 2010Praha 7 | C184: 2010 | D184: Praha 7 | E184: MS Praha | F184: 402.819 | G184: 323 | H184: 785 | I184: 3338 | J184: 3610 | K184: 1678 | L184: 169.6592798
A185: 8 | B185: 2010Praha 8 | C185: 2010 | D185: Praha 8 | E185: MS Praha | F185: 358.7898 | G185: 321 | H185: 641 | I185: 5683 | J185: 5827 | K185: 2534 | L185: 158.7283336
A186: 9 | B186: 2010Praha 9 | C186: 2010 | D186: Praha 9 | E186: MS Praha | F186: 287.717 | G186: 246 | H186: 491 | I186: 6908 | J186: 6619 | K186: 3358 | L186: 185.1744977
A187: 10 | B187: 2010Praha 10 | C187: 2010 | D187: Praha 10 | E187: MS Praha | F187: 274.8774 | G187: 182 | H187: 544 | I187: 7699 | J187: 7507 | K187: 3456 | L187: 168.0351672
A188: 11 | B188: 2010Beroun | C188: 2010 | D188: Beroun | E188: KS Praha | F188: 451.7536 | G188: 358.5 | H188: 910 | I188: 3634 | J188: 3565 | K188: 907 | L188: 92.86255259
A189: 12 | B189: 2010Benešov | C189: 2010 | D189: Benešov | E189: KS Praha | F189: 253.5802 | G189: 189 | H189: 422 | I189: 2755 | J189: 2836 | K189: 1042 | L189: 134.1078984
A190: 13 | B190: 2010Kladno | C190: 2010 | D190: Kladno | E190: KS Praha | F190: 283.3812 | G190: 235 | H190: 607 | I190: 5571 | J190: 5754 | K190: 1484 | L190: 94.13625304
A191: 14 | B191: 2010Kolín | C191: 2010 | D191: Kolín | E191: KS Praha | F191: 208.1769 | G191: 174 | H191: 377 | I191: 3589 | J191: 3560 | K191: 1090 | L191: 111.755618
A192: 15 | B192: 2010Kutná Hora | C192: 2010 | D192: Kutná Hora | E192: KS Praha | F192: 236.4059 | G192: 157 | H192: 441 | I192: 2009 | J192: 2080 | K192: 427 | L192: 74.93028846
A193: 16 | B193: 2010Mělník | C193: 2010 | D193: Mělník | E193: KS Praha | F193: 268.8429 | G193: 211 | H193: 573 | I193: 3215 | J193: 3496 | K193: 926 | L193: 96.67906178
A194: 17 | B194: 2010Mladá Boleslav | C194: 2010 | D194: Mladá Boleslav | E194: KS Praha | F194: 148.9725 | G194: 115 | H194: 294 | I194: 3859 | J194: 3908 | K194: 605 | L194: 56.50588536
A195: 18 | B195: 2010Nymburk | C195: 2010 | D195: Nymburk | E195: KS Praha | F195: 245.2891 | G195: 196.5 | H195: 432 | I195: 2687 | J195: 2733 | K195: 504 | L195: 67.31064764
A196: 19 | B196: 2010Praha-Východ | C196: 2010 | D196: Praha-Východ | E196: KS Praha | F196: 313.1943 | G196: 230 | H196: 628.5 | I196: 4844 | J196: 5275 | K196: 1115 | L196: 77.15165877
A197: 20 | B197: 2010Praha-Západ | C197: 2010 | D197: Praha-Západ | E197: KS Praha | F197: 262.2825 | G197: 138 | H197: 696 | I197: 6444 | J197: 6731 | K197: 1227 | L197: 66.5361759
A198: 21 | B198: 2010Příbram | C198: 2010 | D198: Příbram | E198: KS Praha | F198: 196.1284 | G198: 173 | H198: 364.5 | I198: 3393 | J198: 3428 | K198: 625 | L198: 66.54754959
A199: 22 | B199: =CONCATENATE(C199,D199) -> 2010Rakovník | C199: 2010 | D199: Rakovník | E199: KS Praha | F199: 191.0446 | G199: 134 | H199: 372 | I199: 1653 | J199: 1713 | K199: 290 | L199: =K199/J199*365 -> 61.79217747
A200: 23 | B200: 2010České Budějovice | C200: 2010 | D200: České Budějovice | E200: KS Č. Budějovice | F200: 151.7279 | G200: 129 | H200: 214 | I200: 8729 | J200: 9079 | K200: 1162 | L200: 46.7154973
A201: 24 | B201: 2010Český Krumlov | C201: 2010 | D201: Český Krumlov | E201: KS Č. Budějovice | F201: 178.5684 | G201: 153 | H201: 288 | I201: 2572 | J201: 2610 | K201: 363 | L201: 50.76436782
... 1180 more rows

Sheet Přehled_opatro_2023
A1: Opatrovnická agenda
A2: Vybraná data za rok 2023
A3: Přehled všech okresních soudů
D4: Délka řízení ve dnech | G4: Vyřizování věcí | M4: Vyřizování věcí na soudce | P4: Omezená svéprávnost
B5: Název soudu | C5: Nadřízený soud | D5: Průměr | E5: Medián | F5: Percentil 90 | G5: Obživa+nápad* | H5: Vyřízeno* | I5: Nevyřízeno* | J5: Míra vyřizování | K5: Disposition time | L5: Počet soudců k 1.1. | M5: Obživa+nápad | N5: Vyřízeno | O5: Nevyřízeno | P5: Nezletilí | Q5: Nesvéprávní
A6: 1 | B6: Praha 1 | C6: MS Praha | D6: 199.4509 | E6: 120 | F6: 383 | G6: 225 | H6: 231 | I6: 69 | J6: =H6/G6*100 -> 102.6666667 | K6: =I6/H6*365 -> 109.025974 | L6: 1 | M6: =G6/$L6 -> 225 | N6: =H6/$L6 -> 231 | O6: 69 | P6: 331 | Q6: 47
A7: 2 | B7: Praha 2 | C7: MS Praha | D7: 110 | E7: 62 | F7: 251 | G7: 490 | H7: 475 | I7: 101 | J7: 96.93877551 | K7: =I7/H7*365 -> 77.61052632 | L7: 1.5 | M7: =G7/$L7 -> 326.6666667 | N7: =H7/$L7 -> 316.6666667 | O7: =I7/$L7 -> 67.33333333 | P7: 1155 | Q7: 119
A8: 3 | B8: Praha 3 | C8: MS Praha | D8: 114.3706 | E8: 86 | F8: 227 | G8: 840 | H8: 776 | I8: 240 | J8: 92.38095238 | K8: 112.8865979 | L8: 2 | M8: 420 | N8: 388 | O8: 120 | P8: 1644 | Q8: 184
A9: 4 | B9: Praha 4 | C9: MS Praha | D9: 136.7449 | E9: 71 | F9: 316 | G9: 3097 | H9: 3079 | I9: 928 | J9: 99.41879238 | K9: 110.0097434 | L9: 8.5 | M9: 364.3529412 | N9: 362.2352941 | O9: 109.1764706 | P9: 4333 | Q9: 694
A10: 5 | B10: Praha 5 | C10: MS Praha | D10: 111.4522 | E10: 62 | F10: 247 | G10: 1883 | H10: 1931 | I10: 447 | J10: 102.5491237 | K10: 84.49249094 | L10: 7.5 | M10: 251.0666667 | N10: 257.4666667 | O10: 59.6 | P10: 3467 | Q10: 376
A11: 6 | B11: Praha 6 | C11: MS Praha | D11: 121.4482 | E11: 64 | F11: 253 | G11: 1313 | H11: 1335 | I11: 343 | J11: 101.6755522 | K11: 93.77902622 | L11: 4.5 | M11: 291.7777778 | N11: 296.6666667 | O11: 76.22222222 | P11: 4178 | Q11: 495
A12: 7 | B12: Praha 7 | C12: MS Praha | D12: 147.5455 | E12: 84 | F12: 364 | G12: 345 | H12: 384 | I12: 104 | J12: 111.3043478 | K12: 98.85416667 | L12: 1 | M12: 345 | N12: 384 | O12: 104 | P12: 987 | Q12: 116
A13: 8 | B13: Praha 8 | C13: MS Praha | D13: 185.4621 | E13: 109 | F13: 478 | G13: 1267 | H13: 1355 | I13: 352 | J13: 106.9455406 | K13: 94.81918819 | L13: 4.5 | M13: 281.5555556 | N13: 301.1111111 | O13: 78.22222222 | P13: 2910 | Q13: 292
A14: 9 | B14: Praha 9 | C14: MS Praha | D14: 98.5051 | E14: 63 | F14: 192 | G14: 1856 | H14: 1774 | I14: 478 | J14: 95.58189655 | K14: 98.34836528 | L14: 6 | M14: 309.3333333 | N14: 295.6666667 | O14: 79.66666667 | P14: 6772 | Q14: 693
A15: 10 | B15: Praha 10 | C15: MS Praha | D15: 127.8674 | E15: 65 | F15: 274 | G15: 2050 | H15: 2052 | I15: 536 | J15: 100.097561 | K15: 95.3411306 | L15: 7 | M15: 292.8571429 | N15: 293.1428571 | O15: 76.57142857 | P15: 4388 | Q15: 475
A16: 11 | B16: Benešov | C16: KS Praha | D16: 81.07916 | E16: 52 | F16: 163 | G16: 1474 | H16: 1476 | I16: 315 | J16: 100.1356852 | K16: 77.89634146 | L16: 3.5 | M16: 421.1428571 | N16: 421.7142857 | O16: 90 | P16: 3240 | Q16: 588
A17: 12 | B17: Beroun | C17: KS Praha | D17: 80.03387 | E17: 51 | F17: 173 | G17: 1188 | H17: 1108 | I17: 316 | J17: 93.26599327 | K17: 104.0974729 | L17: 3 | M17: 396 | N17: 369.3333333 | O17: 105.3333333 | P17: 1670 | Q17: 250
A18: 13 | B18: Kladno | C18: KS Praha | D18: 92.74511 | E18: 61 | F18: 217 | G18: 2442 | H18: 2372 | I18: 561 | J18: 97.13349713 | K18: 86.32588533 | L18: 6.28 | M18: 388.8535032 | N18: 377.7070064 | O18: 89.33121019 | P18: 6124 | Q18: 1269
A19: 14 | B19: Kolín | C19: KS Praha | D19: 94.44131 | E19: 66 | F19: 197 | G19: 1826 | H19: 1858 | I19: 458 | J19: 101.7524644 | K19: 89.97308934 | L19: 4.5 | M19: 405.7777778 | N19: 412.8888889 | O19: 101.7777778 | P19: 3731 | Q19: 532
A20: 15 | B20: Kutná Hora | C20: KS Praha | D20: 71.52464 | E20: 43 | F20: 171 | G20: 1199 | H20: 1218 | I20: 130 | J20: 101.5846539 | K20: 38.95730706 | L20: 2.45 | M20: 489.3877551 | N20: 497.1428571 | O20: 53.06122449 | P20: 1961 | Q20: 228
A21: 16 | B21: Mělník | C21: KS Praha | D21: 77.55652 | E21: 51 | F21: 165.5 | G21: 1592 | H21: 1639 | I21: 260 | J21: 102.9522613 | K21: 57.90115924 | L21: 3 | M21: 530.6666667 | N21: 546.3333333 | O21: 86.66666667 | P21: 2942 | Q21: 370
A22: 17 | B22: Mladá Boleslav | C22: KS Praha | D22: 72.38329 | E22: 44 | F22: 164 | G22: 1993 | H22: 1944 | I22: 348 | J22: 97.54139488 | K22: 65.33950617 | L22: 4 | M22: 498.25 | N22: 486 | O22: 87 | P22: 4125 | Q22: 591
A23: 18 | B23: Nymburk | C23: KS Praha | D23: 80.33064 | E23: 43 | F23: 189 | G23: 1413 | H23: 1421 | I23: 225 | J23: 100.5661713 | K23: 57.79380718 | L23: 3.3 | M23: 428.1818182 | N23: 430.6060606 | O23: 68.18181818 | P23: 2602 | Q23: 385
A24: 19 | B24: Praha-východ | C24: KS Praha | D24: 140.0198 | E24: 89 | F24: 292 | G24: 2347 | H24: 2198 | I24: 803 | J24: 93.65146996 | K24: 133.3462238 | L24: 5 | M24: 469.4 | N24: 439.6 | O24: 160.6 | P24: 6222 | Q24: 504
A25: 20 | B25: Praha-západ | C25: KS Praha | D25: 102.9944 | E25: 60 | F25: 221 | G25: 2051 | H25: 2005 | I25: 517 | J25: 97.75719161 | K25: 94.11720698 | L25: 5.5 | M25: 372.9090909 | N25: 364.5454545 | O25: 94 | P25: 5793 | Q25: 344
A26: 21 | B26: Příbram | C26: KS Praha | D26: 80.33208 | E26: 49 | F26: 174 | G26: 1837 | H26: 1907 | I26: 279 | J26: 103.8105607 | K26: 53.40062926 | L26: 5.85 | M26: 314.017094 | N26: 325.982906 | O26: 47.69230769 | P26: 3058 | Q26: 486
A27: 22 | B27: Rakovník | C27: KS Praha | D27: 93.01302 | E27: 61 | F27: 216 | G27: 836 | H27: 884 | I27: 160 | J27: 105.7416268 | K27: 66.06334842 | L27: 3.5 | M27: 238.8571429 | N27: 252.5714286 | O27: 45.71428571 | P27: 2022 | Q27: 314
A28: 23 | B28: České Budějovice | C28: KS Č. Budějovice | D28: 105.3843 | E28: 70 | F28: 231 | G28: 2387 | H28: 2304 | I28: 676 | J28: 96.52283201 | K28: 107.0920139 | L28: 7.9 | M28: 302.1518987 | N28: 291.6455696 | O28: 85.56962025 | P28: 4528 | Q28: 706
A29: 24 | B29: Český Krumlov | C29: KS Č. Budějovice | D29: 79.5094 | E29: 49 | F29: 172 | G29: 774 | H29: 815 | I29: 128 | J29: 105.2971576 | K29: 57.32515337 | L29: 2.4 | M29: 322.5 | N29: 339.5833333 | O29: 53.33333333 | P29: 2075 | Q29: 258
A30: 25 | B30: Jindřichův Hradec | C30: KS Č. Budějovice | D30: 60.80138 | E30: 43 | F30: 102 | G30: 1253 | H30: 1268 | I30: 179 | J30: 101.1971269 | K30: 51.52602524 | L30: 2.5 | M30: 501.2 | N30: 507.2 | O30: 71.6 | P30: 2808 | Q30: 682
A31: 26 | B31: Pelhřimov | C31: KS Č. Budějovice | D31: 76.49271 | E31: 60 | F31: 142 | G31: 902 | H31: 919 | I31: 136 | J31: 101.8847007 | K31: 54.01523395 | L31: 2 | M31: 451 | N31: 459.5 | O31: 68 | P31: 2185 | Q31: 510
A32: 27 | B32: Písek | C32: KS Č. Budějovice | D32: 88.10722 | E32: 55 | F32: 208 | G32: 974 | H32: 929 | I32: 239 | J32: 95.3798768 | K32: 93.90204521 | L32: 2.5 | M32: 389.6 | N32: 371.6 | O32: 95.6 | P32: 1647 | Q32: 527
A33: 28 | B33: Prachatice | C33: KS Č. Budějovice | D33: 83.76308 | E33: 55 | F33: 170 | G33: 754 | H33: 799 | I33: 135 | J33: 105.9681698 | K33: 61.67083855 | L33: 1.6 | M33: 471.25 | N33: 499.375 | O33: 84.375 | P33: 1834 | Q33: 302
A34: 29 | B34: Strakonice | C34: KS Č. Budějovice | D34: 76.95535 | E34: 56 | F34: 142 | G34: 1058 | H34: 1058 | I34: 222 | J34: 100 | K34: 76.5879017 | L34: 2 | M34: 529 | N34: 529 | O34: 111 | P34: 2576 | Q34: 219
A35: 30 | B35: Tábor | C35: KS Č. Budějovice | D35: 92.04369 | E35: 56 | F35: 219 | G35: 1200 | H35: 1154 | I35: 291 | J35: 96.16666667 | K35: 92.0407279 | L35: 2.1 | M35: 571.4285714 | N35: 549.5238095 | O35: 138.5714286 | P35: 2071 | Q35: 287
A36: 31 | B36: Domažlice | C36: KS Plzeň | D36: 51.47414 | E36: 37 | F36: 110 | G36: 1021 | H36: 1062 | I36: 106 | J36: 104.0156709 | K36: 36.43126177 | L36: 2 | M36: 510.5 | N36: 531 | O36: 53 | P36: 2401 | Q36: 381
A37: 32 | B37: Cheb | C37: KS Plzeň | D37: 144.483 | E37: 112 | F37: 285 | G37: 1339 | H37: 1293 | I37: 529 | J37: 96.56460045 | K37: 149.3310131 | L37: 2.55 | M37: 525.0980392 | N37: 507.0588235 | O37: 207.4509804 | P37: 3114 | Q37: 477
A38: 33 | B38: Karlovy Vary | C38: KS Plzeň | D38: 93.20837 | E38: 60 | F38: 180 | G38: 1797 | H38: 1754 | I38: 426 | J38: 97.60712298 | K38: 88.64880274 | L38: 5 | M38: 359.4 | N38: 350.8 | O38: 85.2 | P38: 3667 | Q38: 596
A39: 34 | B39: Klatovy | C39: KS Plzeň | D39: 115.4042 | E39: 66.5 | F39: 252 | G39: 1211 | H39: 1252 | I39: 259 | J39: 103.3856317 | K39: 75.5071885 | L39: 2.8 | M39: 432.5 | N39: 447.1428571 | O39: 92.5 | P39: 2505 | Q39: 228
A40: 35 | B40: Plzeň-jih | C40: KS Plzeň | D40: 108.6674 | E40: 77 | F40: 227 | G40: 1391 | H40: 1322 | I40: 453 | J40: 95.0395399 | K40: 125.0718608 | L40: 2.7 | M40: 515.1851852 | N40: 489.6296296 | O40: 167.7777778 | P40: 2449 | Q40: 605
A41: 36 | B41: Plzeň-město | C41: KS Plzeň | D41: 117.4202 | E41: 74 | F41: 241 | G41: 2480 | H41: 2340 | I41: 841 | J41: 94.35483871 | K41: 131.1816239 | L41: 5.25 | M41: 472.3809524 | N41: 445.7142857 | O41: 160.1904762 | P41: 6480 | Q41: 635
A42: 37 | B42: Plzeň-sever | C42: KS Plzeň | D42: 149.9052 | E42: 129 | F42: 269 | G42: 1145 | H42: 1074 | I42: 447 | J42: 93.79912664 | K42: 151.9134078 | L42: 3 | M42: 381.6666667 | N42: 358 | O42: 149 | P42: 2253 | Q42: 304
A43: 38 | B43: Rokycany | C43: KS Plzeň | D43: 105.5169 | E43: 82 | F43: 213 | G43: 757 | H43: 712 | I43: 219 | J43: 94.05548217 | K43: 112.2682584 | L43: 1.1 | M43: 688.1818182 | N43: 647.2727273 | O43: 199.0909091 | P43: 1796 | Q43: 293
A44: 39 | B44: Sokolov | C44: KS Plzeň | D44: 98.26773 | E44: 70 | F44: 203 | G44: 1482 | H44: 1510 | I44: 336 | J44: 101.8893387 | K44: 81.21854305 | L44: 4.2 | M44: 352.8571429 | N44: 359.5238095 | O44: 80 | P44: 3155 | Q44: 289
A45: 40 | B45: Tachov | C45: KS Plzeň | D45: 76.3093 | E45: 43 | F45: 176 | G45: 859 | H45: 819 | I45: 165 | J45: 95.34342258 | K45: 73.53479853 | L45: 2 | M45: 429.5 | N45: 409.5 | O45: 82.5 | P45: 1785 | Q45: 260
A46: 41 | B46: Česká Lípa | C46: KS Ústí n. Labem | D46: 87.91842 | E46: 62 | F46: 169 | G46: 1867 | H46: 1976 | I46: 313 | J46: 105.8382432 | K46: 57.81629555 | L46: 4.2 | M46: 444.5238095 | N46: 470.4761905 | O46: 74.52380952 | P46: 3382 | Q46: 432
A47: 42 | B47: Děčín | C47: KS Ústí n. Labem | D47: 143.431 | E47: 91 | F47: 296 | G47: 2823 | H47: 2629 | I47: 1067 | J47: 93.12787814 | K47: 148.1380753 | L47: 6.3 | M47: 448.0952381 | N47: 417.3015873 | O47: 169.3650794 | P47: 3933 | Q47: 1310
A48: 43 | B48: Chomutov | C48: KS Ústí n. Labem | D48: 97.73849 | E48: 55 | F48: 230 | G48: 2145 | H48: 2231 | I48: 476 | J48: 104.009324 | K48: 77.8753922 | L48: 5 | M48: 429 | N48: 446.2 | O48: 95.2 | P48: 3465 | Q48: 919
A49: 44 | B49: Jablonec nad Nisou | C49: KS Ústí n. Labem | D49: 76.37582 | E49: 50 | F49: 166.5 | G49: 1082 | H49: 1091 | I49: 210 | J49: 100.831793 | K49: 70.25664528 | L49: 2.67 | M49: 405.2434457 | N49: 408.6142322 | O49: 78.65168539 | P49: 2578 | Q49: 439
A50: 45 | B50: Liberec | C50: KS Ústí n. Labem | D50: 141.4644 | E50: 101 | F50: 272 | G50: 2219 | H50: 2294 | I50: 794 | J50: 103.3799009 | K50: 126.3339146 | L50: 5 | M50: 443.8 | N50: 458.8 | O50: 158.8 | P50: 7141 | Q50: 681
A51: 46 | B51: Litoměřice | C51: KS Ústí n. Labem | D51: 92.24874 | E51: 61 | F51: 174 | G51: 1899 | H51: 1873 | I51: 454 | J51: 98.63085835 | K51: 88.47303791 | L51: 4.8 | M51: 395.625 | N51: 390.2083333 | O51: 94.58333333 | P51: 3743 | Q51: 855
A52: 47 | B52: Louny | C52: KS Ústí n. Labem | D52: 138.9302 | E52: 109 | F52: 255 | G52: 1193 | H52: 1282 | I52: 340 | J52: 107.4601844 | K52: 96.80187207 | L52: 3.4 | M52: 350.8823529 | N52: 377.0588235 | O52: 100 | P52: 3198 | Q52: 232
A53: 48 | B53: Most | C53: KS Ústí n. Labem | D53: 133.3968 | E53: 87 | F53: 258 | G53: 2028 | H53: 1914 | I53: 722 | J53: 94.37869822 | K53: 137.6854754 | L53: 6 | M53: 338 | N53: 319 | O53: 120.3333333 | P53: 4667 | Q53: 527
A54: 49 | B54: Teplice | C54: KS Ústí n. Labem | D54: 86.39989 | E54: 53 | F54: 173 | G54: 2004 | H54: 1945 | I54: 440 | J54: 97.05588822 | K54: 82.57069409 | L54: 6.5 | M54: 308.3076923 | N54: 299.2307692 | O54: 67.69230769 | P54: 4229 | Q54: 419
A55: 50 | B55: Ústí nad Labem | C55: KS Ústí n. Labem | D55: 80.67981 | E55: 49 | F55: 159 | G55: 2179 | H55: 2109 | I55: 518 | J55: 96.78751721 | K55: 89.64912281 | L55: 5 | M55: 435.8 | N55: 421.8 | O55: 103.6 | P55: 5412 | Q55: 608
A56: 51 | B56: Havlíčkův Brod | C56: KS Hr. Králové | D56: 105.3674 | E56: 58 | F56: 240 | G56: 1270 | H56: 1212 | I56: 384 | J56: 95.43307087 | K56: 115.6435644 | L56: 2.8 | M56: 453.5714286 | N56: 432.8571429 | O56: 137.1428571 | P56: 2143 | Q56: 520
A57: 52 | B57: Hradec Králové | C57: KS Hr. Králové | D57: 98.79897 | E57: 68 | F57: 196 | G57: 2720 | H57: 2178 | I57: 1021 | J57: 80.07352941 | K57: 171.1042241 | L57: 7 | M57: 388.5714286 | N57: 311.1428571 | O57: 145.8571429 | P57: 6159 | Q57: 689
A58: 53 | B58: Chrudim | C58: KS Hr. Králové | D58: 132.0846 | E58: 89 | F58: 304 | G58: 1290 | H58: 1136 | I58: 549 | J58: 88.0620155 | K58: 176.3952465 | L58: 3.35 | M58: 385.0746269 | N58: 339.1044776 | O58: 163.880597 | P58: 2217 | Q58: 906
A59: 54 | B59: Jičín | C59: KS Hr. Králové | D59: 155.9148 | E59: 118 | F59: 299 | G59: 980 | H59: 873 | I59: 379 | J59: 89.08163265 | K59: 158.4593356 | L59: 2.5 | M59: 392 | N59: 349.2 | O59: 151.6 | P59: 1633 | Q59: 443
A60: 55 | B60: Náchod | C60: KS Hr. Králové | D60: 99.93921 | E60: 69 | F60: 207 | G60: 1641 | H60: 1688 | I60: 362 | J60: 102.8641073 | K60: 78.27606635 | L60: 4.6 | M60: 356.7391304 | N60: 366.9565217 | O60: 78.69565217 | P60: 3737 | Q60: 542
A61: 56 | B61: Pardubice | C61: KS Hr. Králové | D61: 86.38113 | E61: 52 | F61: 188 | G61: 1896 | H61: 1825 | I61: 461 | J61: 96.25527426 | K61: 92.2 | L61: 5 | M61: 379.2 | N61: 365 | O61: 92.2 | P61: 5893 | Q61: 485
A62: 57 | B62: Rychnov nad Kněžnou | C62: KS Hr. Králové | D62: 126.0887 | E62: 92 | F62: 271 | G62: 1133 | H62: 1141 | I62: 372 | J62: 100.70609 | K62: 119.0008764 | L62: 3 | M62: 377.6666667 | N62: 380.3333333 | O62: 124 | P62: 1778 | Q62: 679
A63: 58 | B63: Semily | C63: KS Hr. Králové | D63: 136.9186 | E63: 72 | F63: 281 | G63: 740 | H63: 821 | I63: 244 | J63: 110.9459459 | K63: 108.4774665 | L63: 3 | M63: 246.6666667 | N63: 273.6666667 | O63: 81.33333333 | P63: 1432 | Q63: 170
A64: 59 | B64: Svitavy | C64: KS Hr. Králové | D64: 55.98315 | E64: 32 | F64: 89 | G64: 1291 | H64: 1268 | I64: 182 | J64: 98.21843532 | K64: 52.38958991 | L64: 3 | M64: 430.3333333 | N64: 422.6666667 | O64: 60.66666667 | P64: 2994 | Q64: 543
A65: 60 | B65: Trutnov | C65: KS Hr. Králové | D65: 103.7384 | E65: 69 | F65: 223 | G65: 1873 | H65: 1945 | I65: 503 | J65: 103.8441004 | K65: 94.3933162 | L65: 3.7 | M65: 506.2162162 | N65: 525.6756757 | O65: 135.9459459 | P65: 2907 | Q65: 515
A66: 61 | B66: Ústí nad Orlicí | C66: KS Hr. Králové | D66: 80.79606 | E66: 36 | F66: 184 | G66: 1734 | H66: 1665 | I66: 340 | J66: 96.02076125 | K66: 74.53453453 | L66: 5.4 | M66: 321.1111111 | N66: 308.3333333 | O66: 62.96296296 | P66: 3542 | Q66: 485
A67: 62 | B67: Blansko | C67: KS Brno | D67: 108.4704 | E67: 84 | F67: 182 | G67: 1029 | H67: 1043 | I67: 250 | J67: 101.3605442 | K67: 87.48801534 | L67: 2.8 | M67: 367.5 | N67: 372.5 | O67: 89.28571429 | P67: 2787 | Q67: 552
A68: 63 | B68: Brno-město | C68: KS Brno | D68: 164.6566 | E68: 122 | F68: 307 | G68: 3770 | H68: 3569 | I68: 1546 | J68: 94.66843501 | K68: 158.1087139 | L68: 6.75 | M68: 558.5185185 | N68: 528.7407407 | O68: 229.037037 | P68: 10979 | Q68: 1094
A69: 64 | B69: Brno-venkov | C69: KS Brno | D69: 111.6858 | E69: 66 | F69: 243 | G69: 1797 | H69: 1596 | I69: 591 | J69: 88.81469115 | K69: 135.1597744 | L69: 5 | M69: 359.4 | N69: 319.2 | O69: 118.2 | P69: 3836 | Q69: 746
A70: 65 | B70: Břeclav | C70: KS Brno | D70: 149.5934 | E70: 103 | F70: 313 | G70: 1357 | H70: 1226 | I70: 559 | J70: 90.34635225 | K70: 166.4233279 | L70: 4 | M70: 339.25 | N70: 306.5 | O70: 139.75 | P70: 3794 | Q70: 481
A71: 66 | B71: Hodonín | C71: KS Brno | D71: 147.3611 | E71: 103.5 | F71: 306.5 | G71: 1679 | H71: 1607 | I71: 733 | J71: =H71/G71*100 -> 95.71173317 | K71: =I71/H71*365 -> 166.4872433 | L71: 3.6 | M71: =G71/$L71 -> 466.3888889 | N71: =H71/$L71 -> 446.3888889 | O71: =I71/$L71 -> 203.6111111 | P71: 4106 | Q71: 544
A72: 67 | B72: Jihlava | C72: KS Brno | D72: 132.3967 | E72: 93 | F72: 278 | G72: 1289 | H72: 1200 | I72: 498 | J72: 93.09542281 | K72: 151.475 | L72: 4 | M72: 322.25 | N72: 300 | O72: 124.5 | P72: 3762 | Q72: 445
A73: 68 | B73: Kroměříž | C73: KS Brno | D73: 96.05383 | E73: 56 | F73: 216 | G73: 1640 | H73: 1504 | I73: 472 | J73: 91.70731707 | K73: 114.5478723 | L73: 4 | M73: 410 | N73: 376 | O73: 118 | P73: 2632 | Q73: 507
A74: 69 | B74: Prostějov | C74: KS Brno | D74: 116.2965 | E74: 96 | F74: 203 | G74: 1459 | H74: 1367 | I74: 423 | J74: 93.69431117 | K74: 112.9444038 | L74: 3 | M74: 486.3333333 | N74: 455.6666667 | O74: 141 | P74: 3848 | Q74: 632
A75: 70 | B75: Třebíč | C75: KS Brno | D75: 118.6714 | E75: 85 | F75: 230 | G75: 1189 | H75: 1167 | I75: 337 | J75: 98.14970563 | K75: 105.4027421 | L75: 2 | M75: 594.5 | N75: 583.5 | O75: 168.5 | P75: 1929 | Q75: 386
A76: 71 | B76: Uherské Hradiště | C76: KS Brno | D76: 109.6411 | E76: 58 | F76: 256 | G76: 1984 | H76: 1856 | I76: 532 | J76: 93.5483871 | K76: 104.6228448 | L76: 3.5 | M76: 566.8571429 | N76: 530.2857143 | O76: 152 | P76: 2259 | Q76: 463
A77: 72 | B77: Vyškov | C77: KS Brno | D77: 188.8139 | E77: 129 | F77: 404 | G77: 967 | H77: 1064 | I77: 380 | J77: 110.0310238 | K77: 130.3571429 | L77: 3.85 | M77: 251.1688312 | N77: 276.3636364 | O77: 98.7012987 | P77: 3478 | Q77: 342
A78: 73 | B78: Zlín | C78: KS Brno | D78: 121.5716 | E78: 77 | F78: 278 | G78: 2166 | H78: 2345 | I78: 574 | J78: 108.2640813 | K78: 89.34328358 | L78: 5.7 | M78: 380 | N78: 411.4035088 | O78: 100.7017544 | P78: 4351 | Q78: 670
A79: 74 | B79: Znojmo | C79: KS Brno | D79: 141.6822 | E79: 98 | F79: 287 | G79: 1661 | H79: 1508 | I79: 671 | J79: 90.78868152 | K79: 162.4104775 | L79: 4 | M79: 415.25 | N79: 377 | O79: 167.75 | P79: 2575 | Q79: 789
A80: 75 | B80: Žďár nad Sázavou | C80: KS Brno | D80: 155.388 | E80: 98 | F80: 367 | G80: 1358 | H80: 1278 | I80: 532 | J80: 94.1089838 | K80: 151.9405321 | L80: 3 | M80: 452.6666667 | N80: 426 | O80: 177.3333333 | P80: 3706 | Q80: 565
A81: 76 | B81: Bruntál | C81: KS Ostrava | D81: 120.0628 | E81: 99 | F81: 209 | G81: 1544 | H81: 1468 | I81: 526 | J81: 95.07772021 | K81: 130.7833787 | L81: 5.1 | M81: 302.745098 | N81: 287.8431373 | O81: 103.1372549 | P81: 5001 | Q81: 606
A82: 77 | B82: Frýdek-Místek | C82: KS Ostrava | D82: 164.2518 | E82: 110 | F82: 332 | G82: 3045 | H82: 2790 | I82: 1297 | J82: 91.62561576 | K82: 169.6792115 | L82: 8.8 | M82: 346.0227273 | N82: 317.0454545 | O82: 147.3863636 | P82: 6279 | Q82: 1167
A83: 78 | B83: Jeseník | C83: KS Ostrava | D83: 122.6728 | E83: 77 | F83: 286 | G83: 621 | H83: 611 | I83: 159 | J83: 98.38969404 | K83: 94.98363339 | L83: 1.8 | M83: 345 | N83: 339.4444444 | O83: 88.33333333 | P83: 1532 | Q83: 259
A84: 79 | B84: Karviná | C84: KS Ostrava | D84: 122.2328 | E84: 96 | F84: 222 | G84: 4210 | H84: 4160 | I84: 1274 | J84: 98.81235154 | K84: 111.78125 | L84: 10 | M84: 421 | N84: 416 | O84: 127.4 | P84: 8592 | Q84: 1309
A85: 80 | B85: Nový Jičín | C85: KS Ostrava | D85: 110.2251 | E85: 85 | F85: 203 | G85: 1705 | H85: 1757 | I85: 491 | J85: 103.0498534 | K85: 102.0005692 | L85: 4 | M85: 426.25 | N85: 439.25 | O85: 122.75 | P85: 5689 | Q85: 716
A86: 81 | B86: Olomouc | C86: KS Ostrava | D86: 105.2914 | E86: 75 | F86: 217 | G86: 2731 | H86: 2984 | I86: 625 | J86: 109.2640059 | K86: 76.44939678 | L86: 7.4 | M86: 369.0540541 | N86: 403.2432432 | O86: 84.45945946 | P86: 5247 | Q86: 1053
A87: 82 | B87: Opava | C87: KS Ostrava | D87: 126.1432 | E87: 89 | F87: 274 | G87: 2260 | H87: 2153 | I87: 810 | J87: 95.26548673 | K87: 137.3200186 | L87: 7.5 | M87: 301.3333333 | N87: 287.0666667 | O87: 108 | P87: 3485 | Q87: 1027
A88: 83 | B88: Ostrava | C88: KS Ostrava | D88: 134.9351 | E88: 93 | F88: 282 | G88: 4804 | H88: 4889 | I88: 1376 | J88: 101.7693589 | K88: 102.7285744 | L88: 12 | M88: 400.3333333 | N88: 407.4166667 | O88: 114.6666667 | P88: 13332 | Q88: 1563
A89: 84 | B89: Přerov | C89: KS Ostrava | D89: 103.9598 | E89: 74 | F89: 210 | G89: 1789 | H89: 1820 | I89: 475 | J89: 101.7328116 | K89: 95.26098901 | L89: 6 | M89: 298.1666667 | N89: 303.3333333 | O89: 79.16666667 | P89: 2435 | Q89: 732
A90: 85 | B90: Šumperk | C90: KS Ostrava | D90: 129.5061 | E90: 96 | F90: 261 | G90: 1840 | H90: 1757 | I90: 659 | J90: 95.48913043 | K90: 136.9009676 | L90: 4.6 | M90: 400 | N90: 381.9565217 | O90: 143.2608696 | P90: 3434 | Q90: 898
A91: 86 | B91: Vsetín | C91: KS Ostrava | D91: 84.32175 | E91: 54 | F91: 177 | G91: 1594 | H91: 1581 | I91: 367 | J91: 99.18444166 | K91: 84.72802024 | L91: 5.4 | M91: 295.1851852 | N91: 292.7777778 | O91: 67.96296296 | P91: 2763 | Q91: 542
A92: - | B92: ČR | C92: - | D92: 112 | E92: 72 | F92: 239 | G92: =AVERAGE(G6:G91) -> 1649.337209 | H92: =AVERAGE(H6:H91) -> 1618.627907 | I92: 465.6395349 | J92: =H92/G92*100 -> 98.13808225 | K92: =I92/H92*365 -> 105.0015445 | L92: =AVERAGE(L6:L91) -> 4.26744186 | M92: =G92/$L92 -> 386.493188 | N92: =H92/$L92 -> 379.2970027 | O92: =I92/$L92 -> 109.1144414 | P92: =AVERAGE(P6:P91) -> 3616.255814 | Q92: =AVERAGE(Q6:Q91) -> 551.1395349
A94: *Poznámka: ČR - počet soudců (úvazků), nápad+obživa, vyřízeno, nevyřízeno a omezená svéprávnost: jedná se o průměr v ČR.

Sheet Přehled_opatro_po_kr_2023
A1: Opatrovnická agenda
A3: Vybraná data za rok 2023
A4: Přehled všech okresních soudů po soudních krajích
B6: Délka řízení ve dnech | E6: Vyřizování věcí | K6: Vyřizování věcí na soudce | N6: Omezená svéprávnost
A7: Nadřízený soud | B7: Průměr | C7: Medián | D7: Percentil 90 | E7: Obživa+nápad | F7: Vyřízeno | G7: Nevyřízeno | H7: Míra vyřizování | I7: Disposition time | J7: Počet soudců k 1.1. | K7: Obživa+nápad | L7: Vyřízeno | M7: Nevyřízeno | N7: Nezletilí | O7: Nesvéprávní
A8: MS Praha | B8: 128 | C8: 70 | D8: 287 | E8: 13366 | F8: 13392 | G8: 3598 | H8: =F8/E8*100 -> 100.1945234 | I8: =G8/F8*365 -> 98.06376941 | J8: 43.5 | K8: =E8/SUMIF(Přehled_opatro_2023!$C$6:$C$91,$A8,Přehled_opatro_2023!$L$6:$L$91) -> 307.2643678 | L8: =F8/SUMIF(Přehled_opatro_2023!$C$6:$C$91,$A8,Přehled_opatro_2023!$L$6:$L$91) -> 307.862069 | M8: =G8/SUMIF(Přehled_opatro_2023!$C$6:$C$91,$A8,Přehled_opatro_2023!$L$6:$L$91) -> 82.71264368 | N8: 30165 | O8: 3491
A9: KS Praha | B9: 90 | C9: 56 | D9: 197 | E9: 20198 | F9: 20030 | G9: 4372 | H9: =F9/E9*100 -> 99.16823448 | I9: =G9/F9*365 -> 79.66949576 | J9: 49.88 | K9: =E9/SUMIF(Přehled_opatro_2023!$C$6:$C$91,$A9,Přehled_opatro_2023!$L$6:$L$91) -> 404.9318364 | L9: =F9/SUMIF(Přehled_opatro_2023!$C$6:$C$91,$A9,Přehled_opatro_2023!$L$6:$L$91) -> 401.563753 | M9: =G9/SUMIF(Přehled_opatro_2023!$C$6:$C$91,$A9,Přehled_opatro_2023!$L$6:$L$91) -> 87.65036087 | N9: 43490 | O9: 5861
A10: KS Č. Budějovice | B10: 86 | C10: 56 | D10: 182 | E10: 9302 | F10: 9246 | G10: 2006 | H10: 99.39797893 | I10: 79.18991997 | J10: 23 | K10: =E10/SUMIF(Přehled_opatro_2023!$C$6:$C$91,$A10,Přehled_opatro_2023!$L$6:$L$91) -> 404.4347826 | L10: =F10/SUMIF(Přehled_opatro_2023!$C$6:$C$91,$A10,Přehled_opatro_2023!$L$6:$L$91) -> 402 | M10: =G10/SUMIF(Přehled_opatro_2023!$C$6:$C$91,$A10,Přehled_opatro_2023!$L$6:$L$91) -> 87.2173913 | N10: 19724 | O10: 3491
A11: KS Plzeň | B11: 105 | C11: 68 | D11: 218 | E11: 13482 | F11: 13138 | G11: 3781 | H11: 97.44844978 | I11: 105.0437662 | J11: 30.6 | K11: =E11/SUMIF(Přehled_opatro_2023!$C$6:$C$91,$A11,Přehled_opatro_2023!$L$6:$L$91) -> 440.5882353 | L11: =F11/SUMIF(Přehled_opatro_2023!$C$6:$C$91,$A11,Přehled_opatro_2023!$L$6:$L$91) -> 429.3464052 | M11: =G11/SUMIF(Přehled_opatro_2023!$C$6:$C$91,$A11,Přehled_opatro_2023!$L$6:$L$91) -> 123.5620915 | N11: 29605 | O11: 4068
A12: KS Ústí n. Labem | B12: 109 | C12: 70 | D12: 225 | E12: 19439 | F12: 19344 | G12: 5334 | H12: 99.51129173 | I12: 100.6467122 | J12: 48.87 | K12: =E12/SUMIF(Přehled_opatro_2023!$C$6:$C$91,$A12,Přehled_opatro_2023!$L$6:$L$91) -> 397.7695928 | L12: =F12/SUMIF(Přehled_opatro_2023!$C$6:$C$91,$A12,Přehled_opatro_2023!$L$6:$L$91) -> 395.8256599 | M12: =G12/SUMIF(Přehled_opatro_2023!$C$6:$C$91,$A12,Přehled_opatro_2023!$L$6:$L$91) -> 109.1467158 | N12: 41748 | O12: 6422
A13: KS Hr. Králové | B13: 103 | C13: 61 | D13: 236 | E13: 16568 | F13: 15752 | G13: 4797 | H13: 95.07484307 | I13: 111.1544566 | J13: 43.35 | K13: =E13/SUMIF(Přehled_opatro_2023!$C$6:$C$91,$A13,Přehled_opatro_2023!$L$6:$L$91) -> 382.1914648 | L13: =F13/SUMIF(Přehled_opatro_2023!$C$6:$C$91,$A13,Přehled_opatro_2023!$L$6:$L$91) -> 363.3679354 | M13: =G13/SUMIF(Přehled_opatro_2023!$C$6:$C$91,$A13,Přehled_opatro_2023!$L$6:$L$91) -> 110.6574394 | N13: 34435 | O13: 5977
A14: KS Brno | B14: 136 | C14: 92 | D14: 282 | E14: 23345 | F14: 22330 | G14: 8098 | H14: 95.65217391 | I14: 132.3676668 | J14: 55.2 | K14: =E14/SUMIF(Přehled_opatro_2023!$C$6:$C$91,$A14,Přehled_opatro_2023!$L$6:$L$91) -> 422.9166667 | L14: =F14/SUMIF(Přehled_opatro_2023!$C$6:$C$91,$A14,Přehled_opatro_2023!$L$6:$L$91) -> 404.5289855 | M14: =G14/SUMIF(Přehled_opatro_2023!$C$6:$C$91,$A14,Přehled_opatro_2023!$L$6:$L$91) -> 146.7028986 | N14: 54042 | O14: 8216
A15: KS Ostrava | B15: 124 | C15: 89 | D15: 250 | E15: 26143 | F15: 25970 | G15: 8059 | H15: 99.33825498 | I15: 113.2666538 | J15: 72.6 | K15: =E15/SUMIF(Přehled_opatro_2023!$C$6:$C$91,$A15,Přehled_opatro_2023!$L$6:$L$91) -> 360.0964187 | L15: =F15/SUMIF(Přehled_opatro_2023!$C$6:$C$91,$A15,Přehled_opatro_2023!$L$6:$L$91) -> 357.7134986 | M15: =G15/SUMIF(Přehled_opatro_2023!$C$6:$C$91,$A15,Přehled_opatro_2023!$L$6:$L$91) -> 111.0055096 | N15: 57789 | O15: 9872

Sheet Databáze_opatro
A1: Databáze pro grafy
A2: Opatro - okresní soudy
F4: Délka řízení | I4: Vyřizování věcí
B5: Pomocná prom. | C5: Rok | D5: Název soudu | E5: Nadřízený soud | F5: Průměr | G5: Medián | H5: Percentil 90 | I5: Obživa+nápad | J5: Vyřízeno | K5: Nevyřízeno | L5: Disposition time
A6: 1 | B6: =CONCATENATE(C6,D6) -> 2008Praha 1 | C6: 2008 | D6: Praha 1 | E6: MS Praha | I6: 242 | J6: 210 | K6: 97 | L6: =K6/J6*365 -> 168.5952381
A7: 2 | B7: =CONCATENATE(C7,D7) -> 2008Praha 2 | C7: 2008 | D7: Praha 2 | E7: MS Praha | I7: 469 | J7: 516 | K7: 61 | L7: =K7/J7*365 -> 43.14922481
A8: 3 | B8: 2008Praha 3 | C8: 2008 | D8: Praha 3 | E8: MS Praha | I8: 906 | J8: 827 | K8: 256 | L8: 112.9866989
A9: 4 | B9: 2008Praha 4 | C9: 2008 | D9: Praha 4 | E9: MS Praha | I9: 2655 | J9: 2557 | K9: 576 | L9: 82.22135315
A10: 5 | B10: 2008Praha 5 | C10: 2008 | D10: Praha 5 | E10: MS Praha | I10: 1850 | J10: 1827 | K10: 374 | L10: 74.71811713
A11: 6 | B11: 2008Praha 6 | C11: 2008 | D11: Praha 6 | E11: MS Praha | I11: 1111 | J11: 1014 | K11: 309 | L11: 111.2278107
A12: 7 | B12: 2008Praha 7 | C12: 2008 | D12: Praha 7 | E12: MS Praha | I12: 377 | J12: 351 | K12: 92 | L12: 95.66951567
A13: 8 | B13: 2008Praha 8 | C13: 2008 | D13: Praha 8 | E13: MS Praha | I13: 1082 | J13: 1112 | K13: 246 | L13: 80.74640288
A14: 9 | B14: 2008Praha 9 | C14: 2008 | D14: Praha 9 | E14: MS Praha | I14: 1640 | J14: 1590 | K14: 318 | L14: 73
A15: 10 | B15: 2008Praha 10 | C15: 2008 | D15: Praha 10 | E15: MS Praha | I15: 1619 | J15: 1591 | K15: 329 | L15: 75.47768699
A16: 11 | B16: 2008Beroun | C16: 2008 | D16: Beroun | E16: KS Praha | I16: 1082 | J16: 1078 | K16: 201 | L16: 68.05658627
A17: 12 | B17: 2008Benešov | C17: 2008 | D17: Benešov | E17: KS Praha | I17: 806 | J17: 870 | K17: 226 | L17: 94.81609195
A18: 13 | B18: 2008Kladno | C18: 2008 | D18: Kladno | E18: KS Praha | I18: 1824 | J18: 1804 | K18: 412 | L18: 83.35920177
A19: 14 | B19: 2008Kolín | C19: 2008 | D19: Kolín | E19: KS Praha | I19: 1429 | J19: 1358 | K19: 291 | L19: 78.21428571
A20: 15 | B20: 2008Kutná Hora | C20: 2008 | D20: Kutná Hora | E20: KS Praha | I20: 804 | J20: 786 | K20: 167 | L20: 77.55089059
A21: 16 | B21: 2008Mělník | C21: 2008 | D21: Mělník | E21: KS Praha | I21: 1160 | J21: 1180 | K21: 232 | L21: 71.76271186
A22: 17 | B22: 2008Mladá Boleslav | C22: 2008 | D22: Mladá Boleslav | E22: KS Praha | I22: 1438 | J22: 1373 | K22: 236 | L22: 62.73852877
A23: 18 | B23: 2008Nymburk | C23: 2008 | D23: Nymburk | E23: KS Praha | I23: 1097 | J23: 1096 | K23: 188 | L23: 62.60948905
A24: 19 | B24: 2008Praha-Východ | C24: 2008 | D24: Praha-Východ | E24: KS Praha | I24: 1450 | J24: 1417 | K24: 243 | L24: 62.59350741
A25: 20 | B25: 2008Praha-Západ | C25: 2008 | D25: Praha-Západ | E25: KS Praha | I25: 1406 | J25: 1253 | K25: 324 | L25: 94.38148444
A26: 21 | B26: 2008Příbram | C26: 2008 | D26: Příbram | E26: KS Praha | I26: 1014 | J26: 959 | K26: 188 | L26: 71.55370177
A27: 22 | B27: 2008Rakovník | C27: 2008 | D27: Rakovník | E27: KS Praha | I27: 711 | J27: 688 | K27: 118 | L27: 62.60174419
A28: 23 | B28: 2008České Budějovice | C28: 2008 | D28: České Budějovice | E28: KS Č. Budějovice | I28: 1996 | J28: 2037 | K28: 281 | L28: 50.35100638
A29: 24 | B29: 2008Český Krumlov | C29: 2008 | D29: Český Krumlov | E29: KS Č. Budějovice | I29: 732 | J29: 743 | K29: 145 | L29: 71.23149394
A30: 25 | B30: 2008Jindřichův Hradec | C30: 2008 | D30: Jindřichův Hradec | E30: KS Č. Budějovice | I30: 837 | J30: 835 | K30: 88 | L30: 38.46706587
A31: 26 | B31: 2008Pelhřimov | C31: 2008 | D31: Pelhřimov | E31: KS Č. Budějovice | I31: 514 | J31: 527 | K31: 64 | L31: 44.32637571
A32: 27 | B32: 2008Písek | C32: 2008 | D32: Písek | E32: KS Č. Budějovice | I32: 679 | J32: 690 | K32: 105 | L32: 55.54347826
A33: 28 | B33: 2008Prachatice | C33: 2008 | D33: Prachatice | E33: KS Č. Budějovice | I33: 597 | J33: 586 | K33: 85 | L33: 52.94368601
A34: 29 | B34: 2008Strakonice | C34: 2008 | D34: Strakonice | E34: KS Č. Budějovice | I34: 721 | J34: 687 | K34: 90 | L34: 47.81659389
A35: 30 | B35: 2008Tábor | C35: 2008 | D35: Tábor | E35: KS Č. Budějovice | I35: 884 | J35: 835 | K35: 161 | L35: 70.37724551
A36: 31 | B36: 2008Domažlice | C36: 2008 | D36: Domažlice | E36: KS Plzeň | I36: 642 | J36: 577 | K36: 136 | L36: 86.03119584
A37: 32 | B37: 2008Cheb | C37: 2008 | D37: Cheb | E37: KS Plzeň | I37: 986 | J37: 993 | K37: 261 | L37: 95.93655589
A38: 33 | B38: 2008Karlovy Vary | C38: 2008 | D38: Karlovy Vary | E38: KS Plzeň | I38: 1849 | J38: 1830 | K38: 528 | L38: 105.3114754
A39: 34 | B39: 2008Klatovy | C39: 2008 | D39: Klatovy | E39: KS Plzeň | I39: 896 | J39: 897 | K39: 171 | L39: 69.5819398
A40: 35 | B40: 2008Plzeň-jih | C40: 2008 | D40: Plzeň-jih | E40: KS Plzeň | I40: 656 | J40: 649 | K40: 140 | L40: 78.73651772
A41: 36 | B41: 2008Plzeň-Město | C41: 2008 | D41: Plzeň-Město | E41: KS Plzeň | I41: 1759 | J41: 1782 | K41: 372 | L41: 76.1952862
A42: 37 | B42: 2008Plzeň-sever | C42: 2008 | D42: Plzeň-sever | E42: KS Plzeň | I42: 640 | J42: 605 | K42: 152 | L42: 91.70247934
A43: 38 | B43: 2008Rokycany | C43: 2008 | D43: Rokycany | E43: KS Plzeň | I43: 392 | J43: 340 | K43: 99 | L43: 106.2794118
A44: 39 | B44: 2008Sokolov | C44: 2008 | D44: Sokolov | E44: KS Plzeň | I44: 1414 | J44: 1367 | K44: 403 | L44: 107.6042429
A45: 40 | B45: 2008Tachov | C45: 2008 | D45: Tachov | E45: KS Plzeň | I45: 794 | J45: 793 | K45: 144 | L45: 66.27994956
A46: 41 | B46: 2008Česká Lípa | C46: 2008 | D46: Česká Lípa | E46: KS Ústí n. Labem | I46: 1493 | J46: 1469 | K46: 490 | L46: 121.7494894
A47: 42 | B47: 2008Děčín | C47: 2008 | D47: Děčín | E47: KS Ústí n. Labem | I47: 1850 | J47: 1643 | K47: 607 | L47: 134.8478393
A48: 43 | B48: 2008Chomutov | C48: 2008 | D48: Chomutov | E48: KS Ústí n. Labem | I48: 1241 | J48: 1419 | K48: 1970 | L48: 506.7300916
A49: 44 | B49: 2008Jablonec nad Nisou | C49: 2008 | D49: Jablonec nad Nisou | E49: KS Ústí n. Labem | I49: 965 | J49: 988 | K49: 221 | L49: 81.64473684
A50: 45 | B50: 2008Liberec | C50: 2008 | D50: Liberec | E50: KS Ústí n. Labem | I50: 1652 | J50: 1620 | K50: 808 | L50: 182.0493827
A51: 46 | B51: 2008Litoměřice | C51: 2008 | D51: Litoměřice | E51: KS Ústí n. Labem | I51: 1561 | J51: 1532 | K51: 434 | L51: 103.4007833
A52: 47 | B52: 2008Louny | C52: 2008 | D52: Louny | E52: KS Ústí n. Labem | I52: 1038 | J52: 1152 | K52: 423 | L52: 134.0234375
A53: 48 | B53: 2008Most | C53: 2008 | D53: Most | E53: KS Ústí n. Labem | I53: 1965 | J53: 1873 | K53: 715 | L53: 139.335291
A54: 49 | B54: 2008Teplice | C54: 2008 | D54: Teplice | E54: KS Ústí n. Labem | I54: 1753 | J54: 1645 | K54: 1122 | L54: 248.9544073
A55: 50 | B55: 2008Ústí nad Labem | C55: 2008 | D55: Ústí nad Labem | E55: KS Ústí n. Labem | I55: 1836 | J55: 1847 | K55: 966 | L55: 190.8987547
A56: 51 | B56: 2008Havlíčkův Brod | C56: 2008 | D56: Havlíčkův Brod | E56: KS Hr. Králové | I56: 804 | J56: 764 | K56: 205 | L56: 97.93848168
A57: 52 | B57: 2008Hradec Králové | C57: 2008 | D57: Hradec Králové | E57: KS Hr. Králové | I57: 1393 | J57: 1339 | K57: 337 | L57: 91.86333084
A58: 53 | B58: 2008Chrudim | C58: 2008 | D58: Chrudim | E58: KS Hr. Králové | I58: 869 | J58: 743 | K58: 326 | L58: 160.1480485
A59: 54 | B59: 2008Jičín | C59: 2008 | D59: Jičín | E59: KS Hr. Králové | I59: 727 | J59: 709 | K59: 187 | L59: 96.26939351
A60: 55 | B60: 2008Náchod | C60: 2008 | D60: Náchod | E60: KS Hr. Králové | I60: 1279 | J60: 1233 | K60: 219 | L60: 64.8296837
A61: 56 | B61: 2008Pardubice | C61: 2008 | D61: Pardubice | E61: KS Hr. Králové | I61: 1763 | J61: 1705 | K61: 456 | L61: 97.61876833
A62: 57 | B62: 2008Rychnov nad Kněžnou | C62: 2008 | D62: Rychnov nad Kněžnou | E62: KS Hr. Králové | I62: 694 | J62: 668 | K62: 282 | L62: 154.0868263
A63: 58 | B63: 2008Semily | C63: 2008 | D63: Semily | E63: KS Hr. Králové | I63: 621 | J63: 596 | K63: 144 | L63: 88.18791946
A64: 59 | B64: 2008Svitavy | C64: 2008 | D64: Svitavy | E64: KS Hr. Králové | I64: 1147 | J64: 1112 | K64: 178 | L64: 58.42625899
A65: 60 | B65: 2008Trutnov | C65: 2008 | D65: Trutnov | E65: KS Hr. Králové | I65: 1443 | J65: 1450 | K65: 384 | L65: 96.66206897
A66: 61 | B66: 2008Ústí nad Orlicí | C66: 2008 | D66: Ústí nad Orlicí | E66: KS Hr. Králové | I66: 1463 | J66: 1425 | K66: 207 | L66: 53.02105263
A67: 62 | B67: 2008Blansko | C67: 2008 | D67: Blansko | E67: KS Brno | I67: 853 | J67: 853 | K67: 229 | L67: 97.989449
A68: 63 | B68: 2008Brno-město | C68: 2008 | D68: Brno-město | E68: KS Brno | I68: 2679 | J68: 2488 | K68: 1274 | L68: 186.9011254
A69: 64 | B69: 2008Brno-venkov | C69: 2008 | D69: Brno-venkov | E69: KS Brno | I69: 1116 | J69: 1114 | K69: 356 | L69: 116.6427289
A70: 65 | B70: 2008Břeclav | C70: 2008 | D70: Břeclav | E70: KS Brno | I70: 1078 | J70: 1199 | K70: 744 | L70: 226.4887406
A71: 66 | B71: =CONCATENATE(C71,D71) -> 2008Hodonín | C71: 2008 | D71: Hodonín | E71: KS Brno | I71: 1032 | J71: 1092 | K71: 545 | L71: =K71/J71*365 -> 182.1657509
A72: 67 | B72: 2008Jihlava | C72: 2008 | D72: Jihlava | E72: KS Brno | I72: 802 | J72: 718 | K72: 309 | L72: 157.0821727
A73: 68 | B73: 2008Kroměříž | C73: 2008 | D73: Kroměříž | E73: KS Brno | I73: 1334 | J73: 1378 | K73: 220 | L73: 58.27285922
A74: 69 | B74: 2008Prostějov | C74: 2008 | D74: Prostějov | E74: KS Brno | I74: 1027 | J74: 975 | K74: 493 | L74: 184.5589744
A75: 70 | B75: 2008Třebíč | C75: 2008 | D75: Třebíč | E75: KS Brno | I75: 891 | J75: 865 | K75: 289 | L75: 121.9479769
A76: 71 | B76: 2008Uherské Hradiště | C76: 2008 | D76: Uherské Hradiště | E76: KS Brno | I76: 1017 | J76: 947 | K76: 523 | L76: 201.5786695
A77: 72 | B77: 2008Vyškov | C77: 2008 | D77: Vyškov | E77: KS Brno | I77: 761 | J77: 726 | K77: 417 | L77: 209.6487603
A78: 73 | B78: 2008Zlín | C78: 2008 | D78: Zlín | E78: KS Brno | I78: 1635 | J78: 1640 | K78: 363 | L78: 80.78963415
A79: 74 | B79: 2008Znojmo | C79: 2008 | D79: Znojmo | E79: KS Brno | I79: 1318 | J79: 1145 | K79: 528 | L79: 168.3144105
A80: 75 | B80: 2008Žďár nad Sázavou | C80: 2008 | D80: Žďár nad Sázavou | E80: KS Brno | I80: 941 | J80: 931 | K80: 281 | L80: 110.1664876
A81: 76 | B81: 2008Bruntál | C81: 2008 | D81: Bruntál | E81: KS Ostrava | I81: 1385 | J81: 1522 | K81: 638 | L81: 153.0026281
A82: 77 | B82: 2008Frýdek-Místek | C82: 2008 | D82: Frýdek-Místek | E82: KS Ostrava | I82: 2110 | J82: 2142 | K82: 569 | L82: 96.95845005
A83: 78 | B83: 2008Jeseník | C83: 2008 | D83: Jeseník | E83: KS Ostrava | I83: 418 | J83: 388 | K83: 133 | L83: 125.1159794
A84: 79 | B84: 2008Karviná | C84: 2008 | D84: Karviná | E84: KS Ostrava | I84: 3362 | J84: 3245 | K84: 952 | L84: 107.0816641
A85: 80 | B85: 2008Nový Jičín | C85: 2008 | D85: Nový Jičín | E85: KS Ostrava | I85: 1636 | J85: 1552 | K85: 434 | L85: 102.068299
A86: 81 | B86: 2008Olomouc | C86: 2008 | D86: Olomouc | E86: KS Ostrava | I86: 2123 | J86: 2059 | K86: 577 | L86: 102.2850898
A87: 82 | B87: 2008Opava | C87: 2008 | D87: Opava | E87: KS Ostrava | I87: 1467 | J87: 1571 | K87: 356 | L87: 82.71164863
A88: 83 | B88: 2008Ostrava | C88: 2008 | D88: Ostrava | E88: KS Ostrava | I88: 3471 | J88: 3513 | K88: 1147 | L88: 119.1730714
A89: 84 | B89: 2008Přerov | C89: 2008 | D89: Přerov | E89: KS Ostrava | I89: 1387 | J89: 1357 | K89: 365 | L89: 98.1761238
A90: 85 | B90: 2008Šumperk | C90: 2008 | D90: Šumperk | E90: KS Ostrava | I90: 1294 | J90: 1267 | K90: 414 | L90: 119.2659826
A91: 86 | B91: 2008Vsetín | C91: 2008 | D91: Vsetín | E91: KS Ostrava | I91: 1264 | J91: 1162 | K91: 474 | L91: 148.8898451
A92: 1 | B92: 2009Praha 1 | C92: 2009 | D92: Praha 1 | E92: MS Praha | F92: 101.6239 | G92: 56 | H92: 195 | I92: 216 | J92: 223 | K92: 90 | L92: 147.309417
A93: 2 | B93: 2009Praha 2 | C93: 2009 | D93: Praha 2 | E93: MS Praha | F93: 92.85366 | G93: 34 | H93: 252 | I93: 407 | J93: 406 | K93: 62 | L93: 55.73891626
A94: 3 | B94: 2009Praha 3 | C94: 2009 | D94: Praha 3 | E94: MS Praha | F94: 96.48758 | G94: 61 | H94: 221 | I94: 814 | J94: 843 | K94: 227 | L94: 98.28588375
A95: 4 | B95: 2009Praha 4 | C95: 2009 | D95: Praha 4 | E95: MS Praha | F95: 96.48893 | G95: 57 | H95: 224 | I95: 2532 | J95: 2506 | K95: 602 | L95: 87.68156425
A96: 5 | B96: 2009Praha 5 | C96: 2009 | D96: Praha 5 | E96: MS Praha | F96: 85.81413 | G96: 47 | H96: 189 | I96: 1591 | J96: 1670 | K96: 295 | L96: 64.4760479
A97: 6 | B97: 2009Praha 6 | C97: 2009 | D97: Praha 6 | E97: MS Praha | F97: 97.58274 | G97: 59 | H97: 194 | I97: 1132 | J97: 1229 | K97: 212 | L97: 62.96175753
A98: 7 | B98: 2009Praha 7 | C98: 2009 | D98: Praha 7 | E98: MS Praha | F98: 72.45731 | G98: 41 | H98: 156 | I98: 335 | J98: 352 | K98: 75 | L98: 77.76988636
A99: 8 | B99: 2009Praha 8 | C99: 2009 | D99: Praha 8 | E99: MS Praha | F99: 100.5838 | G99: 62 | H99: 230 | I99: 1091 | J99: 1077 | K99: 262 | L99: 88.79294336
A100: 9 | B100: 2009Praha 9 | C100: 2009 | D100: Praha 9 | E100: MS Praha | F100: 73.84172 | G100: 44 | H100: 165 | I100: 1659 | J100: 1727 | K100: 252 | L100: 53.25998842
A101: 10 | B101: 2009Praha 10 | C101: 2009 | D101: Praha 10 | E101: MS Praha | F101: 90.8987 | G101: 55 | H101: 203 | I101: 1643 | J101: 1664 | K101: 308 | L101: 67.56009615
A102: 11 | B102: 2009Beroun | C102: 2009 | D102: Beroun | E102: KS Praha | F102: 107.7226 | G102: 58 | H102: 254 | I102: 1104 | J102: 998 | K102: 307 | L102: 112.2795591
A103: 12 | B103: 2009Benešov | C103: 2009 | D103: Benešov | E103: KS Praha | F103: 79.85978 | G103: 50 | H103: 167 | I103: 813 | J103: 845 | K103: 194 | L103: 83.79881657
A104: 13 | B104: 2009Kladno | C104: 2009 | D104: Kladno | E104: KS Praha | F104: 89.24044 | G104: 64 | H104: 185 | I104: 1918 | J104: 1956 | K104: 374 | L104: 69.79038855
A105: 14 | B105: 2009Kolín | C105: 2009 | D105: Kolín | E105: KS Praha | F105: 77.53001 | G105: 55 | H105: 153 | I105: 1272 | J105: 1274 | K105: 289 | L105: 82.79827316
A106: 15 | B106: 2009Kutná Hora | C106: 2009 | D106: Kutná Hora | E106: KS Praha | F106: 74.48768 | G106: 49 | H106: 144 | I106: 825 | J106: 882 | K106: 110 | L106: 45.52154195
A107: 16 | B107: 2009Mělník | C107: 2009 | D107: Mělník | E107: KS Praha | F107: 88.25494 | G107: 62.5 | H107: 175 | I107: 1237 | J107: 1197 | K107: 272 | L107: 82.94068505
A108: 17 | B108: 2009Mladá Boleslav | C108: 2009 | D108: Mladá Boleslav | E108: KS Praha | F108: 63.33582 | G108: 38 | H108: 131 | I108: 1469 | J108: 1468 | K108: 237 | L108: 58.92711172
A109: 18 | B109: 2009Nymburk | C109: 2009 | D109: Nymburk | E109: KS Praha | F109: 63.32252 | G109: 35 | H109: 151 | I109: 1193 | J109: 1196 | K109: 185 | L109: 56.4590301
A110: 19 | B110: 2009Praha-Východ | C110: 2009 | D110: Praha-Východ | E110: KS Praha | F110: 74.90492 | G110: 48 | H110: 164 | I110: 1489 | J110: 1454 | K110: 278 | L110: 69.78679505
A111: 20 | B111: 2009Praha-Západ | C111: 2009 | D111: Praha-Západ | E111: KS Praha | F111: 70.00298 | G111: 42 | H111: 164 | I111: 1469 | J111: 1475 | K111: 318 | L111: 78.69152542
A112: 21 | B112: 2009Příbram | C112: 2009 | D112: Příbram | E112: KS Praha | F112: 71.59071 | G112: 42 | H112: 142 | I112: 972 | J112: 988 | K112: 172 | L112: 63.54251012
A113: 22 | B113: 2009Rakovník | C113: 2009 | D113: Rakovník | E113: KS Praha | F113: 62.53957 | G113: 43 | H113: 132 | I113: 734 | J113: 749 | K113: 103 | L113: 50.19359146
A114: 23 | B114: 2009České Budějovice | C114: 2009 | D114: České Budějovice | E114: KS Č. Budějovice | F114: 54.07201 | G114: 27 | H114: 139 | I114: 2272 | J114: 2287 | K114: 266 | L114: 42.45299519
A115: 24 | B115: 2009Český Krumlov | C115: 2009 | D115: Český Krumlov | E115: KS Č. Budějovice | F115: 76.44852 | G115: 43 | H115: 167 | I115: 788 | J115: 819 | K115: 114 | L115: 50.80586081
A116: 25 | B116: 2009Jindřichův Hradec | C116: 2009 | D116: Jindřichův Hradec | E116: KS Č. Budějovice | F116: 46.73318 | G116: 23 | H116: 93 | I116: 918 | J116: 919 | K116: 87 | L116: 34.55386289
A117: 26 | B117: 2009Pelhřimov | C117: 2009 | D117: Pelhřimov | E117: KS Č. Budějovice | F117: 50.22509 | G117: 28 | H117: 105 | I117: 620 | J117: 623 | K117: 61 | L117: 35.73836276
A118: 27 | B118: 2009Písek | C118: 2009 | D118: Písek | E118: KS Č. Budějovice | F118: 66.20517 | G118: 42 | H118: 149 | I118: 734 | J118: 726 | K118: 113 | L118: 56.81129477
A119: 28 | B119: 2009Prachatice | C119: 2009 | D119: Prachatice | E119: KS Č. Budějovice | F119: 54.16248 | G119: 35 | H119: 107 | I119: 546 | J119: 557 | K119: 73 | L119: 47.83662478
A120: 29 | B120: 2009Strakonice | C120: 2009 | D120: Strakonice | E120: KS Č. Budějovice | F120: 48.50433 | G120: 27 | H120: 110 | I120: 671 | J120: 692 | K120: 69 | L120: 36.39450867
A121: 30 | B121: 2009Tábor | C121: 2009 | D121: Tábor | E121: KS Č. Budějovice | F121: 65.80579 | G121: 41 | H121: 140 | I121: 922 | J121: 877 | K121: 206 | L121: 85.7354618
A122: 31 | B122: 2009Domažlice | C122: 2009 | D122: Domažlice | E122: KS Plzeň | F122: 76.7264 | G122: 52 | H122: 165 | I122: 675 | J122: 692 | K122: 119 | L122: 62.76734104
A123: 32 | B123: 2009Cheb | C123: 2009 | D123: Cheb | E123: KS Plzeň | F123: 105.6165 | G123: 79.5 | H123: 217.5 | I123: 1126 | J123: 969 | K123: 418 | L123: 157.4509804
A124: 33 | B124: 2009Karlovy Vary | C124: 2009 | D124: Karlovy Vary | E124: KS Plzeň | F124: 132.1045 | G124: 75 | H124: 297 | I124: 1589 | J124: 1669 | K124: 448 | L124: 97.97483523
A125: 34 | B125: 2009Klatovy | C125: 2009 | D125: Klatovy | E125: KS Plzeň | F125: 90.32035 | G125: 55 | H125: 180 | I125: 896 | J125: 851 | K125: 216 | L125: 92.6439483
A126: 35 | B126: 2009Plzeň-jih | C126: 2009 | D126: Plzeň-jih | E126: KS Plzeň | F126: 70.88854 | G126: 44.5 | H126: 148 | I126: 727 | J126: 713 | K126: 154 | L126: 78.83590463
A127: 36 | B127: 2009Plzeň-Město | C127: 2009 | D127: Plzeň-Město | E127: KS Plzeň | F127: 96.16165 | G127: 61 | H127: 201 | I127: 1738 | J127: 1711 | K127: 399 | L127: 85.11689071
A128: 37 | B128: 2009Plzeň-sever | C128: 2009 | D128: Plzeň-sever | E128: KS Plzeň | F128: 92.84258 | G128: 46 | H128: 198 | I128: 579 | J128: 611 | K128: 120 | L128: 71.68576105
A129: 38 | B129: 2009Rokycany | C129: 2009 | D129: Rokycany | E129: KS Plzeň | F129: 76.275 | G129: 48 | H129: 160.5 | I129: 429 | J129: 437 | K129: 91 | L129: 76.00686499
A130: 39 | B130: 2009Sokolov | C130: 2009 | D130: Sokolov | E130: KS Plzeň | F130: 108.0663 | G130: 85 | H130: 194 | I130: 1351 | J130: 1467 | K130: 287 | L130: 71.40763463
A131: 40 | B131: 2009Tachov | C131: 2009 | D131: Tachov | E131: KS Plzeň | F131: 101.8916 | G131: 55 | H131: 231 | I131: 688 | J131: 650 | K131: 182 | L131: 102.2
A132: 41 | B132: 2009Česká Lípa | C132: 2009 | D132: Česká Lípa | E132: KS Ústí n. Labem | F132: 120.2251 | G132: 86 | H132: 224 | I132: 1485 | J132: 1533 | K132: 442 | L132: 105.2380952
A133: 42 | B133: 2009Děčín | C133: 2009 | D133: Děčín | E133: KS Ústí n. Labem | F133: 126.348 | G133: 96 | H133: 230 | I133: 1860 | J133: 1736 | K133: 731 | L133: 153.6952765
A134: 43 | B134: 2009Chomutov | C134: 2009 | D134: Chomutov | E134: KS Ústí n. Labem | F134: 725.4715 | G134: 699 | H134: 1378 | I134: 1546 | J134: 1546 | K134: 1970 | L134: 465.1034929
A135: 44 | B135: =CONCATENATE(C135,D135) -> 2009Jablonec nad Nisou | C135: 2009 | D135: Jablonec nad Nisou | E135: KS Ústí n. Labem | F135: 92.6955 | G135: 43 | H135: 224 | I135: 874 | J135: 954 | K135: 141 | L135: =K135/J135*365 -> 53.94654088
A136: 45 | B136: 2009Liberec | C136: 2009 | D136: Liberec | E136: KS Ústí n. Labem | F136: 183.6585 | G136: 152 | H136: 346 | I136: 1756 | J136: 1659 | K136: 905 | L136: 199.1109102
A137: 46 | B137: 2009Litoměřice | C137: 2009 | D137: Litoměřice | E137: KS Ústí n. Labem | F137: 128.8933 | G137: 82 | H137: 249 | I137: 1607 | J137: 1622 | K137: 419 | L137: 94.28791615
A138: 47 | B138: 2009Louny | C138: 2009 | D138: Louny | E138: KS Ústí n. Labem | F138: 165.2865 | G138: 127 | H138: 267 | I138: 1155 | J138: 999 | K138: 579 | L138: 211.5465465
A139: 48 | B139: 2009Most | C139: 2009 | D139: Most | E139: KS Ústí n. Labem | F139: 155.8929 | G139: 110.5 | H139: 311.5 | I139: 1857 | J139: 1877 | K139: 695 | L139: 135.1491742
A140: 49 | B140: 2009Teplice | C140: 2009 | D140: Teplice | E140: KS Ústí n. Labem | F140: 241.1174 | G140: 156 | H140: 497 | I140: 1883 | J140: 2027 | K140: 978 | L140: 176.1075481
A141: 50 | B141: 2009Ústí nad Labem | C141: 2009 | D141: Ústí nad Labem | E141: KS Ústí n. Labem | F141: 204.9512 | G141: 95 | H141: 488 | I141: 1915 | J141: 1959 | K141: 922 | L141: 171.7866258
A142: 51 | B142: 2009Havlíčkův Brod | C142: 2009 | D142: Havlíčkův Brod | E142: KS Hr. Králové | F142: 106.2248 | G142: 78 | H142: 205 | I142: 885 | J142: 883 | K142: 207 | L142: 85.56625142
A143: 52 | B143: 2009Hradec Králové | C143: 2009 | D143: Hradec Králové | E143: KS Hr. Králové | F143: 91.90777 | G143: 53 | H143: 203 | I143: 1458 | J143: 1454 | K143: 341 | L143: 85.60178817
A144: 53 | B144: 2009Chrudim | C144: 2009 | D144: Chrudim | E144: KS Hr. Králové | F144: 138.9253 | G144: 91 | H144: 307 | I144: 894 | J144: 960 | K144: 260 | L144: 98.85416667
A145: 54 | B145: 2009Jičín | C145: 2009 | D145: Jičín | E145: KS Hr. Králové | F145: 100.2974 | G145: 70 | H145: 197 | I145: 741 | J145: 809 | K145: 119 | L145: 53.68974042
A146: 55 | B146: 2009Náchod | C146: 2009 | D146: Náchod | E146: KS Hr. Králové | F146: 81.64058 | G146: 53 | H146: 168 | I146: 1262 | J146: 1222 | K146: 259 | L146: 77.3608838
A147: 56 | B147: 2009Pardubice | C147: 2009 | D147: Pardubice | E147: KS Hr. Králové | F147: 95.37836 | G147: 68 | H147: 198 | I147: 1722 | J147: 1736 | K147: 442 | L147: 92.93202765
A148: 57 | B148: 2009Rychnov nad Kněžnou | C148: 2009 | D148: Rychnov nad Kněžnou | E148: KS Hr. Králové | F148: 139.7711 | G148: 106 | H148: 259 | I148: 953 | J148: 1000 | K148: 235 | L148: 85.775
A149: 58 | B149: 2009Semily | C149: 2009 | D149: Semily | E149: KS Hr. Králové | F149: 97.3125 | G149: 69 | H149: 194 | I149: 609 | J149: 591 | K149: 162 | L149: 100.0507614
A150: 59 | B150: 2009Svitavy | C150: 2009 | D150: Svitavy | E150: KS Hr. Králové | F150: 64.26429 | G150: 39 | H150: 149 | I150: 1228 | J150: 1194 | K150: 212 | L150: 64.80737018
A151: 60 | B151: 2009Trutnov | C151: 2009 | D151: Trutnov | E151: KS Hr. Králové | F151: 109.7102 | G151: 68 | H151: 224 | I151: 1452 | J151: 1495 | K151: 341 | L151: 83.2541806
A152: 61 | B152: 2009Ústí nad Orlicí | C152: 2009 | D152: Ústí nad Orlicí | E152: KS Hr. Králové | F152: 59.03503 | G152: 28 | H152: 132 | I152: 1457 | J152: 1483 | K152: 181 | L152: 44.54821308
A153: 62 | B153: 2009Blansko | C153: 2009 | D153: Blansko | E153: KS Brno | F153: 99.96879 | G153: 69 | H153: 194 | I153: 872 | J153: 932 | K153: 169 | L153: 66.18562232
A154: 63 | B154: 2009Brno-město | C154: 2009 | D154: Brno-město | E154: KS Brno | F154: 190.4465 | G154: 137 | H154: 371 | I154: 2451 | J154: 2336 | K154: 1389 | L154: 217.03125
A155: 64 | B155: 2009Brno-venkov | C155: 2009 | D155: Brno-venkov | E155: KS Brno | F155: 116.0467 | G155: 82 | H155: 233 | I155: 1163 | J155: 1113 | K155: 406 | L155: 133.1446541
A156: 65 | B156: 2009Břeclav | C156: 2009 | D156: Břeclav | E156: KS Brno | F156: 335.2962 | G156: 188 | H156: 834 | I156: 1104 | J156: 1323 | K156: 525 | L156: 144.8412698
A157: 66 | B157: 2009Hodonín | C157: 2009 | D157: Hodonín | E157: KS Brno | F157: 231.8726 | G157: 187 | H157: 455 | I157: 1033 | J157: 862 | K157: 716 | L157: 303.1786543
A158: 67 | B158: 2009Jihlava | C158: 2009 | D158: Jihlava | E158: KS Brno | F158: 137.087 | G158: 94 | H158: 289 | I158: 796 | J158: 803 | K158: 302 | L158: 137.2727273
A159: 68 | B159: 2009Kroměříž | C159: 2009 | D159: Kroměříž | E159: KS Brno | F159: 79.41951 | G159: 60 | H159: 168 | I159: 1260 | J159: 1084 | K159: 396 | L159: 133.3394834
A160: 69 | B160: 2009Prostějov | C160: 2009 | D160: Prostějov | E160: KS Brno | F160: 172.7926 | G160: 126 | H160: 358 | I160: 1202 | J160: 1237 | K160: 458 | L160: 135.1414713
A161: 70 | B161: 2009Třebíč | C161: 2009 | D161: Třebíč | E161: KS Brno | F161: 129.0748 | G161: 96 | H161: 271 | I161: 856 | J161: 881 | K161: 264 | L161: 109.3757094
A162: 71 | B162: 2009Uherské Hradiště | C162: 2009 | D162: Uherské Hradiště | E162: KS Brno | F162: 201.9787 | G162: 128 | H162: 481 | I162: 911 | J162: 909 | K162: 525 | L162: 210.8085809
A163: 72 | B163: 2009Vyškov | C163: 2009 | D163: Vyškov | E163: KS Brno | F163: 222.6434 | G163: 147 | H163: 470 | I163: 697 | J163: 690 | K163: 424 | L163: 224.2898551
A164: 73 | B164: 2009Zlín | C164: 2009 | D164: Zlín | E164: KS Brno | F164: 85.80795 | G164: 42 | H164: 203.5 | I164: 1633 | J164: 1641 | K164: 356 | L164: 79.18342474
A165: 74 | B165: 2009Znojmo | C165: 2009 | D165: Znojmo | E165: KS Brno | F165: 141.9428 | G165: 99 | H165: 282 | I165: 1348 | J165: 1368 | K165: 508 | L165: 135.5409357
A166: 75 | B166: 2009Žďár nad Sázavou | C166: 2009 | D166: Žďár nad Sázavou | E166: KS Brno | F166: 113.0853 | G166: 81 | H166: 218 | I166: 966 | J166: 970 | K166: 277 | L166: 104.2319588
A167: 76 | B167: 2009Bruntál | C167: 2009 | D167: Bruntál | E167: KS Ostrava | F167: 182.0505 | G167: 132 | H167: 350 | I167: 1416 | J167: 1425 | K167: 629 | L167: 161.1122807
A168: 77 | B168: 2009Frýdek-Místek | C168: 2009 | D168: Frýdek-Místek | E168: KS Ostrava | F168: 112.1186 | G168: 66 | H168: 241 | I168: 2227 | J168: 2226 | K168: 570 | L168: 93.46361186
A169: 78 | B169: 2009Jeseník | C169: 2009 | D169: Jeseník | E169: KS Ostrava | F169: 154.1949 | G169: 83 | H169: 309 | I169: 397 | J169: 341 | K169: 189 | L169: 202.3020528
A170: 79 | B170: 2009Karviná | C170: 2009 | D170: Karviná | E170: KS Ostrava | F170: 107.8355 | G170: 83 | H170: 205 | I170: 3786 | J170: 3842 | K170: 896 | L170: 85.12233212
A171: 80 | B171: 2009Nový Jičín | C171: 2009 | D171: Nový Jičín | E171: KS Ostrava | F171: 126.0047 | G171: 82 | H171: 266 | I171: 1671 | J171: 1586 | K171: 519 | L171: 119.4419924
A172: 81 | B172: 2009Olomouc | C172: 2009 | D172: Olomouc | E172: KS Ostrava | F172: 113.9734 | G172: 84 | H172: 217 | I172: 2209 | J172: 2173 | K172: 613 | L172: 102.9659457
A173: 82 | B173: 2009Opava | C173: 2009 | D173: Opava | E173: KS Ostrava | F173: 104.1092 | G173: 74 | H173: 199 | I173: 1567 | J173: 1532 | K173: 391 | L173: 93.15600522
A174: 83 | B174: 2009Ostrava | C174: 2009 | D174: Ostrava | E174: KS Ostrava | F174: 126.3607 | G174: 79 | H174: 266.5 | I174: 3695 | J174: 3730 | K174: 1112 | L174: 108.8150134
A175: 84 | B175: 2009Přerov | C175: 2009 | D175: Přerov | E175: KS Ostrava | F175: 114.0728 | G175: 71 | H175: 236 | I175: 1417 | J175: 1386 | K175: 396 | L175: 104.2857143
A176: 85 | B176: 2009Šumperk | C176: 2009 | D176: Šumperk | E176: KS Ostrava | F176: 138.7621 | G176: 101 | H176: 270 | I176: 1320 | J176: 1198 | K176: 536 | L176: 163.3055092
A177: 86 | B177: 2009Vsetín | C177: 2009 | D177: Vsetín | E177: KS Ostrava | F177: 144.7883 | G177: 87.5 | H177: 324 | I177: 1225 | J177: 1323 | K177: 376 | L177: 103.733938
A178: 1 | B178: 2010Praha 1 | C178: 2010 | D178: Praha 1 | E178: MS Praha | F178: 81.14286 | G178: 38 | H178: 147 | I178: 189 | J178: 190 | K178: 89 | L178: 170.9736842
A179: 2 | B179: 2010Praha 2 | C179: 2010 | D179: Praha 2 | E179: MS Praha | F179: 79.23462 | G179: 52 | H179: 168 | I179: 357 | J179: 371 | K179: 48 | L179: 47.22371968
A180: 3 | B180: 2010Praha 3 | C180: 2010 | D180: Praha 3 | E180: MS Praha | F180: 108.2913 | G180: 67 | H180: 228 | I180: 812 | J180: 807 | K180: 233 | L180: 105.3841388
A181: 4 | B181: 2010Praha 4 | C181: 2010 | D181: Praha 4 | E181: MS Praha | F181: 216.1124 | G181: 91 | H181: 629 | I181: 2333 | J181: 2323 | K181: 612 | L181: 96.16013775
A182: 5 | B182: 2010Praha 5 | C182: 2010 | D182: Praha 5 | E182: MS Praha | F182: 129.5057 | G182: 89 | H182: 285 | I182: 1353 | J182: 1359 | K182: 289 | L182: 77.61957322
A183: 6 | B183: 2010Praha 6 | C183: 2010 | D183: Praha 6 | E183: MS Praha | F183: 97.6116 | G183: 67 | H183: 219 | I183: 1192 | J183: 1049 | K183: 355 | L183: 123.5224023
A184: 7 | B184: 2010Praha 7 | C184: 2010 | D184: Praha 7 | E184: MS Praha | F184: 91.06723 | G184: 51 | H184: 227.5 | I184: 307 | J184: 254 | K184: 128 | L184: 183.9370079
A185: 8 | B185: 2010Praha 8 | C185: 2010 | D185: Praha 8 | E185: MS Praha | F185: 61.92308 | G185: 29 | H185: 128 | I185: 1084 | J185: 1086 | K185: 261 | L185: 87.72099448
A186: 9 | B186: 2010Praha 9 | C186: 2010 | D186: Praha 9 | E186: MS Praha | F186: 115.1302 | G186: 84 | H186: 228 | I186: 1465 | J186: 1486 | K186: 231 | L186: 56.73956931
A187: 10 | B187: 2010Praha 10 | C187: 2010 | D187: Praha 10 | E187: MS Praha | F187: 72.48343 | G187: 43 | H187: 151 | I187: 1571 | J187: 1544 | K187: 335 | L187: 79.19365285
A188: 11 | B188: 2010Beroun | C188: 2010 | D188: Beroun | E188: KS Praha | F188: 58.36686 | G188: 31 | H188: 111 | I188: 1106 | J188: 1190 | K188: 223 | L188: 68.39915966
A189: 12 | B189: 2010Benešov | C189: 2010 | D189: Benešov | E189: KS Praha | F189: 96.50706 | G189: 54 | H189: 230 | I189: 854 | J189: 832 | K189: 216 | L189: 94.75961538
A190: 13 | B190: 2010Kladno | C190: 2010 | D190: Kladno | E190: KS Praha | F190: 216.4733 | G190: 164 | H190: 441 | I190: 1812 | J190: 1786 | K190: 400 | L190: 81.74692049
A191: 14 | B191: 2010Kolín | C191: 2010 | D191: Kolín | E191: KS Praha | F191: 83.2332 | G191: 43 | H191: 177 | I191: 1293 | J191: 1333 | K191: 249 | L191: 68.1807952
A192: 15 | B192: 2010Kutná Hora | C192: 2010 | D192: Kutná Hora | E192: KS Praha | F192: 97.40746 | G192: 75 | H192: 188 | I192: 830 | J192: 847 | K192: 93 | L192: 40.07674144
A193: 16 | B193: 2010Mělník | C193: 2010 | D193: Mělník | E193: KS Praha | F193: 115.1054 | G193: 78 | H193: 222 | I193: 1257 | J193: 1228 | K193: 301 | L193: 89.46661238
A194: 17 | B194: 2010Mladá Boleslav | C194: 2010 | D194: Mladá Boleslav | E194: KS Praha | F194: 220.0756 | G194: 168.5 | H194: 432 | I194: 1475 | J194: 1478 | K194: 234 | L194: 57.78755074
A195: 18 | B195: 2010Nymburk | C195: 2010 | D195: Nymburk | E195: KS Praha | F195: 86.5098 | G195: 46 | H195: 217 | I195: 1337 | J195: 1306 | K195: 216 | L195: 60.36753446
A196: 19 | B196: 2010Praha-Východ | C196: 2010 | D196: Praha-Východ | E196: KS Praha | F196: 120.9135 | G196: 97 | H196: 218 | I196: 1563 | J196: 1548 | K196: 293 | L196: 69.08591731
A197: 20 | B197: 2010Praha-Západ | C197: 2010 | D197: Praha-Západ | E197: KS Praha | F197: 135.4707 | G197: 100 | H197: 291 | I197: 1402 | J197: 1379 | K197: 341 | L197: 90.25743292
A198: 21 | B198: 2010Příbram | C198: 2010 | D198: Příbram | E198: KS Praha | F198: 99.58366 | G198: 72 | H198: 185 | I198: 1016 | J198: 993 | K198: 195 | L198: 71.67673716
A199: 22 | B199: =CONCATENATE(C199,D199) -> 2010Rakovník | C199: 2010 | D199: Rakovník | E199: KS Praha | F199: 247.6124 | G199: 161 | H199: 604 | I199: 663 | J199: 665 | K199: 102 | L199: =K199/J199*365 -> 55.98496241
A200: 23 | B200: 2010České Budějovice | C200: 2010 | D200: České Budějovice | E200: KS Č. Budějovice | F200: 211.6505 | G200: 105 | H200: 525 | I200: 2166 | J200: 2159 | K200: 273 | L200: 46.15331172
A201: 24 | B201: 2010Český Krumlov | C201: 2010 | D201: Český Krumlov | E201: KS Č. Budějovice | F201: 97.19399 | G201: 49 | H201: 214 | I201: 810 | J201: 803 | K201: 121 | L201: 55
... 1180 more rows

Sheet Pom_tabulky_grafy (hidden)
A1: Pomocné tabulky pro výpočet grafů
A2: Okresní soud: | C2: ='Výsl. OS - 2023 průřezová data'!C2 -> Brno-město
A3: Nadřízený soud: | C3: ='Výsl. OS - 2023 průřezová data'!C3 -> KS Brno
A4: Trest - řady | M4: Pom. Tabulka - kraje
B5: Délka řízení | E5: Vyřizování věcí | K5: Pomoc. Tab. pro graf | M5: Nadřízený soud | N5: Kraj | O5: Počet soudů
A6: Rok | B6: Průměr | C6: Medián | D6: Percentil 90 | E6: Obživa+nápad | F6: Vyřízeno | G6: Nevyřízeno | H6: Disposition time | K6: ='Výsl. OS - 2023 průřezová data'!C2 -> Brno-město | M6: MS Praha | N6: Praha | O6: =COUNTIF(Pom_tabulky_grafy!$C$64:$C$149,M6) -> 10
A7: 2008 | B7: =VLOOKUP($A7&$C$2,Databáze_trest!$B$6:$L$1999,5,0) -> 182 | C7: =VLOOKUP($A7&$C$2,Databáze_trest!$B$6:$L$1999,6,0) -> 105 | D7: =VLOOKUP($A7&$C$2,Databáze_trest!$B$6:$L$1999,7,0) -> 398 | E7: =VLOOKUP($A7&$C$2,Databáze_trest!$B$6:$L$1999,8,0) -> 4893 | F7: =VLOOKUP($A7&$C$2,Databáze_trest!$B$6:$L$1999,9,0) -> 5099 | G7: =VLOOKUP($A7&$C$2,Databáze_trest!$B$6:$L$1999,10,0) -> 659 | H7: =VLOOKUP($A7&$C$2,Databáze_trest!$B$6:$L$1999,11,0) -> 47.17297509 | K7: =VLOOKUP('Výsl. OS - 2023 průřezová data'!C3,M6:N13,2,0) -> Jihomoravský kraj | M7: KS Praha | N7: Středočeský kraj | O7: =COUNTIF(Pom_tabulky_grafy!$C$64:$C$149,M7) -> 12
A8: 2009 | B8: =VLOOKUP($A8&$C$2,Databáze_trest!$B$6:$L$1999,5,0) -> 139 | C8: =VLOOKUP($A8&$C$2,Databáze_trest!$B$6:$L$1999,6,0) -> 84 | D8: =VLOOKUP($A8&$C$2,Databáze_trest!$B$6:$L$1999,7,0) -> 306 | E8: =VLOOKUP($A8&$C$2,Databáze_trest!$B$6:$L$1999,8,0) -> 5019 | F8: =VLOOKUP($A8&$C$2,Databáze_trest!$B$6:$L$1999,9,0) -> 5092 | G8: =VLOOKUP($A8&$C$2,Databáze_trest!$B$6:$L$1999,10,0) -> 586 | H8: =VLOOKUP($A8&$C$2,Databáze_trest!$B$6:$L$1999,11,0) -> 42.00510605 | K8: ČR | M8: KS Č. Budějovice | N8: Jihočeský kraj | O8: =COUNTIF(Pom_tabulky_grafy!$C$64:$C$149,M8) -> 8
A9: 2010 | B9: =VLOOKUP($A9&$C$2,Databáze_trest!$B$6:$L$1999,5,0) -> 118 | C9: =VLOOKUP($A9&$C$2,Databáze_trest!$B$6:$L$1999,6,0) -> 69 | D9: =VLOOKUP($A9&$C$2,Databáze_trest!$B$6:$L$1999,7,0) -> 240 | E9: =VLOOKUP($A9&$C$2,Databáze_trest!$B$6:$L$1999,8,0) -> 4205 | F9: =VLOOKUP($A9&$C$2,Databáze_trest!$B$6:$L$1999,9,0) -> 4292 | G9: =VLOOKUP($A9&$C$2,Databáze_trest!$B$6:$L$1999,10,0) -> 499 | H9: =VLOOKUP($A9&$C$2,Databáze_trest!$B$6:$L$1999,11,0) -> 42.43592731 | M9: KS Plzeň | N9: Západočeský kraj | O9: =COUNTIF(Pom_tabulky_grafy!$C$64:$C$149,M9) -> 10
A10: 2011 | B10: =VLOOKUP($A10&$C$2,Databáze_trest!$B$6:$L$1999,5,0) -> 101 | C10: =VLOOKUP($A10&$C$2,Databáze_trest!$B$6:$L$1999,6,0) -> 63 | D10: =VLOOKUP($A10&$C$2,Databáze_trest!$B$6:$L$1999,7,0) -> 202 | E10: =VLOOKUP($A10&$C$2,Databáze_trest!$B$6:$L$1999,8,0) -> 3962 | F10: =VLOOKUP($A10&$C$2,Databáze_trest!$B$6:$L$1999,9,0) -> 3971 | G10: =VLOOKUP($A10&$C$2,Databáze_trest!$B$6:$L$1999,10,0) -> 490 | H10: =VLOOKUP($A10&$C$2,Databáze_trest!$B$6:$L$1999,11,0) -> 45.03903299 | M10: KS Ústí n. Labem | N10: Severočeský kraj | O10: =COUNTIF(Pom_tabulky_grafy!$C$64:$C$149,M10) -> 10
A11: 2012 | B11: =VLOOKUP($A11&$C$2,Databáze_trest!$B$6:$L$1999,5,0) -> 95 | C11: =VLOOKUP($A11&$C$2,Databáze_trest!$B$6:$L$1999,6,0) -> 57 | D11: =VLOOKUP($A11&$C$2,Databáze_trest!$B$6:$L$1999,7,0) -> 181 | E11: =VLOOKUP($A11&$C$2,Databáze_trest!$B$6:$L$1999,8,0) -> 4144 | F11: =VLOOKUP($A11&$C$2,Databáze_trest!$B$6:$L$1999,9,0) -> 4165 | G11: =VLOOKUP($A11&$C$2,Databáze_trest!$B$6:$L$1999,10,0) -> 469 | H11: =VLOOKUP($A11&$C$2,Databáze_trest!$B$6:$L$1999,11,0) -> 41.10084034 | M11: KS Hr. Králové | N11: Východočeský kraj | O11: =COUNTIF(Pom_tabulky_grafy!$C$64:$C$149,M11) -> 11
A12: 2013 | B12: =VLOOKUP($A12&$C$2,Databáze_trest!$B$6:$L$1999,5,0) -> 93 | C12: =VLOOKUP($A12&$C$2,Databáze_trest!$B$6:$L$1999,6,0) -> 55 | D12: =VLOOKUP($A12&$C$2,Databáze_trest!$B$6:$L$1999,7,0) -> 180 | E12: =VLOOKUP($A12&$C$2,Databáze_trest!$B$6:$L$1999,8,0) -> 4333 | F12: =VLOOKUP($A12&$C$2,Databáze_trest!$B$6:$L$1999,9,0) -> 4363 | G12: =VLOOKUP($A12&$C$2,Databáze_trest!$B$6:$L$1999,10,0) -> 439 | H12: =VLOOKUP($A12&$C$2,Databáze_trest!$B$6:$L$1999,11,0) -> 36.72587669 | M12: KS Brno | N12: Jihomoravský kraj | O12: =COUNTIF(Pom_tabulky_grafy!$C$64:$C$149,M12) -> 14
A13: 2014 | B13: =VLOOKUP($A13&$C$2,Databáze_trest!$B$6:$L$1999,5,0) -> 91 | C13: =VLOOKUP($A13&$C$2,Databáze_trest!$B$6:$L$1999,6,0) -> 61 | D13: =VLOOKUP($A13&$C$2,Databáze_trest!$B$6:$L$1999,7,0) -> 178 | E13: =VLOOKUP($A13&$C$2,Databáze_trest!$B$6:$L$1999,8,0) -> 4421 | F13: =VLOOKUP($A13&$C$2,Databáze_trest!$B$6:$L$1999,9,0) -> 4458 | G13: =VLOOKUP($A13&$C$2,Databáze_trest!$B$6:$L$1999,10,0) -> 402 | H13: =VLOOKUP($A13&$C$2,Databáze_trest!$B$6:$L$1999,11,0) -> 32.91386272 | M13: KS Ostrava | N13: Severomoravský kraj | O13: =COUNTIF(Pom_tabulky_grafy!$C$64:$C$149,M13) -> 11
A14: 2015 | B14: =VLOOKUP($A14&$C$2,Databáze_trest!$B$6:$L$1999,5,0) -> 90 | C14: =VLOOKUP($A14&$C$2,Databáze_trest!$B$6:$L$1999,6,0) -> 63 | D14: =VLOOKUP($A14&$C$2,Databáze_trest!$B$6:$L$1999,7,0) -> 176 | E14: =VLOOKUP($A14&$C$2,Databáze_trest!$B$6:$L$1999,8,0) -> 3907 | F14: =VLOOKUP($A14&$C$2,Databáze_trest!$B$6:$L$1999,9,0) -> 3927 | G14: =VLOOKUP($A14&$C$2,Databáze_trest!$B$6:$L$1999,10,0) -> 382 | H14: =VLOOKUP($A14&$C$2,Databáze_trest!$B$6:$L$1999,11,0) -> 35.50547492
A15: 2016 | B15: =VLOOKUP($A15&$C$2,Databáze_trest!$B$6:$L$1999,5,0) -> 101 | C15: =VLOOKUP($A15&$C$2,Databáze_trest!$B$6:$L$1999,6,0) -> 59 | D15: =VLOOKUP($A15&$C$2,Databáze_trest!$B$6:$L$1999,7,0) -> 208 | E15: =VLOOKUP($A15&$C$2,Databáze_trest!$B$6:$L$1999,8,0) -> 3461 | F15: =VLOOKUP($A15&$C$2,Databáze_trest!$B$6:$L$1999,9,0) -> 3492 | G15: =VLOOKUP($A15&$C$2,Databáze_trest!$B$6:$L$1999,10,0) -> 351 | H15: =VLOOKUP($A15&$C$2,Databáze_trest!$B$6:$L$1999,11,0) -> 36.68814433
A16: 2017 | B16: =VLOOKUP($A16&$C$2,Databáze_trest!$B$6:$L$1999,5,0) -> 94 | C16: =VLOOKUP($A16&$C$2,Databáze_trest!$B$6:$L$1999,6,0) -> 57 | D16: =VLOOKUP($A16&$C$2,Databáze_trest!$B$6:$L$1999,7,0) -> 196 | E16: =VLOOKUP($A16&$C$2,Databáze_trest!$B$6:$L$1999,8,0) -> 3060 | F16: =VLOOKUP($A16&$C$2,Databáze_trest!$B$6:$L$1999,9,0) -> 3056 | G16: =VLOOKUP($A16&$C$2,Databáze_trest!$B$6:$L$1999,10,0) -> 355 | H16: =VLOOKUP($A16&$C$2,Databáze_trest!$B$6:$L$1999,11,0) -> 42.40019634 | M16: Pom. Tabulka -podm. Formátování (posl 3)
A17: 2018 | B17: =VLOOKUP($A17&$C$2,Databáze_trest!$B$6:$L$1999,5,0) -> 89 | C17: =VLOOKUP($A17&$C$2,Databáze_trest!$B$6:$L$1999,6,0) -> 57 | D17: =VLOOKUP($A17&$C$2,Databáze_trest!$B$6:$L$1999,7,0) -> 187 | E17: =VLOOKUP($A17&$C$2,Databáze_trest!$B$6:$L$1999,8,0) -> 2926 | F17: =VLOOKUP($A17&$C$2,Databáze_trest!$B$6:$L$1999,9,0) -> 2912 | G17: =VLOOKUP($A17&$C$2,Databáze_trest!$B$6:$L$1999,10,0) -> 369 | H17: =VLOOKUP($A17&$C$2,Databáze_trest!$B$6:$L$1999,11,0) -> 46.25171703
A18: 2019 | B18: =VLOOKUP($A18&$C$2,Databáze_trest!$B$6:$L$1999,5,0) -> 90.86908 | C18: =VLOOKUP($A18&$C$2,Databáze_trest!$B$6:$L$1999,6,0) -> 55 | D18: =VLOOKUP($A18&$C$2,Databáze_trest!$B$6:$L$1999,7,0) -> 181 | E18: =VLOOKUP($A18&$C$2,Databáze_trest!$B$6:$L$1999,8,0) -> 3099 | F18: =VLOOKUP($A18&$C$2,Databáze_trest!$B$6:$L$1999,9,0) -> 3112 | G18: =VLOOKUP($A18&$C$2,Databáze_trest!$B$6:$L$1999,10,0) -> 356 | H18: =VLOOKUP($A18&$C$2,Databáze_trest!$B$6:$L$1999,11,0) -> 41.75449871 | M18: Nadřízený soud | N18: Počet soudů - 3
A19: 2020 | B19: =VLOOKUP($A19&$C$2,Databáze_trest!$B$6:$L$1999,5,0) -> 112.007 | C19: =VLOOKUP($A19&$C$2,Databáze_trest!$B$6:$L$1999,6,0) -> 64 | D19: =VLOOKUP($A19&$C$2,Databáze_trest!$B$6:$L$1999,7,0) -> 220 | E19: =VLOOKUP($A19&$C$2,Databáze_trest!$B$6:$L$1999,8,0) -> 2488 | F19: =VLOOKUP($A19&$C$2,Databáze_trest!$B$6:$L$1999,9,0) -> 2482 | G19: =VLOOKUP($A19&$C$2,Databáze_trest!$B$6:$L$1999,10,0) -> 363 | H19: =VLOOKUP($A19&$C$2,Databáze_trest!$B$6:$L$1999,11,0) -> 53.38235294 | M19: ='Výsl. OS - 2023 průřezová data'!C3 -> KS Brno | N19: =VLOOKUP(M19,$M$6:$O$13,3,0)-3 -> 11
A20: 2021 | B20: =VLOOKUP($A20&$C$2,Databáze_trest!$B$6:$L$1999,5,0) -> 111.7426 | C20: =VLOOKUP($A20&$C$2,Databáze_trest!$B$6:$L$1999,6,0) -> 62 | D20: =VLOOKUP($A20&$C$2,Databáze_trest!$B$6:$L$1999,7,0) -> 249 | E20: =VLOOKUP($A20&$C$2,Databáze_trest!$B$6:$L$1999,8,0) -> 2267 | F20: =VLOOKUP($A20&$C$2,Databáze_trest!$B$6:$L$1999,9,0) -> 2324 | G20: =VLOOKUP($A20&$C$2,Databáze_trest!$B$6:$L$1999,10,0) -> 306 | H20: =VLOOKUP($A20&$C$2,Databáze_trest!$B$6:$L$1999,11,0) -> 48.05938038
A21: 2022 | B21: =VLOOKUP($A21&$C$2,Databáze_trest!$B$6:$L$1999,5,0) -> 94.40731 | C21: =VLOOKUP($A21&$C$2,Databáze_trest!$B$6:$L$1999,6,0) -> 51 | D21: =VLOOKUP($A21&$C$2,Databáze_trest!$B$6:$L$1999,7,0) -> 178 | E21: =VLOOKUP($A21&$C$2,Databáze_trest!$B$6:$L$1999,8,0) -> 2419 | F21: =VLOOKUP($A21&$C$2,Databáze_trest!$B$6:$L$1999,9,0) -> 2459 | G21: =VLOOKUP($A21&$C$2,Databáze_trest!$B$6:$L$1999,10,0) -> 266 | H21: =VLOOKUP($A21&$C$2,Databáze_trest!$B$6:$L$1999,11,0) -> 39.48352989
A22: 2023 | B22: =VLOOKUP($A22&$C$2,Databáze_trest!$B$6:$L$1999,5,0) -> 84.56547 | C22: =VLOOKUP($A22&$C$2,Databáze_trest!$B$6:$L$1999,6,0) -> 43 | D22: =VLOOKUP($A22&$C$2,Databáze_trest!$B$6:$L$1999,7,0) -> 153 | E22: =VLOOKUP($A22&$C$2,Databáze_trest!$B$6:$L$1999,8,0) -> 2594 | F22: =VLOOKUP($A22&$C$2,Databáze_trest!$B$6:$L$1999,9,0) -> 2614 | G22: =VLOOKUP($A22&$C$2,Databáze_trest!$B$6:$L$1999,10,0) -> 246 | H22: =VLOOKUP($A22&$C$2,Databáze_trest!$B$6:$L$1999,11,0) -> 34.3496557
A23: Civil - řady
B24: Délka řízení | E24: Vyřizování věcí
A25: Rok | B25: Průměr | C25: Medián | D25: Percentil 90 | E25: Obživa+nápad | F25: Vyřízeno | G25: Nevyřízeno | H25: Disposition time
A26: 2008 | B26: =VLOOKUP($A26&$C$2,Databáze_civil!$B$6:$L$2000,5,0) -> 406.9978 | C26: =VLOOKUP($A26&$C$2,Databáze_civil!$B$6:$L$2000,6,0) -> 272 | D26: =VLOOKUP($A26&$C$2,Databáze_civil!$B$6:$L$2000,7,0) -> 665 | E26: =VLOOKUP($A26&$C$2,Databáze_civil!$B$6:$L$2000,8,0) -> 15813 | F26: =VLOOKUP($A26&$C$2,Databáze_civil!$B$6:$L$2000,9,0) -> 16861 | G26: =VLOOKUP($A26&$C$2,Databáze_civil!$B$6:$L$2000,10,0) -> 12012 | H26: =VLOOKUP($A26&$C$2,Databáze_civil!$B$6:$L$2000,11,0) -> 260.0308404
A27: 2009 | B27: =VLOOKUP($A27&$C$2,Databáze_civil!$B$6:$L$2000,5,0) -> 637.4904 | C27: =VLOOKUP($A27&$C$2,Databáze_civil!$B$6:$L$2000,6,0) -> 497 | D27: =VLOOKUP($A27&$C$2,Databáze_civil!$B$6:$L$2000,7,0) -> 1140 | E27: =VLOOKUP($A27&$C$2,Databáze_civil!$B$6:$L$2000,8,0) -> 29945 | F27: =VLOOKUP($A27&$C$2,Databáze_civil!$B$6:$L$2000,9,0) -> 25619 | G27: =VLOOKUP($A27&$C$2,Databáze_civil!$B$6:$L$2000,10,0) -> 16338 | H27: =VLOOKUP($A27&$C$2,Databáze_civil!$B$6:$L$2000,11,0) -> 232.7713806
A28: 2010 | B28: =VLOOKUP($A28&$C$2,Databáze_civil!$B$6:$L$2000,5,0) -> 663.3819 | C28: =VLOOKUP($A28&$C$2,Databáze_civil!$B$6:$L$2000,6,0) -> 488 | D28: =VLOOKUP($A28&$C$2,Databáze_civil!$B$6:$L$2000,7,0) -> 1206 | E28: =VLOOKUP($A28&$C$2,Databáze_civil!$B$6:$L$2000,8,0) -> 22941 | F28: =VLOOKUP($A28&$C$2,Databáze_civil!$B$6:$L$2000,9,0) -> 23770 | G28: =VLOOKUP($A28&$C$2,Databáze_civil!$B$6:$L$2000,10,0) -> 15510 | H28: =VLOOKUP($A28&$C$2,Databáze_civil!$B$6:$L$2000,11,0) -> 238.1636517
A29: 2011 | B29: =VLOOKUP($A29&$C$2,Databáze_civil!$B$6:$L$2000,5,0) -> 709.9339 | C29: =VLOOKUP($A29&$C$2,Databáze_civil!$B$6:$L$2000,6,0) -> 566 | D29: =VLOOKUP($A29&$C$2,Databáze_civil!$B$6:$L$2000,7,0) -> 1251 | E29: =VLOOKUP($A29&$C$2,Databáze_civil!$B$6:$L$2000,8,0) -> 26645 | F29: =VLOOKUP($A29&$C$2,Databáze_civil!$B$6:$L$2000,9,0) -> 22548 | G29: =VLOOKUP($A29&$C$2,Databáze_civil!$B$6:$L$2000,10,0) -> 19607 | H29: =VLOOKUP($A29&$C$2,Databáze_civil!$B$6:$L$2000,11,0) -> 317.3920082
A30: 2012 | B30: =VLOOKUP($A30&$C$2,Databáze_civil!$B$6:$L$2000,5,0) -> 725.4255 | C30: =VLOOKUP($A30&$C$2,Databáze_civil!$B$6:$L$2000,6,0) -> 638 | D30: =VLOOKUP($A30&$C$2,Databáze_civil!$B$6:$L$2000,7,0) -> 1360 | E30: =VLOOKUP($A30&$C$2,Databáze_civil!$B$6:$L$2000,8,0) -> 19059 | F30: =VLOOKUP($A30&$C$2,Databáze_civil!$B$6:$L$2000,9,0) -> 21601 | G30: =VLOOKUP($A30&$C$2,Databáze_civil!$B$6:$L$2000,10,0) -> 17065 | H30: =VLOOKUP($A30&$C$2,Databáze_civil!$B$6:$L$2000,11,0) -> 288.3535484
A31: 2013 | B31: =VLOOKUP($A31&$C$2,Databáze_civil!$B$6:$L$2000,5,0) -> 808.6771 | C31: =VLOOKUP($A31&$C$2,Databáze_civil!$B$6:$L$2000,6,0) -> 763 | D31: =VLOOKUP($A31&$C$2,Databáze_civil!$B$6:$L$2000,7,0) -> 1317 | E31: =VLOOKUP($A31&$C$2,Databáze_civil!$B$6:$L$2000,8,0) -> 19666 | F31: =VLOOKUP($A31&$C$2,Databáze_civil!$B$6:$L$2000,9,0) -> 22097 | G31: =VLOOKUP($A31&$C$2,Databáze_civil!$B$6:$L$2000,10,0) -> 14634 | H31: =VLOOKUP($A31&$C$2,Databáze_civil!$B$6:$L$2000,11,0) -> 241.7255736
A32: 2014 | B32: =VLOOKUP($A32&$C$2,Databáze_civil!$B$6:$L$2000,5,0) -> 828.1285 | C32: =VLOOKUP($A32&$C$2,Databáze_civil!$B$6:$L$2000,6,0) -> 889 | D32: =VLOOKUP($A32&$C$2,Databáze_civil!$B$6:$L$2000,7,0) -> 1301 | E32: =VLOOKUP($A32&$C$2,Databáze_civil!$B$6:$L$2000,8,0) -> 27101 | F32: =VLOOKUP($A32&$C$2,Databáze_civil!$B$6:$L$2000,9,0) -> 23843 | G32: =VLOOKUP($A32&$C$2,Databáze_civil!$B$6:$L$2000,10,0) -> 17892 | H32: =VLOOKUP($A32&$C$2,Databáze_civil!$B$6:$L$2000,11,0) -> 273.8992576
A33: 2015 | B33: =VLOOKUP($A33&$C$2,Databáze_civil!$B$6:$L$2000,5,0) -> 850.7798 | C33: =VLOOKUP($A33&$C$2,Databáze_civil!$B$6:$L$2000,6,0) -> 741 | D33: =VLOOKUP($A33&$C$2,Databáze_civil!$B$6:$L$2000,7,0) -> 1454 | E33: =VLOOKUP($A33&$C$2,Databáze_civil!$B$6:$L$2000,8,0) -> 18965 | F33: =VLOOKUP($A33&$C$2,Databáze_civil!$B$6:$L$2000,9,0) -> 22050 | G33: =VLOOKUP($A33&$C$2,Databáze_civil!$B$6:$L$2000,10,0) -> 14807 | H33: =VLOOKUP($A33&$C$2,Databáze_civil!$B$6:$L$2000,11,0) -> 245.1045351
A34: 2016 | B34: =VLOOKUP($A34&$C$2,Databáze_civil!$B$6:$L$2000,5,0) -> 661.7057 | C34: =VLOOKUP($A34&$C$2,Databáze_civil!$B$6:$L$2000,6,0) -> 500 | D34: =VLOOKUP($A34&$C$2,Databáze_civil!$B$6:$L$2000,7,0) -> 1364.5 | E34: =VLOOKUP($A34&$C$2,Databáze_civil!$B$6:$L$2000,8,0) -> 17490 | F34: =VLOOKUP($A34&$C$2,Databáze_civil!$B$6:$L$2000,9,0) -> 20894 | G34: =VLOOKUP($A34&$C$2,Databáze_civil!$B$6:$L$2000,10,0) -> 11402 | H34: =VLOOKUP($A34&$C$2,Databáze_civil!$B$6:$L$2000,11,0) -> 199.183019
A35: 2017 | B35: =VLOOKUP($A35&$C$2,Databáze_civil!$B$6:$L$2000,5,0) -> 514.867 | C35: =VLOOKUP($A35&$C$2,Databáze_civil!$B$6:$L$2000,6,0) -> 369 | D35: =VLOOKUP($A35&$C$2,Databáze_civil!$B$6:$L$2000,7,0) -> 995 | E35: =VLOOKUP($A35&$C$2,Databáze_civil!$B$6:$L$2000,8,0) -> 16610 | F35: =VLOOKUP($A35&$C$2,Databáze_civil!$B$6:$L$2000,9,0) -> 18763 | G35: =VLOOKUP($A35&$C$2,Databáze_civil!$B$6:$L$2000,10,0) -> 9249 | H35: =VLOOKUP($A35&$C$2,Databáze_civil!$B$6:$L$2000,11,0) -> 179.9224538
A36: 2018 | B36: =VLOOKUP($A36&$C$2,Databáze_civil!$B$6:$L$2000,5,0) -> 460.6634 | C36: =VLOOKUP($A36&$C$2,Databáze_civil!$B$6:$L$2000,6,0) -> 301 | D36: =VLOOKUP($A36&$C$2,Databáze_civil!$B$6:$L$2000,7,0) -> 908 | E36: =VLOOKUP($A36&$C$2,Databáze_civil!$B$6:$L$2000,8,0) -> 13355 | F36: =VLOOKUP($A36&$C$2,Databáze_civil!$B$6:$L$2000,9,0) -> 14391 | G36: =VLOOKUP($A36&$C$2,Databáze_civil!$B$6:$L$2000,10,0) -> 8213 | H36: =VLOOKUP($A36&$C$2,Databáze_civil!$B$6:$L$2000,11,0) -> 208.3069279
A37: 2019 | B37: =VLOOKUP($A37&$C$2,Databáze_civil!$B$6:$L$2000,5,0) -> 432.1257 | C37: =VLOOKUP($A37&$C$2,Databáze_civil!$B$6:$L$2000,6,0) -> 260 | D37: =VLOOKUP($A37&$C$2,Databáze_civil!$B$6:$L$2000,7,0) -> 833 | E37: =VLOOKUP($A37&$C$2,Databáze_civil!$B$6:$L$2000,8,0) -> 12267 | F37: =VLOOKUP($A37&$C$2,Databáze_civil!$B$6:$L$2000,9,0) -> 13277 | G37: =VLOOKUP($A37&$C$2,Databáze_civil!$B$6:$L$2000,10,0) -> 7204 | H37: =VLOOKUP($A37&$C$2,Databáze_civil!$B$6:$L$2000,11,0) -> 198.0462454
A38: 2020 | B38: =VLOOKUP($A38&$C$2,Databáze_civil!$B$6:$L$2000,5,0) -> 455.5787 | C38: =VLOOKUP($A38&$C$2,Databáze_civil!$B$6:$L$2000,6,0) -> 261 | D38: =VLOOKUP($A38&$C$2,Databáze_civil!$B$6:$L$2000,7,0) -> 821 | E38: =VLOOKUP($A38&$C$2,Databáze_civil!$B$6:$L$2000,8,0) -> 11972 | F38: =VLOOKUP($A38&$C$2,Databáze_civil!$B$6:$L$2000,9,0) -> 12114 | G38: =VLOOKUP($A38&$C$2,Databáze_civil!$B$6:$L$2000,10,0) -> 7064 | H38: =VLOOKUP($A38&$C$2,Databáze_civil!$B$6:$L$2000,11,0) -> 212.8413406
A39: 2021 | B39: =VLOOKUP($A39&$C$2,Databáze_civil!$B$6:$L$2000,5,0) -> 418.2579 | C39: =VLOOKUP($A39&$C$2,Databáze_civil!$B$6:$L$2000,6,0) -> 278 | D39: =VLOOKUP($A39&$C$2,Databáze_civil!$B$6:$L$2000,7,0) -> 683 | E39: =VLOOKUP($A39&$C$2,Databáze_civil!$B$6:$L$2000,8,0) -> 12871 | F39: =VLOOKUP($A39&$C$2,Databáze_civil!$B$6:$L$2000,9,0) -> 12422 | G39: =VLOOKUP($A39&$C$2,Databáze_civil!$B$6:$L$2000,10,0) -> 7513 | H39: =VLOOKUP($A39&$C$2,Databáze_civil!$B$6:$L$2000,11,0) -> 220.7571245
A40: 2022 | B40: =VLOOKUP($A40&$C$2,Databáze_civil!$B$6:$L$2000,5,0) -> 406.9978 | C40: =VLOOKUP($A40&$C$2,Databáze_civil!$B$6:$L$2000,6,0) -> 272 | D40: =VLOOKUP($A40&$C$2,Databáze_civil!$B$6:$L$2000,7,0) -> 665 | E40: =VLOOKUP($A40&$C$2,Databáze_civil!$B$6:$L$2000,8,0) -> 12671 | F40: =VLOOKUP($A40&$C$2,Databáze_civil!$B$6:$L$2000,9,0) -> 12923 | G40: =VLOOKUP($A40&$C$2,Databáze_civil!$B$6:$L$2000,10,0) -> 7263 | H40: =VLOOKUP($A40&$C$2,Databáze_civil!$B$6:$L$2000,11,0) -> 205.1377389
A41: 2023 | B41: =VLOOKUP($A41&$C$2,Databáze_civil!$B$6:$L$2000,5,0) -> 358.5775 | C41: =VLOOKUP($A41&$C$2,Databáze_civil!$B$6:$L$2000,6,0) -> 245 | D41: =VLOOKUP($A41&$C$2,Databáze_civil!$B$6:$L$2000,7,0) -> 599 | E41: =VLOOKUP($A41&$C$2,Databáze_civil!$B$6:$L$2000,8,0) -> 12516 | F41: =VLOOKUP($A41&$C$2,Databáze_civil!$B$6:$L$2000,9,0) -> 13056 | G41: =VLOOKUP($A41&$C$2,Databáze_civil!$B$6:$L$2000,10,0) -> 6723 | H41: =VLOOKUP($A41&$C$2,Databáze_civil!$B$6:$L$2000,11,0) -> 187.9515165
A42: Opatrovnická agenda - řady
B43: Délka řízení | E43: Vyřizování věcí
A44: Rok | B44: Průměr | C44: Medián | D44: Percentil 90 | E44: Obživa+nápad | F44: Vyřízeno | G44: Nevyřízeno | H44: Disposition time
A45: 2008 | B45: =VLOOKUP($A45&$C$2,Databáze_opatro!$B$6:$L$2000,5,0) -> 0 | C45: =VLOOKUP($A45&$C$2,Databáze_opatro!$B$6:$L$2000,6,0) -> 0 | D45: =VLOOKUP($A45&$C$2,Databáze_opatro!$B$6:$L$2000,7,0) -> 0 | E45: =VLOOKUP($A45&$C$2,Databáze_opatro!$B$6:$L$2000,8,0) -> 2679 | F45: =VLOOKUP($A45&$C$2,Databáze_opatro!$B$6:$L$2000,9,0) -> 2488 | G45: =VLOOKUP($A45&$C$2,Databáze_opatro!$B$6:$L$2000,10,0) -> 1274 | H45: =VLOOKUP($A45&$C$2,Databáze_opatro!$B$6:$L$2000,11,0) -> 186.9011254
A46: 2009 | B46: =VLOOKUP($A46&$C$2,Databáze_opatro!$B$6:$L$2000,5,0) -> 190.4465 | C46: =VLOOKUP($A46&$C$2,Databáze_opatro!$B$6:$L$2000,6,0) -> 137 | D46: =VLOOKUP($A46&$C$2,Databáze_opatro!$B$6:$L$2000,7,0) -> 371 | E46: =VLOOKUP($A46&$C$2,Databáze_opatro!$B$6:$L$2000,8,0) -> 2451 | F46: =VLOOKUP($A46&$C$2,Databáze_opatro!$B$6:$L$2000,9,0) -> 2336 | G46: =VLOOKUP($A46&$C$2,Databáze_opatro!$B$6:$L$2000,10,0) -> 1389 | H46: =VLOOKUP($A46&$C$2,Databáze_opatro!$B$6:$L$2000,11,0) -> 217.03125
A47: 2010 | B47: =VLOOKUP($A47&$C$2,Databáze_opatro!$B$6:$L$2000,5,0) -> 93.30899 | C47: =VLOOKUP($A47&$C$2,Databáze_opatro!$B$6:$L$2000,6,0) -> 45.5 | D47: =VLOOKUP($A47&$C$2,Databáze_opatro!$B$6:$L$2000,7,0) -> 219 | E47: =VLOOKUP($A47&$C$2,Databáze_opatro!$B$6:$L$2000,8,0) -> 2407 | F47: =VLOOKUP($A47&$C$2,Databáze_opatro!$B$6:$L$2000,9,0) -> 2365 | G47: =VLOOKUP($A47&$C$2,Databáze_opatro!$B$6:$L$2000,10,0) -> 1431 | H47: =VLOOKUP($A47&$C$2,Databáze_opatro!$B$6:$L$2000,11,0) -> 220.8520085
A48: 2011 | B48: =VLOOKUP($A48&$C$2,Databáze_opatro!$B$6:$L$2000,5,0) -> 240.4304 | C48: =VLOOKUP($A48&$C$2,Databáze_opatro!$B$6:$L$2000,6,0) -> 185 | D48: =VLOOKUP($A48&$C$2,Databáze_opatro!$B$6:$L$2000,7,0) -> 475 | E48: =VLOOKUP($A48&$C$2,Databáze_opatro!$B$6:$L$2000,8,0) -> 2373 | F48: =VLOOKUP($A48&$C$2,Databáze_opatro!$B$6:$L$2000,9,0) -> 2410 | G48: =VLOOKUP($A48&$C$2,Databáze_opatro!$B$6:$L$2000,10,0) -> 1394 | H48: =VLOOKUP($A48&$C$2,Databáze_opatro!$B$6:$L$2000,11,0) -> 211.1244813
A49: 2012 | B49: =VLOOKUP($A49&$C$2,Databáze_opatro!$B$6:$L$2000,5,0) -> 225.4841 | C49: =VLOOKUP($A49&$C$2,Databáze_opatro!$B$6:$L$2000,6,0) -> 176 | D49: =VLOOKUP($A49&$C$2,Databáze_opatro!$B$6:$L$2000,7,0) -> 455 | E49: =VLOOKUP($A49&$C$2,Databáze_opatro!$B$6:$L$2000,8,0) -> 2447 | F49: =VLOOKUP($A49&$C$2,Databáze_opatro!$B$6:$L$2000,9,0) -> 2550 | G49: =VLOOKUP($A49&$C$2,Databáze_opatro!$B$6:$L$2000,10,0) -> 1291 | H49: =VLOOKUP($A49&$C$2,Databáze_opatro!$B$6:$L$2000,11,0) -> 184.7901961
A50: 2013 | B50: =VLOOKUP($A50&$C$2,Databáze_opatro!$B$6:$L$2000,5,0) -> 88.50623 | C50: =VLOOKUP($A50&$C$2,Databáze_opatro!$B$6:$L$2000,6,0) -> 45 | D50: =VLOOKUP($A50&$C$2,Databáze_opatro!$B$6:$L$2000,7,0) -> 203 | E50: =VLOOKUP($A50&$C$2,Databáze_opatro!$B$6:$L$2000,8,0) -> 2565 | F50: =VLOOKUP($A50&$C$2,Databáze_opatro!$B$6:$L$2000,9,0) -> 2654 | G50: =VLOOKUP($A50&$C$2,Databáze_opatro!$B$6:$L$2000,10,0) -> 1202 | H50: =VLOOKUP($A50&$C$2,Databáze_opatro!$B$6:$L$2000,11,0) -> 165.3089676
A51: 2014 | B51: =VLOOKUP($A51&$C$2,Databáze_opatro!$B$6:$L$2000,5,0) -> 161.0175 | C51: =VLOOKUP($A51&$C$2,Databáze_opatro!$B$6:$L$2000,6,0) -> 105 | D51: =VLOOKUP($A51&$C$2,Databáze_opatro!$B$6:$L$2000,7,0) -> 337 | E51: =VLOOKUP($A51&$C$2,Databáze_opatro!$B$6:$L$2000,8,0) -> 3932 | F51: =VLOOKUP($A51&$C$2,Databáze_opatro!$B$6:$L$2000,9,0) -> 3152 | G51: =VLOOKUP($A51&$C$2,Databáze_opatro!$B$6:$L$2000,10,0) -> 1982 | H51: =VLOOKUP($A51&$C$2,Databáze_opatro!$B$6:$L$2000,11,0) -> 229.5145939
A52: 2015 | B52: =VLOOKUP($A52&$C$2,Databáze_opatro!$B$6:$L$2000,5,0) -> 178.8714 | C52: =VLOOKUP($A52&$C$2,Databáze_opatro!$B$6:$L$2000,6,0) -> 126 | D52: =VLOOKUP($A52&$C$2,Databáze_opatro!$B$6:$L$2000,7,0) -> 372 | E52: =VLOOKUP($A52&$C$2,Databáze_opatro!$B$6:$L$2000,8,0) -> 4194 | F52: =VLOOKUP($A52&$C$2,Databáze_opatro!$B$6:$L$2000,9,0) -> 4027 | G52: =VLOOKUP($A52&$C$2,Databáze_opatro!$B$6:$L$2000,10,0) -> 2149 | H52: =VLOOKUP($A52&$C$2,Databáze_opatro!$B$6:$L$2000,11,0) -> 194.781475
A53: 2016 | B53: =VLOOKUP($A53&$C$2,Databáze_opatro!$B$6:$L$2000,5,0) -> 192.481 | C53: =VLOOKUP($A53&$C$2,Databáze_opatro!$B$6:$L$2000,6,0) -> 130 | D53: =VLOOKUP($A53&$C$2,Databáze_opatro!$B$6:$L$2000,7,0) -> 449 | E53: =VLOOKUP($A53&$C$2,Databáze_opatro!$B$6:$L$2000,8,0) -> 3571 | F53: =VLOOKUP($A53&$C$2,Databáze_opatro!$B$6:$L$2000,9,0) -> 4188 | G53: =VLOOKUP($A53&$C$2,Databáze_opatro!$B$6:$L$2000,10,0) -> 1532 | H53: =VLOOKUP($A53&$C$2,Databáze_opatro!$B$6:$L$2000,11,0) -> 133.5195798
A54: 2017 | B54: =VLOOKUP($A54&$C$2,Databáze_opatro!$B$6:$L$2000,5,0) -> 194.9595 | C54: =VLOOKUP($A54&$C$2,Databáze_opatro!$B$6:$L$2000,6,0) -> 117 | D54: =VLOOKUP($A54&$C$2,Databáze_opatro!$B$6:$L$2000,7,0) -> 454 | E54: =VLOOKUP($A54&$C$2,Databáze_opatro!$B$6:$L$2000,8,0) -> 3312 | F54: =VLOOKUP($A54&$C$2,Databáze_opatro!$B$6:$L$2000,9,0) -> 3375 | G54: =VLOOKUP($A54&$C$2,Databáze_opatro!$B$6:$L$2000,10,0) -> 1469 | H54: =VLOOKUP($A54&$C$2,Databáze_opatro!$B$6:$L$2000,11,0) -> 158.8696296
A55: 2018 | B55: =VLOOKUP($A55&$C$2,Databáze_opatro!$B$6:$L$2000,5,0) -> 170.3765 | C55: =VLOOKUP($A55&$C$2,Databáze_opatro!$B$6:$L$2000,6,0) -> 103 | D55: =VLOOKUP($A55&$C$2,Databáze_opatro!$B$6:$L$2000,7,0) -> 386 | E55: =VLOOKUP($A55&$C$2,Databáze_opatro!$B$6:$L$2000,8,0) -> 3786 | F55: =VLOOKUP($A55&$C$2,Databáze_opatro!$B$6:$L$2000,9,0) -> 3921 | G55: =VLOOKUP($A55&$C$2,Databáze_opatro!$B$6:$L$2000,10,0) -> 1334 | H55: =VLOOKUP($A55&$C$2,Databáze_opatro!$B$6:$L$2000,11,0) -> 124.1800561
A56: 2019 | B56: =VLOOKUP($A56&$C$2,Databáze_opatro!$B$6:$L$2000,5,0) -> 153.2627 | C56: =VLOOKUP($A56&$C$2,Databáze_opatro!$B$6:$L$2000,6,0) -> 99 | D56: =VLOOKUP($A56&$C$2,Databáze_opatro!$B$6:$L$2000,7,0) -> 301 | E56: =VLOOKUP($A56&$C$2,Databáze_opatro!$B$6:$L$2000,8,0) -> 3933 | F56: =VLOOKUP($A56&$C$2,Databáze_opatro!$B$6:$L$2000,9,0) -> 3850 | G56: =VLOOKUP($A56&$C$2,Databáze_opatro!$B$6:$L$2000,10,0) -> 1417 | H56: =VLOOKUP($A56&$C$2,Databáze_opatro!$B$6:$L$2000,11,0) -> 134.338961
A57: 2020 | B57: =VLOOKUP($A57&$C$2,Databáze_opatro!$B$6:$L$2000,5,0) -> 162.7308 | C57: =VLOOKUP($A57&$C$2,Databáze_opatro!$B$6:$L$2000,6,0) -> 118 | D57: =VLOOKUP($A57&$C$2,Databáze_opatro!$B$6:$L$2000,7,0) -> 302 | E57: =VLOOKUP($A57&$C$2,Databáze_opatro!$B$6:$L$2000,8,0) -> 3215 | F57: =VLOOKUP($A57&$C$2,Databáze_opatro!$B$6:$L$2000,9,0) -> 3273 | G57: =VLOOKUP($A57&$C$2,Databáze_opatro!$B$6:$L$2000,10,0) -> 1359 | H57: =VLOOKUP($A57&$C$2,Databáze_opatro!$B$6:$L$2000,11,0) -> 151.5536205
A58: 2021 | B58: =VLOOKUP($A58&$C$2,Databáze_opatro!$B$6:$L$2000,5,0) -> 162.5714 | C58: =VLOOKUP($A58&$C$2,Databáze_opatro!$B$6:$L$2000,6,0) -> 110 | D58: =VLOOKUP($A58&$C$2,Databáze_opatro!$B$6:$L$2000,7,0) -> 337 | E58: =VLOOKUP($A58&$C$2,Databáze_opatro!$B$6:$L$2000,8,0) -> 3275 | F58: =VLOOKUP($A58&$C$2,Databáze_opatro!$B$6:$L$2000,9,0) -> 3432 | G58: =VLOOKUP($A58&$C$2,Databáze_opatro!$B$6:$L$2000,10,0) -> 1202 | H58: =VLOOKUP($A58&$C$2,Databáze_opatro!$B$6:$L$2000,11,0) -> 127.8350816
A59: 2022 | B59: =VLOOKUP($A59&$C$2,Databáze_opatro!$B$6:$L$2000,5,0) -> 151.8138 | C59: =VLOOKUP($A59&$C$2,Databáze_opatro!$B$6:$L$2000,6,0) -> 105 | D59: =VLOOKUP($A59&$C$2,Databáze_opatro!$B$6:$L$2000,7,0) -> 294 | E59: =VLOOKUP($A59&$C$2,Databáze_opatro!$B$6:$L$2000,8,0) -> 3735 | F59: =VLOOKUP($A59&$C$2,Databáze_opatro!$B$6:$L$2000,9,0) -> 3592 | G59: =VLOOKUP($A59&$C$2,Databáze_opatro!$B$6:$L$2000,10,0) -> 1345 | H59: =VLOOKUP($A59&$C$2,Databáze_opatro!$B$6:$L$2000,11,0) -> 136.6717706
A60: 2023 | B60: =VLOOKUP($A60&$C$2,Databáze_opatro!$B$6:$L$2000,5,0) -> 164.6566 | C60: =VLOOKUP($A60&$C$2,Databáze_opatro!$B$6:$L$2000,6,0) -> 122 | D60: =VLOOKUP($A60&$C$2,Databáze_opatro!$B$6:$L$2000,7,0) -> 307 | E60: =VLOOKUP($A60&$C$2,Databáze_opatro!$B$6:$L$2000,8,0) -> 3770 | F60: =VLOOKUP($A60&$C$2,Databáze_opatro!$B$6:$L$2000,9,0) -> 3569 | G60: =VLOOKUP($A60&$C$2,Databáze_opatro!$B$6:$L$2000,10,0) -> 1546 | H60: =VLOOKUP($A60&$C$2,Databáze_opatro!$B$6:$L$2000,11,0) -> 158.1087139
A62: Abecední pořadí soudů
A63: Poř. CSLAV | B63: Název soudu | C63: Nadřízený soud
A64: 11 | B64: Benešov | C64: KS Praha
A65: 12 | B65: Beroun | C65: KS Praha
A66: 62 | B66: Blansko | C66: KS Brno
A67: 63 | B67: Brno-město | C67: KS Brno
A68: 64 | B68: Brno-venkov | C68: KS Brno
A69: 76 | B69: Bruntál | C69: KS Ostrava
A70: 65 | B70: Břeclav | C70: KS Brno
A71: 41 | B71: Česká Lípa | C71: KS Ústí n. Labem
A72: 23 | B72: České Budějovice | C72: KS Č. Budějovice
A73: 24 | B73: Český Krumlov | C73: KS Č. Budějovice
A74: 42 | B74: Děčín | C74: KS Ústí n. Labem
A75: 31 | B75: Domažlice | C75: KS Plzeň
A76: 77 | B76: Frýdek-Místek | C76: KS Ostrava
A77: 51 | B77: Havlíčkův Brod | C77: KS Hr. Králové
A78: 66 | B78: Hodonín | C78: KS Brno
A79: 52 | B79: Hradec Králové | C79: KS Hr. Králové
A80: 32 | B80: Cheb | C80: KS Plzeň
A81: 43 | B81: Chomutov | C81: KS Ústí n. Labem
A82: 53 | B82: Chrudim | C82: KS Hr. Králové
A83: 44 | B83: Jablonec nad Nisou | C83: KS Ústí n. Labem
A84: 78 | B84: Jeseník | C84: KS Ostrava
A85: 54 | B85: Jičín | C85: KS Hr. Králové
A86: 67 | B86: Jihlava | C86: KS Brno
A87: 25 | B87: Jindřichův Hradec | C87: KS Č. Budějovice
A88: 33 | B88: Karlovy Vary | C88: KS Plzeň
A89: 79 | B89: Karviná | C89: KS Ostrava
A90: 13 | B90: Kladno | C90: KS Praha
A91: 34 | B91: Klatovy | C91: KS Plzeň
A92: 14 | B92: Kolín | C92: KS Praha
A93: 68 | B93: Kroměříž | C93: KS Brno
A94: 15 | B94: Kutná Hora | C94: KS Praha
A95: 45 | B95: Liberec | C95: KS Ústí n. Labem
A96: 46 | B96: Litoměřice | C96: KS Ústí n. Labem
A97: 47 | B97: Louny | C97: KS Ústí n. Labem
A98: 16 | B98: Mělník | C98: KS Praha
A99: 17 | B99: Mladá Boleslav | C99: KS Praha
A100: 48 | B100: Most | C100: KS Ústí n. Labem
A101: 55 | B101: Náchod | C101: KS Hr. Králové
A102: 80 | B102: Nový Jičín | C102: KS Ostrava
A103: 18 | B103: Nymburk | C103: KS Praha
A104: 81 | B104: Olomouc | C104: KS Ostrava
A105: 82 | B105: Opava | C105: KS Ostrava
A106: 83 | B106: Ostrava | C106: KS Ostrava
A107: 56 | B107: Pardubice | C107: KS Hr. Králové
A108: 26 | B108: Pelhřimov | C108: KS Č. Budějovice
A109: 27 | B109: Písek | C109: KS Č. Budějovice
A110: 35 | B110: Plzeň-jih | C110: KS Plzeň
A111: 36 | B111: Plzeň-město | C111: KS Plzeň
A112: 37 | B112: Plzeň-sever | C112: KS Plzeň
A113: 1 | B113: Praha 1 | C113: MS Praha
A114: 2 | B114: Praha 2 | C114: MS Praha
A115: 3 | B115: Praha 3 | C115: MS Praha
A116: 4 | B116: Praha 4 | C116: MS Praha
A117: 5 | B117: Praha 5 | C117: MS Praha
A118: 6 | B118: Praha 6 | C118: MS Praha
A119: 7 | B119: Praha 7 | C119: MS Praha
A120: 8 | B120: Praha 8 | C120: MS Praha
A121: 9 | B121: Praha 9 | C121: MS Praha
A122: 10 | B122: Praha 10 | C122: MS Praha
A123: 19 | B123: Praha-východ | C123: KS Praha
A124: 20 | B124: Praha-západ | C124: KS Praha
A125: 28 | B125: Prachatice | C125: KS Č. Budějovice
A126: 69 | B126: Prostějov | C126: KS Brno
A127: 84 | B127: Přerov | C127: KS Ostrava
A128: 21 | B128: Příbram | C128: KS Praha
A129: 22 | B129: Rakovník | C129: KS Praha
A130: 38 | B130: Rokycany | C130: KS Plzeň
A131: 57 | B131: Rychnov nad Kněžnou | C131: KS Hr. Králové
A132: 58 | B132: Semily | C132: KS Hr. Králové
A133: 39 | B133: Sokolov | C133: KS Plzeň
A134: 29 | B134: Strakonice | C134: KS Č. Budějovice
A135: 59 | B135: Svitavy | C135: KS Hr. Králové
A136: 85 | B136: Šumperk | C136: KS Ostrava
A137: 30 | B137: Tábor | C137: KS Č. Budějovice
A138: 40 | B138: Tachov | C138: KS Plzeň
A139: 49 | B139: Teplice | C139: KS Ústí n. Labem
A140: 60 | B140: Trutnov | C140: KS Hr. Králové
A141: 70 | B141: Třebíč | C141: KS Brno
A142: 71 | B142: Uherské Hradiště | C142: KS Brno
A143: 50 | B143: Ústí nad Labem | C143: KS Ústí n. Labem
A144: 61 | B144: Ústí nad Orlicí | C144: KS Hr. Králové
A145: 86 | B145: Vsetín | C145: KS Ostrava
A146: 72 | B146: Vyškov | C146: KS Brno
A147: 73 | B147: Zlín | C147: KS Brno
A148: 74 | B148: Znojmo | C148: KS Brno
A149: 75 | B149: Žďár nad Sázavou | C149: KS Brno

Sheet Výsl. KS trest - 2023
B1: Krajské soudy - vybraná statistická data†
A2: Krajský soud: | C2: KS Plzeň
A4: Trestní agenda - prvostupňová 2023 | H4: Trestní agenda - odvolací 2023
A5: Ukazatel | C5: Hodnota | D5: Hodnota v ČR * | E5: Pořadí v ČR | H5: Ukazatel | J5: Hodnota | K5: Hodnota v ČR * | L5: Pořadí v ČR
A6: Délka řízení (ve dnech) | B6: Průměr | C6: =VLOOKUP($C$2,Přehled_trest_2023_KS!$B$4:$O$12,MATCH($B6,Přehled_trest_2023_KS!$B$4:$O$4,0),0) -> 384 | D6: =HLOOKUP(B6,Přehled_trest_2023_KS!$C$4:$O$13,10,0) -> 473 | E6: =_xlfn.RANK.EQ(C6,Přehled_trest_2023_KS!$C$5:$C$12,1) -> 2 | H6: Délka řízení (ve dnech) | I6: Průměr | J6: =VLOOKUP($C$2,Přehled_To_2023_KS!$B$4:$P$12,MATCH($B6,Přehled_To_2023_KS!$B$4:$P$4,0),0) -> 46 | K6: =HLOOKUP(I6,Přehled_To_2023_KS!$C$4:$P$13,10,0) -> 55 | L6: =_xlfn.RANK.EQ(J6,Přehled_To_2023_KS!$C$5:$C$12,1) -> 3
B7: Medián | C7: =VLOOKUP($C$2,Přehled_trest_2023_KS!$B$4:$O$12,MATCH($B7,Přehled_trest_2023_KS!$B$4:$O$4,0),0) -> 139 | D7: =HLOOKUP(B7,Přehled_trest_2023_KS!$C$4:$O$13,10,0) -> 187 | E7: =_xlfn.RANK.EQ(C7,Přehled_trest_2023_KS!$D$5:$D$12,1) -> 4 | I7: Medián | J7: =VLOOKUP($C$2,Přehled_To_2023_KS!$B$4:$P$12,MATCH($B7,Přehled_To_2023_KS!$B$4:$P$4,0),0) -> 35 | K7: =HLOOKUP(I7,Přehled_To_2023_KS!$C$4:$P$13,10,0) -> 35 | L7: =_xlfn.RANK.EQ(J7,Přehled_To_2023_KS!$D$5:$D$12,1) -> 4
B8: Percentil 90 | C8: =VLOOKUP($C$2,Přehled_trest_2023_KS!$B$4:$O$12,MATCH($B8,Přehled_trest_2023_KS!$B$4:$O$4,0),0) -> 1240 | D8: =HLOOKUP(B8,Přehled_trest_2023_KS!$C$4:$O$13,10,0) -> 1307 | E8: =_xlfn.RANK.EQ(C8,Přehled_trest_2023_KS!$E$5:$E$12,1) -> 2 | I8: Percentil 90 | J8: =VLOOKUP($C$2,Přehled_To_2023_KS!$B$4:$P$12,MATCH($B8,Přehled_To_2023_KS!$B$4:$P$4,0),0) -> 88 | K8: =HLOOKUP(I8,Přehled_To_2023_KS!$C$4:$P$13,10,0) -> 112 | L8: =_xlfn.RANK.EQ(J8,Přehled_To_2023_KS!$E$5:$E$12,1) -> 3
A9: Odvolání v % | B9: Míra odvolání | C9: =VLOOKUP($C$2,Přehled_trest_2023_KS!$B$4:$O$12,MATCH($B9,Přehled_trest_2023_KS!$B$4:$O$4,0),0) -> 63.49207 | D9: =HLOOKUP(B9,Přehled_trest_2023_KS!$C$4:$O$13,10,0) -> 60.38 | E9: =_xlfn.RANK.EQ(C9,Přehled_trest_2023_KS!$F$5:$F$12,1) -> 4 | H9: Vyřizování věcí | I9: Obživa+nápad* | J9: =VLOOKUP($C$2,Přehled_To_2023_KS!$B$4:$P$12,MATCH($B12,Přehled_To_2023_KS!$B$4:$P$4,0),0) -> 1738 | K9: =HLOOKUP(I9,Přehled_To_2023_KS!$C$4:$P$13,10,0) -> 2270 | L9: -
B10: Míra změny rozsudku | C10: =VLOOKUP($C$2,Přehled_trest_2023_KS!$B$4:$O$12,MATCH($B10,Přehled_trest_2023_KS!$B$4:$O$4,0),0) -> 25.80645 | D10: =HLOOKUP(B10,Přehled_trest_2023_KS!$C$4:$O$13,10,0) -> 50.74 | E10: =_xlfn.RANK.EQ(C10,Přehled_trest_2023_KS!$G$5:$G$12,1) -> 1 | I10: Vyřízeno* | J10: =VLOOKUP($C$2,Přehled_To_2023_KS!$B$4:$P$12,MATCH($B13,Přehled_To_2023_KS!$B$4:$P$4,0),0) -> 1748 | K10: =HLOOKUP(I10,Přehled_To_2023_KS!$C$4:$P$13,10,0) -> 2280 | L10: -
B11: Celk. míra zm. rozs. | C11: =VLOOKUP($C$2,Přehled_trest_2023_KS!$B$4:$O$12,MATCH($B11,Přehled_trest_2023_KS!$B$4:$O$4,0),0) -> 16.3850493 | D11: =HLOOKUP(B11,Přehled_trest_2023_KS!$C$4:$O$13,10,0) -> 30.636812 | E11: =_xlfn.RANK.EQ(C11,Přehled_trest_2023_KS!$H$5:$H$12,1) -> 1 | I11: Nevyřízeno* | J11: =VLOOKUP($C$2,Přehled_To_2023_KS!$B$4:$P$12,MATCH($B14,Přehled_To_2023_KS!$B$4:$P$4,0),0) -> 110 | K11: =HLOOKUP(I11,Přehled_To_2023_KS!$C$4:$P$13,10,0) -> 159.625 | L11: -
A12: Vyřizování věcí | B12: Obživa+nápad* | C12: =VLOOKUP($C$2,Přehled_trest_2023_KS!$B$4:$O$12,MATCH($B12,Přehled_trest_2023_KS!$B$4:$O$4,0),0) -> 109 | D12: =HLOOKUP(B12,Přehled_trest_2023_KS!$C$4:$O$13,10,0) -> 150.125 | E12: - | I12: Míra vyřizování | J12: =VLOOKUP($C$2,Přehled_To_2023_KS!$B$4:$P$12,MATCH($B15,Přehled_To_2023_KS!$B$4:$P$4,0),0) -> 99.42791762 | K12: =HLOOKUP(I12,Přehled_To_2023_KS!$C$4:$P$13,10,0) -> 99.56140351 | L12: =_xlfn.RANK.EQ(J12,Přehled_To_2023_KS!$I$5:$I$12,0) -> 4
B13: Vyřízeno* | C13: =VLOOKUP($C$2,Přehled_trest_2023_KS!$B$4:$O$12,MATCH($B13,Přehled_trest_2023_KS!$B$4:$O$4,0),0) -> 110 | D13: =HLOOKUP(B13,Přehled_trest_2023_KS!$C$4:$O$13,10,0) -> 153.375 | E13: - | I13: Disposition time | J13: =VLOOKUP($C$2,Přehled_To_2023_KS!$B$4:$P$12,MATCH($B16,Přehled_To_2023_KS!$B$4:$P$4,0),0) -> 22.96910755 | K13: =HLOOKUP(I13,Přehled_To_2023_KS!$C$4:$P$13,10,0) -> 25.55400219 | L13: =_xlfn.RANK.EQ(J13,Přehled_To_2023_KS!$J$5:$J$12,1) -> 4
B14: Nevyřízeno* | C14: =VLOOKUP($C$2,Přehled_trest_2023_KS!$B$4:$O$12,MATCH($B14,Přehled_trest_2023_KS!$B$4:$O$4,0),0) -> 55 | D14: =HLOOKUP(B14,Přehled_trest_2023_KS!$C$4:$O$13,10,0) -> 74.375 | E14: - | H14: Počet soudců k 1.1.* | J14: =VLOOKUP($C$2,Přehled_To_2023_KS!$B$4:$P$12,MATCH($A17,Přehled_To_2023_KS!$B$4:$P$4,0),0) -> 17.3 | K14: =HLOOKUP(H14,Přehled_To_2023_KS!$C$4:$P$13,10,0) -> 18.9 | L14: =_xlfn.RANK.EQ(J14,Přehled_To_2023_KS!$K$5:$K$12,0) -> 6
B15: Míra vyřizování | C15: =VLOOKUP($C$2,Přehled_trest_2023_KS!$B$4:$O$12,MATCH($B15,Přehled_trest_2023_KS!$B$4:$O$4,0),0) -> 100.9174312 | D15: =HLOOKUP(B15,Přehled_trest_2023_KS!$C$4:$O$13,10,0) -> 102.1648626 | E15: =_xlfn.RANK.EQ(C15,Přehled_trest_2023_KS!$L$5:$L$12,0) -> 6 | H15: Vyřizování věcí na soudce | I15: Obživa+nápad | J15: =VLOOKUP($C$2,Přehled_To_2023_KS!$B$4:$P$12,MATCH($B19,Přehled_To_2023_KS!$B$4:$P$4,0),0) -> 100.4624277 | K15: =HLOOKUP(I15,Přehled_To_2023_KS!$C$4:$P$13,10,0) -> 120.1058201 | L15: =_xlfn.RANK.EQ(J15,Přehled_To_2023_KS!$L$5:$L$12,0) -> 7
B16: Disposition time | C16: =VLOOKUP($C$2,Přehled_trest_2023_KS!$B$4:$O$12,MATCH($B16,Přehled_trest_2023_KS!$B$4:$O$4,0),0) -> 182.5 | D16: =HLOOKUP(B16,Přehled_trest_2023_KS!$C$4:$O$13,10,0) -> 176.99674 | E16: =_xlfn.RANK.EQ(C16,Přehled_trest_2023_KS!$M$5:$M$12,1) -> 5 | I16: Vyřízeno | J16: =VLOOKUP($C$2,Přehled_To_2023_KS!$B$4:$P$12,MATCH($B20,Přehled_To_2023_KS!$B$4:$P$4,0),0) -> 101.0404624 | K16: =HLOOKUP(I16,Přehled_To_2023_KS!$C$4:$P$13,10,0) -> 120.6349206 | L16: =_xlfn.RANK.EQ(J16,Přehled_To_2023_KS!$M$5:$M$12,0) -> 7
A17: Počet soudců k 1.1.* | C17: =VLOOKUP($C$2,Přehled_trest_2023_KS!$B$4:$O$12,MATCH($A17,Přehled_trest_2023_KS!$B$4:$O$4,0),0) -> 5 | D17: =HLOOKUP(A17,Přehled_trest_2023_KS!$C$4:$O$13,10,0) -> 9.8575 | E17: =_xlfn.RANK.EQ(C17,Přehled_trest_2023_KS!$N$5:$N$12,0) -> 6 | I17: Nevyřízeno | J17: =VLOOKUP($C$2,Přehled_To_2023_KS!$B$4:$P$12,MATCH($B21,Přehled_To_2023_KS!$B$4:$P$4,0),0) -> 6.358381503 | K17: =HLOOKUP(I17,Přehled_To_2023_KS!$C$4:$P$13,10,0) -> 8.445767196 | L17: =_xlfn.RANK.EQ(J17,Přehled_To_2023_KS!$N$5:$N$12,1) -> 3
A18: Míra odsouzení v % | C18: =VLOOKUP($C$2,Přehled_trest_2023_KS!$B$4:$O$12,MATCH($A18,Přehled_trest_2023_KS!$B$4:$O$4,0),0) -> 88.1 | D18: =HLOOKUP(A18,Přehled_trest_2023_KS!$C$4:$O$13,10,0) -> 89.26 | E18: =_xlfn.RANK.EQ(C18,Přehled_trest_2023_KS!$O$5:$O$12,0) -> 5 | H18: *Hodnota v ČR představuje aritmetický průměr za jednotlivé krajské soudy celé ČR.
A19: Vyřizování věcí na soudce | B19: Obživa+nápad | C19: =VLOOKUP($C$2,Přehled_trest_2023_KS!$B$4:$S$12,MATCH($B19,Přehled_trest_2023_KS!$B$4:$S$4,0),0) -> 21.8 | D19: =HLOOKUP(B19,Přehled_trest_2023_KS!$C$4:$S$13,10,0) -> 21.01018751 | E19: =_xlfn.RANK.EQ(C19,Přehled_trest_2023_KS!$Q$5:$Q$12,0) -> 3 | H19: Poznámka: Jedná se o počet úvazků soudců, kteří vyřizují trestní druhostupňovou agendu.
B20: Vyřízeno | C20: =VLOOKUP($C$2,Přehled_trest_2023_KS!$B$4:$S$12,MATCH($B20,Přehled_trest_2023_KS!$B$4:$S$4,0),0) -> 22 | D20: =HLOOKUP(B20,Přehled_trest_2023_KS!$C$4:$S$13,10,0) -> 21.91039997 | E20: =_xlfn.RANK.EQ(C20,Přehled_trest_2023_KS!$R$5:$R$12,0) -> 3 | H20: 1. a 2. místo v ČR
B21: Nevyřízeno | C21: =VLOOKUP($C$2,Přehled_trest_2023_KS!$B$4:$S$12,MATCH($B21,Přehled_trest_2023_KS!$B$4:$S$4,0),0) -> 11 | D21: =HLOOKUP(B21,Přehled_trest_2023_KS!$C$4:$S$13,10,0) -> 9.13966774 | E21: =_xlfn.RANK.EQ(C21,Přehled_trest_2023_KS!$S$5:$S$12,1) -> 6 | H21: 7. a 8. místo v ČR
A22: *Hodnota v ČR představuje aritmetický průměr za jednotlivé krajské soudy celé ČR.
A23: Poznámka: Jedná se o počet úvazků soudců, kteří vyřizují trestní prvostupňovou agendu.
A24: 1. a 2. místo v ČR
A25: 7. a 8. místo v ČR
A71: † tzn., že se jedná o data za daný krajský soud, ne za podřízené okresní soudy

Sheet Výsl. KS trest - grafy, řady
A1: Krajské soudy - vybraná statistická data†
A2: Krajský soud: | C2: ='Výsl. KS trest - 2023'!C2 -> KS Plzeň
A4: Trestní agenda - prvostupňová
A24: Trestní agenda - odvolací
A44: † tzn., že se jedná o data za daný krajský soud, ne za podřízené okresní soudy.

Sheet Přehled_trest_2023_KS
A1: Trestní agenda, vybraná data za rok 2023
A2: Přehled všech krajských soudů
C3: Délka řízení ve dnech | F3: Odvolání v % | I3: Vyřizování věcí | Q3: Vyřizování věcí na soudce
B4: Název soudu | C4: Průměr | D4: Medián | E4: Percentil 90 | F4: Míra odvolání | G4: Míra změny rozsudku | H4: Celk. míra zm. rozs. | I4: Obživa+nápad* | J4: Vyřízeno* | K4: Nevyřízeno* | L4: Míra vyřizování | M4: Disposition time | N4: Počet soudců k 1.1.* | O4: Míra odsouzení v % | P4: Evidenční počet soudců k 1.1.* | Q4: Obživa+nápad | R4: Vyřízeno | S4: Nevyřízeno
A5: 101 | B5: MS Praha | C5: 524 | D5: 241 | E5: 1247 | F5: 64.74654 | G5: 51.22951 | H5: =F5*G5/100 -> 33.16933518 | I5: 284 | J5: 317 | K5: 148 | L5: =J5/I5*100 -> 111.6197183 | M5: =K5/J5*365 -> 170.4100946 | N5: 27.25 | O5: 90.32 | P5: 41 | Q5: =I5/$N5 -> 10.42201835 | R5: =J5/$N5 -> 11.63302752 | S5: 5.431192661
A6: 102 | B6: KS Praha | C6: 255 | D6: 71 | E6: 694 | F6: 66.31579 | G6: 57.44681 | H6: =F6*G6/100 -> 38.09630588 | I6: 107 | J6: 109 | K6: 28 | L6: =J6/I6*100 -> 101.8691589 | M6: =K6/J6*365 -> 93.76146789 | N6: 2 | O6: 86.17 | P6: 25 | Q6: =I6/$N6 -> 53.5 | R6: =J6/$N6 -> 54.5 | S6: =K6/$N6 -> 14
A7: 103 | B7: KS Č. Budějovice | C7: 648 | D7: 266 | E7: 1546 | F7: 70.76923 | G7: 30.30303 | H7: 21.445221 | I7: 34 | J7: 51 | K7: 21 | L7: 150 | M7: 150.2941176 | N7: 2.5 | O7: 89.23 | P7: 14 | Q7: 13.6 | R7: 20.4 | S7: 8.4
A8: 104 | B8: KS Plzeň | C8: 384 | D8: 139 | E8: 1240 | F8: 63.49207 | G8: 25.80645 | H8: 16.3850493 | I8: 109 | J8: 110 | K8: 55 | L8: 100.9174312 | M8: 182.5 | N8: 5 | O8: 88.1 | P8: 21 | Q8: 21.8 | R8: 22 | S8: 11
A9: 105 | B9: KS Ústí n. Labem | C9: 460 | D9: 138 | E9: 1289 | F9: 59.13978 | G9: 60.71429 | H9: 35.90629753 | I9: 172 | J9: 171 | K9: 105 | L9: 99.41860465 | M9: 224.122807 | N9: 6.81 | O9: 94.09 | P9: 27 | Q9: 25.25697504 | R9: 25.11013216 | S9: 15.4185022
A10: 106 | B10: KS Hr. Králové | C10: 468 | D10: 75 | E10: 1466 | F10: 63.77953 | G10: 61.19403 | H10: 39.02926472 | I10: 84 | J10: 86 | K10: 22 | L10: 102.3809524 | M10: 93.37209302 | N10: 5.5 | O10: 81.89 | P10: 19 | Q10: 15.27272727 | R10: 15.63636364 | S10: 4
A11: 107 | B11: KS Brno | C11: 520 | D11: 199 | E11: 1262 | F11: 52.15827 | G11: 55.07246 | H11: 28.72484238 | I11: 201 | J11: 203 | K11: 104 | L11: 100.9950249 | M11: 186.9950739 | N11: 17 | O11: 90.97 | P11: 34 | Q11: 11.82352941 | R11: 11.94117647 | S11: 6.117647059
A12: 108 | B12: KS Ostrava | C12: 429 | D12: 150 | E12: 1441 | F12: 55.10949 | G12: 48.22695 | H12: 26.57762619 | I12: 210 | J12: 180 | K12: 112 | L12: 85.71428571 | M12: 227.1111111 | N12: 12.8 | O12: 87.55 | P12: 41 | Q12: 16.40625 | R12: 14.0625 | S12: 8.75
B13: ČR | C13: 473 | D13: 187 | E13: 1307 | F13: 60.38 | G13: 50.74 | H13: 30.636812 | I13: =AVERAGE(I5:I12) -> 150.125 | J13: =AVERAGE(J5:J12) -> 153.375 | K13: 74.375 | L13: 102.1648626 | M13: =K13/J13*365 -> 176.99674 | N13: =AVERAGE(N5:N12) -> 9.8575 | O13: 89.26 | P13: =AVERAGE(P5:P12) -> 27.75 | Q13: =AVERAGE(Q5:Q12) -> 21.01018751 | R13: =AVERAGE(R5:R12) -> 21.91039997 | S13: 9.13966774

Sheet Databáze_trest_KS
A1: Databáze pro grafy
A2: Trest - krajské soudy
E4: Délka řízení ve dnech | H4: Vyřizování věcí
B5: Pomocná prom. | C5: Rok | D5: Název soudu | E5: Průměr | F5: Medián | G5: Percentil 90 | H5: Obživa+nápad | I5: Vyřízeno | J5: Nevyřízeno | K5: Disposition time
A6: 101 | B6: =CONCATENATE(C6,D6) -> 2008MS Praha | C6: 2008 | D6: MS Praha | E6: 323 | F6: 208 | G6: 673 | H6: 306 | I6: 293 | J6: 198 | K6: =J6/I6*365 -> 246.6552901
A7: 102 | B7: =CONCATENATE(C7,D7) -> 2008KS Praha | C7: 2008 | D7: KS Praha | E7: 253 | F7: 147 | G7: 555 | H7: 99 | I7: 102 | J7: 24 | K7: =J7/I7*365 -> 85.88235294
A8: 103 | B8: 2008KS Č. Budějovice | C8: 2008 | D8: KS Č. Budějovice | E8: 299 | F8: 187 | G8: 771 | H8: 73 | I8: 60 | J8: 50 | K8: 304.1666667
A9: 104 | B9: 2008KS Plzeň | C9: 2008 | D9: KS Plzeň | E9: 427 | F9: 229 | G9: 981 | H9: 79 | I9: 80 | J9: 39 | K9: 177.9375
A10: 105 | B10: 2008KS Ústí n. Labem | C10: 2008 | D10: KS Ústí n. Labem | E10: 1020 | F10: 705 | G10: 2684 | H10: 122 | I10: 147 | J10: 111 | K10: 275.6122449
A11: 106 | B11: 2008KS Hr. Králové | C11: 2008 | D11: KS Hr. Králové | E11: 200 | F11: 106 | G11: 449 | H11: 110 | I11: 118 | J11: 32 | K11: 98.98305085
A12: 107 | B12: 2008KS Brno | C12: 2008 | D12: KS Brno | E12: 565 | F12: 222 | G12: 1497 | H12: 186 | I12: 217 | J12: 91 | K12: 153.0645161
A13: 108 | B13: 2008KS Ostrava | C13: 2008 | D13: KS Ostrava | E13: 1019 | F13: 541 | G13: 2771 | H13: 160 | I13: 171 | J13: 126 | K13: 268.9473684
A14: 101 | B14: 2009MS Praha | C14: 2009 | D14: MS Praha | E14: 431 | F14: 334 | G14: 857 | H14: 314 | I14: 338 | J14: 171 | K14: 184.6597633
A15: 102 | B15: 2009KS Praha | C15: 2009 | D15: KS Praha | E15: 347 | F15: 127 | G15: 1129 | H15: 115 | I15: 111 | J15: 28 | K15: 92.07207207
A16: 103 | B16: 2009KS Č. Budějovice | C16: 2009 | D16: KS Č. Budějovice | E16: 229 | F16: 185 | G16: 400 | H16: 79 | I16: 64 | J16: 65 | K16: 370.703125
A17: 104 | B17: 2009KS Plzeň | C17: 2009 | D17: KS Plzeň | E17: 375 | F17: 213 | G17: 882 | H17: 92 | I17: 86 | J17: 44 | K17: 186.744186
A18: 105 | B18: 2009KS Ústí n. Labem | C18: 2009 | D18: KS Ústí n. Labem | E18: 696 | F18: 408 | G18: 1699 | H18: 172 | I18: 140 | J18: 143 | K18: 372.8214286
A19: 106 | B19: 2009KS Hr. Králové | C19: 2009 | D19: KS Hr. Králové | E19: 216 | F19: 83 | G19: 516 | H19: 133 | I19: 121 | J19: 42 | K19: 126.6942149
A20: 107 | B20: 2009KS Brno | C20: 2009 | D20: KS Brno | E20: 533 | F20: 317 | G20: 1318 | H20: 191 | I20: 196 | J20: 89 | K20: 165.7397959
A21: 108 | B21: 2009KS Ostrava | C21: 2009 | D21: KS Ostrava | E21: 781 | F21: 252 | G21: 2337 | H21: 194 | I21: 166 | J21: 151 | K21: 332.0180723
A22: 101 | B22: 2010MS Praha | C22: 2010 | D22: MS Praha | E22: 435 | F22: 256 | G22: 1125 | H22: 282 | I22: 302 | J22: 150 | K22: 181.2913907
A23: 102 | B23: 2010KS Praha | C23: 2010 | D23: KS Praha | E23: 301 | F23: 170 | G23: 637 | H23: 100 | I23: 95 | J23: 33 | K23: 126.7894737
A24: 103 | B24: 2010KS Č. Budějovice | C24: 2010 | D24: KS Č. Budějovice | E24: 543 | F24: 290 | G24: 1356 | H24: 61 | I24: 62 | J24: 65 | K24: 382.6612903
A25: 104 | B25: 2010KS Plzeň | C25: 2010 | D25: KS Plzeň | E25: 394 | F25: 211 | G25: 758 | H25: 89 | I25: 86 | J25: 45 | K25: 190.9883721
A26: 105 | B26: 2010KS Ústí n. Labem | C26: 2010 | D26: KS Ústí n. Labem | E26: 626 | F26: 338 | G26: 1867 | H26: 158 | I26: 177 | J26: 124 | K26: 255.7062147
A27: 106 | B27: 2010KS Hr. Králové | C27: 2010 | D27: KS Hr. Králové | E27: 288 | F27: 121 | G27: 670 | H27: 115 | I27: 120 | J27: 37 | K27: 112.5416667
A28: 107 | B28: 2010KS Brno | C28: 2010 | D28: KS Brno | E28: 540 | F28: 213 | G28: 1711 | H28: 225 | I28: 225 | J28: 88 | K28: 142.7555556
A29: 108 | B29: 2010KS Ostrava | C29: 2010 | D29: KS Ostrava | E29: 902 | F29: 324 | G29: 2848 | H29: 209 | I29: 211 | J29: 151 | K29: 261.2085308
A30: 101 | B30: 2011MS Praha | C30: 2011 | D30: MS Praha | E30: 596 | F30: 265 | G30: 1716 | H30: 275 | I30: 301 | J30: 123 | K30: 149.1528239
A31: 102 | B31: 2011KS Praha | C31: 2011 | D31: KS Praha | E31: 236 | F31: 159 | G31: 520 | H31: 98 | I31: 100 | J31: 30 | K31: 109.5
A32: 103 | B32: 2011KS Č. Budějovice | C32: 2011 | D32: KS Č. Budějovice | E32: 509 | F32: 429 | G32: 990 | H32: 83 | I32: 96 | J32: 53 | K32: 201.5104167
A33: 104 | B33: 2011KS Plzeň | C33: 2011 | D33: KS Plzeň | E33: 235 | F33: 164 | G33: 322 | H33: 88 | I33: 93 | J33: 39 | K33: 153.0645161
A34: 105 | B34: 2011KS Ústí n. Labem | C34: 2011 | D34: KS Ústí n. Labem | E34: 668 | F34: 445 | G34: 1713 | H34: 152 | I34: 174 | J34: 103 | K34: 216.0632184
A35: 106 | B35: 2011KS Hr. Králové | C35: 2011 | D35: KS Hr. Králové | E35: 324 | F35: 160 | G35: 887 | H35: 116 | I35: 119 | J35: 33 | K35: 101.2184874
A36: 107 | B36: 2011KS Brno | C36: 2011 | D36: KS Brno | E36: 459 | F36: 197 | G36: 1278 | H36: 214 | I36: 233 | J36: 69 | K36: 108.0901288
A37: 108 | B37: 2011KS Ostrava | C37: 2011 | D37: KS Ostrava | E37: 753 | F37: 304 | G37: 1877 | H37: 204 | I37: 188 | J37: 164 | K37: 318.4042553
A38: 101 | B38: 2012MS Praha | C38: 2012 | D38: MS Praha | E38: 525 | F38: 211 | G38: 1481 | H38: 290 | I38: 270 | J38: 142 | K38: 191.962963
A39: 102 | B39: 2012KS Praha | C39: 2012 | D39: KS Praha | E39: 375 | F39: 214 | G39: 1056 | H39: 81 | I39: 87 | J39: 21 | K39: 88.10344828
A40: 103 | B40: 2012KS Č. Budějovice | C40: 2012 | D40: KS Č. Budějovice | E40: 458 | F40: 248 | G40: 1168 | H40: 93 | I40: 76 | J40: 70 | K40: 336.1842105
A41: 104 | B41: 2012KS Plzeň | C41: 2012 | D41: KS Plzeň | E41: 284 | F41: 163 | G41: 780 | H41: 92 | I41: 73 | J41: 56 | K41: 280
A42: 105 | B42: 2012KS Ústí n. Labem | C42: 2012 | D42: KS Ústí n. Labem | E42: 463 | F42: 235 | G42: 1393 | H42: 151 | I42: 157 | J42: 97 | K42: 225.5095541
A43: 106 | B43: 2012KS Hr. Králové | C43: 2012 | D43: KS Hr. Králové | E43: 361 | F43: 129 | G43: 1116 | H43: 123 | I43: 118 | J43: 38 | K43: 117.5423729
A44: 107 | B44: 2012KS Brno | C44: 2012 | D44: KS Brno | E44: 277 | F44: 152 | G44: 665 | H44: 205 | I44: 205 | J44: 70 | K44: 124.6341463
A45: 108 | B45: 2012KS Ostrava | C45: 2012 | D45: KS Ostrava | E45: 445 | F45: 251 | G45: 944 | H45: 180 | I45: 191 | J45: 153 | K45: 292.382199
A46: 101 | B46: 2013MS Praha | C46: 2013 | D46: MS Praha | E46: 474 | F46: 244 | G46: 1490 | H46: 304 | I46: 293 | J46: 153 | K46: 190.5972696
A47: 102 | B47: 2013KS Praha | C47: 2013 | D47: KS Praha | E47: 232 | F47: 131 | G47: 741 | H47: 82 | I47: 80 | J47: 22 | K47: 100.375
A48: 103 | B48: 2013KS Č. Budějovice | C48: 2013 | D48: KS Č. Budějovice | E48: 352 | F48: 229 | G48: 601 | H48: 79 | I48: 87 | J48: 63 | K48: 264.3103448
A49: 104 | B49: 2013KS Plzeň | C49: 2013 | D49: KS Plzeň | E49: 451 | F49: 261 | G49: 703 | H49: 99 | I49: 101 | J49: 54 | K49: 195.1485149
A50: 105 | B50: 2013KS Ústí n. Labem | C50: 2013 | D50: KS Ústí n. Labem | E50: 666 | F50: 303 | G50: 1707 | H50: 150 | I50: 145 | J50: 102 | K50: 256.7586207
A51: 106 | B51: 2013KS Hr. Králové | C51: 2013 | D51: KS Hr. Králové | E51: 372 | F51: 142 | G51: 1252 | H51: 122 | I51: 126 | J51: 34 | K51: 98.49206349
A52: 107 | B52: 2013KS Brno | C52: 2013 | D52: KS Brno | E52: 370 | F52: 105 | G52: 861 | H52: 206 | I52: 181 | J52: 93 | K52: 187.5414365
A53: 108 | B53: 2013KS Ostrava | C53: 2013 | D53: KS Ostrava | E53: 893 | F53: 261 | G53: 3764 | H53: 179 | I53: 198 | J53: 133 | K53: 245.1767677
A54: 101 | B54: 2014MS Praha | C54: 2014 | D54: MS Praha | E54: 474 | F54: 221 | G54: 1674 | H54: 315 | I54: 309 | J54: 159 | K54: 187.815534
A55: 102 | B55: 2014KS Praha | C55: 2014 | D55: KS Praha | E55: 434 | F55: 189 | G55: 1232 | H55: 85 | I55: 76 | J55: 29 | K55: 139.2763158
A56: 103 | B56: 2014KS Č. Budějovice | C56: 2014 | D56: KS Č. Budějovice | E56: 560 | F56: 321 | G56: 1484 | H56: 99 | I56: 84 | J56: 78 | K56: 338.9285714
A57: 104 | B57: 2014KS Plzeň | C57: 2014 | D57: KS Plzeň | E57: 315 | F57: 180 | G57: 596 | H57: 93 | I57: 104 | J57: 42 | K57: 147.4038462
A58: 105 | B58: 2014KS Ústí n. Labem | C58: 2014 | D58: KS Ústí n. Labem | E58: 471 | F58: 267 | G58: 1126 | H58: 150 | I58: 134 | J58: 117 | K58: 318.6940299
A59: 106 | B59: 2014KS Hr. Králové | C59: 2014 | D59: KS Hr. Králové | E59: 210 | F59: 132 | G59: 364 | H59: 112 | I59: 108 | J59: 38 | K59: 128.4259259
A60: 107 | B60: 2014KS Brno | C60: 2014 | D60: KS Brno | E60: 314 | F60: 148 | G60: 604 | H60: 236 | I60: 227 | J60: 96 | K60: 154.3612335
A61: 108 | B61: 2014KS Ostrava | C61: 2014 | D61: KS Ostrava | E61: 571 | F61: 275 | G61: 1160 | H61: 188 | I61: 186 | J61: 134 | K61: 262.9569892
A62: 101 | B62: 2015MS Praha | C62: 2015 | D62: MS Praha | E62: 484 | F62: 209 | G62: 1123 | H62: 340 | I62: 310 | J62: 189 | K62: 222.5322581
A63: 102 | B63: 2015KS Praha | C63: 2015 | D63: KS Praha | E63: 298 | F63: 160 | G63: 689 | H63: 79 | I63: 79 | J63: 29 | K63: 133.9873418
A64: 103 | B64: 2015KS Č. Budějovice | C64: 2015 | D64: KS Č. Budějovice | E64: 485 | F64: 312 | G64: 1181 | H64: 71 | I64: 98 | J64: 51 | K64: 189.9489796
A65: 104 | B65: 2015KS Plzeň | C65: 2015 | D65: KS Plzeň | E65: 453 | F65: 214 | G65: 1190 | H65: 109 | I65: 101 | J65: 50 | K65: 180.6930693
A66: 105 | B66: 2015KS Ústí n. Labem | C66: 2015 | D66: KS Ústí n. Labem | E66: 399 | F66: 203 | G66: 1339 | H66: 150 | I66: 134 | J66: 133 | K66: 362.2761194
A67: 106 | B67: 2015KS Hr. Králové | C67: 2015 | D67: KS Hr. Králové | E67: 469 | F67: 160 | G67: 1466 | H67: 106 | I67: 108 | J67: 36 | K67: 121.6666667
A68: 107 | B68: 2015KS Brno | C68: 2015 | D68: KS Brno | E68: 314 | F68: 192 | G68: 605 | H68: 241 | I68: 221 | J68: 117 | K68: 193.2352941
A69: 108 | B69: 2015KS Ostrava | C69: 2015 | D69: KS Ostrava | E69: 525 | F69: 273 | G69: 1436 | H69: 211 | I69: 204 | J69: 141 | K69: 252.2794118
A70: 101 | B70: 2016MS Praha | C70: 2016 | D70: MS Praha | E70: 394 | F70: 282 | G70: 904 | H70: 292 | I70: 318 | J70: 165 | K70: 189.3867925
A71: 102 | B71: =CONCATENATE(C71,D71) -> 2016KS Praha | C71: 2016 | D71: KS Praha | E71: 360 | F71: 101 | G71: 1371 | H71: 87 | I71: 92 | J71: 24 | K71: =J71/I71*365 -> 95.2173913
A72: 103 | B72: 2016KS Č. Budějovice | C72: 2016 | D72: KS Č. Budějovice | E72: 588 | F72: 420 | G72: 1481 | H72: 69 | I72: 75 | J72: 45 | K72: 219
A73: 104 | B73: 2016KS Plzeň | C73: 2016 | D73: KS Plzeň | E73: 366 | F73: 227 | G73: 893 | H73: 106 | I73: 100 | J73: 56 | K73: 204.4
A74: 105 | B74: 2016KS Ústí n. Labem | C74: 2016 | D74: KS Ústí n. Labem | E74: 546 | F74: 288 | G74: 922 | H74: 150 | I74: 142 | J74: 139 | K74: 357.2887324
A75: 106 | B75: 2016KS Hr. Králové | C75: 2016 | D75: KS Hr. Králové | E75: 370 | F75: 177 | G75: 1124 | H75: 134 | I75: 116 | J75: 54 | K75: 169.9137931
A76: 107 | B76: 2016KS Brno | C76: 2016 | D76: KS Brno | E76: 270 | F76: 212 | G76: 554 | H76: 243 | I76: 228 | J76: 126 | K76: 201.7105263
A77: 108 | B77: 2016KS Ostrava | C77: 2016 | D77: KS Ostrava | E77: 382 | F77: 202 | G77: 903 | H77: 167 | I77: 161 | J77: 145 | K77: 328.7267081
A78: 101 | B78: 2017MS Praha | C78: 2017 | D78: MS Praha | E78: 519 | F78: 397 | G78: 952 | H78: 266 | I78: 284 | J78: 147 | K78: 188.9260563
A79: 102 | B79: 2017KS Praha | C79: 2017 | D79: KS Praha | E79: 288 | F79: 111 | G79: 697 | H79: 98 | I79: 94 | J79: 29 | K79: 112.606383
A80: 103 | B80: 2017KS Č. Budějovice | C80: 2017 | D80: KS Č. Budějovice | E80: 811 | F80: 987 | G80: 1256 | H80: 71 | I80: 69 | J80: 46 | K80: 243.3333333
A81: 104 | B81: 2017KS Plzeň | C81: 2017 | D81: KS Plzeň | E81: 410 | F81: 197 | G81: 1192 | H81: 101 | I81: 96 | J81: 61 | K81: 231.9270833
A82: 105 | B82: 2017KS Ústí n. Labem | C82: 2017 | D82: KS Ústí n. Labem | E82: 417 | F82: 246 | G82: 685 | H82: 185 | I82: 182 | J82: 142 | K82: 284.7802198
A83: 106 | B83: 2017KS Hr. Králové | C83: 2017 | D83: KS Hr. Králové | E83: 343 | F83: 134 | G83: 1124 | H83: 108 | I83: 115 | J83: 47 | K83: 149.173913
A84: 107 | B84: 2017KS Brno | C84: 2017 | D84: KS Brno | E84: 341 | F84: 184 | G84: 765 | H84: 224 | I84: 215 | J84: 135 | K84: 229.1860465
A85: 108 | B85: 2017KS Ostrava | C85: 2017 | D85: KS Ostrava | E85: 615 | F85: 307 | G85: 1356 | H85: 220 | I85: 235 | J85: 130 | K85: 201.9148936
A86: 101 | B86: =CONCATENATE(C86,D86) -> 2018MS Praha | C86: 2018 | D86: MS Praha | E86: 624 | F86: 364 | G86: 1392 | H86: 301 | I86: 289 | J86: 159 | K86: 200.8131488
A87: 102 | B87: 2018KS Praha | C87: 2018 | D87: KS Praha | E87: 211 | F87: 118 | G87: 358 | H87: 85 | I87: 83 | J87: 30 | K87: 131.9277108
A88: 103 | B88: 2018KS Č. Budějovice | C88: 2018 | D88: KS Č. Budějovice | E88: 375 | F88: 167 | G88: 1122 | H88: 58 | I88: 64 | J88: 41 | K88: 233.828125
A89: 104 | B89: 2018KS Plzeň | C89: 2018 | D89: KS Plzeň | E89: 559 | F89: 285 | G89: 1444 | H89: 93 | I89: 100 | J89: 54 | K89: 197.1
A90: 105 | B90: 2018KS Ústí n. Labem | C90: 2018 | D90: KS Ústí n. Labem | E90: 566 | F90: 324 | G90: 1673 | H90: 176 | I90: 184 | J90: 134 | K90: 265.8152174
A91: 106 | B91: 2018KS Hr. Králové | C91: 2018 | D91: KS Hr. Králové | E91: 328 | F91: 131 | G91: 725 | H91: 103 | I91: 113 | J91: 36 | K91: 116.2831858
A92: 107 | B92: 2018KS Brno | C92: 2018 | D92: KS Brno | E92: 449 | F92: 209 | G92: 1229 | H92: 244 | I92: 218 | J92: 162 | K92: 271.2385321
A93: 108 | B93: 2018KS Ostrava | C93: 2018 | D93: KS Ostrava | E93: 691 | F93: 255 | G93: 2397 | H93: 214 | I93: 189 | J93: 155 | K93: 299.3386243
A94: 101 | B94: =CONCATENATE(C94,D94) -> 2019MS Praha | C94: 2019 | D94: MS Praha | E94: 1832 | F94: 1881 | G94: 2413 | H94: 260 | I94: 244 | J94: 176 | K94: 263.2786885
A95: 102 | B95: 2019KS Praha | C95: 2019 | D95: KS Praha | E95: 455 | F95: 138 | G95: 1616 | H95: 88 | I95: 88 | J95: 30 | K95: 124.4318182
A96: 103 | B96: 2019KS Č. Budějovice | C96: 2019 | D96: KS Č. Budějovice | E96: 908 | F96: 344 | G96: 3409 | H96: 58 | I96: 50 | J96: 49 | K96: 357.7
A97: 104 | B97: 2019KS Plzeň | C97: 2019 | D97: KS Plzeň | E97: 613 | F97: 387 | G97: 2393 | H97: 113 | I97: 110 | J97: 57 | K97: 189.1363636
A98: 105 | B98: 2019KS Ústí n. Labem | C98: 2019 | D98: KS Ústí n. Labem | E98: 631 | F98: 332 | G98: 1302 | H98: 147 | I98: 158 | J98: 124 | K98: 286.4556962
A99: 106 | B99: 2019KS Hr. Králové | C99: 2019 | D99: KS Hr. Králové | E99: 489 | F99: 91 | G99: 2150 | H99: 95 | I99: 103 | J99: 27 | K99: 95.67961165
A100: 107 | B100: 2019KS Brno | C100: 2019 | D100: KS Brno | E100: 455 | F100: 259 | G100: 1056 | H100: 246 | I100: 242 | J100: 167 | K100: 251.8801653
A101: 108 | B101: 2019KS Ostrava | C101: 2019 | D101: KS Ostrava | E101: 576 | F101: 290 | G101: 1623 | H101: 164 | I101: 197 | J101: 122 | K101: 226.0406091
A102: 101 | B102: =CONCATENATE(C102,D102) -> 2020MS Praha | C102: 2020 | D102: MS Praha | E102: 443 | F102: 273 | G102: 993 | H102: 287 | I102: 283 | J102: 181 | K102: =J102/I102*365 -> 233.4452297
A103: 102 | B103: 2020KS Praha | C103: 2020 | D103: KS Praha | E103: 328 | F103: 126 | G103: 568 | H103: 77 | I103: 82 | J103: 25 | K103: 111.2804878
A104: 103 | B104: 2020KS Č. Budějovice | C104: 2020 | D104: KS Č. Budějovice | E104: 494 | F104: 279 | G104: 1287 | H104: 53 | I104: 57 | J104: 45 | K104: 288.1578947
A105: 104 | B105: 2020KS Plzeň | C105: 2020 | D105: KS Plzeň | E105: 524 | F105: 331 | G105: 1061 | H105: 98 | I105: 89 | J105: 66 | K105: 270.6741573
A106: 105 | B106: 2020KS Ústí n. Labem | C106: 2020 | D106: KS Ústí n. Labem | E106: 608 | F106: 285 | G106: 1852 | H106: 162 | I106: 150 | J106: 136 | K106: 330.9333333
A107: 106 | B107: 2020KS Hr. Králové | C107: 2020 | D107: KS Hr. Králové | E107: 409 | F107: 160 | G107: 1262 | H107: 110 | I107: 102 | J107: 35 | K107: 125.245098
A108: 107 | B108: 2020KS Brno | C108: 2020 | D108: KS Brno | E108: 428 | F108: 287 | G108: 991 | H108: 249 | I108: 260 | J108: 153 | K108: 214.7884615
A109: 108 | B109: 2020KS Ostrava | C109: 2020 | D109: KS Ostrava | E109: 365 | F109: 221 | G109: 765 | H109: 147 | I109: 152 | J109: 117 | K109: 280.9539474
A110: 101 | B110: =CONCATENATE(C110,D110) -> 2021MS Praha | C110: 2021 | D110: MS Praha | E110: 531 | F110: 312 | G110: 1118 | H110: 262 | I110: 276 | J110: 165 | K110: =J110/I110*365 -> 218.2065217
A111: 102 | B111: 2021KS Praha | C111: 2021 | D111: KS Praha | E111: 316 | F111: 111 | G111: 582 | H111: 82 | I111: 78 | J111: 29 | K111: 135.7051282
A112: 103 | B112: 2021KS Č. Budějovice | C112: 2021 | D112: KS Č. Budějovice | E112: 545 | F112: 476 | G112: 1084 | H112: 51 | I112: 63 | J112: 33 | K112: 191.1904762
A113: 104 | B113: 2021KS Plzeň | C113: 2021 | D113: KS Plzeň | E113: 372 | F113: 224 | G113: 793 | H113: 99 | I113: 101 | J113: 64 | K113: 231.2871287
A114: 105 | B114: 2021KS Ústí n. Labem | C114: 2021 | D114: KS Ústí n. Labem | E114: 695 | F114: 223 | G114: 1803 | H114: 137 | I114: 167 | J114: 106 | K114: 231.6766467
A115: 106 | B115: 2021KS Hr. Králové | C115: 2021 | D115: KS Hr. Králové | E115: 486 | F115: 198 | G115: 1368 | H115: 86 | I115: 92 | J115: 30 | K115: 119.0217391
A116: 107 | B116: 2021KS Brno | C116: 2021 | D116: KS Brno | E116: 602 | F116: 260 | G116: 1259 | H116: 190 | I116: 239 | J116: 104 | K116: 158.8284519
A117: 108 | B117: 2021KS Ostrava | C117: 2021 | D117: KS Ostrava | E117: 674 | F117: 326 | G117: 1597 | H117: 163 | I117: 171 | J117: 109 | K117: 232.6608187
A118: 101 | B118: =CONCATENATE(C118,D118) -> 2022MS Praha | C118: 2022 | D118: MS Praha | E118: 566 | F118: 308 | G118: 1401 | H118: 298 | I118: 284 | J118: 178 | K118: =J118/I118*365 -> 228.7676056
A119: 102 | B119: 2022KS Praha | C119: 2022 | D119: KS Praha | E119: 597 | F119: 213 | G119: 1281 | H119: 77 | I119: 77 | J119: 30 | K119: 142.2077922
A120: 103 | B120: 2022KS Č. Budějovice | C120: 2022 | D120: KS Č. Budějovice | E120: 439 | F120: 176 | G120: 1324 | H120: 59 | I120: 54 | J120: 38 | K120: 256.8518519
A121: 104 | B121: 2022KS Plzeň | C121: 2022 | D121: KS Plzeň | E121: 520 | F121: 231 | G121: 1679 | H121: 97 | I121: 105 | J121: 56 | K121: 194.6666667
A122: 105 | B122: 2022KS Ústí n. Labem | C122: 2022 | D122: KS Ústí n. Labem | E122: 599 | F122: 401 | G122: 1355 | H122: 157 | I122: 160 | J122: 105 | K122: 239.53125
A123: 106 | B123: 2022KS Hr. Králové | C123: 2022 | D123: KS Hr. Králové | E123: 342 | F123: 181 | G123: 671 | H123: 81 | I123: 85 | J123: 25 | K123: 107.3529412
A124: 107 | B124: 2022KS Brno | C124: 2022 | D124: KS Brno | E124: 535 | F124: 397 | G124: 1358 | H124: 204 | I124: 202 | J124: 107 | K124: 193.3415842
A125: 108 | B125: 2022KS Ostrava | C125: 2022 | D125: KS Ostrava | E125: 411 | F125: 178 | G125: 1258 | H125: 168 | I125: 195 | J125: 82 | K125: 153.4871795
A126: 101 | B126: =CONCATENATE(C126,D126) -> 2023MS Praha | C126: 2023 | D126: MS Praha | E126: 524 | F126: 241 | G126: 1247 | H126: 284 | I126: 317 | J126: 148 | K126: =J126/I126*365 -> 170.4100946
A127: 102 | B127: 2023KS Praha | C127: 2023 | D127: KS Praha | E127: 255 | F127: 71 | G127: 694 | H127: 107 | I127: 109 | J127: 28 | K127: 93.76146789
A128: 103 | B128: 2023KS Č. Budějovice | C128: 2023 | D128: KS Č. Budějovice | E128: 648 | F128: 266 | G128: 1546 | H128: 34 | I128: 51 | J128: 21 | K128: 150.2941176
A129: 104 | B129: 2023KS Plzeň | C129: 2023 | D129: KS Plzeň | E129: 384 | F129: 139 | G129: 1240 | H129: 109 | I129: 110 | J129: 55 | K129: 182.5
A130: 105 | B130: 2023KS Ústí n. Labem | C130: 2023 | D130: KS Ústí n. Labem | E130: 460 | F130: 138 | G130: 1289 | H130: 172 | I130: 171 | J130: 105 | K130: 224.122807
A131: 106 | B131: 2023KS Hr. Králové | C131: 2023 | D131: KS Hr. Králové | E131: 468 | F131: 75 | G131: 1466 | H131: 84 | I131: 86 | J131: 22 | K131: 93.37209302
A132: 107 | B132: 2023KS Brno | C132: 2023 | D132: KS Brno | E132: 520 | F132: 199 | G132: 1262 | H132: 201 | I132: 203 | J132: 104 | K132: 186.9950739
A133: 108 | B133: 2023KS Ostrava | C133: 2023 | D133: KS Ostrava | E133: 429 | F133: 150 | G133: 1441 | H133: 210 | I133: 180 | J133: 112 | K133: 227.1111111

Sheet Přehled_To_2023_KS
A1: Trestní odvolací agenda, vybraná data za rok 2023
A2: Přehled všech krajských soudů
C3: Délka řízení ve dnech | F3: Vyřizování věcí | L3: Vyřizování věcí na soudce
B4: Název soudu | C4: Průměr | D4: Medián | E4: Percentil 90 | F4: Obživa+nápad* | G4: Vyřízeno* | H4: Nevyřízeno* | I4: Míra vyřizování | J4: Disposition time | K4: Počet soudců k 1.1.* | L4: Obživa+nápad | M4: Vyřízeno | N4: Nevyřízeno
A5: 101 | B5: MS Praha | C5: 40 | D5: 28 | E5: 70 | F5: 3457 | G5: 3487 | H5: 150 | I5: =F5/G5*100 -> 99.1396616 | J5: =H5/G5*365 -> 15.7011758 | K5: 21.3 | L5: =F5/$K5 -> 162.3004695 | M5: =G5/$K5 -> 163.7089202 | N5: 7.042253521
A6: 102 | B6: KS Praha | C6: 33 | D6: 27 | E6: 49 | F6: 2275 | G6: 2272 | H6: 36 | I6: =F6/G6*100 -> 100.1320423 | J6: =H6/G6*365 -> 5.783450704 | K6: 18 | L6: =F6/$K6 -> 126.3888889 | M6: =G6/$K6 -> 126.2222222 | N6: =H6/$K6 -> 2
A7: 103 | B7: KS Č. Budějovice | C7: 62 | D7: 49 | E7: 120 | F7: 884 | G7: 895 | H7: 82 | I7: 98.77094972 | J7: 33.44134078 | K7: 9.8 | L7: 90.20408163 | M7: 91.32653061 | N7: 8.367346939
A8: 104 | B8: KS Plzeň | C8: 46 | D8: 35 | E8: 88 | F8: 1738 | G8: 1748 | H8: 110 | I8: 99.42791762 | J8: 22.96910755 | K8: 17.3 | L8: 100.4624277 | M8: 101.0404624 | N8: 6.358381503
A9: 105 | B9: KS Ústí n. Labem | C9: 80 | D9: 49 | E9: 181 | F9: 2837 | G9: 2822 | H9: 282 | I9: 100.5315379 | J9: 36.47413182 | K9: 22.8 | L9: 124.4298246 | M9: 123.7719298 | N9: 12.36842105
A10: 106 | B10: KS Hr. Králové | C10: 54 | D10: 39 | E10: 93 | F10: 1659 | G10: 1671 | H10: 72 | I10: 99.28186715 | J10: 15.72710952 | K10: 14 | L10: 118.5 | M10: 119.3571429 | N10: 5.142857143
A11: 107 | B11: KS Brno | C11: 50 | D11: 34 | E11: 92 | F11: 2417 | G11: 2445 | H11: 203 | I11: 98.85480573 | J11: 30.30470348 | K11: 22 | L11: 109.8636364 | M11: 111.1363636 | N11: 9.227272727
A12: 108 | B12: KS Ostrava | C12: 69 | D12: 41 | E12: 151 | F12: 2893 | G12: 2900 | H12: 342 | I12: 99.75862069 | J12: 43.04482759 | K12: 26 | L12: 111.2692308 | M12: 111.5384615 | N12: 13.15384615
B13: ČR | C13: 55 | D13: 35 | E13: 112 | F13: =AVERAGE(F5:F12) -> 2270 | G13: =AVERAGE(G5:G12) -> 2280 | H13: 159.625 | I13: 99.56140351 | J13: 25.55400219 | K13: =AVERAGE(K5:K12) -> 18.9 | L13: 120.1058201 | M13: 120.6349206 | N13: 8.445767196

Sheet Databáze_To_KS
A1: Databáze pro grafy
A2: Trest - kraje, odvolací agenda
E4: Délka řízení ve dnech | H4: Vyřizování věcí
B5: Pomocná prom. | C5: Rok | D5: Název soudu | E5: Průměr | F5: Medián | G5: Percentil 90 | H5: Obživa+nápad | I5: Vyřízeno | J5: Nevyřízeno | K5: Disposition time
A6: 101 | B6: =CONCATENATE(C6,D6) -> 2008MS Praha | C6: 2008 | D6: MS Praha | E6: 47.28829 | F6: 28 | G6: 82 | H6: 4338 | I6: 4289 | J6: 216 | K6: =J6/I6*365 -> 18.3819072
A7: 102 | B7: =CONCATENATE(C7,D7) -> 2008KS Praha | C7: 2008 | D7: KS Praha | E7: 34.91848 | F7: 24 | G7: 59 | H7: 3382 | I7: 3363 | J7: 93 | K7: =J7/I7*365 -> 10.09366637
A8: 103 | B8: 2008KS Č. Budějovice | C8: 2008 | D8: KS Č. Budějovice | E8: 59.82671 | F8: 42 | G8: 116 | H8: 1363 | I8: 1363 | J8: 74 | K8: 19.81658107
A9: 104 | B9: 2008KS Plzeň | C9: 2008 | D9: KS Plzeň | E9: 52.06421 | F9: 39 | G9: 90 | H9: 3406 | I9: 3421 | J9: 232 | K9: 24.7529962
A10: 105 | B10: 2008KS Ústí n. Labem | C10: 2008 | D10: KS Ústí n. Labem | E10: 106.4536 | F10: 55 | G10: 229 | H10: 3644 | I10: 3612 | J10: 450 | K10: 45.47342193
A11: 106 | B11: 2008KS Hr. Králové | C11: 2008 | D11: KS Hr. Králové | E11: 40.57059 | F11: 33 | G11: 70 | H11: 2577 | I11: 2572 | J11: 109 | K11: 15.468507
A12: 107 | B12: 2008KS Brno | C12: 2008 | D12: KS Brno | E12: 50.22753 | F12: 34 | G12: 78 | H12: 4449 | I12: 4504 | J12: 175 | K12: 14.18183837
A13: 108 | B13: 2008KS Ostrava | C13: 2008 | D13: KS Ostrava | E13: 43.3744 | F13: 33 | G13: 84 | H13: 5191 | I13: 5138 | J13: 364 | K13: 25.85831063
A14: 101 | B14: 2009MS Praha | C14: 2009 | D14: MS Praha | E14: 46.51831 | F14: 26 | G14: 78 | H14: 4296 | I14: 4306 | J14: 204 | K14: 17.29215049
A15: 102 | B15: 2009KS Praha | C15: 2009 | D15: KS Praha | E15: 41.84246 | F15: 29 | G15: 69 | H15: 3822 | I15: 3771 | J15: 141 | K15: 13.64757359
A16: 103 | B16: 2009KS Č. Budějovice | C16: 2009 | D16: KS Č. Budějovice | E16: 55.6572 | F16: 39 | G16: 98 | H16: 1300 | I16: 1276 | J16: 97 | K16: 27.7468652
A17: 104 | B17: 2009KS Plzeň | C17: 2009 | D17: KS Plzeň | E17: 49.94383 | F17: 39 | G17: 90 | H17: 3024 | I17: 3005 | J17: 250 | K17: 30.36605657
A18: 105 | B18: 2009KS Ústí n. Labem | C18: 2009 | D18: KS Ústí n. Labem | E18: 112.2128 | F18: 57 | G18: 273.5 | H18: 4240 | I18: 4124 | J18: 562 | K18: 49.74054316
A19: 106 | B19: 2009KS Hr. Králové | C19: 2009 | D19: KS Hr. Králové | E19: 41.79512 | F19: 34 | G19: 68 | H19: 2567 | I19: 2590 | J19: 85 | K19: 11.97876448
A20: 107 | B20: 2009KS Brno | C20: 2009 | D20: KS Brno | E20: 37.99138 | F20: 28 | G20: 64 | H20: 4536 | I20: 4516 | J20: 194 | K20: 15.67980514
A21: 108 | B21: 2009KS Ostrava | C21: 2009 | D21: KS Ostrava | E21: 43.41482 | F21: 32 | G21: 79 | H21: 5221 | I21: 5285 | J21: 294 | K21: 20.30463576
A22: 101 | B22: 2010MS Praha | C22: 2010 | D22: MS Praha | E22: 44.52721 | F22: 27 | G22: 70 | H22: 4465 | I22: 4450 | J22: 219 | K22: 17.96292135
A23: 102 | B23: 2010KS Praha | C23: 2010 | D23: KS Praha | E23: 40.63274 | F23: 29 | G23: 69 | H23: 3871 | I23: 3883 | J23: 129 | K23: 12.12593356
A24: 103 | B24: 2010KS Č. Budějovice | C24: 2010 | D24: KS Č. Budějovice | E24: 67.5442 | F24: 50 | G24: 127 | H24: 1540 | I24: 1503 | J24: 134 | K24: 32.5415835
A25: 104 | B25: 2010KS Plzeň | C25: 2010 | D25: KS Plzeň | E25: 53.08425 | F25: 38 | G25: 92 | H25: 3116 | I25: 3154 | J25: 212 | K25: 24.53392517
A26: 105 | B26: 2010KS Ústí n. Labem | C26: 2010 | D26: KS Ústí n. Labem | E26: 115.4053 | F26: 63 | G26: 238 | H26: 4341 | I26: 4225 | J26: 678 | K26: 58.57278107
A27: 106 | B27: 2010KS Hr. Králové | C27: 2010 | D27: KS Hr. Králové | E27: 43.57829 | F27: 36 | G27: 70 | H27: 2787 | I27: 2776 | J27: 96 | K27: 12.62247839
A28: 107 | B28: 2010KS Brno | C28: 2010 | D28: KS Brno | E28: 40.15246 | F28: 27 | G28: 69 | H28: 4673 | I28: 4760 | J28: 107 | K28: 8.204831933
A29: 108 | B29: 2010KS Ostrava | C29: 2010 | D29: KS Ostrava | E29: 42.27453 | F29: 32 | G29: 78 | H29: 5361 | I29: 5333 | J29: 322 | K29: 22.03825239
A30: 101 | B30: 2011MS Praha | C30: 2011 | D30: MS Praha | E30: 43.88192 | F30: 27 | G30: 81 | H30: 4390 | I30: 4420 | J30: 186 | K30: 15.35972851
A31: 102 | B31: 2011KS Praha | C31: 2011 | D31: KS Praha | E31: 41.15681 | F31: 29 | G31: 72 | H31: 3925 | I31: 3933 | J31: 121 | K31: 11.22934147
A32: 103 | B32: 2011KS Č. Budějovice | C32: 2011 | D32: KS Č. Budějovice | E32: 69.24178 | F32: 54 | G32: 136 | H32: 1427 | I32: 1443 | J32: 118 | K32: 29.84753985
A33: 104 | B33: 2011KS Plzeň | C33: 2011 | D33: KS Plzeň | E33: 51.04389 | F33: 36 | G33: 81 | H33: 3116 | I33: 3145 | J33: 183 | K33: 21.23847377
A34: 105 | B34: 2011KS Ústí n. Labem | C34: 2011 | D34: KS Ústí n. Labem | E34: 111.6356 | F34: 67 | G34: 253.5 | H34: 4428 | I34: 4499 | J34: 607 | K34: 49.24538786
A35: 106 | B35: 2011KS Hr. Králové | C35: 2011 | D35: KS Hr. Králové | E35: 41.71318 | F35: 35 | G35: 65 | H35: 2627 | I35: 2642 | J35: 81 | K35: 11.19038607
A36: 107 | B36: 2011KS Brno | C36: 2011 | D36: KS Brno | E36: 36.41086 | F36: 27 | G36: 63 | H36: 4456 | I36: 4400 | J36: 162 | K36: 13.43863636
A37: 108 | B37: 2011KS Ostrava | C37: 2011 | D37: KS Ostrava | E37: 43.16855 | F37: 32 | G37: 78 | H37: 4955 | I37: 4962 | J37: 315 | K37: 23.17110036
A38: 101 | B38: 2012MS Praha | C38: 2012 | D38: MS Praha | E38: 41.12577 | F38: 27 | G38: 68 | H38: 4420 | I38: 4448 | J38: 157 | K38: 12.88331835
A39: 102 | B39: 2012KS Praha | C39: 2012 | D39: KS Praha | E39: 33.57791 | F39: 27 | G39: 56 | H39: 3564 | I39: 3608 | J39: 77 | K39: 7.789634146
A40: 103 | B40: 2012KS Č. Budějovice | C40: 2012 | D40: KS Č. Budějovice | E40: 75.58609 | F40: 56 | G40: 153 | H40: 1380 | I40: 1342 | J40: 156 | K40: 42.42921013
A41: 104 | B41: 2012KS Plzeň | C41: 2012 | D41: KS Plzeň | E41: 47.51 | F41: 38 | G41: 83 | H41: 3025 | I41: 3036 | J41: 172 | K41: 20.67852437
A42: 105 | B42: 2012KS Ústí n. Labem | C42: 2012 | D42: KS Ústí n. Labem | E42: 113.0716 | F42: 63 | G42: 255 | H42: 4172 | I42: 4055 | J42: 724 | K42: 65.16892725
A43: 106 | B43: 2012KS Hr. Králové | C43: 2012 | D43: KS Hr. Králové | E43: 49.74421 | F43: 39 | G43: 83 | H43: 2634 | I43: 2622 | J43: 93 | K43: 12.94622426
A44: 107 | B44: 2012KS Brno | C44: 2012 | D44: KS Brno | E44: 38.2953 | F44: 29 | G44: 68 | H44: 4241 | I44: 4208 | J44: 195 | K44: 16.91421103
A45: 108 | B45: 2012KS Ostrava | C45: 2012 | D45: KS Ostrava | E45: 40.80921 | F45: 33 | G45: 74 | H45: 4917 | I45: 4850 | J45: 382 | K45: 28.74845361
A46: 101 | B46: 2013MS Praha | C46: 2013 | D46: MS Praha | E46: 38.18572 | F46: 27 | G46: 70 | H46: 3745 | I46: 3788 | J46: 114 | K46: 10.98468849
A47: 102 | B47: 2013KS Praha | C47: 2013 | D47: KS Praha | E47: 30.64286 | F47: 25 | G47: 53 | H47: 3215 | I47: 3214 | J47: 78 | K47: 8.858120722
A48: 103 | B48: 2013KS Č. Budějovice | C48: 2013 | D48: KS Č. Budějovice | E48: 81.57377 | F48: 58 | G48: 157 | H48: 1215 | I48: 1269 | J48: 103 | K48: 29.62568952
A49: 104 | B49: 2013KS Plzeň | C49: 2013 | D49: KS Plzeň | E49: 53.39051 | F49: 40 | G49: 88 | H49: 2633 | I49: 2611 | J49: 194 | K49: 27.11987744
A50: 105 | B50: 2013KS Ústí n. Labem | C50: 2013 | D50: KS Ústí n. Labem | E50: 129.208 | F50: 73 | G50: 313 | H50: 3550 | I50: 3656 | J50: 616 | K50: 61.49890591
A51: 106 | B51: 2013KS Hr. Králové | C51: 2013 | D51: KS Hr. Králové | E51: 45.24683 | F51: 36 | G51: 73 | H51: 2261 | I51: 2251 | J51: 103 | K51: 16.70146602
A52: 107 | B52: 2013KS Brno | C52: 2013 | D52: KS Brno | E52: 40.32861 | F52: 29 | G52: 71 | H52: 3714 | I52: 3792 | J52: 117 | K52: 11.26186709
A53: 108 | B53: 2013KS Ostrava | C53: 2013 | D53: KS Ostrava | E53: 46.04359 | F53: 36 | G53: 85 | H53: 4219 | I53: 4298 | J53: 302 | K53: 25.64681247
A54: 101 | B54: 2014MS Praha | C54: 2014 | D54: MS Praha | E54: 40.97016 | F54: 27 | G54: 70 | H54: 4127 | I54: 4049 | J54: 191 | K54: 17.21783156
A55: 102 | B55: 2014KS Praha | C55: 2014 | D55: KS Praha | E55: 34.91843 | F55: 27 | G55: 60 | H55: 3289 | I55: 3309 | J55: 58 | K55: 6.397703234
A56: 103 | B56: 2014KS Č. Budějovice | C56: 2014 | D56: KS Č. Budějovice | E56: 78.64912 | F56: 54 | G56: 155.5 | H56: 1196 | I56: 1171 | J56: 128 | K56: 39.89752348
A57: 104 | B57: 2014KS Plzeň | C57: 2014 | D57: KS Plzeň | E57: 52.02584 | F57: 40 | G57: 92 | H57: 2523 | I57: 2533 | J57: 183 | K57: 26.36991709
A58: 105 | B58: 2014KS Ústí n. Labem | C58: 2014 | D58: KS Ústí n. Labem | E58: 136.3308 | F58: 64 | G58: 370 | H58: 3124 | I58: 3254 | J58: 486 | K58: 54.51444376
A59: 106 | B59: 2014KS Hr. Králové | C59: 2014 | D59: KS Hr. Králové | E59: 44.42786 | F59: 40 | G59: 75 | H59: 2386 | I59: 2369 | J59: 119 | K59: 18.3347404
A60: 107 | B60: 2014KS Brno | C60: 2014 | D60: KS Brno | E60: 37.04123 | F60: 29 | G60: 60 | H60: 3539 | I60: 3451 | J60: 205 | K60: 21.68212112
A61: 108 | B61: 2014KS Ostrava | C61: 2014 | D61: KS Ostrava | E61: 46.66768 | F61: 36 | G61: 84 | H61: 4331 | I61: 4250 | J61: 383 | K61: 32.89294118
A62: 101 | B62: 2015MS Praha | C62: 2015 | D62: MS Praha | E62: 40.09399 | F62: 28 | G62: 63 | H62: 4098 | I62: 4079 | J62: 210 | K62: 18.79137043
A63: 102 | B63: 2015KS Praha | C63: 2015 | D63: KS Praha | E63: 34.13044 | F63: 28 | G63: 57 | H63: 3493 | I63: 3489 | J63: 61 | K63: 6.381484666
A64: 103 | B64: 2015KS Č. Budějovice | C64: 2015 | D64: KS Č. Budějovice | E64: 65.83821 | F64: 50 | G64: 121 | H64: 1198 | I64: 1199 | J64: 127 | K64: 38.66138449
A65: 104 | B65: 2015KS Plzeň | C65: 2015 | D65: KS Plzeň | E65: 49.99088 | F65: 39 | G65: 84 | H65: 2577 | I65: 2558 | J65: 202 | K65: 28.82329945
A66: 105 | B66: 2015KS Ústí n. Labem | C66: 2015 | D66: KS Ústí n. Labem | E66: 109.1965 | F66: 51 | G66: 315 | H66: 3424 | I66: 3395 | J66: 514 | K66: 55.26067747
A67: 106 | B67: 2015KS Hr. Králové | C67: 2015 | D67: KS Hr. Králové | E67: 52.78953 | F67: 42 | G67: 88 | H67: 2484 | I67: 2462 | J67: 141 | K67: 20.9037368
A68: 107 | B68: 2015KS Brno | C68: 2015 | D68: KS Brno | E68: 39.8298 | F68: 31.5 | G68: 67 | H68: 3466 | I68: 3488 | J68: 183 | K68: 19.14994266
A69: 108 | B69: 2015KS Ostrava | C69: 2015 | D69: KS Ostrava | E69: 56.27555 | F69: 42 | G69: 105 | H69: 4290 | I69: 4251 | J69: 422 | K69: 36.23382733
A70: 101 | B70: 2016MS Praha | C70: 2016 | D70: MS Praha | E70: 42.1568 | F70: 28 | G70: 66 | H70: 4044 | I70: 4083 | J70: 170 | K70: 15.19715895
A71: 102 | B71: =CONCATENATE(C71,D71) -> 2016KS Praha | C71: 2016 | D71: KS Praha | E71: 32.22761 | F71: 27 | G71: 49 | H71: 3301 | I71: 3333 | J71: 29 | K71: =J71/I71*365 -> 3.175817582
A72: 103 | B72: 2016KS Č. Budějovice | C72: 2016 | D72: KS Č. Budějovice | E72: 66.17778 | F72: 45 | G72: 124 | H72: 1215 | I72: 1254 | J72: 88 | K72: 25.61403509
A73: 104 | B73: 2016KS Plzeň | C73: 2016 | D73: KS Plzeň | E73: 55.97093 | F73: 41 | G73: 109 | H73: 2583 | I73: 2564 | J73: 221 | K73: 31.46060842
A74: 105 | B74: 2016KS Ústí n. Labem | C74: 2016 | D74: KS Ústí n. Labem | E74: 101.5359 | F74: 55.5 | G74: 286 | H74: 3659 | I74: 3666 | J74: 507 | K74: 50.4787234
A75: 106 | B75: 2016KS Hr. Králové | C75: 2016 | D75: KS Hr. Králové | E75: 54.08046 | F75: 42 | G75: 90 | H75: 2309 | I75: 2344 | J75: 106 | K75: 16.5059727
A76: 107 | B76: 2016KS Brno | C76: 2016 | D76: KS Brno | E76: 45.78968 | F76: 31 | G76: 76 | H76: 3666 | I76: 3609 | J76: 240 | K76: 24.2726517
A77: 108 | B77: 2016KS Ostrava | C77: 2016 | D77: KS Ostrava | E77: 59.10263 | F77: 42 | G77: 120 | H77: 4212 | I77: 4280 | J77: 354 | K77: 30.18925234
A78: 101 | B78: 2017MS Praha | C78: 2017 | D78: MS Praha | E78: 43.77883 | F78: 28 | G78: 65 | H78: 4062 | I78: 4050 | J78: 181 | K78: 16.31234568
A79: 102 | B79: 2017KS Praha | C79: 2017 | D79: KS Praha | E79: 29.35954 | F79: 24 | G79: 49 | H79: 2995 | I79: 2995 | J79: 29 | K79: 3.534223706
A80: 103 | B80: 2017KS Č. Budějovice | C80: 2017 | D80: KS Č. Budějovice | E80: 60.99375 | F80: 45 | G80: 105 | H80: 1133 | I80: 1141 | J80: 80 | K80: 25.59158633
A81: 104 | B81: 2017KS Plzeň | C81: 2017 | D81: KS Plzeň | E81: 53.07578 | F81: 40 | G81: 99 | H81: 2628 | I81: 2636 | J81: 213 | K81: 29.49355083
A82: 105 | B82: 2017KS Ústí n. Labem | C82: 2017 | D82: KS Ústí n. Labem | E82: 88.70126 | F82: 50 | G82: 202 | H82: 3513 | I82: 3626 | J82: 395 | K82: 39.76144512
A83: 106 | B83: 2017KS Hr. Králové | C83: 2017 | D83: KS Hr. Králové | E83: 43.6156 | F83: 36 | G83: 75 | H83: 2173 | I83: 2187 | J83: 92 | K83: 15.35436671
A84: 107 | B84: 2017KS Brno | C84: 2017 | D84: KS Brno | E84: 46.0922 | F84: 34 | G84: 77 | H84: 3233 | I84: 3243 | J84: 230 | K84: 25.88652482
A85: 108 | B85: 2017KS Ostrava | C85: 2017 | D85: KS Ostrava | E85: 54.43824 | F85: 40 | G85: 104 | H85: 4005 | I85: 4002 | J85: 357 | K85: 32.55997001
A86: 101 | B86: =CONCATENATE(C86,D86) -> 2018MS Praha | C86: 2018 | D86: MS Praha | E86: 39 | F86: 28 | G86: 64 | H86: 3755 | I86: 3705 | J86: 231 | K86: =J86/I86*365 -> 22.75708502
A87: 102 | B87: 2018KS Praha | C87: 2018 | D87: KS Praha | E87: 33 | F87: 23 | G87: 57 | H87: 2872 | I87: 2859 | J87: 42 | K87: 5.36201469
A88: 103 | B88: 2018KS Č. Budějovice | C88: 2018 | D88: KS Č. Budějovice | E88: 59 | F88: 44 | G88: 107 | H88: 1104 | I88: 1083 | J88: 101 | K88: 34.03970452
A89: 104 | B89: 2018KS Plzeň | C89: 2018 | D89: KS Plzeň | E89: 62 | F89: 40 | G89: 120 | H89: 2335 | I89: 2394 | J89: 154 | K89: 23.47953216
A90: 105 | B90: 2018KS Ústí n. Labem | C90: 2018 | D90: KS Ústí n. Labem | E90: 78 | F90: 48 | G90: 161 | H90: 3266 | I90: 3317 | J90: 344 | K90: 37.85348206
A91: 106 | B91: 2018KS Hr. Králové | C91: 2018 | D91: KS Hr. Králové | E91: 48 | F91: 33 | G91: 85 | H91: 1934 | I91: 1934 | J91: 92 | K91: 17.36297828
A92: 107 | B92: 2018KS Brno | C92: 2018 | D92: KS Brno | E92: 52 | F92: 41 | G92: 93 | H92: 3121 | I92: 3151 | J92: 202 | K92: 23.39892098
A93: 108 | B93: 2018KS Ostrava | C93: 2018 | D93: KS Ostrava | E93: 58 | F93: 42 | G93: 118 | H93: 3945 | I93: 3968 | J93: 335 | K93: 30.81527218
A94: 101 | B94: =CONCATENATE(C94,D94) -> 2019MS Praha | C94: 2019 | D94: MS Praha | E94: 49 | F94: 30 | G94: 76 | H94: 3682 | I94: 3749 | J94: 165 | K94: =J94/I94*365 -> 16.06428381
A95: 102 | B95: 2019KS Praha | C95: 2019 | D95: KS Praha | E95: 32 | F95: 27 | G95: 56 | H95: 2737 | I95: 2753 | J95: 26 | K95: 3.447148565
A96: 103 | B96: 2019KS Č. Budějovice | C96: 2019 | D96: KS Č. Budějovice | E96: 70 | F96: 54 | G96: 144 | H96: 1095 | I96: 1099 | J96: 97 | K96: 32.21565059
A97: 104 | B97: 2019KS Plzeň | C97: 2019 | D97: KS Plzeň | E97: 69 | F97: 41 | G97: 119 | H97: 2250 | I97: 2225 | J97: 179 | K97: 29.36404494
A98: 105 | B98: 2019KS Ústí n. Labem | C98: 2019 | D98: KS Ústí n. Labem | E98: 71 | F98: 44 | G98: 145 | H98: 3268 | I98: 3305 | J98: 306 | K98: 33.79425113
A99: 106 | B99: 2019KS Hr. Králové | C99: 2019 | D99: KS Hr. Králové | E99: 54 | F99: 42 | G99: 93 | H99: 2001 | I99: 2006 | J99: 87 | K99: 15.83000997
A100: 107 | B100: 2019KS Brno | C100: 2019 | D100: KS Brno | E100: 55 | F100: 33 | G100: 85 | H100: 3248 | I100: 3183 | J100: 267 | K100: 30.61734213
A101: 108 | B101: 2019KS Ostrava | C101: 2019 | D101: KS Ostrava | E101: 56 | F101: 41 | G101: 110 | H101: 3828 | I101: 3851 | J101: 311 | K101: 29.47675928
A102: 101 | B102: =CONCATENATE(C102,D102) -> 2020MS Praha | C102: 2020 | D102: MS Praha | E102: 48 | F102: 34 | G102: 79 | H102: 3385 | I102: 3365 | J102: 185 | K102: =J102/I102*365 -> 20.06686478
A103: 102 | B103: 2020KS Praha | C103: 2020 | D103: KS Praha | E103: 41 | F103: 30 | G103: 83 | H103: 2446 | I103: 2412 | J103: 60 | K103: 9.07960199
A104: 103 | B104: 2020KS Č. Budějovice | C104: 2020 | D104: KS Č. Budějovice | E104: 86 | F104: 59 | G104: 189 | H104: 1066 | I104: 1021 | J104: 142 | K104: 50.7639569
A105: 104 | B105: 2020KS Plzeň | C105: 2020 | D105: KS Plzeň | E105: 80 | F105: 50 | G105: 136 | H105: 2001 | I105: 1963 | J105: 217 | K105: 40.34895568
A106: 105 | B106: 2020KS Ústí n. Labem | C106: 2020 | D106: KS Ústí n. Labem | E106: 86 | F106: 49 | G106: 187 | H106: 2941 | I106: 2887 | J106: 360 | K106: 45.51437478
A107: 106 | B107: 2020KS Hr. Králové | C107: 2020 | D107: KS Hr. Králové | E107: 53 | F107: 43 | G107: 93 | H107: 1813 | I107: 1812 | J107: 88 | K107: 17.72626932
A108: 107 | B108: 2020KS Brno | C108: 2020 | D108: KS Brno | E108: 60 | F108: 44 | G108: 119 | H108: 2765 | I108: 2775 | J108: 257 | K108: 33.8036036
A109: 108 | B109: 2020KS Ostrava | C109: 2020 | D109: KS Ostrava | E109: 70 | F109: 47 | G109: 144 | H109: 3419 | I109: 3377 | J109: 353 | K109: 38.1536867
A110: 101 | B110: =CONCATENATE(C110,D110) -> 2021MS Praha | C110: 2021 | D110: MS Praha | E110: 47 | F110: 33 | G110: 83 | H110: 3215 | I110: 3215 | J110: 185 | K110: =J110/I110*365 -> 21.00311042
A111: 102 | B111: 2021KS Praha | C111: 2021 | D111: KS Praha | E111: 39 | F111: 29 | G111: 64 | H111: 2567 | I111: 2581 | J111: 45 | K111: 6.363812476
A112: 103 | B112: 2021KS Č. Budějovice | C112: 2021 | D112: KS Č. Budějovice | E112: 91 | F112: 62 | G112: 158 | H112: 921 | I112: 966 | J112: 97 | K112: 36.65113872
A113: 104 | B113: 2021KS Plzeň | C113: 2021 | D113: KS Plzeň | E113: 64 | F113: 44 | G113: 142 | H113: 1974 | I113: 2002 | J113: 189 | K113: 34.45804196
A114: 105 | B114: 2021KS Ústí n. Labem | C114: 2021 | D114: KS Ústí n. Labem | E114: 91 | F114: 55 | G114: 202 | H114: 2961 | I114: 2971 | J114: 350 | K114: 42.99899024
A115: 106 | B115: 2021KS Hr. Králové | C115: 2021 | D115: KS Hr. Králové | E115: 51 | F115: 43 | G115: 83 | H115: 1719 | I115: 1728 | J115: 79 | K115: 16.6869213
A116: 107 | B116: 2021KS Brno | C116: 2021 | D116: KS Brno | E116: 54 | F116: 36 | G116: 105 | H116: 2525 | I116: 2562 | J116: 220 | K116: 31.34270101
A117: 108 | B117: 2021KS Ostrava | C117: 2021 | D117: KS Ostrava | E117: 65 | F117: 45 | G117: 128 | H117: 3236 | I117: 3250 | J117: 338 | K117: 37.96
A118: 101 | B118: =CONCATENATE(C118,D118) -> 2022MS Praha | C118: 2022 | D118: MS Praha | E118: 50 | F118: 34 | G118: 88 | H118: 3178 | I118: 3182 | J118: 180 | K118: =J118/I118*365 -> 20.64739158
A119: 102 | B119: 2022KS Praha | C119: 2022 | D119: KS Praha | E119: 33 | F119: 28 | G119: 53 | H119: 2397 | I119: 2409 | J119: 33 | K119: 5
A120: 103 | B120: 2022KS Č. Budějovice | C120: 2022 | D120: KS Č. Budějovice | E120: 55 | F120: 44 | G120: 123 | H120: 882 | I120: 886 | J120: 93 | K120: 38.31264108
A121: 104 | B121: 2022KS Plzeň | C121: 2022 | D121: KS Plzeň | E121: 57 | F121: 41 | G121: 95 | H121: 1710 | I121: 1779 | J121: 120 | K121: 24.62057336
A122: 105 | B122: 2022KS Ústí n. Labem | C122: 2022 | D122: KS Ústí n. Labem | E122: 84 | F122: 50 | G122: 195 | H122: 2894 | I122: 2977 | J122: 267 | K122: 32.73597581
A123: 106 | B123: 2022KS Hr. Králové | C123: 2022 | D123: KS Hr. Králové | E123: 48 | F123: 40 | G123: 83 | H123: 1789 | I123: 1784 | J123: 84 | K123: 17.18609865
A124: 107 | B124: 2022KS Brno | C124: 2022 | D124: KS Brno | E124: 54 | F124: 36 | G124: 96 | H124: 2553 | I124: 2543 | J124: 230 | K124: 33.01219033
A125: 108 | B125: 2022KS Ostrava | C125: 2022 | D125: KS Ostrava | E125: 67 | F125: 43 | G125: 140 | H125: 3063 | I125: 3052 | J125: 349 | K125: 41.73820446
A126: 101 | B126: =CONCATENATE(C126,D126) -> 2023MS Praha | C126: 2023 | D126: MS Praha | E126: 40 | F126: 28 | G126: 70 | H126: 3457 | I126: 3487 | J126: 150 | K126: =J126/I126*365 -> 15.7011758
A127: 102 | B127: 2023KS Praha | C127: 2023 | D127: KS Praha | E127: 33 | F127: 27 | G127: 49 | H127: 2275 | I127: 2272 | J127: 36 | K127: 5.783450704
A128: 103 | B128: 2023KS Č. Budějovice | C128: 2023 | D128: KS Č. Budějovice | E128: 62 | F128: 49 | G128: 120 | H128: 884 | I128: 895 | J128: 82 | K128: 33.44134078
A129: 104 | B129: 2023KS Plzeň | C129: 2023 | D129: KS Plzeň | E129: 46 | F129: 35 | G129: 88 | H129: 1738 | I129: 1748 | J129: 110 | K129: 22.96910755
A130: 105 | B130: 2023KS Ústí n. Labem | C130: 2023 | D130: KS Ústí n. Labem | E130: 80 | F130: 49 | G130: 181 | H130: 2837 | I130: 2822 | J130: 282 | K130: 36.47413182
A131: 106 | B131: 2023KS Hr. Králové | C131: 2023 | D131: KS Hr. Králové | E131: 54 | F131: 39 | G131: 93 | H131: 1659 | I131: 1671 | J131: 72 | K131: 15.72710952
A132: 107 | B132: 2023KS Brno | C132: 2023 | D132: KS Brno | E132: 50 | F132: 34 | G132: 92 | H132: 2417 | I132: 2445 | J132: 203 | K132: 30.30470348
A133: 108 | B133: 2023KS Ostrava | C133: 2023 | D133: KS Ostrava | E133: 69 | F133: 41 | G133: 151 | H133: 2893 | I133: 2900 | J133: 342 | K133: 43.04482759

Sheet Výsl. KS civil - 2023
B1: Krajské soudy - vybraná statistická data†
A2: Krajský soud: | C2: KS Hr. Králové
A4: Rejstřík C 2023 | H4: Rejstřík Cm 2023 | R4: Odvolací agenda - rejstřík Co 2023
A5: Ukazatel | C5: Hodnota | D5: Hodnota v ČR | E5: Pořadí v ČR | H5: Ukazatel | J5: Hodnota | K5: Hodnota v ČR | L5: Pořadí v ČR | R5: Ukazatel | T5: Hodnota | U5: Hodnota v ČR | V5: Pořadí v ČR
A6: Délka řízení (ve dnech) | B6: Průměr | C6: =VLOOKUP($C$2,Přehled_C_2023_KS!$B$4:$O$12,MATCH($B6,Přehled_C_2023_KS!$B$4:$O$4,0),0) -> 200 | D6: =HLOOKUP(B6,Přehled_C_2023_KS!$C$4:$O$13,10,0) -> 590 | E6: =_xlfn.RANK.EQ(C6,Přehled_C_2023_KS!$C$5:$C$12,1) -> 1 | H6: Délka řízení (ve dnech) | I6: Průměr | J6: =VLOOKUP($C$2,Přehled_Cm_2023_KS!$B$4:$O$12,MATCH($B6,Přehled_Cm_2023_KS!$B$4:$O$4,0),0) -> 704.1593 | K6: =HLOOKUP(I6,Přehled_Cm_2023_KS!$C$4:$O$13,10,0) -> 837 | L6: =_xlfn.RANK.EQ(J6,Přehled_Cm_2023_KS!$C$5:$C$12,1) -> 3 | R6: Délka řízení (ve dnech) | S6: Průměr | T6: =VLOOKUP($C$2,Přehled_Co_2023_KS!$B$4:$O$12,MATCH($B6,Přehled_Co_2023_KS!$B$4:$O$4,0),0) -> 100 | U6: =HLOOKUP(S6,Přehled_Co_2023_KS!$C$4:$O$13,10,0) -> 121 | V6: =_xlfn.RANK.EQ(T6,Přehled_Co_2023_KS!$C$5:$C$12,1) -> 5
B7: Medián | C7: =VLOOKUP($C$2,Přehled_C_2023_KS!$B$4:$O$12,MATCH($B7,Přehled_C_2023_KS!$B$4:$O$4,0),0) -> 28.5 | D7: =HLOOKUP(B7,Přehled_C_2023_KS!$C$4:$O$13,10,0) -> 194 | E7: =_xlfn.RANK.EQ(C7,Přehled_C_2023_KS!$D$5:$D$12,1) -> 1 | I7: Medián | J7: =VLOOKUP($C$2,Přehled_Cm_2023_KS!$B$4:$O$12,MATCH($B7,Přehled_Cm_2023_KS!$B$4:$O$4,0),0) -> 233 | K7: =HLOOKUP(I7,Přehled_Cm_2023_KS!$C$4:$O$13,10,0) -> 342 | L7: =_xlfn.RANK.EQ(J7,Přehled_Cm_2023_KS!$D$5:$D$12,1) -> 3 | S7: Medián | T7: =VLOOKUP($C$2,Přehled_Co_2023_KS!$B$4:$O$12,MATCH($B7,Přehled_Co_2023_KS!$B$4:$O$4,0),0) -> 70 | U7: =HLOOKUP(S7,Přehled_Co_2023_KS!$C$4:$O$13,10,0) -> 68 | V7: =_xlfn.RANK.EQ(T7,Přehled_Co_2023_KS!$D$5:$D$12,1) -> 5
